Workbook

Sheet Cover
A1: SUPRA: Standardized Utility Pro-forma Financial Analysis Tool
B3: Version: | C3: v1.2
B4: Date | C4: 2021-07-28
B7: For all inquiries, contact:
B8: Peter Cappers
B9: Electricity Markets and Policy Department
B10: Lawrence Berkeley National Laboratory
B11: Phone: 315.637.0513
B12: Email: PACappers@lbl.gov
A15: Accessible Worksheets | B15: Description
A16: Definitions | B16: Definitions and descriptions for key assumptions
A17: User_InputDashboard | B17: Enter simplified Annual and Projects inputs for Base Case and/or Comparison Case
A18: User_OutputDashboard | B18: Dashboard of results and charts
A20: Hidden Worksheets | B20: Description
A21: Interim_InputDashboard | B21: Calculation tab: expands simplified inputs from User_InputDashboard
A22: Active_InputDetailed | B22: Calculation tab
A23: Model_Calcs | B23: Calculation tab
A24: Scenariox_Inputs | B24: Hard Coded Inputs for Each of the x = 1 to 10 Unique User-defined Scenarios
A25: Scenariox_Results | B25: Hard Coded Results for Each of the x = 1 to 10 Unique User-defined Scenarios
A26: OutputDashboard_GraphData | B26: Data used to lookup results for display in the User_OutputDashboard tab
A27: Model_InputList | B27: Data validation and named ranges data
A29: About SUPRA
A30: Standardized Utility Proforma Financial Analysis tool (SUPRA) Copyright (c) 2021, The Regents of the University of California, through Lawrence Berkeley National Laboratory (subject to receipt of any required approvals from the U.S. Dept. of Energy). All rights reserved. If you have questions about your rights to use or distribute this software, please contact Berkeley Lab's Intellectual Property Office at IPO@lbl.gov. NOTICE. This specialized spreadsheet was developed under funding from the U.S. Department of Energy and the U.S. Government consequently retains certain rights. As such, the U.S. Government has been granted for itself and others acting on its behalf a paid-up, nonexclusive, irrevocable, worldwide license in the drawing package to reproduce, distribute copies to the public, prepare derivative works, and perform publicly and display publicly, and to permit others to do so. This spreadsheet is licensed under a Creative Commons Attribution 4.0 (CC BY-SA 4.0) license at https://creativecommons.org/licenses/by-sa/4.0/legalcode.

Sheet DPV logic (hidden)
D1: 2020 | E1: 2021 | F1: 2022 | G1: 2023 | H1: 2024 | I1: 2025 | J1: 2026 | K1: 2027 | L1: 2028 | M1: 2029 | N1: 2030 | P1: Note
A2: No DPV | B2: Base Case No DER | C2: =CONCATENATE("Scenario", MATCH(B2, Model_InputList!B49:K49, 0)) -> Scenario1
A3: With DPV | B3: Hybrid 50-50 | C3: =CONCATENATE("Scenario", MATCH(B3, Model_InputList!B49:K49, 0)) -> Scenario3
A4: ACTIVE
A5: Revenues | D5: =+D7-D6 -> 0
A6: Collected Retail Sales (MWh)- net of DER & LDGD but no Event adjustment | D6: =SUMIF(INDIRECT($C$2&"_Results!$B$1:$B$1416"), $A6, INDIRECT($C$2&"_Results!d$1:d$1416")) -> 592500 | E6: =SUMIF(INDIRECT($C$2&"_Results!$B$1:$B$1416"), $A6, INDIRECT($C$2&"_Results!e$1:e$1416")) -> 600291.375 | F6: =SUMIF(INDIRECT($C$2&"_Results!$B$1:$B$1416"), $A6, INDIRECT($C$2&"_Results!f$1:f$1416")) -> 608242.3991 | G6: =SUMIF(INDIRECT($C$2&"_Results!$B$1:$B$1416"), $A6, INDIRECT($C$2&"_Results!g$1:g$1416")) -> 616356.8017 | H6: =SUMIF(INDIRECT($C$2&"_Results!$B$1:$B$1416"), $A6, INDIRECT($C$2&"_Results!h$1:h$1416")) -> 624638.4032 | I6: =SUMIF(INDIRECT($C$2&"_Results!$B$1:$B$1416"), $A6, INDIRECT($C$2&"_Results!i$1:i$1416")) -> 633091.1172 | J6: =SUMIF(INDIRECT($C$2&"_Results!$B$1:$B$1416"), $A6, INDIRECT($C$2&"_Results!j$1:j$1416")) -> 641718.9533 | K6: =SUMIF(INDIRECT($C$2&"_Results!$B$1:$B$1416"), $A6, INDIRECT($C$2&"_Results!k$1:k$1416")) -> 650526.0186 | L6: =SUMIF(INDIRECT($C$2&"_Results!$B$1:$B$1416"), $A6, INDIRECT($C$2&"_Results!l$1:l$1416")) -> 659516.521 | M6: =SUMIF(INDIRECT($C$2&"_Results!$B$1:$B$1416"), $A6, INDIRECT($C$2&"_Results!m$1:m$1416")) -> 668694.7713 | N6: =SUMIF(INDIRECT($C$2&"_Results!$B$1:$B$1416"), $A6, INDIRECT($C$2&"_Results!n$1:n$1416")) -> 678065.1856
A7: Collected Retail Sales (MWh)- net of DER & LDGD but no Event adjustment | D7: =SUMIF(INDIRECT($C$3&"_Results!$B$1:$B$1416"), $A7, INDIRECT($C$3&"_Results!d$1:d$1416")) -> 592500 | E7: =SUMIF(INDIRECT($C$3&"_Results!$B$1:$B$1416"), $A7, INDIRECT($C$3&"_Results!e$1:e$1416")) -> 595350.0338 | F7: =SUMIF(INDIRECT($C$3&"_Results!$B$1:$B$1416"), $A7, INDIRECT($C$3&"_Results!f$1:f$1416")) -> 598216.9748 | G7: =SUMIF(INDIRECT($C$3&"_Results!$B$1:$B$1416"), $A7, INDIRECT($C$3&"_Results!g$1:g$1416")) -> 601102.1186 | H7: =SUMIF(INDIRECT($C$3&"_Results!$B$1:$B$1416"), $A7, INDIRECT($C$3&"_Results!h$1:h$1416")) -> 604007.1553 | I7: =SUMIF(INDIRECT($C$3&"_Results!$B$1:$B$1416"), $A7, INDIRECT($C$3&"_Results!i$1:i$1416")) -> 606921.1765 | J7: =SUMIF(INDIRECT($C$3&"_Results!$B$1:$B$1416"), $A7, INDIRECT($C$3&"_Results!j$1:j$1416")) -> 609855.7218 | K7: =SUMIF(INDIRECT($C$3&"_Results!$B$1:$B$1416"), $A7, INDIRECT($C$3&"_Results!k$1:k$1416")) -> 612796.9635 | L7: =SUMIF(INDIRECT($C$3&"_Results!$B$1:$B$1416"), $A7, INDIRECT($C$3&"_Results!l$1:l$1416")) -> 615753.1077 | M7: =SUMIF(INDIRECT($C$3&"_Results!$B$1:$B$1416"), $A7, INDIRECT($C$3&"_Results!m$1:m$1416")) -> 618720.19 | N7: =SUMIF(INDIRECT($C$3&"_Results!$B$1:$B$1416"), $A7, INDIRECT($C$3&"_Results!n$1:n$1416")) -> 621695.0323
A8: Delta: should be cumulative DPV generation (if only DPV) or zero if buy all/sell all | E8: =+E6-E7 -> 4941.341216 | F8: =+F6-F7 -> 10025.4243 | G8: 15254.68317 | H8: 20631.2479 | I8: 26169.9407 | J8: 31863.2315 | K8: 37729.05508 | L8: 43763.4133 | M8: 49974.58133 | N8: 56370.15331
A9: Energy Production (Incremental MWh) | D9: =SUMIF(INDIRECT($C$2&"_Results!$B$1:$B$1416"), $A9, INDIRECT($C$2&"_Results!d$1:d$1416")) -> 0 | E9: =SUMIF(INDIRECT($C$2&"_Results!$B$1:$B$1416"), $A9, INDIRECT($C$2&"_Results!e$1:e$1416")) -> 0 | F9: =SUMIF(INDIRECT($C$2&"_Results!$B$1:$B$1416"), $A9, INDIRECT($C$2&"_Results!f$1:f$1416")) -> 0 | G9: =SUMIF(INDIRECT($C$2&"_Results!$B$1:$B$1416"), $A9, INDIRECT($C$2&"_Results!g$1:g$1416")) -> 0 | H9: =SUMIF(INDIRECT($C$2&"_Results!$B$1:$B$1416"), $A9, INDIRECT($C$2&"_Results!h$1:h$1416")) -> 0 | I9: =SUMIF(INDIRECT($C$2&"_Results!$B$1:$B$1416"), $A9, INDIRECT($C$2&"_Results!i$1:i$1416")) -> 0 | J9: =SUMIF(INDIRECT($C$2&"_Results!$B$1:$B$1416"), $A9, INDIRECT($C$2&"_Results!j$1:j$1416")) -> 0 | K9: =SUMIF(INDIRECT($C$2&"_Results!$B$1:$B$1416"), $A9, INDIRECT($C$2&"_Results!k$1:k$1416")) -> 0 | L9: =SUMIF(INDIRECT($C$2&"_Results!$B$1:$B$1416"), $A9, INDIRECT($C$2&"_Results!l$1:l$1416")) -> 0 | M9: =SUMIF(INDIRECT($C$2&"_Results!$B$1:$B$1416"), $A9, INDIRECT($C$2&"_Results!m$1:m$1416")) -> 0 | N9: =SUMIF(INDIRECT($C$2&"_Results!$B$1:$B$1416"), $A9, INDIRECT($C$2&"_Results!n$1:n$1416")) -> 0
A10: Energy Production (Incremental MWh) | D10: =SUMIF(INDIRECT($C$3&"_Results!$B$1:$B$1416"), $A10, INDIRECT($C$3&"_Results!d$1:d$1416")) -> 0 | E10: =SUMIF(INDIRECT($C$3&"_Results!$B$1:$B$1416"), $A10, INDIRECT($C$3&"_Results!e$1:e$1416")) -> 3039.45 | F10: =SUMIF(INDIRECT($C$3&"_Results!$B$1:$B$1416"), $A10, INDIRECT($C$3&"_Results!f$1:f$1416")) -> 3079.70835 | G10: =SUMIF(INDIRECT($C$3&"_Results!$B$1:$B$1416"), $A10, INDIRECT($C$3&"_Results!g$1:g$1416")) -> 3120.793933 | H10: =SUMIF(INDIRECT($C$3&"_Results!$B$1:$B$1416"), $A10, INDIRECT($C$3&"_Results!h$1:h$1416")) -> 3162.726092 | I10: =SUMIF(INDIRECT($C$3&"_Results!$B$1:$B$1416"), $A10, INDIRECT($C$3&"_Results!i$1:i$1416")) -> 3205.524644 | J10: =SUMIF(INDIRECT($C$3&"_Results!$B$1:$B$1416"), $A10, INDIRECT($C$3&"_Results!j$1:j$1416")) -> 3249.20989 | K10: =SUMIF(INDIRECT($C$3&"_Results!$B$1:$B$1416"), $A10, INDIRECT($C$3&"_Results!k$1:k$1416")) -> 3293.802626 | L10: =SUMIF(INDIRECT($C$3&"_Results!$B$1:$B$1416"), $A10, INDIRECT($C$3&"_Results!l$1:l$1416")) -> 3339.324157 | M10: =SUMIF(INDIRECT($C$3&"_Results!$B$1:$B$1416"), $A10, INDIRECT($C$3&"_Results!m$1:m$1416")) -> 3385.79631 | N10: =SUMIF(INDIRECT($C$3&"_Results!$B$1:$B$1416"), $A10, INDIRECT($C$3&"_Results!n$1:n$1416")) -> 3433.241446
A11: Total Collected Rate Revenue ($M) | C11: GRC | D11: =SUMIF(INDIRECT($C$2&"_Results!$B$1:$B$1416"), $A11, INDIRECT($C$2&"_Results!d$1:d$1416")) -> 0 | E11: =SUMIF(INDIRECT($C$2&"_Results!$B$1:$B$1416"), $A11, INDIRECT($C$2&"_Results!e$1:e$1416")) -> 0 | F11: =SUMIF(INDIRECT($C$2&"_Results!$B$1:$B$1416"), $A11, INDIRECT($C$2&"_Results!f$1:f$1416")) -> 0 | G11: =SUMIF(INDIRECT($C$2&"_Results!$B$1:$B$1416"), $A11, INDIRECT($C$2&"_Results!g$1:g$1416")) -> 0 | H11: =SUMIF(INDIRECT($C$2&"_Results!$B$1:$B$1416"), $A11, INDIRECT($C$2&"_Results!h$1:h$1416")) -> 0 | I11: =SUMIF(INDIRECT($C$2&"_Results!$B$1:$B$1416"), $A11, INDIRECT($C$2&"_Results!i$1:i$1416")) -> 0 | J11: =SUMIF(INDIRECT($C$2&"_Results!$B$1:$B$1416"), $A11, INDIRECT($C$2&"_Results!j$1:j$1416")) -> 0 | K11: =SUMIF(INDIRECT($C$2&"_Results!$B$1:$B$1416"), $A11, INDIRECT($C$2&"_Results!k$1:k$1416")) -> 0 | L11: =SUMIF(INDIRECT($C$2&"_Results!$B$1:$B$1416"), $A11, INDIRECT($C$2&"_Results!l$1:l$1416")) -> 0 | M11: =SUMIF(INDIRECT($C$2&"_Results!$B$1:$B$1416"), $A11, INDIRECT($C$2&"_Results!m$1:m$1416")) -> 0 | N11: =SUMIF(INDIRECT($C$2&"_Results!$B$1:$B$1416"), $A11, INDIRECT($C$2&"_Results!n$1:n$1416")) -> 0
A12: Total Collected Rate Revenue ($M) | C12: GRC | D12: =SUMIF(INDIRECT($C$3&"_Results!$B$1:$B$1416"), $A12, INDIRECT($C$3&"_Results!d$1:d$1416")) -> 237.80975 | E12: =SUMIF(INDIRECT($C$3&"_Results!$B$1:$B$1416"), $A12, INDIRECT($C$3&"_Results!e$1:e$1416")) -> 238.9536586 | F12: =SUMIF(INDIRECT($C$3&"_Results!$B$1:$B$1416"), $A12, INDIRECT($C$3&"_Results!f$1:f$1416")) -> 240.1043531 | G12: =SUMIF(INDIRECT($C$3&"_Results!$B$1:$B$1416"), $A12, INDIRECT($C$3&"_Results!g$1:g$1416")) -> 241.2623536 | H12: =SUMIF(INDIRECT($C$3&"_Results!$B$1:$B$1416"), $A12, INDIRECT($C$3&"_Results!h$1:h$1416")) -> 242.4283386 | I12: =SUMIF(INDIRECT($C$3&"_Results!$B$1:$B$1416"), $A12, INDIRECT($C$3&"_Results!i$1:i$1416")) -> 286.2135601 | J12: =SUMIF(INDIRECT($C$3&"_Results!$B$1:$B$1416"), $A12, INDIRECT($C$3&"_Results!j$1:j$1416")) -> 287.597441 | K12: =SUMIF(INDIRECT($C$3&"_Results!$B$1:$B$1416"), $A12, INDIRECT($C$3&"_Results!k$1:k$1416")) -> 288.9844799 | L12: =SUMIF(INDIRECT($C$3&"_Results!$B$1:$B$1416"), $A12, INDIRECT($C$3&"_Results!l$1:l$1416")) -> 290.3785465 | M12: =SUMIF(INDIRECT($C$3&"_Results!$B$1:$B$1416"), $A12, INDIRECT($C$3&"_Results!m$1:m$1416")) -> 291.7777713 | N12: =SUMIF(INDIRECT($C$3&"_Results!$B$1:$B$1416"), $A12, INDIRECT($C$3&"_Results!n$1:n$1416")) -> 343.1130552
A13: Total Collected Surcharge Utility Revenue ($M) | D13: =SUMIF(INDIRECT($C$2&"_Results!$B$1:$B$1416"), $A13, INDIRECT($C$2&"_Results!d$1:d$1416")) -> 0 | E13: =SUMIF(INDIRECT($C$2&"_Results!$B$1:$B$1416"), $A13, INDIRECT($C$2&"_Results!e$1:e$1416")) -> 6.494675303 | F13: =SUMIF(INDIRECT($C$2&"_Results!$B$1:$B$1416"), $A13, INDIRECT($C$2&"_Results!f$1:f$1416")) -> 9.548409949 | G13: =SUMIF(INDIRECT($C$2&"_Results!$B$1:$B$1416"), $A13, INDIRECT($C$2&"_Results!g$1:g$1416")) -> 14.12485662 | H13: =SUMIF(INDIRECT($C$2&"_Results!$B$1:$B$1416"), $A13, INDIRECT($C$2&"_Results!h$1:h$1416")) -> 19.00322861 | I13: =SUMIF(INDIRECT($C$2&"_Results!$B$1:$B$1416"), $A13, INDIRECT($C$2&"_Results!i$1:i$1416")) -> 12.89757012 | J13: =SUMIF(INDIRECT($C$2&"_Results!$B$1:$B$1416"), $A13, INDIRECT($C$2&"_Results!j$1:j$1416")) -> 6.831814077 | K13: =SUMIF(INDIRECT($C$2&"_Results!$B$1:$B$1416"), $A13, INDIRECT($C$2&"_Results!k$1:k$1416")) -> 12.4281299 | L13: =SUMIF(INDIRECT($C$2&"_Results!$B$1:$B$1416"), $A13, INDIRECT($C$2&"_Results!l$1:l$1416")) -> 9.389424999 | M13: =SUMIF(INDIRECT($C$2&"_Results!$B$1:$B$1416"), $A13, INDIRECT($C$2&"_Results!m$1:m$1416")) -> 15.40161355 | N13: =SUMIF(INDIRECT($C$2&"_Results!$B$1:$B$1416"), $A13, INDIRECT($C$2&"_Results!n$1:n$1416")) -> 11.88449775
A14: Total Collected Surcharge Utility Revenue ($M) | D14: =SUMIF(INDIRECT($C$3&"_Results!$B$1:$B$1416"), $A14, INDIRECT($C$3&"_Results!d$1:d$1416")) -> 8.265375 | E14: =SUMIF(INDIRECT($C$3&"_Results!$B$1:$B$1416"), $A14, INDIRECT($C$3&"_Results!e$1:e$1416")) -> 20.07486724 | F14: =SUMIF(INDIRECT($C$3&"_Results!$B$1:$B$1416"), $A14, INDIRECT($C$3&"_Results!f$1:f$1416")) -> 6.008300629 | G14: =SUMIF(INDIRECT($C$3&"_Results!$B$1:$B$1416"), $A14, INDIRECT($C$3&"_Results!g$1:g$1416")) -> 3.341928906 | H14: =SUMIF(INDIRECT($C$3&"_Results!$B$1:$B$1416"), $A14, INDIRECT($C$3&"_Results!h$1:h$1416")) -> 23.20466686 | I14: =SUMIF(INDIRECT($C$3&"_Results!$B$1:$B$1416"), $A14, INDIRECT($C$3&"_Results!i$1:i$1416")) -> 5.37234668 | J14: =SUMIF(INDIRECT($C$3&"_Results!$B$1:$B$1416"), $A14, INDIRECT($C$3&"_Results!j$1:j$1416")) -> 15.30180925 | K14: =SUMIF(INDIRECT($C$3&"_Results!$B$1:$B$1416"), $A14, INDIRECT($C$3&"_Results!k$1:k$1416")) -> 25.62149092 | L14: =SUMIF(INDIRECT($C$3&"_Results!$B$1:$B$1416"), $A14, INDIRECT($C$3&"_Results!l$1:l$1416")) -> 25.76877084 | M14: =SUMIF(INDIRECT($C$3&"_Results!$B$1:$B$1416"), $A14, INDIRECT($C$3&"_Results!m$1:m$1416")) -> 37.07629289 | N14: =SUMIF(INDIRECT($C$3&"_Results!$B$1:$B$1416"), $A14, INDIRECT($C$3&"_Results!n$1:n$1416")) -> 5.350597204
A15: Average Collected Rate Revenue ($/MWh) - no DPV | C15: GRC | D15: =D11/D6*10^6 -> 0 | E15: =E11/E6*10^6 -> 0 | F15: =F11/F6*10^6 -> 0 | G15: 0 | H15: 0 | I15: 0 | J15: 0 | K15: 0 | L15: 0 | M15: 0 | N15: 0
A16: Average Collected Rate Revenue ($/MWh) - with DPV | C16: GRC | D16: =D12/D7*10^6 -> 401.3666667 | E16: =E12/E7*10^6 -> 401.3666667 | F16: 401.3666667 | G16: 401.3666667 | H16: 401.3666667 | I16: 471.5827543 | J16: 471.5827543 | K16: 471.5827543 | L16: 471.5827543 | M16: 471.5827543 | N16: 551.8993033
A18: FPP
A19: Total Purchased MWh - before catastrophic loss adjustment | D19: =SUMIF(INDIRECT($C$2&"_Results!$B$1:$B$1416"), $A19, INDIRECT($C$2&"_Results!d$1:d$1416")) -> 0 | E19: =SUMIF(INDIRECT($C$2&"_Results!$B$1:$B$1416"), $A19, INDIRECT($C$2&"_Results!e$1:e$1416")) -> 0 | F19: =SUMIF(INDIRECT($C$2&"_Results!$B$1:$B$1416"), $A19, INDIRECT($C$2&"_Results!f$1:f$1416")) -> 0 | G19: =SUMIF(INDIRECT($C$2&"_Results!$B$1:$B$1416"), $A19, INDIRECT($C$2&"_Results!g$1:g$1416")) -> 0 | H19: =SUMIF(INDIRECT($C$2&"_Results!$B$1:$B$1416"), $A19, INDIRECT($C$2&"_Results!h$1:h$1416")) -> 0 | I19: =SUMIF(INDIRECT($C$2&"_Results!$B$1:$B$1416"), $A19, INDIRECT($C$2&"_Results!i$1:i$1416")) -> 0 | J19: =SUMIF(INDIRECT($C$2&"_Results!$B$1:$B$1416"), $A19, INDIRECT($C$2&"_Results!j$1:j$1416")) -> 0 | K19: =SUMIF(INDIRECT($C$2&"_Results!$B$1:$B$1416"), $A19, INDIRECT($C$2&"_Results!k$1:k$1416")) -> 0 | L19: =SUMIF(INDIRECT($C$2&"_Results!$B$1:$B$1416"), $A19, INDIRECT($C$2&"_Results!l$1:l$1416")) -> 0 | M19: =SUMIF(INDIRECT($C$2&"_Results!$B$1:$B$1416"), $A19, INDIRECT($C$2&"_Results!m$1:m$1416")) -> 0 | N19: =SUMIF(INDIRECT($C$2&"_Results!$B$1:$B$1416"), $A19, INDIRECT($C$2&"_Results!n$1:n$1416")) -> 0 | P19: Incl Tech/Nontech Losses & Uncollectibles
A20: Total Purchased MWh - before catastrophic loss adjustment | D20: =SUMIF(INDIRECT($C$3&"_Results!$B$1:$B$1416"), $A20, INDIRECT($C$3&"_Results!d$1:d$1416")) -> 0 | E20: =SUMIF(INDIRECT($C$3&"_Results!$B$1:$B$1416"), $A20, INDIRECT($C$3&"_Results!e$1:e$1416")) -> 0 | F20: =SUMIF(INDIRECT($C$3&"_Results!$B$1:$B$1416"), $A20, INDIRECT($C$3&"_Results!f$1:f$1416")) -> 0 | G20: =SUMIF(INDIRECT($C$3&"_Results!$B$1:$B$1416"), $A20, INDIRECT($C$3&"_Results!g$1:g$1416")) -> 0 | H20: =SUMIF(INDIRECT($C$3&"_Results!$B$1:$B$1416"), $A20, INDIRECT($C$3&"_Results!h$1:h$1416")) -> 0 | I20: =SUMIF(INDIRECT($C$3&"_Results!$B$1:$B$1416"), $A20, INDIRECT($C$3&"_Results!i$1:i$1416")) -> 0 | J20: =SUMIF(INDIRECT($C$3&"_Results!$B$1:$B$1416"), $A20, INDIRECT($C$3&"_Results!j$1:j$1416")) -> 0 | K20: =SUMIF(INDIRECT($C$3&"_Results!$B$1:$B$1416"), $A20, INDIRECT($C$3&"_Results!k$1:k$1416")) -> 0 | L20: =SUMIF(INDIRECT($C$3&"_Results!$B$1:$B$1416"), $A20, INDIRECT($C$3&"_Results!l$1:l$1416")) -> 0 | M20: =SUMIF(INDIRECT($C$3&"_Results!$B$1:$B$1416"), $A20, INDIRECT($C$3&"_Results!m$1:m$1416")) -> 0 | N20: =SUMIF(INDIRECT($C$3&"_Results!$B$1:$B$1416"), $A20, INDIRECT($C$3&"_Results!n$1:n$1416")) -> 0
A21: Delta | D21: =+D19-D20 -> 0 | E21: =+E19-E20 -> 0 | F21: 0 | G21: 0 | H21: 0 | I21: 0 | J21: 0 | K21: 0 | L21: 0 | M21: 0 | N21: 0
A22: PV Exports MWh | B22: (Purchased) | D22: =SUMIF(INDIRECT($C$2&"_Results!$B$1:$B$1416"), $A22, INDIRECT($C$2&"_Results!d$1:d$1416")) -> 0 | E22: =SUMIF(INDIRECT($C$2&"_Results!$B$1:$B$1416"), $A22, INDIRECT($C$2&"_Results!e$1:e$1416")) -> 0 | F22: =SUMIF(INDIRECT($C$2&"_Results!$B$1:$B$1416"), $A22, INDIRECT($C$2&"_Results!f$1:f$1416")) -> 0 | G22: =SUMIF(INDIRECT($C$2&"_Results!$B$1:$B$1416"), $A22, INDIRECT($C$2&"_Results!g$1:g$1416")) -> 0 | H22: =SUMIF(INDIRECT($C$2&"_Results!$B$1:$B$1416"), $A22, INDIRECT($C$2&"_Results!h$1:h$1416")) -> 0 | I22: =SUMIF(INDIRECT($C$2&"_Results!$B$1:$B$1416"), $A22, INDIRECT($C$2&"_Results!i$1:i$1416")) -> 0 | J22: =SUMIF(INDIRECT($C$2&"_Results!$B$1:$B$1416"), $A22, INDIRECT($C$2&"_Results!j$1:j$1416")) -> 0 | K22: =SUMIF(INDIRECT($C$2&"_Results!$B$1:$B$1416"), $A22, INDIRECT($C$2&"_Results!k$1:k$1416")) -> 0 | L22: =SUMIF(INDIRECT($C$2&"_Results!$B$1:$B$1416"), $A22, INDIRECT($C$2&"_Results!l$1:l$1416")) -> 0 | M22: =SUMIF(INDIRECT($C$2&"_Results!$B$1:$B$1416"), $A22, INDIRECT($C$2&"_Results!m$1:m$1416")) -> 0 | N22: =SUMIF(INDIRECT($C$2&"_Results!$B$1:$B$1416"), $A22, INDIRECT($C$2&"_Results!n$1:n$1416")) -> 0
A23: PV Exports MWh | B23: (Purchased) | D23: =SUMIF(INDIRECT($C$3&"_Results!$B$1:$B$1416"), $A23, INDIRECT($C$3&"_Results!d$1:d$1416")) -> 0 | E23: =SUMIF(INDIRECT($C$3&"_Results!$B$1:$B$1416"), $A23, INDIRECT($C$3&"_Results!e$1:e$1416")) -> 1618.507125 | F23: =SUMIF(INDIRECT($C$3&"_Results!$B$1:$B$1416"), $A23, INDIRECT($C$3&"_Results!f$1:f$1416")) -> 3258.451821 | G23: =SUMIF(INDIRECT($C$3&"_Results!$B$1:$B$1416"), $A23, INDIRECT($C$3&"_Results!g$1:g$1416")) -> 4920.274591 | H23: =SUMIF(INDIRECT($C$3&"_Results!$B$1:$B$1416"), $A23, INDIRECT($C$3&"_Results!h$1:h$1416")) -> 6604.426235 | I23: =SUMIF(INDIRECT($C$3&"_Results!$B$1:$B$1416"), $A23, INDIRECT($C$3&"_Results!i$1:i$1416")) -> 8311.368108 | J23: =SUMIF(INDIRECT($C$3&"_Results!$B$1:$B$1416"), $A23, INDIRECT($C$3&"_Results!j$1:j$1416")) -> 10041.57237 | K23: =SUMIF(INDIRECT($C$3&"_Results!$B$1:$B$1416"), $A23, INDIRECT($C$3&"_Results!k$1:k$1416")) -> 11795.52227 | L23: =SUMIF(INDIRECT($C$3&"_Results!$B$1:$B$1416"), $A23, INDIRECT($C$3&"_Results!l$1:l$1416")) -> 13573.71239 | M23: =SUMIF(INDIRECT($C$3&"_Results!$B$1:$B$1416"), $A23, INDIRECT($C$3&"_Results!m$1:m$1416")) -> 15376.64892 | N23: =SUMIF(INDIRECT($C$3&"_Results!$B$1:$B$1416"), $A23, INDIRECT($C$3&"_Results!n$1:n$1416")) -> 17204.84999 | P23: Difference generated vs purchased is losses
A24: Energy Production (Cumulative MWh) | D24: =SUMIF(INDIRECT($C$3&"_Results!$B$1:$B$1416"), $A24, INDIRECT($C$3&"_Results!d$1:d$1416")) -> 0 | E24: =SUMIF(INDIRECT($C$3&"_Results!$B$1:$B$1416"), $A24, INDIRECT($C$3&"_Results!e$1:e$1416")) -> 3039.45 | F24: =SUMIF(INDIRECT($C$3&"_Results!$B$1:$B$1416"), $A24, INDIRECT($C$3&"_Results!f$1:f$1416")) -> 6119.15835 | G24: =SUMIF(INDIRECT($C$3&"_Results!$B$1:$B$1416"), $A24, INDIRECT($C$3&"_Results!g$1:g$1416")) -> 9239.952283 | H24: =SUMIF(INDIRECT($C$3&"_Results!$B$1:$B$1416"), $A24, INDIRECT($C$3&"_Results!h$1:h$1416")) -> 12402.67837 | I24: =SUMIF(INDIRECT($C$3&"_Results!$B$1:$B$1416"), $A24, INDIRECT($C$3&"_Results!i$1:i$1416")) -> 15608.20302 | J24: =SUMIF(INDIRECT($C$3&"_Results!$B$1:$B$1416"), $A24, INDIRECT($C$3&"_Results!j$1:j$1416")) -> 18857.41291 | K24: =SUMIF(INDIRECT($C$3&"_Results!$B$1:$B$1416"), $A24, INDIRECT($C$3&"_Results!k$1:k$1416")) -> 22151.21553 | L24: =SUMIF(INDIRECT($C$3&"_Results!$B$1:$B$1416"), $A24, INDIRECT($C$3&"_Results!l$1:l$1416")) -> 25490.53969 | M24: =SUMIF(INDIRECT($C$3&"_Results!$B$1:$B$1416"), $A24, INDIRECT($C$3&"_Results!m$1:m$1416")) -> 28876.336 | N24: =SUMIF(INDIRECT($C$3&"_Results!$B$1:$B$1416"), $A24, INDIRECT($C$3&"_Results!n$1:n$1416")) -> 32309.57745
A25: Energy Production Remains Onsite (Cumulative MWh) | D25: =SUMIF(INDIRECT($C$3&"_Results!$B$1:$B$1416"), $A25, INDIRECT($C$3&"_Results!d$1:d$1416")) -> 0 | E25: =SUMIF(INDIRECT($C$3&"_Results!$B$1:$B$1416"), $A25, INDIRECT($C$3&"_Results!e$1:e$1416")) -> 1519.725 | F25: =SUMIF(INDIRECT($C$3&"_Results!$B$1:$B$1416"), $A25, INDIRECT($C$3&"_Results!f$1:f$1416")) -> 3059.579175 | G25: =SUMIF(INDIRECT($C$3&"_Results!$B$1:$B$1416"), $A25, INDIRECT($C$3&"_Results!g$1:g$1416")) -> 4619.976141 | H25: =SUMIF(INDIRECT($C$3&"_Results!$B$1:$B$1416"), $A25, INDIRECT($C$3&"_Results!h$1:h$1416")) -> 6201.339187 | I25: =SUMIF(INDIRECT($C$3&"_Results!$B$1:$B$1416"), $A25, INDIRECT($C$3&"_Results!i$1:i$1416")) -> 7804.10151 | J25: =SUMIF(INDIRECT($C$3&"_Results!$B$1:$B$1416"), $A25, INDIRECT($C$3&"_Results!j$1:j$1416")) -> 9428.706455 | K25: =SUMIF(INDIRECT($C$3&"_Results!$B$1:$B$1416"), $A25, INDIRECT($C$3&"_Results!k$1:k$1416")) -> 11075.60777 | L25: =SUMIF(INDIRECT($C$3&"_Results!$B$1:$B$1416"), $A25, INDIRECT($C$3&"_Results!l$1:l$1416")) -> 12745.26985 | M25: =SUMIF(INDIRECT($C$3&"_Results!$B$1:$B$1416"), $A25, INDIRECT($C$3&"_Results!m$1:m$1416")) -> 14438.168 | N25: =SUMIF(INDIRECT($C$3&"_Results!$B$1:$B$1416"), $A25, INDIRECT($C$3&"_Results!n$1:n$1416")) -> 16154.78872
A26: Export MWh Generated | D26: =+D24-D25 -> 0 | E26: =+E24-E25 -> 1519.725 | F26: 3059.579175 | G26: 4619.976141 | H26: 6201.339187 | I26: 7804.10151 | J26: 9428.706455 | K26: 11075.60777 | L26: 12745.26985 | M26: 14438.168 | N26: 16154.78872
A27: Fuel cost at system - prior to gen additions ($M) - after adjusting cost for retirements | D27: =SUMIF(INDIRECT($C$2&"_Results!$B$1:$B$1416"), $A27, INDIRECT($C$2&"_Results!d$1:d$1416")) -> 0 | E27: =SUMIF(INDIRECT($C$2&"_Results!$B$1:$B$1416"), $A27, INDIRECT($C$2&"_Results!e$1:e$1416")) -> 0 | F27: =SUMIF(INDIRECT($C$2&"_Results!$B$1:$B$1416"), $A27, INDIRECT($C$2&"_Results!f$1:f$1416")) -> 0 | G27: =SUMIF(INDIRECT($C$2&"_Results!$B$1:$B$1416"), $A27, INDIRECT($C$2&"_Results!g$1:g$1416")) -> 0 | H27: =SUMIF(INDIRECT($C$2&"_Results!$B$1:$B$1416"), $A27, INDIRECT($C$2&"_Results!h$1:h$1416")) -> 0 | I27: =SUMIF(INDIRECT($C$2&"_Results!$B$1:$B$1416"), $A27, INDIRECT($C$2&"_Results!i$1:i$1416")) -> 0 | J27: =SUMIF(INDIRECT($C$2&"_Results!$B$1:$B$1416"), $A27, INDIRECT($C$2&"_Results!j$1:j$1416")) -> 0 | K27: =SUMIF(INDIRECT($C$2&"_Results!$B$1:$B$1416"), $A27, INDIRECT($C$2&"_Results!k$1:k$1416")) -> 0 | L27: =SUMIF(INDIRECT($C$2&"_Results!$B$1:$B$1416"), $A27, INDIRECT($C$2&"_Results!l$1:l$1416")) -> 0 | M27: =SUMIF(INDIRECT($C$2&"_Results!$B$1:$B$1416"), $A27, INDIRECT($C$2&"_Results!m$1:m$1416")) -> 0 | N27: =SUMIF(INDIRECT($C$2&"_Results!$B$1:$B$1416"), $A27, INDIRECT($C$2&"_Results!n$1:n$1416")) -> 0
A28: Fuel cost at system - prior to gen additions ($M) - after adjusting cost for retirements | D28: =SUMIF(INDIRECT($C$3&"_Results!$B$1:$B$1416"), $A28, INDIRECT($C$3&"_Results!d$1:d$1416")) -> 98.82 | E28: =SUMIF(INDIRECT($C$3&"_Results!$B$1:$B$1416"), $A28, INDIRECT($C$3&"_Results!e$1:e$1416")) -> 105.7374984 | F28: =SUMIF(INDIRECT($C$3&"_Results!$B$1:$B$1416"), $A28, INDIRECT($C$3&"_Results!f$1:f$1416")) -> 113.1354346 | G28: =SUMIF(INDIRECT($C$3&"_Results!$B$1:$B$1416"), $A28, INDIRECT($C$3&"_Results!g$1:g$1416")) -> 121.0470176 | H28: =SUMIF(INDIRECT($C$3&"_Results!$B$1:$B$1416"), $A28, INDIRECT($C$3&"_Results!h$1:h$1416")) -> 129.5078295 | I28: =SUMIF(INDIRECT($C$3&"_Results!$B$1:$B$1416"), $A28, INDIRECT($C$3&"_Results!i$1:i$1416")) -> 138.5530112 | J28: =SUMIF(INDIRECT($C$3&"_Results!$B$1:$B$1416"), $A28, INDIRECT($C$3&"_Results!j$1:j$1416")) -> 148.2250776 | K28: =SUMIF(INDIRECT($C$3&"_Results!$B$1:$B$1416"), $A28, INDIRECT($C$3&"_Results!k$1:k$1416")) -> 158.5632555 | L28: =SUMIF(INDIRECT($C$3&"_Results!$B$1:$B$1416"), $A28, INDIRECT($C$3&"_Results!l$1:l$1416")) -> 158.3263718 | M28: =SUMIF(INDIRECT($C$3&"_Results!$B$1:$B$1416"), $A28, INDIRECT($C$3&"_Results!m$1:m$1416")) -> 169.3484243 | N28: =SUMIF(INDIRECT($C$3&"_Results!$B$1:$B$1416"), $A28, INDIRECT($C$3&"_Results!n$1:n$1416")) -> 181.1261576
A29: PV Exports Compensation ($M) | D29: =SUMIF(INDIRECT($C$3&"_Results!$B$1:$B$1416"), $A29, INDIRECT($C$3&"_Results!d$1:d$1416")) -> 0 | E29: =SUMIF(INDIRECT($C$3&"_Results!$B$1:$B$1416"), $A29, INDIRECT($C$3&"_Results!e$1:e$1416")) -> 0.6309021192 | F29: =SUMIF(INDIRECT($C$3&"_Results!$B$1:$B$1416"), $A29, INDIRECT($C$3&"_Results!f$1:f$1416")) -> 1.329880219 | G29: =SUMIF(INDIRECT($C$3&"_Results!$B$1:$B$1416"), $A29, INDIRECT($C$3&"_Results!g$1:g$1416")) -> 1.900116375 | H29: =SUMIF(INDIRECT($C$3&"_Results!$B$1:$B$1416"), $A29, INDIRECT($C$3&"_Results!h$1:h$1416")) -> 2.523046468 | I29: =SUMIF(INDIRECT($C$3&"_Results!$B$1:$B$1416"), $A29, INDIRECT($C$3&"_Results!i$1:i$1416")) -> 3.926392946 | J29: =SUMIF(INDIRECT($C$3&"_Results!$B$1:$B$1416"), $A29, INDIRECT($C$3&"_Results!j$1:j$1416")) -> 4.468585952 | K29: =SUMIF(INDIRECT($C$3&"_Results!$B$1:$B$1416"), $A29, INDIRECT($C$3&"_Results!k$1:k$1416")) -> 5.426591062 | L29: =SUMIF(INDIRECT($C$3&"_Results!$B$1:$B$1416"), $A29, INDIRECT($C$3&"_Results!l$1:l$1416")) -> 6.454893523 | M29: =SUMIF(INDIRECT($C$3&"_Results!$B$1:$B$1416"), $A29, INDIRECT($C$3&"_Results!m$1:m$1416")) -> 7.312745797 | N29: =SUMIF(INDIRECT($C$3&"_Results!$B$1:$B$1416"), $A29, INDIRECT($C$3&"_Results!n$1:n$1416")) -> 9.624135738
A30: FPP $/MWh - No DPV | D30: =D27/D19*10^6 -> 
A31: FPP $/MWh - With DPV | D31: =D28/D20*10^6 -> 
A32: Exports Compensation $/MWh*generated* DPV | D32: =IF(D26=0, 0, D29/D26)*10^6 -> 0 | E32: =IF(E26=0, 0, E29/E26)*10^6 -> 415.1422917 | F32: 434.6611553 | G32: 411.2827247 | H32: 406.8550989 | I32: 503.1191536 | J32: 473.9341472 | K32: 489.9587613 | L32: 506.4540493 | M32: 506.487097 | N32: 595.7450699
A33: Exports $/MWh*purchased* DPV | D33: =IF(D23=0, 0, D29/D23)*10^6 -> 0 | E33: =IF(E23=0, 0, E29/E23)*10^6 -> 389.8049687 | F33: 408.1325401 | G33: 386.1809621 | H33: 382.023567 | I33: 472.4123508 | J33: 445.0085889 | K33: 460.0551749 | L33: 475.5437083 | M33: 475.5747389 | N33: 559.3850422
A34: Difference vs Collected Retail Rates (excl Surcharges) | E34: =+E16-E32 -> -13.775625 | F34: =+F16-F32 -> -33.29448859 | G34: -9.916057989 | H34: -5.488432231 | I34: -31.53639924 | J34: -2.35139285 | K34: -18.37600696 | L34: -34.87129502 | M34: -34.90434265 | N34: =+N16 -> 551.8993033
A35: Difference vs Collected Retail Rates No DPV (excl Surcharges) | E35: =+E15-E32 -> -415.1422917 | F35: =+F15-F32 -> -434.6611553 | G35: -411.2827247 | H35: -406.8550989 | I35: -503.1191536 | J35: -473.9341472 | K35: -489.9587613 | L35: -506.4540493 | M35: -506.487097 | N35: -595.7450699

Sheet Definitions
A1: Glossary of SUPRA Model Terms and Concepts
A2: Row # | B2: Term | C2: Description | D2: Common Source of Data
A3: 41 | B3: Model Start Year (Year 0) | C3: Start year of the model. All Base Year values for model inputs are to be provided for this year. | D3: Determined by user based on analysis goals and available data.
A4: n/a: Glossary Item | B4: CAGR | C4: Compound annual growth rate. | D4: n/a
A5: n/a: Glossary Item | B5: Billing Determinants (MWh, kW-months, Customer-months) | C5: Billing determinants are forecast usage net of incremental DER. Billing determinants are used during a general rate case to allocate costs and design rates. | D5: n/a
A6: n/a: Glossary Item | B6: Retail Sales (MWh) | C6: Actual MWh used in calculating revenue. Retail sales are billing determinants net of uncollectible sales. | D6: n/a
A7: 44-48 | B7: Forecast Usage (MWh) - Electricity | C7: The Base Year value for Forecast Usage is measured at the customer meter and is gross of uncollectible sales. The share of the Base Year Value allocated to each class then grows annually at their respective CAGR. The resulting 10 year forecast does not include the effects of Customer Technology & Utility Program inputs in rows 217-351 or Catastrophic Event inputs in rows 353-399 . | D7: Utility cost of service study.
A8: 50 | B8: Uncollectible Share | C8: This represents the share of forecast usage that is billed by the utility but not collected from customers due to non-payment.It is entered as a percent of forecast usage. This percent is multiplied by the forecast usage to yield uncollectible billing determinants, which reduce collected revenue. | D8: Provided by utility.
A9: 51 | B9: Non-Technical Loss Factor | C9: The represents the share of forecast usage that is not sold due to theft. It is entered as a percent of forecast usage. This percent is multiplied by the forecast usage to yield non-technical loss billing determinants, which reduce collected revenue. | D9: Provided by utility.
A10: 52 | B10: Technical Loss Factor | C10: This represents the share of total electricity production that is not sold due to transmission and distribution system losses. It is entered as a percent of forecast usage. Technical losses increase production costs. | D10: Provided by utility.
A11: 54-58 | B11: Forecasted Coincident Peak (CP ) Demand | C11: The aggregate demand reading in Year 0 at the time of the bulk-power system’s maximum demand. | D11: Provided by utility. Maybe also via analysis of utility cost of service study 1CP allocation factor data.
A12: 60 | B12: CP Forecast Measured at Customer Meters or at System | C12: The model enables the user to enter the forecast coincident peak demand at customer meters or at system. CP measured at customer meters is annual peak demand as measured at the customers’ meters (net of technical and non-technical losses). CP measured at system is annual peak demand as measured at the generator busbar (gross of CP technical and non-technical losses). | D12: Per row 54 input data.
A13: 61 | B13: CP Non-technical Loss Factor | C13: The increased amount of CP capacity that must be procured to serve non-technical losses. | D13: Provided by Utility.
A14: 62 | B14: CP Technical Loss Factor | C14: The increased amount of CP capacity that must be procured to serve technical losses. | D14: Provided by Utility.
A15: 64-68 | B15: Forecasted NCP Demand (kW-months) | C15: Starting non-coincident peak demand is entered for Year 0. NCP kW are the aggregate annual customer-specific maximum monthly demand readings that may or may not occur at the time of the CP during the month when the CP occurs. | D15: Utility cost of service study.
A16: 70-74 | B16: Forecasted Number of Customers | C16: The forecast number of customers starts in Year 0 and is gross of uncollectibles. | D16: Utility cost of service study.
A17: 79 | B17: Type of Utility | C17: Select Municipal or Investor-Owned. When municipal utility is selected, income tax is zeroed. | D17: User, based on utility type modeled.
A18: 82 | B18: Base Year Generation Supply (ELCC MW) | C18: Effective Load Carrying Capability is the load (Year-0 MW) that can be dependably and reliably supplied by all generators on the system during a given year during the time interval when the CP occurs. | D18: Utility IRP study, or provided by Utility.
A19: 83 | B19: ELCC of Solar PV | C19: Solar PV capacity that is capable of reliably serving load at the time of the system peak during a given year, expressed as a percentage of nameplate (MW ac) capacity. | D19: Utility IRP study, or estimated from publicly available studies for utilities with similar shares of generation by technology.
A20: 86 | B20: Average Fuel & Purchased Power Costs ($/MWh) | C20: Fuel & purchased power costs include service for non-technical losses and uncollectibles and are assumed to include generator variable O&M. Entry is Year 0 Cost. | D20: Utility cost of service study.
A21: 87 | B21: Fuel Inventory (% of FPP Budget) | C21: Share of annual fuel costs that are used to purchase fuel inventory. | D21: Utility cost of service study, Utility regulatory filing, or Provided by Utility.
A22: n/a: Glossary Item | B22: Fuel Adjustment Clause (FAC) | C22: The difference between fuel and purchased power rate revenue and incurred costs is collected via a fuel adjustment clause or FAC (also known as a levelized energy adjustment charge or LEAC). The application of an FAC is the default, and the embedded logic cannot be turned off. Collection of FAC amounts can be lagged, however model logic does not accommodate projected fuel costs. | D22: n/a
A23: 88 | B23: Fuel Adjustment Clause Working Capital Cost (%) | C23: Cost of working capital used to procure fuel inventory. | D23: Provided by utility or estimated using cost of service study data for short-term debt interest rate.
A24: 89 | B24: Fuel Adjustment Clause Lag for Reconciliation | C24: Time lag (fractional years) between when fuel costs are incurred and when they are collected in the FAC. | D24: Utility regulatory filing or provided by Utility.
A25: n/a: Glossary Item | B25: Incurred versus Collected Revenue Requirement | C25: Incurred revenue requirement reflects all costs incurred by the utility. The collected revenue requirement reflects the revenue requirement that is eligible for collection through a general rate case (GRC). Incurred amounts that are not included in collected revenue requirement are either collected via surcharges or are disallowed by regulators for inclusion in the revenue requirement. | D25: n/a
A26: 92 | B26: Non-fuel O&M Annual Cost | C26: Year-0 annual cost ($ millions) for non-fuel O&M expenses. Excludes depreciation, interest, & return. | D26: Utility cost of service study.
A27: 93 | B27: Share of Non-fuel O&M that Enters RR at Next GRC | C27: This share is included in the revenue requirement used to calculate rates during the GRC. The remaining share is never collected. | D27: Provided by Utility. May also develop assumption through analysis of financial statement data.
A28: 96 | B28: Year-0 Growth-related and Non Growth-related Sustaining Capex | C28: Ongoing or sustaining capex are capital expenditures that are regularly incurred to maintain the utility’s infrastructure. | D28: Utility cost of service study.
A29: 98 | B29: Percent of Ongoing Capex that Enters GRC at Next Rate Case | C29: This share is included in the revenue requirement used to calculate rates during the GRC. The remaining share is never collected. | D29: Provided by utility.
A30: 99 | B30: Share (%) of Ongoing CapEx that is Growth-Related | C30: The growth-related share can be deferred through reductions in coincident peak demand. One minus the share that is not growth-related is the Non Growth-related share, which can never be deferred. | D30: Provided by Utility or estimated using cost of service study data.
A31: 100 | B31: Gross Plant in Service | C31: Gross Plant in Service is a Year-0 amount. It is equal to cumulative capital expenditures. Gross Plant in Service is also equal to Net Plant in Service plus Accumulated Depreciation of Plant in Service. | D31: Provided by Utility. May be included in cost of service study data.
A32: 101 | B32: Accumulated Depreciation | C32: Accumulated depreciation is a Year-0 amount. It is the cumulative depreciation that has been inccured on rate based assets. | D32: Utility cost of service study.
A33: 102 | B33: Depreciation Life | C33: The average life of all assets included in rate base. This figure can be estimated per gross plant in service divided by the annual depreciation charge. | D33: Utility cost of service study.
A34: 103 | B34: Debt Share of Utility's Capital Structure | C34: The average life of all assets included in rate base. | D34: Utility cost of service study.
A35: 104 | B35: Embedded cost of debt | C35: The debt interest rate for existing rate base. This is equal to debt interest cost divided by debt share of rate base. | D35: Utility cost of service study.
A36: 105 | B36: Return on Equity | C36: The utility's allowed return on equity (if applicable). | D36: Utility cost of service study or cost of capital proceeding regulatory filing.
A37: 106 | B37: Profit Margin Included in Ratemaking | C37: This input allows for a margin above the cost of service to be included in rates. The margin is calculated as a percent of non-fuel revenue requirements. | D37: Utility cost of service study. User may estimate the share if this input is used to test improvements in financial health.
A38: 107 | B38: Income tax rate | C38: The percent of taxable income that is paid to income taxes (if applicable). | D38: Prevailing income tax code.
A39: 108-109 | B39: Payment in Lieu of Taxes Rate (PILOT) | C39: Payment in Lieu of Taxes is calculated as the maximum of: a) Input Percent of Net Profit; and b) minimum annual PILOT amount ($M). | D39: Provided by Utility, or analysis of Utility Cost of Service study.
A40: 110 | B40: Utility Cash Payment of PILOT | C40: "Yes" means that utility pays PILOT amounts collected in rates; "No" means that the utility does not pay PILOT amounts and may use these collected PILOT revenues for other purposes. | D40: Provided by Utility, or analysis of Utility Cost of Service study.
A41: 113 - 130 | B41: Planned and Catastrophic Event: Capital Expenditure Projects Inputs Block | C41: The share of Capital-Related Costs Eligible for Collection that is not collected in GRC rates is collected via the applicable surcharge. If resources are paid for via a power purchase agreement (PPA), users should enter zero for costs in the planned capex inputs and enter a value in the $/MWh fuel cost. The last column in the planned capex inputs block is dedicated to catastrophic loss-related capex inputs. No ongoing operating costs or changes in generation capacity or output are allowed for these investments. Any O&M costs are assumed to be capitalized during the construction period, and captured in non-fuel O&M once investments become operational. | D41: Utility IRP Data, Provided by Utility, and/or Utility cost of service study data.
A42: 133 - 147 | B42: Retirement or Catastrophic Loss of Grid-Scale Generation Assets Inputs Block | C42: This block of inputs can be used to characterize catastrophic loss and/or asset retirement. Inputs that are not required are grayed out. Decommissioning Costs and Salvage Revenues are treated as capitalized costs because one-time costs/revenues may not be captured if no General Rate Case occurs in the relevant year. Salvage Revenues are capitalized in the Decommissioning End Year. Avoided Fuel, O&M Cost and Production (MW, MWh) are subtracted from revenue requirement values on a going forward basis. | D42: Utility IRP Data, Provided by Utility, and/or Utility cost of service study data.
A43: 152-162 | B43: Schedule of GRCs | C43: "Yes" means GRC is held in relevant year; "No" means no rate case is performed. A GRC is always held in Year 0 to set rates for the beginning of the analysis period. | D43: Provided by Utility or regulatory precedent.
A44: 163 | B44: Regulatory lag for implementation of GRC rates | C44: Fractional years of delay in implementation of rates determined in GRC. | D44: Provided by Utility or regulatory precedent.
A45: 164-166 | B45: Incremental GRC Costs | C45: This set of inputs allows inremental GRC costs, plus any escalation, to be included in the revenue requirement if a rate case is held and if costs are not paid by grant funding. | D45: Provided by Utility.
A46: 168 | B46: Rate Case During Catastrophic Event | C46: User selects (Y/N) whether a general rate case can be held during the year of a catastrophic event or in either of the two years subsequent to a catastrophic event (if users enable subsequent event years to be impacted by the catastrophic event). | D46: Provided by Utility or regulatory precedent.
A47: 171, 178, 187 | B47: Cost Allocation Method | C47: Method used to allocate costs to customer classes within a cost of service study during a general rate case (GRC). | D47: Utility cost of service study.
C48: · MWh: Billing determinants – electricity
C49: · MW-CP: Coincident peak demand
C50: · MW-NCP: Non-coincident peak demand
C51: · Customer: Number of customers
A52: 173-176 181-184 189-192 | B52: Cost Classification Method | C52: Method used to design rates for collecting the relevant costs allocated to a particular customer class. | D52: Utility cost of service study.
C53: · kWh: Annual billing determinants – electricity
C54: · kW-mo: Annual non-coincident monthly peak demand billing determinants
C55: · Customer-mo: annual customer month billing determinants
A56: 197-200 | B56: Nonfuel Working Capital Surcharge | C56: If row 197 = "Yes", cost of working capital is collected based on the number of days lagged between when costs are incurred and revenue collection, and the interest rate for working capital. | D56: Provided by Utility; Per regulatory precedent; or Determined by User as desired for applicable scenario.
A57: 201 | B57: Nonfuel WC Share of Target that Enters Surcharge Annually | C57: Enter 100% to enable all working capital costs to be included in the surcharge if the surcharge is active (row 197). If less than 100% is entered, remainder of costs are never collected. | D57: Provided by Utility; Per regulatory precedent; or Determined by User as desired for applicable scenario.
A58: 202-204 | B58: Planned Expenditure Surcharge | C58: Collects the share of capital and fixed O&M costs associated with planned expenditures that are not collected via the GRC. For the surcharge to collect costs, the surcharge logic needs to be turned on, and the share of planned expenditures collected via GRCs must be less than 100%. | D58: Provided by Utility; Per regulatory precedent; or Determined by User as desired for applicable scenario.
A59: 206 | B59: Decoupling Mechanism | C59: If "Yes" is selected, at the time of a general rate case, the decoupling mechanism rate is set to reflect the utility’s authorized non-fuel costs for recovery in the mechanism, normalized by one type of billing determinant (e.g., MWh, customers). This decoupling mechanism rate is then used each year to develop an authorized revenue that will be collected from all customers. If the utility falls short of or exceeds that revenue amount in any given year, the balance is divided by that year’s billing determinants used in the design of the decoupling mechanisms (e.g., MWh, customers) and this rate is then added to the decoupling mechanism rate in the following year. | D59: Provided by Utility; Per regulatory precedent; or Determined by User as desired for applicable scenario.
A60: 207 | B60: Decoupling Mechanism – Share of Eligible Nonfuel Costs (%) | C60: Selects the share of non-fuel costs that are authorized to be collected via the decoupling mechanism. The balance of costs is collected via retail rates as set during a general rate case. | D60: Provided by Utility; Per regulatory precedent; or Determined by User as desired for applicable scenario.
A61: 208 | B61: Decoupling Mechanism Design - Revenue-Per-Customer | C61: If a Revenue per Customer design is selected, then the share of eligible non-fuel costs identified during a general rate case are divided by the number of customers also identified during a general rate case. This creates a $/customer decoupling mechanism rate that is applied to every customer each year to develop the utility’s authorized revenue under the decoupling mechanism. If a Revenue per Customer design is not selected, then the share of eligible non-fuel costs identified during a general rate case are divided by the electricity billing determinant also identified during a general rate case. This creates a $/kWh decoupling mechanism rate that is applied to all retail sales each year to calculate the utility’s authorized revenue under the decoupling mechanism. | D61: Provided by Utility; Per regulatory precedent; or Determined by User as desired for applicable scenario.
A62: 209 | B62: Inflation Net-of-Productivity Adjustment (Z-Factor) | C62: If Z-Factor is applied, then the decoupling mechanism rate can be adjusted each year upwards or downwards from the previous year’s value to account for expectations about inflation net of any productivity gains the utility would achieve. | D62: Provided by Utility; Per regulatory precedent; or Determined by User as desired for applicable scenario.
A63: 211-212 | B63: Decoupling Mechanism Collected During Catastrophic Event & Number of Years of Decoupling Suspension | C63: The decoupling mechanism, when active, can be suspended (if "Yes" is entered in row 211) for a set number of years (entered in row 212) during the recovery from the catastrophic event. | D63: Provided by Utility; Per regulatory precedent; or Determined by User as desired for applicable scenario.
A64: 213-215 | B64: Utility Allowed to Collect Suspended Amounts & Share of Suspended Amounts to be Collected & Amortization of Suspended Collection Amounts | C64: If the decoupling mechanism is active but suspended during the recovery from a catastrophic event, a share of the suspended amount can be collected at some future point if "Yes" is selected in row 213. Row 214 specifies the share of suspended amounts that may be collected, and row 215 specifies the number of years over which suspended amounts are collected. | D64: Provided by Utility; Per regulatory precedent; or Determined by User as desired for applicable scenario.
A65: n/a: Glossary Item | B65: Modeling the Impact of DR/DSM on 12-monthly NCP Demand | C65: Energy efficiency (EE), distributed solar photovoltaic (PV) systems and electric vehicles (EVs) use the ratio of MWh to NCP billing determinants to estimate NCP demand. Demand response (DR) uses an input factor that converts CP reduction to NCP billing determinants. CP occurs in one period per year versus customer-specific NCPs that can occur in any period in each month. PV exports do not impact a customer’s NCP. | D65: n/a
A66: 220, 238, 257, 305, 346 | B66: EE, DR, Solar PV, EV, LDGD Penetration | C66: "Yes" activates penetration; "No" means no penetration of relevant DER. | D66: Provided by Utility; Regulatory filings; or Publicly available data on programs at similar utilities.
A67: 221, 239, 258 | B67: EE, DR, PV Program Administrator | C67: Select Utility, Energy Office, or Third Party. Regardless of Program Administration model, the utility collects all eligible program costs via a rate or surcharge. If the utility is the Program Administrator, then the revenue collected is used to offset program costs. If the utility is not the Program Administrator, then the revenue collected is directly passed to the Program Administrator, without any benefit or harm to the utility’s financial standing. | D67: Provided by Utility; Regulatory filings; or Publicly available data on programs at similar utilities.
A68: 222, 240, 259, 323 | B68: EE, DR, DPV, EV Incremental Annual Goals | C68: Incremental annual penetration of DER, expressed as % of Forecasted MWh Usage (Row 44) | D68: Provided by Utility; Regulatory filings; or Publicly available data on programs at similar utilities.
A69: 223, 241, 260 | B69: Achievement of EE, DR, PV Goals | C69: Achievement of savings/production goals changes annual savings/production (rows 222, 240, 259) by input %. | D69: Likely 100% unless user desires an alternative scenario.
A70: 224-227 242-245 261-264 | B70: Class Share of Savings/Production Goals | C70: Allocates DER savings/production across classes. Total allocated must equal 100%. | D70: Provided by Utility; Regulatory filings; or Publicly available data on programs at similar utilities.
A71: 229 | B71: CP Technical Loss Factor for EE | C71: EE-related MWh savings are converted to CP demand savings at the customer meter using the CP demand to Energy Savings Ratio (MW divided by GWh) assumption. The EE-related CP demand savings measured at customer meters are converted to a CP value measured at system using the CP Technical Loss Factor for EE assumption. NCP retail sales impacts are scaled pro rata with EE-related MWh savings. | D71: Provided by Utility.
A72: 230, 248, 295 | B72: Utility Program Costs | C72: The cost of administering the DER program ($/kWh or $/kW-yr or $/Watt of EE, DR, PV savings) | D72: Provided by Utility; Regulatory filings; or Publicly available data on programs at similar utilities.
A73: 231, 249, 296 | B73: Lag for Surcharge Reconciliation | C73: If program costs are collected via the EE, DR, or PV surcharge, the time lag (fractional years) between when program costs are incurred and when they are collected in the surcharge. | D73: Provided by Utility; or per Regulatory filings.
A74: 232, 250, 297, 306 | B74: Share of DER (i.e., EE, DR, DPV, EV) Program Costs Entering Surcharge Annually (%) | C74: 100% of Program costs incurred flow into incurred-basis revenue requirement. The share of Program costs not collected in the surcharge are included in the next general rate case and collected via the resulting retail rate. | D74: Provided by Utility; Regulatory filings; or Publicly available data on programs at similar utilities.
A75: 233-234 252-253 299-300 | B75: Performance Incentive Incentive / Penalty | C75: The incentive (penalty) that the utility may collect (incur) as a reward (penalty) for attaining (not attaining) DER program penetration goals. | D75: Provided by Utility; Regulatory filings; or Publicly available data on programs at similar utilities.
A76: 235, 251, 298 | B76: Performance Incentive Mechanism (PIM) Costs in Surcharge | C76: PIMs act as a financial incentive to promote utility achievement of or penalize a lack thereof toward achieving regulator-defined performance goals. The PIMs are collected from rate payers either via a surcharge or included in the next general rate case and collected via the resulting retail rate. | D76: Provided by Utility; or Regulatory filings
A77: 247 | B77: CP Technical Loss Factor for DR | C77: DR-related demand savings are estimated at system. The CP Technical Loss Factor for DR converts the CP demand reduction at system to the CP demand reduction at the customer meter. | D77: Provided by Utility
A78: 254 | B78: The CP to NCP kW Conversion Factor | C78: Converts CP reductions at the customer meter to NCP kW-month reductions at the customer meter. | D78: Provided by Utility
A79: 266-270 | B79: Distributed Solar PV Capacity Factor (%) | C79: This input is used to develop the annual solar generation (MWh) by class, where generation is calculated as solar PV nameplate capacity (MW ac) times 8760 hours per year times the capacity factor. | D79: Provided by Utility; or developed from publicly available data for utilities with similar solar insolation.
A80: 271 | B80: CP Technical Loss Factor for PV | C80: PV-related CP demand savings measured at customer meters are converted to a CP value measured at system using the CP Technical Loss Factor for PV assumption. | D80: Provided by Utility.
A81: 272 | B81: Generation Technical Loss Factor for PV | C81: The PV generation exports (MWh) credited towards purchased/generated power includes the generation technical loss factor grossup. | D81: Provided by Utility.
A82: 273 | B82: NEM Compensation Structure Selection | C82: Users may select: NEM @ Retail Rate; Buy-All / Sell-All; or Hybrid. | D82: Provided by Utility; or Selected by User, per scenario desired.
A83: 274-278 | B83: Share (% of DPV Production) that Remains Onsite | C83: Distributed solar PV production that is not consumed onsite is exported to the electric grid. All DPV production consumed onsite reduces the customer’s electricity purchases from the utility and is therefore compensated per retail rates (net of any grid charge). If Hybrid compensation structure is selected in row 279, user enters the share of production that remains onsite, by class. The balance of production is assumed to be exported. If NEM @ Retail Rate is selected, all production is assumed to remain onsite for compensation purposes. If Buy-All / Sell-All is selected, all production is assumed to be exported for compensation purposes. NCP retail sales impacts are scaled pro rata with PV-related MWh savings. Exported generation does not impact a customer’s NCP demand. | D83: Provided by Utility; or Selected by User, per scenario desired.
A84: 279 | B84: Selection: Export Compensation | C84: If Buy-All / Sell-All or Hybrid compensation structure is selected, user must select how DPV generation that is exported (i.e., not consumed onsite) will be compensated. Selections are either Avoided Cost Rate or Share of Full Retail Rate. | D84: Provided by Utility; or Selected by User, per scenario desired.
A85: 280-281 | B85: Share of Retail Rate and Whether to Include Surcharges | C85: If Share of Full Retail Rate is selected in row 279, user enters the share of retail rate and whether surcharges are included with retail rate compensation. Share of retail rate may be greater than 100%. | D85: Provided by Utility; or Selected by User, per scenario desired.
A86: 282-283 | B86: Solar PV $/kWh Avoided Cost Rate and Escalation | C86: If Avoided Cost Rate is selected in row 279, user enters the avoided cost compensation ($/kWh) and associated escalation. | D86: Provided by Utility; or Selected by User, per scenario desired.
A87: 284-288 | B87: Solar PV Grid Access Charge ($/Customer-month) | C87: Grid access charge payments contribute to the recovery of non-fuel costs. | D87: Provided by Utility; or Selected by User, per scenario desired.
A88: 289-293 | B88: Share of Customers with Incremental PV Systems | C88: These inputs define the number of DPV systems, by class. | D88: Provided by Utility; Regulatory filings; or Publicly available data on programs at similar utilities.
A89: 301-302 342-343 | B89: Incremental Distribution O&M and Distribution Capex Costs | C89: This input is used to identify the impacts on the utility’s distribution capital expenditure budgets and operations and maintenance budgets due to the adoption of DERs. For distributed solar PV, the incremental costs incurred with distributed PV penetration are expressed on a $ per nameplate (ac) kW of installed PV. For electric vehicles, these costs are expressed on a $ per system coincident peak kW EV load increase. Note for EVs this methodology does not capture any increased distribution costs related to off-peak charging. | D89: Provided by Utility; Regulatory filings; or Publicly available data on programs at similar utilities.
A90: 307-317 | B90: Incremental Annual Number of Utility-Owned EVSE | C90: These inputs specify the annual penetration of utility-owned electric vehicle service equipment (EVSE), also known as "chargers". | D90: Provided by Utility; or Selected by User, per scenario desired.
A91: 318 | B91: Capital Cost per EVSE | C91: Capital cost of utility-owned EVSE. | D91: Provided by Utility; or Publicly available data for similar chargers installed in similar year(s).
A92: 319 | B92: Share of Capital Cost Financed with Debt | C92: EVSE may be financed with a capital structure that is different than the utility's embedded structure. This input enables the user to specify the share of EVSE capex that is financed with debt. | D92: Provided by Utility; or Selected by User, per scenario desired.
A93: 320 | B93: EVSE Debt Interest Cost | C93: EVSE may be financed with a debt interest rate that differs from the utility's embedded interest rate. This input enables the user to specify this interest rate. | D93: Provided by Utility; or Selected by User, per scenario desired.
A94: 321 | B94: EVSE Useful Life | C94: The economic life of utility-owned EVSE. Used to determine depreciation on EVSE capex investment. | D94: Provided by Utility; or Publicly available data for similar chargers installed in similar year(s).
A95: 322 | B95: EVSE O&M Costs | C95: Cost of annual O&M for EVSE, expressed in $ millions per EVSE. | D95: Provided by Utility; or Publicly available data for similar chargers installed in similar year(s).
A96: 324-327 | B96: Annual Usage (MWh) from EV Adoption | C96: Allocation of EV penetration from row 323 to each customer class. | D96: Provided by Utility; or Selected by User, per scenario desired.
A97: 329 | B97: Share of EV charging load that is Managed (Smart) Charging | C97: One minus this share is assumed to charge in an un-managed fashion (i.e., immediately upon connection to EVSE). | D97: Provided by Utility; or Selected by User, per scenario desired.
A98: 330-340 | B98: Coincident Demand Increase under EV Charging | C98: There are separate inputs for managed and unmanaged EV charging. The input is expressed as a percent of total CP demand at system. Note that the input is an incremental annual (versus cumulative annual) value. | D98: Provided by Utility; or Selected by User, per scenario desired.
A99: 347-351 | B99: Incremental Annual Share of LDGD Penetration | C99: Incremental Annual Share of LDGD Penetration by Class (non-negative %) | D99: Provided by Utility; or Selected by User, per scenario desired.
A100: 355 | B100: Catastrophic Event | C100: "Yes" activates a catastrophic event which is specified per inputs below row 355. In the years affected by the catastrophic event, actual sales are reduced proportionally by the combined share of year and share of customers impacted, however billing determinants are not impacted. The share of customers impacted in each class may be less than 100%. While revenue is adjusted by catastrophic event customer and usage adjustment factors, general rate case and surcharge ratemaking is based on billing determinants that are not impacted by the catastrophic event, so as not to over-compensate the utility going forward for this temporary state of depressed costs and sales. | D100: Selected by User, per scenario desired.
A101: 356 | B101: Year of Catastrophic Event | C101: Year in which the catastrophic event occurs. | D101: Selected by User, per scenario desired.
A102: 357, 364, 371 | B102: % of Year Impacted | C102: Share of the year impacted by the catastrophic event, specified seperately in the year of the event as well as in the two subsequent years. | D102: Selected by User, per scenario desired.
A103: 358-362, 365-369, 372-376 | B103: Share of Customers Impacted | C103: Share of customers impacted by the catastrophic event, specified seperately in the year of the event as well as in the two subsequent years. | D103: Selected by User, per scenario desired.
A104: 363, 370, 377 | B104: CP Demand Reduced After Catastrophic Event | C104: Whether (Yes, No) coincident peak demand is impacted by the catastrophic event, in the year of the event and two subsequent years. | D104: Selected by User, per scenario desired.
A105: 378-385 | B105: Catastrophic Event-induced Change in Fuel and O&M Costs | C105: A negative percent change would be entered to show a decline in utility incurred costs due to the catastrophic event versus business as usual. A positive change would be entered to show an increase in those costs. | D105: Selected by User, per scenario desired.
A106: 386-387 | B106: Catastrophic Event Surcharge | C106: Allows the utility to collect incremental capital costs incurred with a catastrophic event. These costs are included in the incurred revenue requirement and can be collected via retail rates set during a general rate case or the Catastrophic Event and/or Self-Insurance surcharges. Costs collected via the catastrophic event surcharge are collected as depreciation and return on capital expenditures. If the Catastrophic Event Surcharge flag is “No” then 100% of catastrophic event Capex is collected via retail rates set during a general rate case. If the flag is “Yes” then catastrophic event Capex can be collected via the Catastrophic Event Surcharge and/or Self-Insurance per the Share of catastrophic loss costs collected via self-insurance (vs Surcharge) input. | D106: Selected by User, per scenario desired.
A107: 388-389 | B107: Share of catastrophic loss costs collected via Self Insurance | C107: Catastrophic event costs that are collected in a surcharge (if row 387 is "Yes")can be collected in via Self-Insurance proceeds or via the Catastrophic Event Surcharge. One minus this input is collected via the Catastrophic Event Surcharge. The surcharge lag for reconciliation applies to Catastrophic Event Surcharge. | D107: Selected by User, per scenario desired.
A108: 390-393 | B108: Catastrophic Event Grant Funding | C108: Grant funding, if available, is automatically applied as a reduction to capital expenditures incurred (i.e., rate base and debt principal outstanding) due to the catastrophic event. Grant funding and catastrophic event flags must both be active to enable grant funding. "Yes" in row 391 enables Grant funding. Row 393 specifies number of years after Event that Grant funding is received. | D108: Provided by Utility; Analysis of Regulatory Filings; or Selected by User
A109: 394-399 | B109: Self-Insurance (SI) Surcharge | C109: If catastrophic event capex is not collected via retail rates set during a general rate case, self-insurance (SI) surcharge eligible costs are the share of upfront capex not collected via the Catastrophic Event Capital Cost surcharge. Self-insurance surcharge revenues collected fund a self-insurance reserve. The surcharge is collected based on the $/kWh rate (entered in row 397, plus escalation per row 398) until the SI reserve fund maximum reserve fund level (row 396) is attained. Row 395 specifies the SI Reserve Fund level in Year-0. Capital costs incurred to recover from a catastrophic event and paid using the self-insurance reserve are based on an incurred cash Capex basis (versus a revenue requirement basis that would collect depreciation and return). Any balance that can’t be fully paid with the SI reserve at the time of the catastrophic event is assumed to be carried forward and repaid over time with future SI proceeds. This modeling approach means that more than the SI cap may eventually be paid by ratepayers for a given event. Surcharge revenue is deducted from taxable income when the Contributions are tax deductible (Yes/No) input in row 399 is “Yes” and utility pays tax. | D109: Provided by Utility; Analysis of Regulatory Filings; or Selected by User
A110: 403 | B110: Starting Cash Balance | C110: The amount of unrestricted cash available to the utility at the end of Year-0. | D110: Provided by Utility, or analysis of Utility financial statements.
A111: 405-406 | B111: Cash Debt Service for Existing Debt | C111: Cash principal outstanding ($ millions) as of the end of Year-0 and average annual cash principal repayment ($ millions) through year 10. | D111: Provided by Utility, or analysis of Utility financial statements.
A112: 407-409 | B112: Cash Debt Service for New Debt | C112: Debt amortization term and debt interest rate for new debt incurred after Year-0. | D112: Provided by Utility, or analysis of Utility financial statements.
A113: 410-421 | B113: New Debt Amortization Profile | C113: For new debt incurred after Year-0, row 410 specifies the cash principal repayment amortization schedule. "SL" means straight line (same amount in every year); "Bullet" means entire principal amount is repaid in the last year of the debt term; "Mortgage" is mortgage-style; and "Custom" is specified per inputs in rows 412-421. "Custom" profile does not need to sum to 100%. | D113: Provided by Utility, or analysis of Utility financial statements.
A114: 424 | B114: Target Days Liquidity | C114: The target number of days liquidity to be achieved by utility in years 1 through 10. | D114: Provided by Utility, or analysis of ratings agency materials (i.e., Moody's)
A115: 426 | B115: Multi-Year Average Debt Ratio (MYADR) | C115: The target annual debt service coverage ratio to be achieved by utility in years 1 through 10. | D115: Provided by Utility, or analysis of ratings agency materials (i.e., Moody's)
A116: 428 | B116: Multi-Year Average Debt Ratio (MYADR) | C116: The number of years used in calculation of the MYADR. | D116: Provided by Utility, or analysis of ratings agency materials (i.e., Moody's)
A119: SUPRA Model Mechanisms to Improve Utility Financial Health
A120: Mechanism | B120: Explanation
A121: GRC Frequency | B121: If costs are increasing more quickly than sales, increasing the frequency of general rate cases can improve a utility’s financial health.
A122: Improve Collection of Incurred Costs | B122: The utility can more completely recover its incurred costs by ensuring as much of those costs enter the revenue requirement at the next general rate case. This can be accomplished by setting the Share of Costs that Enters the Revenue Requirement at the Next General Rate Case input to 100%. For more contemporaneous recovery of these costs, the utility could increase its reliance on surcharge mechanisms.
A123: Reduce Share of Uncollectables | B123: Reducing the share of billing determinants associated with uncollectables will increase the utility’s collected revenues and potentially reduce utility incurred costs, thereby improving the utility’s financial health. This can be represented by reducing the share of Uncollectables input.
A124: Depreciation and Debt Interest Expenses in Revenue Requirement | B124: Depreciation and debt interest levels should be able to repay annual cash debt service. For example, to ensure adequate revenue requirements, the depreciation term for rate-based assets should on average be less than or equal to the repayment term of the utility’s debt, and the debt interest rate for calculating the revenue requirement should be equal to the weighted average interest rate of outstanding debt.
A125: Decoupling | B125: When sales are declining, decoupling helps ensure that the authorized share of non-fuel costs included in the mechanism are collected between rate cases.
A126: Increase Achievement of Goals that have Performance Incentive Mechanisms | B126: By achieving regulatory goals that have Performance Incentives associated with them (e.g., achievement of DER penetration goals), the utility can receive additional revenue that should help improve its financial health.
A127: Distributed PV Compensation Reforms | B127: Many utilities use full Net Energy Metering to compensate production from a distributed PV system, which can result in cost shifts between participants and non-participants through overvaluing the utility’s avoided costs. A number of reforms to net metering can reduce the cost shifts as well as mitigate declines in utility revenue collection between rate cases. These reforms can include establishing a grid access charge, implementing metering arrangements that can enable compensation of on-site consumption at less than the full retail rate, and compensating all production or exported production at something less than the full retail rate. Full NEM compensation (net of grid charge) can be modeled by setting the share of DPV production that remains onsite to 100%. A feed-in tariff or buy-all/sell-all arrangement can be modeled by assuming 0% of generation remains onsite (i.e., there is no self-consumption thus 100% of production is exported and valued at the export compensation rate).

Sheet User_InputDashboard
A2: Step 1. Enter Unique Names for Up to 10 Scenarios | B2: Scenario 1 | C2: Scenario 2 | D2: Scenario 3 | E2: Scenario 4 | F2: Scenario 5 | H2: Step 2. Provide Inputs for One of the 10 Unique Scenarios
B3: Base Case No DER | C3: All DER On | D3: Hybrid 50-50 | E3: 100% Retail Rate | F3: 100% Avoided Cost Rate | H3: 2.a) Directly Enter Inputs in Rows 40 through 428 Below or 2.b) Make Changes to a Saved Scenario
B4: Scenario 6 | C4: Scenario 7 | D4: Scenario 8 | E4: Scenario 9 | F4: Scenario 10 | H4: 2.b.1) Select Saved Scenario to Edit | L4: 2.b.2) Press Button to Load Saved Scenario Inputs
B5: 100% full retail export rate incl surcharges | C5: Test Base | D5: Test Comparison | E5: Blank | F5: VIWAPA Data Vetted | I5: Base Case No DER
A8: Step 3. Vet Model Results Based on Current Inputs Below | B8: =CONCATENATE(B41+1, " - Year 1 of Analysis Period") -> 2021 - Year 1 of Analysis Period | H8: =CONCATENATE(B41+10, " - Year 10 of Analysis Period") -> 2030 - Year 10 of Analysis Period
B9: Total | C9: Class 1 | D9: Class 2 | E9: Class 3 | F9: Class 4 | H9: Total | I9: Class 1 | J9: Class 2 | K9: Class 3 | L9: Class 4
A10: =Model_Calcs!B32 -> Billing Determinants Electricity Usage (MWh) - no Event adjustment | B10: =Model_Calcs!E32 -> 607890 | C10: =TRANSPOSE(Model_Calcs!E33:E36) -> 238620 | D10: 117564 | E10: 182106 | F10: 69600 | H10: =Model_Calcs!N32 -> 686648.2892 | I10: =TRANSPOSE(Model_Calcs!N33:N36) -> 298003.6819 | J10: 128578.0154 | K10: 190466.5919 | L10: 69600
A11: =Model_Calcs!B45 -> Coincident Peak Demand (MW) - net of DER - at System - not adjusted for catastrophic event | B11: =Model_Calcs!E45 -> 125.5603261 | C11: =TRANSPOSE(Model_Calcs!E46:E49) -> 41.3093473 | D11: 32.6456848 | E11: 35.78469295 | F11: 15.82060109 | H11: =Model_Calcs!N45 -> 230.8375383 | I11: =TRANSPOSE(Model_Calcs!N46:N49) -> 75.94555011 | J11: 60.01775996 | K11: 65.78869842 | L11: 29.08552983
A12: =Model_Calcs!B82 -> Total Customers | B12: =Model_Calcs!E83+Model_Calcs!E88 -> 56770.45 | C12: =TRANSPOSE(Model_Calcs!E84:E87)+TRANSPOSE(Model_Calcs!E89:E92) -> 46904 | D12: 8855 | E12: 960.3 | F12: 51.15 | H12: =Model_Calcs!N83+Model_Calcs!N88 -> 76370.68616 | I12: =TRANSPOSE(Model_Calcs!N84:N87)+TRANSPOSE(Model_Calcs!N89:N92) -> 66759.01725 | J12: 8855 | K12: 730.0498856 | L12: 26.61902689
A13: Usage per Customer (kWh per Year) | B13: =+B10/B12*1000 -> 10707.85946 | C13: =+C10/C12*1000 -> 5087.412587 | D13: 13276.56691 | E13: 189634.4892 | F13: 1360703.812 | H13: =+H10/H12*1000 -> 8990.992797 | I13: =+I10/I12*1000 -> 4463.871611 | J13: =+J10/J12*1000 -> 14520.3857 | K13: =+K10/K12*1000 -> 260895.311 | L13: =+L10/L12*1000 -> 2614671.088
A14: =Model_Calcs!B225 -> Total Fuel & Purchased Power Costs for Rate Recovery ($M) | B14: =Model_Calcs!E225 -> 104.1242623 | C14: N/A | D14: N/A | E14: N/A | F14: N/A | H14: =Model_Calcs!N225 -> 157.6770619 | I14: N/A | J14: N/A | K14: N/A | L14: N/A
A15: =Model_Calcs!B226 -> Total Non-Fuel O&M Costs for Rate Recovery ($M) - incl salvage/decomm | B15: =Model_Calcs!E226 -> 82.08 | C15: N/A | D15: N/A | E15: N/A | F15: N/A | H15: =Model_Calcs!N226 -> 103.4102516 | I15: N/A | J15: N/A | K15: N/A | L15: N/A
A16: =Model_Calcs!B227 -> Payment in Lieu of Taxes for Rate Recovery ($M) | B16: =Model_Calcs!E227 -> 0.5 | C16: N/A | D16: N/A | E16: N/A | F16: N/A | H16: =Model_Calcs!N227 -> 0.5 | I16: N/A | J16: N/A | K16: N/A | L16: N/A
A17: =Model_Calcs!B228 -> Total Depreciation & Debt Interest Cost for Rate Recovery ($M) | B17: =Model_Calcs!E228 -> 60.25 | C17: N/A | D17: N/A | E17: N/A | F17: N/A | H17: =Model_Calcs!N228 -> 50.86725 | I17: N/A | J17: N/A | K17: N/A | L17: N/A
A18: =Model_Calcs!B229 -> Total Return & Income Taxes for Rate Recovery ($M) | B18: =Model_Calcs!E229 -> 0 | C18: N/A | D18: N/A | E18: N/A | F18: N/A | H18: =Model_Calcs!N229 -> 0 | I18: N/A | J18: N/A | K18: N/A | L18: N/A
A19: Total Revenue Requirement ($M) | B19: =Model_Calcs!E230 -> 246.9542623 | C19: N/A | D19: N/A | E19: N/A | F19: N/A | H19: =Model_Calcs!N230 -> 312.4545634 | I19: N/A | J19: N/A | K19: N/A | L19: N/A
A20: =Model_Calcs!B360 -> Total Collected Fuel Rate Revenue ($M) | B20: =Model_Calcs!E360 -> 98.86798946 | C20: =Model_Calcs!E336 -> 38.80945507 | D20: =Model_Calcs!E337 -> 19.12075592 | E20: =Model_Calcs!E338 -> 29.61794747 | F20: =Model_Calcs!E339 -> 11.319831 | H20: =Model_Calcs!N360 -> 145.7893268 | I20: =Model_Calcs!N336 -> 63.27221207 | J20: =Model_Calcs!N337 -> 27.29971457 | K20: =Model_Calcs!N338 -> 40.43991175 | L20: =Model_Calcs!N339 -> 14.77748843
A21: =Model_Calcs!B361 -> Total Collected Non-Fuel Rate Revenue ($M) | B21: =Model_Calcs!E361 -> 142.1530172 | C21: =Model_Calcs!E356 -> 58.36880437 | D21: =Model_Calcs!E357 -> 30.48027869 | E21: =Model_Calcs!E358 -> 40.72318416 | F21: =Model_Calcs!E359 -> 12.58075 | H21: =Model_Calcs!N361 -> 154.4666318 | I21: =Model_Calcs!N356 -> 77.14716236 | J21: =Model_Calcs!N357 -> 30.17458306 | K21: =Model_Calcs!N358 -> 37.17723889 | L21: =Model_Calcs!N359 -> 9.967647524
A22: =Model_Calcs!B471 -> Total Collected Surcharge Utility Revenue ($M) | B22: =Model_Calcs!E471 -> 6.494675303 | C22: =$B22*C10/$B10 -> 2.549407657 | D22: =$B22*D10/$B10 -> 1.256049626 | E22: =$B22*E10/$B10 -> 1.945614076 | F22: =$B22*F10/$B10 -> 0.7436039433 | H22: =Model_Calcs!N471 -> 11.88449775 | I22: =$H22*I10/$H10 -> 5.157843023 | J22: =$H22*J10/$H10 -> 2.225426261 | K22: =$H22*K10/$H10 -> 3.296592767 | L22: =$H22*L10/$H10 -> 1.204635702
A23: =Model_Calcs!B474 -> Total Collected Utility Net Revenue ($M) | B23: =Model_Calcs!E474 -> 247.515682 | C23: =TRANSPOSE(Model_Calcs!E476:E479) -> 99.72766711 | D23: 50.85708423 | E23: 72.2867457 | F23: 24.64418494 | H23: =Model_Calcs!N474 -> 312.1404564 | I23: =TRANSPOSE(Model_Calcs!N476:N479) -> 145.5772174 | J23: 59.69972389 | K23: 80.91374341 | L23: 25.94977165
A24: Total Collected Fuel Rate Revenue ($/kWh) | B24: =(B20*10^6)/(B10*10^3) -> 0.16264125 | C24: =(C20*10^6)/(C10*10^3) -> 0.16264125 | D24: 0.16264125 | E24: 0.16264125 | F24: 0.16264125 | H24: =(H20*10^6)/(H10*10^3) -> 0.212320236 | I24: =(I20*10^6)/(I10*10^3) -> 0.212320236 | J24: 0.212320236 | K24: 0.212320236 | L24: 0.212320236
A25: Total Collected Non-Fuel Rate Revenue ($/kWh) | B25: =(B21*10^6)/(B10*10^3) -> 0.2338466124 | C25: =(C21*10^6)/(C10*10^3) -> 0.2446098582 | D25: 0.2592654102 | E25: 0.2236235168 | F25: 0.1807579023 | H25: =(H21*10^6)/(H10*10^3) -> 0.2249574262 | I25: =(I21*10^6)/(I10*10^3) -> 0.2588798966 | J25: 0.2346791787 | K25: 0.1951903403 | L25: 0.1432133265
A26: Total Collected Surcharge Utility Revenue ($/kWh) | B26: =(B22*10^6)/(B10*10^3) -> 0.0106839647 | C26: =(C22*10^6)/(C10*10^3) -> 0.0106839647 | D26: 0.0106839647 | E26: 0.0106839647 | F26: 0.0106839647 | H26: =(H22*10^6)/(H10*10^3) -> 0.01730798422 | I26: =(I22*10^6)/(I10*10^3) -> 0.01730798422 | J26: 0.01730798422 | K26: 0.01730798422 | L26: 0.01730798422
A27: =Model_Calcs!B475 -> Total Collected Net Utility Revenue Per kWh ($/kWh) | B27: =(B23*10^6)/(B10*10^3) -> 0.4071718271 | C27: =(C23*10^6)/(C10*10^3) -> 0.417935073 | D27: =(D23*10^6)/(D10*10^3) -> 0.4325906249 | E27: =(E23*10^6)/(E10*10^3) -> 0.3969487315 | F27: =(F23*10^6)/(F10*10^3) -> 0.354083117 | H27: =(H23*10^6)/(H10*10^3) -> 0.4545856464 | I27: =(I23*10^6)/(I10*10^3) -> 0.4885081168 | J27: =(J23*10^6)/(J10*10^3) -> 0.464307399 | K27: =(K23*10^6)/(K10*10^3) -> 0.4248185605 | L27: =(L23*10^6)/(L10*10^3) -> 0.3728415467
A28: Total Collected Net Utility Revenue Per Customer ($/Customer/Month) | B28: =(B23*10^6)/B12/12 -> 363.328225 | C28: =(C23*10^6)/C12/12 -> 177.1840126 | D28: =(D23*10^6)/D12/12 -> 478.6098648 | E28: =(E23*10^6)/E12/12 -> 6272.930829 | F28: =(F23*10^6)/F12/12 -> 40150.18727 | H28: =(H23*10^6)/H12/12 -> 340.5980227 | I28: =(I23*10^6)/I12/12 -> 181.7197929 | J28: =(J23*10^6)/J12/12 -> 561.8268765 | K28: =(K23*10^6)/K12/12 -> 9236.097537 | L28: =(L23*10^6)/L12/12 -> 81238.1677
A29: Achieved After-tax Earnings or Profit Margin ($M) | B29: =Model_Calcs!E537 -> 0.5614196645 | C29: N/A | D29: N/A | E29: N/A | F29: N/A | H29: =Model_Calcs!N537 -> -2.181357045 | I29: N/A | J29: N/A | K29: N/A | L29: N/A
A30: =Model_Calcs!B600 -> Actual Days Liquidity | B30: =Model_Calcs!E600 -> 21.13592978 | C30: N/A | D30: N/A | E30: N/A | F30: N/A | H30: =Model_Calcs!N600 -> 45.53512785 | I30: N/A | J30: N/A | K30: N/A | L30: N/A
A31: Debt Service Coverage Ratio | B31: =Model_Calcs!E603 -> 1.066867012 | C31: N/A | D31: N/A | E31: N/A | F31: N/A | H31: =Model_Calcs!N603 -> 0.9988864335 | I31: N/A | J31: N/A | K31: N/A | L31: N/A
A32: =Model_Calcs!B598 -> Cash Position - End of Year ($M) | B32: =Model_Calcs!E598 -> 10.81141966 | C32: N/A | D32: N/A | E32: N/A | F32: N/A | H32: =Model_Calcs!N598 -> 32.63400483 | I32: N/A | J32: N/A | K32: N/A | L32: N/A
A33: =Model_Calcs!B608 -> Annual Debt Ratio | B33: =Model_Calcs!E608 -> 0.9468085106 | C33: N/A | D33: N/A | E33: N/A | F33: N/A | H33: =Model_Calcs!N608 -> 0.9993952832 | I33: N/A | J33: N/A | K33: N/A | L33: N/A
A35: Step 4. Select Name of Scenario to Save with Inputs: | E35: Step 5. Press Button to Save Scenario Inputs & Results
A37: Add Name to Step 1 Table If Necessary | B37: Base Case No DER
A40: Utility Customer Characteristics | Q40: =CONCATENATE("Scenario", SUMIF(Model_InputList!B49:K49, I5, Model_InputList!B48:K48)) -> Scenario1
A41: Model Start Year (Year 0) | B41: 2020 | Q41: =INDEX(INDIRECT($Q$40&"_Inputs!$b$1:$b$450"), MATCH(A41, INDIRECT($Q$40&"_Inputs!$a$1:$a$450"), 0), 1) -> 2020
B43: Base Year Value | C43: CAGR | Q43: Base Year Value | R43: CAGR
A44: Forecasted MWh Usage at Customer Meter | B44: 600000 | C44: 0 | Q44: =INDEX(INDIRECT($Q$40&"_Inputs!$b$1:$b$450"), MATCH($A44, INDIRECT($Q$40&"_Inputs!$a$1:$a$450"), 0), 1) -> 600000 | R44: =INDEX(INDIRECT($Q$40&"_Inputs!$c$1:$c$450"), MATCH($A44, INDIRECT($Q$40&"_Inputs!$a$1:$a$450"), 0), 1) -> 0
A45: Forecasted MWh Usage Class 1 Share of Total | B45: 0.388 | C45: 0.025 | Q45: =INDEX(INDIRECT($Q$40&"_Inputs!$b$1:$b$450"), MATCH($A45, INDIRECT($Q$40&"_Inputs!$a$1:$a$450"), 0), 1) -> 0.388 | R45: =INDEX(INDIRECT($Q$40&"_Inputs!$c$1:$c$450"), MATCH($A45, INDIRECT($Q$40&"_Inputs!$a$1:$a$450"), 0), 1) -> 0.025
A46: Forecasted MWh Usage Class 2 Share of Total | B46: 0.194 | C46: 0.01 | Q46: =INDEX(INDIRECT($Q$40&"_Inputs!$b$1:$b$450"), MATCH($A46, INDIRECT($Q$40&"_Inputs!$a$1:$a$450"), 0), 1) -> 0.194 | R46: =INDEX(INDIRECT($Q$40&"_Inputs!$c$1:$c$450"), MATCH($A46, INDIRECT($Q$40&"_Inputs!$a$1:$a$450"), 0), 1) -> 0.01
A47: Forecasted MWh Usage Class 3 Share of Total | B47: 0.302 | C47: 0.005 | Q47: =INDEX(INDIRECT($Q$40&"_Inputs!$b$1:$b$450"), MATCH($A47, INDIRECT($Q$40&"_Inputs!$a$1:$a$450"), 0), 1) -> 0.302 | R47: =INDEX(INDIRECT($Q$40&"_Inputs!$c$1:$c$450"), MATCH($A47, INDIRECT($Q$40&"_Inputs!$a$1:$a$450"), 0), 1) -> 0.005
A48: Forecasted MWh Usage Class 4 Share of Total | B48: 0.116 | C48: 0 | Q48: =INDEX(INDIRECT($Q$40&"_Inputs!$b$1:$b$450"), MATCH($A48, INDIRECT($Q$40&"_Inputs!$a$1:$a$450"), 0), 1) -> 0.116 | R48: =INDEX(INDIRECT($Q$40&"_Inputs!$c$1:$c$450"), MATCH($A48, INDIRECT($Q$40&"_Inputs!$a$1:$a$450"), 0), 1) -> 0
A50: Uncollectable Share (% of Forecasted MWh Usage at Customer Meter) | B50: 0.0125 | Q50: =INDEX(INDIRECT($Q$40&"_Inputs!$b$1:$b$450"), MATCH($A50, INDIRECT($Q$40&"_Inputs!$a$1:$a$450"), 0), 1) -> 0.0125
A51: Non-technical Loss Factor (% of Forecasted MWh Usage at Customer Meter) | B51: 0.024 | Q51: =INDEX(INDIRECT($Q$40&"_Inputs!$b$1:$b$450"), MATCH($A51, INDIRECT($Q$40&"_Inputs!$a$1:$a$450"), 0), 1) -> 0.024
A52: Technical Loss Factor (% of Forecasted MWh Usage at Customer Meter) | B52: 0.074 | Q52: =INDEX(INDIRECT($Q$40&"_Inputs!$b$1:$b$450"), MATCH($A52, INDIRECT($Q$40&"_Inputs!$a$1:$a$450"), 0), 1) -> 0.074
A54: Forecasted Coincident Peak Demand (MW) | B54: 106.7 | C54: 0.07 | Q54: =INDEX(INDIRECT($Q$40&"_Inputs!$b$1:$b$450"), MATCH($A54, INDIRECT($Q$40&"_Inputs!$a$1:$a$450"), 0), 1) -> 106.7 | R54: =INDEX(INDIRECT($Q$40&"_Inputs!$c$1:$c$450"), MATCH($A54, INDIRECT($Q$40&"_Inputs!$a$1:$a$450"), 0), 1) -> 0.07
A55: Forecasted CP Peak Demand MW Class 1 Share of Total | B55: 0.329 | Q55: =INDEX(INDIRECT($Q$40&"_Inputs!$b$1:$b$450"), MATCH($A55, INDIRECT($Q$40&"_Inputs!$a$1:$a$450"), 0), 1) -> 0.329
A56: Forecasted CP Peak Demand MW Class 2 Share of Total | B56: 0.26 | Q56: =INDEX(INDIRECT($Q$40&"_Inputs!$b$1:$b$450"), MATCH($A56, INDIRECT($Q$40&"_Inputs!$a$1:$a$450"), 0), 1) -> 0.26
A57: Forecasted CP Peak Demand MW Class 3 Share of Total | B57: 0.285 | Q57: =INDEX(INDIRECT($Q$40&"_Inputs!$b$1:$b$450"), MATCH($A57, INDIRECT($Q$40&"_Inputs!$a$1:$a$450"), 0), 1) -> 0.285
A58: Forecasted CP Peak Demand MW Class 4 Share of Total | B58: 0.126 | Q58: =INDEX(INDIRECT($Q$40&"_Inputs!$b$1:$b$450"), MATCH($A58, INDIRECT($Q$40&"_Inputs!$a$1:$a$450"), 0), 1) -> 0.126
A60: Forecasted CP Measured at System (Yes=at System, No=at customer meter) | B60: No | Q60: =INDEX(INDIRECT($Q$40&"_Inputs!$b$1:$b$450"), MATCH($A60, INDIRECT($Q$40&"_Inputs!$a$1:$a$450"), 0), 1) -> No
A61: CP Non-technical Loss Factor (Not Applied to DER) | B61: 0.024 | Q61: =INDEX(INDIRECT($Q$40&"_Inputs!$b$1:$b$450"), MATCH($A61, INDIRECT($Q$40&"_Inputs!$a$1:$a$450"), 0), 1) -> 0.024
A62: CP Technical Loss Factor (Not Applied to DER) | B62: 0.074 | Q62: =INDEX(INDIRECT($Q$40&"_Inputs!$b$1:$b$450"), MATCH($A62, INDIRECT($Q$40&"_Inputs!$a$1:$a$450"), 0), 1) -> 0.074
A64: Forecasted Non-Coincident Peak Demand at Customer Meter (kW-months) | B64: 2875243 | Q64: =INDEX(INDIRECT($Q$40&"_Inputs!$b$1:$b$450"), MATCH($A64, INDIRECT($Q$40&"_Inputs!$a$1:$a$450"), 0), 1) -> 2875243
A65: Forecasted NCP Demand Class 1 Share of Total | B65: 0.465 | C65: 0 | Q65: =INDEX(INDIRECT($Q$40&"_Inputs!$b$1:$b$450"), MATCH($A65, INDIRECT($Q$40&"_Inputs!$a$1:$a$450"), 0), 1) -> 0.465 | R65: =INDEX(INDIRECT($Q$40&"_Inputs!$c$1:$c$450"), MATCH($A65, INDIRECT($Q$40&"_Inputs!$a$1:$a$450"), 0), 1) -> 0
A66: Forecasted NCP Demand Class 2 Share of Total | B66: 0.181 | C66: -0.04 | Q66: =INDEX(INDIRECT($Q$40&"_Inputs!$b$1:$b$450"), MATCH($A66, INDIRECT($Q$40&"_Inputs!$a$1:$a$450"), 0), 1) -> 0.181 | R66: =INDEX(INDIRECT($Q$40&"_Inputs!$c$1:$c$450"), MATCH($A66, INDIRECT($Q$40&"_Inputs!$a$1:$a$450"), 0), 1) -> -0.04
A67: Forecasted NCP Demand Class 3 Share of Total | B67: 0.292 | C67: -0.06 | Q67: =INDEX(INDIRECT($Q$40&"_Inputs!$b$1:$b$450"), MATCH($A67, INDIRECT($Q$40&"_Inputs!$a$1:$a$450"), 0), 1) -> 0.292 | R67: =INDEX(INDIRECT($Q$40&"_Inputs!$c$1:$c$450"), MATCH($A67, INDIRECT($Q$40&"_Inputs!$a$1:$a$450"), 0), 1) -> -0.06
A68: Forecasted NCP Demand Class 4 Share of Total | B68: 0.062 | C68: -0.1 | Q68: =INDEX(INDIRECT($Q$40&"_Inputs!$b$1:$b$450"), MATCH($A68, INDIRECT($Q$40&"_Inputs!$a$1:$a$450"), 0), 1) -> 0.062 | R68: =INDEX(INDIRECT($Q$40&"_Inputs!$c$1:$c$450"), MATCH($A68, INDIRECT($Q$40&"_Inputs!$a$1:$a$450"), 0), 1) -> -0.1
A70: Forecasted Number of Customers | B70: 55000 | Q70: =INDEX(INDIRECT($Q$40&"_Inputs!$b$1:$b$450"), MATCH($A70, INDIRECT($Q$40&"_Inputs!$a$1:$a$450"), 0), 1) -> 55000
A71: Forecasted Number of Customers Class 1 Share of Total | B71: 0.82 | C71: 0.04 | Q71: =INDEX(INDIRECT($Q$40&"_Inputs!$b$1:$b$450"), MATCH($A71, INDIRECT($Q$40&"_Inputs!$a$1:$a$450"), 0), 1) -> 0.82 | R71: =INDEX(INDIRECT($Q$40&"_Inputs!$c$1:$c$450"), MATCH($A71, INDIRECT($Q$40&"_Inputs!$a$1:$a$450"), 0), 1) -> 0.04
A72: Forecasted Number of Customers Class 2 Share of Total | B72: 0.161 | C72: 0 | Q72: =INDEX(INDIRECT($Q$40&"_Inputs!$b$1:$b$450"), MATCH($A72, INDIRECT($Q$40&"_Inputs!$a$1:$a$450"), 0), 1) -> 0.161 | R72: =INDEX(INDIRECT($Q$40&"_Inputs!$c$1:$c$450"), MATCH($A72, INDIRECT($Q$40&"_Inputs!$a$1:$a$450"), 0), 1) -> 0
A73: Forecasted Number of Customers Class 3 Share of Total | B73: 0.018 | C73: -0.03 | Q73: =INDEX(INDIRECT($Q$40&"_Inputs!$b$1:$b$450"), MATCH($A73, INDIRECT($Q$40&"_Inputs!$a$1:$a$450"), 0), 1) -> 0.018 | R73: =INDEX(INDIRECT($Q$40&"_Inputs!$c$1:$c$450"), MATCH($A73, INDIRECT($Q$40&"_Inputs!$a$1:$a$450"), 0), 1) -> -0.03
A74: Forecasted Number of Customers Class 4 Share of Total | B74: 0.001 | C74: -0.07 | Q74: =INDEX(INDIRECT($Q$40&"_Inputs!$b$1:$b$450"), MATCH($A74, INDIRECT($Q$40&"_Inputs!$a$1:$a$450"), 0), 1) -> 0.001 | R74: =INDEX(INDIRECT($Q$40&"_Inputs!$c$1:$c$450"), MATCH($A74, INDIRECT($Q$40&"_Inputs!$a$1:$a$450"), 0), 1) -> -0.07
A76: Utility Costs
A78: Type of Utility
A79: Selection (Investor-owned, Municipal) | B79: Municipal | Q79: =INDEX(INDIRECT($Q$40&"_Inputs!$b$1:$b$450"), MATCH($A79, INDIRECT($Q$40&"_Inputs!$a$1:$a$450"), 0), 1) -> Municipal
A81: Generation
A82: Base Year Generation Supply Capacity (ELCC MW) | B82: 259 | Q82: =INDEX(INDIRECT($Q$40&"_Inputs!$b$1:$b$450"), MATCH($A82, INDIRECT($Q$40&"_Inputs!$a$1:$a$450"), 0), 1) -> 259
A83: ELCC of Solar PV (% of Nameplate MW) | B83: 0.9 | Q83: =INDEX(INDIRECT($Q$40&"_Inputs!$b$1:$b$450"), MATCH($A83, INDIRECT($Q$40&"_Inputs!$a$1:$a$450"), 0), 1) -> 0.9
A85: Fuel and Purchased Power Costs
A86: Average Cost ($/MWh purchased) | B86: 150 | C86: 0.04 | Q86: =INDEX(INDIRECT($Q$40&"_Inputs!$b$1:$b$450"), MATCH($A86, INDIRECT($Q$40&"_Inputs!$a$1:$a$450"), 0), 1) -> 150 | R86: =INDEX(INDIRECT($Q$40&"_Inputs!$c$1:$c$450"), MATCH($A86, INDIRECT($Q$40&"_Inputs!$a$1:$a$450"), 0), 1) -> 0.04
A87: Fuel Inventory Cost (% of Fuel & Purchased Power Budget) | B87: 0 | Q87: =INDEX(INDIRECT($Q$40&"_Inputs!$b$1:$b$450"), MATCH($A87, INDIRECT($Q$40&"_Inputs!$a$1:$a$450"), 0), 1) -> 0
A88: Fuel Adjustment Clause Working Capital Cost (%) | B88: 0 | Q88: =INDEX(INDIRECT($Q$40&"_Inputs!$b$1:$b$450"), MATCH($A88, INDIRECT($Q$40&"_Inputs!$a$1:$a$450"), 0), 1) -> 0
A89: Fuel Adjustment Clause Lag for Reconciliation (Fractional Years) | B89: 0 | Q89: =INDEX(INDIRECT($Q$40&"_Inputs!$b$1:$b$450"), MATCH($A89, INDIRECT($Q$40&"_Inputs!$a$1:$a$450"), 0), 1) -> 0
A91: Non-Fuel O&M
A92: Annual Cost ($M) | B92: 80 | C92: 0.026 | Q92: =INDEX(INDIRECT($Q$40&"_Inputs!$b$1:$b$450"), MATCH($A92, INDIRECT($Q$40&"_Inputs!$a$1:$a$450"), 0), 1) -> 80 | R92: =INDEX(INDIRECT($Q$40&"_Inputs!$c$1:$c$450"), MATCH($A92, INDIRECT($Q$40&"_Inputs!$a$1:$a$450"), 0), 1) -> 0.026
A93: Share of Non-fuel O&M Cost that Enters Revenue Requirement at Next GRC | B93: 1 | Q93: =INDEX(INDIRECT($Q$40&"_Inputs!$b$1:$b$450"), MATCH($A93, INDIRECT($Q$40&"_Inputs!$a$1:$a$450"), 0), 1) -> 1
A95: Sustaining Capital Expenditures
A96: Year0 Growth-related and Non Growth-related Sustaining Capex ($M) | B96: 0 | Q96: =INDEX(INDIRECT($Q$40&"_Inputs!$b$1:$b$450"), MATCH($A96, INDIRECT($Q$40&"_Inputs!$a$1:$a$450"), 0), 1) -> 0
A97: Escalation Rate for Non Growth-related Capex (%) | C97: 0.026 | R97: =INDEX(INDIRECT($Q$40&"_Inputs!$c$1:$c$450"), MATCH($A97, INDIRECT($Q$40&"_Inputs!$a$1:$a$450"), 0), 1) -> 0.026
A98: % of Ongoing CapEx Cost that Enters GRC at Next Rate Case | B98: 1 | Q98: =INDEX(INDIRECT($Q$40&"_Inputs!$b$1:$b$450"), MATCH($A98, INDIRECT($Q$40&"_Inputs!$a$1:$a$450"), 0), 1) -> 1
A99: % of Ongoing CapEx that is Growth-Related (Remainder is Non-Growth) | B99: 0.5 | Q99: 0.5
A100: Gross Plant in Service ($M) | B100: 1000 | Q100: 1000
A101: Accumulated Depreciation ($M) | B101: 270 | Q101: 270
A102: Depreciation Life (Years) | B102: 40 | Q102: 40
A103: Debt Share of Utility's Capital Structure (%) | B103: 1 | Q103: 1
A104: Embedded Cost of Debt (%) | B104: 0.05 | Q104: 0.05
A105: Return on Equity (ROE) (%) | B105: 0 | Q105: 0
A106: Profit Margin Included in Ratemaking (% of Costs Excl Fuel) | B106: 0 | Q106: 0
A107: Income Tax Rate (%) | B107: 0 | Q107: 0
A108: Payment in Lieu of Taxes Included in RR (% of Utility Net Income) | B108: 0.05 | Q108: 0.05
A109: Minimum Annual Payment in Lieu of Taxes Amount ($M) | B109: 0.5 | Q109: 0.5
A110: Utility Cash Payment of PILOT (Yes/No) | B110: Yes | Q110: Yes
A112: Planned Major Capital Expenditures | E112: Project #1 | F112: Project #2 | G112: Project #3 | H112: Project #4 | I112: Project #5 | J112: Project #6 | K112: Project #7 | L112: Project #8 | M112: Project #9 | N112: Catastrophic Event Capex | T112: Project #1 | U112: Project #2 | V112: Project #3 | W112: Project #4 | X112: Project #5 | Y112: Project #6 | Z112: Project #7 | AA112: Project #8 | AB112: Project #9 | AC112: Catastrophic Event Capex
A113: Planned Capex Description | E113: SolarPV | F113: Other 1 | G113: Other 2 | H113: Other 3 | I113: Other 4 | J113: Other 4 | K113: Other 4 | L113: Other 4 | M113: Other 4 | N113: Catastrophic Loss Capex | T113: =INDEX(INDIRECT($Q$40&"_Inputs!$e$1:$e$450"), MATCH($A113, INDIRECT($Q$40&"_Inputs!$a$1:$a$450"), 0), 1) -> SolarPV | U113: =INDEX(INDIRECT($Q$40&"_Inputs!$f$1:$f$450"), MATCH($A113, INDIRECT($Q$40&"_Inputs!$a$1:$a$450"), 0), 1) -> Other 1 | V113: =INDEX(INDIRECT($Q$40&"_Inputs!$g$1:$g$450"), MATCH($A113, INDIRECT($Q$40&"_Inputs!$a$1:$a$450"), 0), 1) -> Other 2 | W113: =INDEX(INDIRECT($Q$40&"_Inputs!$h$1:$h$450"), MATCH($A113, INDIRECT($Q$40&"_Inputs!$a$1:$a$450"), 0), 1) -> Other 3 | X113: =INDEX(INDIRECT($Q$40&"_Inputs!$i$1:$i$450"), MATCH($A113, INDIRECT($Q$40&"_Inputs!$a$1:$a$450"), 0), 1) -> Other 4 | Y113: =INDEX(INDIRECT($Q$40&"_Inputs!$j$1:$j$450"), MATCH($A113, INDIRECT($Q$40&"_Inputs!$a$1:$a$450"), 0), 1) -> Other 4 | Z113: =INDEX(INDIRECT($Q$40&"_Inputs!$k$1:$k$450"), MATCH($A113, INDIRECT($Q$40&"_Inputs!$a$1:$a$450"), 0), 1) -> Other 4 | AA113: =INDEX(INDIRECT($Q$40&"_Inputs!$l$1:$l$450"), MATCH($A113, INDIRECT($Q$40&"_Inputs!$a$1:$a$450"), 0), 1) -> Other 4 | AB113: =INDEX(INDIRECT($Q$40&"_Inputs!$m$1:$m$450"), MATCH($A113, INDIRECT($Q$40&"_Inputs!$a$1:$a$450"), 0), 1) -> Other 4 | AC113: =INDEX(INDIRECT($Q$40&"_Inputs!$n$1:$n$450"), MATCH($A113, INDIRECT($Q$40&"_Inputs!$a$1:$a$450"), 0), 1) -> Catastrophic Loss Capex
A114: Planned Capex Construction Start Year | E114: 2027 | F114: 0 | G114: 0 | H114: 0 | I114: 0 | J114: 0 | K114: 0 | L114: 0 | M114: 0 | N114: 2023 | T114: 2027 | U114: 0 | V114: 0 | W114: 0 | X114: 0 | Y114: 0 | Z114: =INDEX(INDIRECT($Q$40&"_Inputs!$k$1:$k$450"), MATCH($A114, INDIRECT($Q$40&"_Inputs!$a$1:$a$450"), 0), 1) -> 0 | AA114: 0 | AB114: 0 | AC114: 2023
A115: Planned Capex Construction End Year | E115: 2027 | F115: 0 | G115: 0 | H115: 0 | I115: 0 | J115: 0 | K115: 0 | L115: 0 | M115: 0 | N115: 2023 | T115: 2027 | U115: 0 | V115: 0 | W115: 0 | X115: 0 | Y115: 0 | Z115: 0 | AA115: 0 | AB115: 0 | AC115: 2023
A116: Planned Capex Total Capital Cost ($M) | E116: 35 | F116: 0 | G116: 0 | H116: 0 | I116: 0 | J116: 0 | K116: 0 | L116: 0 | M116: 0 | N116: 496 | T116: 35 | U116: 0 | V116: 0 | W116: 0 | X116: 0 | Y116: 0 | Z116: 0 | AA116: 0 | AB116: 0 | AC116: 496
A117: Planned Capex Investment Deferrable (Yes= Deferrable, No=Not Deferrable) | E117: No | F117: No | G117: No | H117: No | I117: No | J117: No | K117: No | L117: No | M117: No | N117: No | T117: No | U117: No | V117: No | W117: No | X117: No | Y117: No | Z117: No | AA117: No | AB117: No | AC117: No
A118: Planned Capex CAGR for Capital Cost if Delayed (%) | E118: 0.02 | F118: 0 | G118: 0 | H118: 0 | I118: 0 | J118: 0 | K118: 0 | L118: 0 | M118: 0 | N118: 0 | T118: 0.02 | U118: 0 | V118: 0 | W118: 0 | X118: 0 | Y118: 0 | Z118: 0 | AA118: 0 | AB118: 0 | AC118: 0
A119: Planned Capex Share of Capital Cost Financed Via Debt (%) | E119: 1 | F119: 0 | G119: 0 | H119: 0 | I119: 0 | J119: 0 | K119: 0 | L119: 0 | M119: 0 | N119: 1 | T119: 1 | U119: 0 | V119: 0 | W119: 0 | X119: 0 | Y119: 0 | Z119: 0 | AA119: 0 | AB119: 0 | AC119: 1
A120: Planned Capex Debt Interest Cost (%) | E120: 0.0725 | F120: 0 | G120: 0 | H120: 0 | I120: 0 | J120: 0 | K120: 0 | L120: 0 | M120: 0 | N120: 0.0725 | T120: 0.0725 | U120: 0 | V120: 0 | W120: 0 | X120: 0 | Y120: 0 | Z120: 0 | AA120: 0 | AB120: 0 | AC120: 0.0725
A121: Planned Capex Term of Debt (Years) | E121: 20 | F121: 0 | G121: 0 | H121: 0 | I121: 0 | J121: 0 | K121: 0 | L121: 0 | M121: 0 | N121: 25 | T121: 20 | U121: 0 | V121: 0 | W121: 0 | X121: 0 | Y121: 0 | Z121: 0 | AA121: 0 | AB121: 0 | AC121: 25
A122: Planned Capex Depreciation Schedule (Economic life - Years) | E122: 25 | F122: 0 | G122: 0 | H122: 0 | I122: 0 | J122: 0 | K122: 0 | L122: 0 | M122: 0 | N122: 30 | T122: 25 | U122: 0 | V122: 0 | W122: 0 | X122: 0 | Y122: 0 | Z122: 0 | AA122: 0 | AB122: 0 | AC122: 30
A123: Planned Capex Share of Capital-Related Costs Eligible for Collection in Rates (vs Surcharge) (%) | E123: 0.5 | F123: 0 | G123: 0 | H123: 0 | I123: 0 | J123: 0 | K123: 0 | L123: 0 | M123: 0 | N123: 0 | T123: 0.5 | U123: 0 | V123: 0 | W123: 0 | X123: 0 | Y123: 0 | Z123: 0 | AA123: 0 | AB123: 0 | AC123: 0
A124: Planned Capex Annual Non-Fuel O&M Cost ($M in First Operating Year Dollars) | E124: 0 | F124: 0 | G124: 0 | H124: 0 | I124: 0 | J124: 0 | K124: 0 | L124: 0 | M124: 0 | N124: 0 | T124: 0 | U124: 0 | V124: 0 | W124: 0 | X124: 0 | Y124: 0 | Z124: 0 | AA124: 0 | AB124: 0 | AC124: 0
A125: Planned Capex CAGR for Annual Non-Fuel O&M Cost (%) | E125: 0.014 | F125: 0 | G125: 0 | H125: 0 | I125: 0 | J125: 0 | K125: 0 | L125: 0 | M125: 0 | N125: 0 | T125: 0.014 | U125: 0 | V125: 0 | W125: 0 | X125: 0 | Y125: 0 | Z125: 0 | AA125: 0 | AB125: 0 | AC125: 0
A126: Planned Capex Share of Non-Fuel O&M Costs Eligible for Collection (%) | E126: 1 | F126: 0 | G126: 0 | H126: 0 | I126: 0 | J126: 0 | K126: 0 | L126: 0 | M126: 0 | N126: 0 | T126: 1 | U126: 0 | V126: 0 | W126: 0 | X126: 0 | Y126: 0 | Z126: 0 | AA126: 0 | AB126: 0 | AC126: 0
A127: Planned Capex Annual Fuel Cost ($/MWh in First Operating Year Dollars) | E127: 0 | F127: 0 | G127: 0 | H127: 0 | I127: 0 | J127: 0 | K127: 0 | L127: 0 | M127: 0 | N127: 0 | T127: 0 | U127: 0 | V127: 0 | W127: 0 | X127: 0 | Y127: 0 | Z127: 0 | AA127: 0 | AB127: 0 | AC127: 0
A128: Planned Capex CAGR for Annual Fuel Cost (%) | E128: 0 | F128: 0 | G128: 0 | H128: 0 | I128: 0 | J128: 0 | K128: 0 | L128: 0 | M128: 0 | N128: 0 | T128: 0 | U128: 0 | V128: 0 | W128: 0 | X128: 0 | Y128: 0 | Z128: 0 | AA128: 0 | AB128: 0 | AC128: 0
A129: Planned Capex Installed Capacity (MW) | E129: 25 | F129: 0 | G129: 0 | H129: 0 | I129: 0 | J129: 0 | K129: 0 | L129: 0 | M129: 0 | N129: 0 | T129: 25 | U129: 0 | V129: 0 | W129: 0 | X129: 0 | Y129: 0 | Z129: 0 | AA129: 0 | AB129: 0 | AC129: 0
A130: Planned Capex Annual Energy Production (MWh, measured at system) | E130: 43800 | F130: 0 | G130: 0 | H130: 0 | I130: 0 | J130: 0 | K130: 0 | L130: 0 | M130: 0 | N130: 0 | T130: 43800 | U130: 0 | V130: 0 | W130: 0 | X130: 0 | Y130: 0 | Z130: 0 | AA130: 0 | AB130: 0 | AC130: 0
A132: Retirement or Catastrophic Loss of Grid-Scale Generation Assets | E132: Project #1 | F132: Project #2 | G132: Project #3 | H132: Project #4 | I132: Project #5 | J132: Project #6 | K132: Project #7 | L132: Project #8 | M132: Project #9 | N132: Project #10 | T132: Project #1 | U132: Project #2 | V132: Project #3 | W132: Project #4 | X132: Project #5 | Y132: Project #6 | Z132: Project #7 | AA132: Project #8 | AB132: Project #9 | AC132: Project #10
A133: Retirement/Loss Description | E133: Catastrophic Loss | F133: Retire Generator | G133: 0 | H133: 0 | I133: 0 | J133: 0 | K133: 0 | L133: 0 | M133: 0 | N133: 0 | T133: =INDEX(INDIRECT($Q$40&"_Inputs!$e$1:$e$450"), MATCH($A133, INDIRECT($Q$40&"_Inputs!$a$1:$a$450"), 0), 1) -> Catastrophic Loss | U133: =INDEX(INDIRECT($Q$40&"_Inputs!$f$1:$f$450"), MATCH($A133, INDIRECT($Q$40&"_Inputs!$a$1:$a$450"), 0), 1) -> Retire Generator | V133: =INDEX(INDIRECT($Q$40&"_Inputs!$g$1:$g$450"), MATCH($A133, INDIRECT($Q$40&"_Inputs!$a$1:$a$450"), 0), 1) -> 0 | W133: =INDEX(INDIRECT($Q$40&"_Inputs!$h$1:$h$450"), MATCH($A133, INDIRECT($Q$40&"_Inputs!$a$1:$a$450"), 0), 1) -> 0 | X133: =INDEX(INDIRECT($Q$40&"_Inputs!$i$1:$i$450"), MATCH($A133, INDIRECT($Q$40&"_Inputs!$a$1:$a$450"), 0), 1) -> 0 | Y133: =INDEX(INDIRECT($Q$40&"_Inputs!$j$1:$j$450"), MATCH($A133, INDIRECT($Q$40&"_Inputs!$a$1:$a$450"), 0), 1) -> 0 | Z133: =INDEX(INDIRECT($Q$40&"_Inputs!$k$1:$k$450"), MATCH($A133, INDIRECT($Q$40&"_Inputs!$a$1:$a$450"), 0), 1) -> 0 | AA133: =INDEX(INDIRECT($Q$40&"_Inputs!$l$1:$l$450"), MATCH($A133, INDIRECT($Q$40&"_Inputs!$a$1:$a$450"), 0), 1) -> 0 | AB133: =INDEX(INDIRECT($Q$40&"_Inputs!$m$1:$m$450"), MATCH($A133, INDIRECT($Q$40&"_Inputs!$a$1:$a$450"), 0), 1) -> 0 | AC133: =INDEX(INDIRECT($Q$40&"_Inputs!$n$1:$n$450"), MATCH($A133, INDIRECT($Q$40&"_Inputs!$a$1:$a$450"), 0), 1) -> 0
A134: Retirement/Loss Normal Retirement (Yes = normal retirement, No=catastrophic loss of asset) | E134: No | F134: Yes | G134: Yes | H134: Yes | I134: Yes | J134: Yes | K134: Yes | L134: Yes | M134: Yes | N134: Yes | T134: No | U134: Yes | V134: Yes | W134: Yes | X134: Yes | Y134: Yes | Z134: =INDEX(INDIRECT($Q$40&"_Inputs!$k$1:$k$450"), MATCH($A134, INDIRECT($Q$40&"_Inputs!$a$1:$a$450"), 0), 1) -> Yes | AA134: Yes | AB134: Yes | AC134: Yes
A135: Retirement/Loss Decommissioning Start Year | E135: 0 | F135: 2040 | G135: 0 | H135: 0 | I135: 0 | J135: 0 | K135: 0 | L135: 0 | M135: 0 | N135: 0 | T135: 0 | U135: 2040 | V135: 0 | W135: 0 | X135: 0 | Y135: 0 | Z135: 0 | AA135: 0 | AB135: 0 | AC135: 0
A136: Retirement/Loss Decommissioning End Year | E136: 0 | F136: 2040 | G136: 0 | H136: 0 | I136: 0 | J136: 0 | K136: 0 | L136: 0 | M136: 0 | N136: 0 | T136: 0 | U136: 2040 | V136: 0 | W136: 0 | X136: 0 | Y136: 0 | Z136: 0 | AA136: 0 | AB136: 0 | AC136: 0
A137: Retirement/Loss Decommissioning/Cleanup Cost ($M) | E137: 0 | F137: 15 | G137: 0 | H137: 0 | I137: 0 | J137: 0 | K137: 0 | L137: 0 | M137: 0 | N137: 0 | T137: 0 | U137: 15 | V137: 0 | W137: 0 | X137: 0 | Y137: 0 | Z137: 0 | AA137: 0 | AB137: 0 | AC137: 0
A138: Retirement/Loss Salvage Revenues ($M) | E138: 0 | F138: 20 | G138: 0 | H138: 0 | I138: 0 | J138: 0 | K138: 0 | L138: 0 | M138: 0 | N138: 0 | T138: 0 | U138: 20 | V138: 0 | W138: 0 | X138: 0 | Y138: 0 | Z138: 0 | AA138: 0 | AB138: 0 | AC138: 0
A139: Retirement/Loss Undepreciated Asset Value ($M) | E139: 0 | F139: 11 | G139: 0 | H139: 0 | I139: 0 | J139: 0 | K139: 0 | L139: 0 | M139: 0 | N139: 0 | T139: 0 | U139: 11 | V139: 0 | W139: 0 | X139: 0 | Y139: 0 | Z139: 0 | AA139: 0 | AB139: 0 | AC139: 0
A140: Retirement/Loss Undepreciated Asset Value as of Catastrophic Loss Start Year ($M) | E140: 0 | F140: 0 | G140: 0 | H140: 0 | I140: 0 | J140: 0 | K140: 0 | L140: 0 | M140: 0 | N140: 0 | T140: 0 | U140: 0 | V140: 0 | W140: 0 | X140: 0 | Y140: 0 | Z140: 0 | AA140: 0 | AB140: 0 | AC140: 0
A141: Whether Utility Collects Undepreciated Asset Value (Yes/No) | E141: No | F141: Yes | G141: Yes | H141: Yes | I141: Yes | J141: Yes | K141: Yes | L141: Yes | M141: Yes | N141: Yes | T141: No | U141: Yes | V141: Yes | W141: Yes | X141: Yes | Y141: Yes | Z141: Yes | AA141: Yes | AB141: Yes | AC141: Yes
A142: Retirement/Loss Avoided Annual Fuel Cost (Base Year $MWh) | E142: 0 | F142: 180 | G142: 0 | H142: 0 | I142: 0 | J142: 0 | K142: 0 | L142: 0 | M142: 0 | N142: 0 | T142: 0 | U142: 180 | V142: 0 | W142: 0 | X142: 0 | Y142: 0 | Z142: 0 | AA142: 0 | AB142: 0 | AC142: 0
A143: Retirement/Loss CAGR for Annual Fuel Cost (%) | E143: 0 | F143: 0.07 | G143: 0 | H143: 0 | I143: 0 | J143: 0 | K143: 0 | L143: 0 | M143: 0 | N143: 0 | T143: 0 | U143: 0.07 | V143: 0 | W143: 0 | X143: 0 | Y143: 0 | Z143: 0 | AA143: 0 | AB143: 0 | AC143: 0
A144: Retirement/Loss Avoided Annual Energy Production at System (MWh) | E144: 0 | F144: 175200 | G144: 0 | H144: 0 | I144: 0 | J144: 0 | K144: 0 | L144: 0 | M144: 0 | N144: 0 | T144: 0 | U144: 175200 | V144: 0 | W144: 0 | X144: 0 | Y144: 0 | Z144: 0 | AA144: 0 | AB144: 0 | AC144: 0
A145: Retirement/Loss Avoided Annual Non-Fuel O&M Costs (excluding PILOT) (Base Year $M) | E145: 0 | F145: 2.015 | G145: 0 | H145: 0 | I145: 0 | J145: 0 | K145: 0 | L145: 0 | M145: 0 | N145: 0 | T145: 0 | U145: 2.015 | V145: 0 | W145: 0 | X145: 0 | Y145: 0 | Z145: 0 | AA145: 0 | AB145: 0 | AC145: 0
A146: Retirement/Loss CAGR for Annual Non-Fuel O&M Cost (%) | E146: 0 | F146: 0.026 | G146: 0 | H146: 0 | I146: 0 | J146: 0 | K146: 0 | L146: 0 | M146: 0 | N146: 0 | T146: 0 | U146: 0.026 | V146: 0 | W146: 0 | X146: 0 | Y146: 0 | Z146: 0 | AA146: 0 | AB146: 0 | AC146: 0
A147: Retirement/Loss Installed Capacity (MW) - (Set to zero if asset is not a generator) | E147: 0 | F147: 50 | G147: 0 | H147: 0 | I147: 0 | J147: 0 | K147: 0 | L147: 0 | M147: 0 | N147: 0 | T147: 0 | U147: 50 | V147: 0 | W147: 0 | X147: 0 | Y147: 0 | Z147: 0 | AA147: 0 | AB147: 0 | AC147: 0
A149: Utility Ratemaking
B150: Value | C150: CAGR | Q150: Value | R150: CAGR
A151: Schedule of GRCs
A152: GRC in Year 0 | B152: Yes | Q152: =INDEX(INDIRECT($Q$40&"_Inputs!$b$1:$b$450"), MATCH($A152, INDIRECT($Q$40&"_Inputs!$a$1:$a$450"), 0), 1) -> Yes
A153: GRC in Year 1 | B153: No | Q153: No
A154: GRC in Year 2 | B154: No | Q154: No
A155: GRC in Year 3 | B155: No | Q155: No
A156: GRC in Year 4 | B156: No | Q156: No
A157: GRC in Year 5 | B157: Yes | Q157: Yes
A158: GRC in Year 6 | B158: No | Q158: No
A159: GRC in Year 7 | B159: No | Q159: No
A160: GRC in Year 8 | B160: No | Q160: No
A161: GRC in Year 9 | B161: No | Q161: No
A162: GRC in Year 10 | B162: Yes | Q162: Yes
A163: Regulatory Lag for Implementation of Rates Set in GRC (Years) | B163: 0.5 | Q163: 0.5
A164: Incremental GRC Costs ($M) - incurred in rate case year | B164: 0.275 | Q164: 0.275
A165: Escalation Rate for GRC Costs (%) | B165: 0.02 | Q165: 0.02
A166: GRC Study Costs Paid by External Grant Funding (Yes/No) | B166: Yes | Q166: Yes
A167: Rate Case During Catastrophic Event
A168: Rate Case During Catastrophic Event (Yes/No) | B168: Yes | Q168: =INDEX(INDIRECT($Q$40&"_Inputs!$b$1:$b$450"), MATCH($A168, INDIRECT($Q$40&"_Inputs!$a$1:$a$450"), 0), 1) -> Yes
A170: Fuel and Purchased Power Rate Structure
A171: FPP Cost Allocation Method (MWh, MW-CP, MW-NCP, Customers) | B171: MWh | Q171: =INDEX(INDIRECT($Q$40&"_Inputs!$b$1:$b$450"), MATCH($A171, INDIRECT($Q$40&"_Inputs!$a$1:$a$450"), 0), 1) -> MWh
A172: FPP Rate Design Method (kWh, kW-mo, Customer-mo)
A173: FPP Rate Structure Class 1 | B173: kWh | Q173: =INDEX(INDIRECT($Q$40&"_Inputs!$b$1:$b$450"), MATCH($A173, INDIRECT($Q$40&"_Inputs!$a$1:$a$450"), 0), 1) -> kWh
A174: FPP Rate Structure Class 2 | B174: kWh | Q174: =INDEX(INDIRECT($Q$40&"_Inputs!$b$1:$b$450"), MATCH($A174, INDIRECT($Q$40&"_Inputs!$a$1:$a$450"), 0), 1) -> kWh
A175: FPP Rate Structure Class 3 | B175: kWh | Q175: =INDEX(INDIRECT($Q$40&"_Inputs!$b$1:$b$450"), MATCH($A175, INDIRECT($Q$40&"_Inputs!$a$1:$a$450"), 0), 1) -> kWh
A176: FPP Rate Structure Class 4 | B176: kWh | Q176: =INDEX(INDIRECT($Q$40&"_Inputs!$b$1:$b$450"), MATCH($A176, INDIRECT($Q$40&"_Inputs!$a$1:$a$450"), 0), 1) -> kWh
A178: Non-Fuel O&M Costs
A179: Nonfuel O&M Cost Allocation Method (MWh, MW-CP, MW-NCP, Customer) | B179: MW-NCP | Q179: =INDEX(INDIRECT($Q$40&"_Inputs!$b$1:$b$450"), MATCH($A179, INDIRECT($Q$40&"_Inputs!$a$1:$a$450"), 0), 1) -> MW-NCP
A180: Nonfuel O&M Rate Design Method (kWh, kW-mo, Customer-mo)
A181: Nonfuel O&M Rate Structure Class 1 | B181: kWh | Q181: =INDEX(INDIRECT($Q$40&"_Inputs!$b$1:$b$450"), MATCH($A181, INDIRECT($Q$40&"_Inputs!$a$1:$a$450"), 0), 1) -> kWh
A182: Nonfuel O&M Rate Structure Class 2 | B182: kWh | Q182: =INDEX(INDIRECT($Q$40&"_Inputs!$b$1:$b$450"), MATCH($A182, INDIRECT($Q$40&"_Inputs!$a$1:$a$450"), 0), 1) -> kWh
A183: Nonfuel O&M Rate Structure Class 3 | B183: kWh | Q183: =INDEX(INDIRECT($Q$40&"_Inputs!$b$1:$b$450"), MATCH($A183, INDIRECT($Q$40&"_Inputs!$a$1:$a$450"), 0), 1) -> kWh
A184: Nonfuel O&M Rate Structure Class 4 | B184: kWh | Q184: =INDEX(INDIRECT($Q$40&"_Inputs!$b$1:$b$450"), MATCH($A184, INDIRECT($Q$40&"_Inputs!$a$1:$a$450"), 0), 1) -> kWh
A186: Capital-related Costs (Depreciation, Return, Income Tax)
A187: Capital-related Cost Allocation Method (MWh, MW-CP, MW-NCP, Customer) | B187: MW-CP | Q187: =INDEX(INDIRECT($Q$40&"_Inputs!$b$1:$b$450"), MATCH($A187, INDIRECT($Q$40&"_Inputs!$a$1:$a$450"), 0), 1) -> MW-CP
A188: Capital-related Rate Design Method (kWh, kW-mo, Customer-mo)
A189: Capital-related Rate Structure Class 1 | B189: kWh | Q189: =INDEX(INDIRECT($Q$40&"_Inputs!$b$1:$b$450"), MATCH($A189, INDIRECT($Q$40&"_Inputs!$a$1:$a$450"), 0), 1) -> kWh
A190: Capital-related Rate Structure Class 2 | B190: kWh | Q190: =INDEX(INDIRECT($Q$40&"_Inputs!$b$1:$b$450"), MATCH($A190, INDIRECT($Q$40&"_Inputs!$a$1:$a$450"), 0), 1) -> kWh
A191: Capital-related Rate Structure Class 3 | B191: kWh | Q191: =INDEX(INDIRECT($Q$40&"_Inputs!$b$1:$b$450"), MATCH($A191, INDIRECT($Q$40&"_Inputs!$a$1:$a$450"), 0), 1) -> kWh
A192: Capital-related Rate Structure Class 4 | B192: kWh | Q192: =INDEX(INDIRECT($Q$40&"_Inputs!$b$1:$b$450"), MATCH($A192, INDIRECT($Q$40&"_Inputs!$a$1:$a$450"), 0), 1) -> kWh
A194: Utility Surcharges or Balancing Accounts
B195: Value | Q195: Value
A196: Non-fuel Working Capital Surcharge
A197: Non-fuel Working Capital Surcharge (Yes/No) | B197: No | Q197: =INDEX(INDIRECT($Q$40&"_Inputs!$b$1:$b$450"), MATCH($A197, INDIRECT($Q$40&"_Inputs!$a$1:$a$450"), 0), 1) -> No
A198: Nonfuel WC Surcharge Lag for Reconciliation (Fractional Years) | B198: 0.5 | Q198: =INDEX(INDIRECT($Q$40&"_Inputs!$b$1:$b$450"), MATCH($A198, INDIRECT($Q$40&"_Inputs!$a$1:$a$450"), 0), 1) -> 0.5
A199: Nonfuel WC Lag Between Cost Incurred and Revenue Collected (Number of Days) | B199: 90 | Q199: =INDEX(INDIRECT($Q$40&"_Inputs!$b$1:$b$450"), MATCH($A199, INDIRECT($Q$40&"_Inputs!$a$1:$a$450"), 0), 1) -> 90
A200: Interest Rate for Working Capital (%) | B200: 0.06 | Q200: =INDEX(INDIRECT($Q$40&"_Inputs!$b$1:$b$450"), MATCH($A200, INDIRECT($Q$40&"_Inputs!$a$1:$a$450"), 0), 1) -> 0.06
A201: Nonfuel WC Share of Target that Enters Surcharge Annually (%) | B201: 1 | Q201: =INDEX(INDIRECT($Q$40&"_Inputs!$b$1:$b$450"), MATCH($A201, INDIRECT($Q$40&"_Inputs!$a$1:$a$450"), 0), 1) -> 1
A202: Planned Expenditure Surcharge
A203: Planned Expenditure Surcharge (Yes/No) | B203: No | Q203: =INDEX(INDIRECT($Q$40&"_Inputs!$b$1:$b$450"), MATCH($A203, INDIRECT($Q$40&"_Inputs!$a$1:$a$450"), 0), 1) -> No
A204: Planned Expenditure Surcharge Lag for Reconciliation (Fractional Years) | B204: 0.5 | Q204: =INDEX(INDIRECT($Q$40&"_Inputs!$b$1:$b$450"), MATCH($A204, INDIRECT($Q$40&"_Inputs!$a$1:$a$450"), 0), 1) -> 0.5
A205: Decoupling Mechanism
A206: Decoupling Surcharge Active (Yes/No) | B206: No | Q206: =INDEX(INDIRECT($Q$40&"_Inputs!$b$1:$b$450"), MATCH($A206, INDIRECT($Q$40&"_Inputs!$a$1:$a$450"), 0), 1) -> No
A207: Decoupling Share of Eligible Non-Fuel Costs Collected in Surcharge (%) | B207: 1 | Q207: =INDEX(INDIRECT($Q$40&"_Inputs!$b$1:$b$450"), MATCH($A207, INDIRECT($Q$40&"_Inputs!$a$1:$a$450"), 0), 1) -> 1
A208: Revenue-Per-Customer Design (Yes/No) | B208: Yes | Q208: =INDEX(INDIRECT($Q$40&"_Inputs!$b$1:$b$450"), MATCH($A208, INDIRECT($Q$40&"_Inputs!$a$1:$a$450"), 0), 1) -> Yes
A209: Inflation Net-of-Productivity Adjustment (Z-Factor) | B209: 0.02 | Q209: =INDEX(INDIRECT($Q$40&"_Inputs!$b$1:$b$450"), MATCH($A209, INDIRECT($Q$40&"_Inputs!$a$1:$a$450"), 0), 1) -> 0.02
A210: Decoupling Mechanism During Catastrophic Event
A211: Decoupling Mechanism Collected During Catastrophic Event (Yes/No) | B211: No | Q211: =INDEX(INDIRECT($Q$40&"_Inputs!$b$1:$b$450"), MATCH($A211, INDIRECT($Q$40&"_Inputs!$a$1:$a$450"), 0), 1) -> No
A212: If "No" is Selected Above, Number of Years of Suspension | B212: 3 | Q212: =INDEX(INDIRECT($Q$40&"_Inputs!$b$1:$b$450"), MATCH($A212, INDIRECT($Q$40&"_Inputs!$a$1:$a$450"), 0), 1) -> 3
A213: Utility Allowed to Collect Suspended Collection Amounts (Yes/No) | B213: No | Q213: =INDEX(INDIRECT($Q$40&"_Inputs!$b$1:$b$450"), MATCH($A213, INDIRECT($Q$40&"_Inputs!$a$1:$a$450"), 0), 1) -> No
A214: Share of Suspended Amounts Eligible for Collection (%) | B214: 0.75 | Q214: =INDEX(INDIRECT($Q$40&"_Inputs!$b$1:$b$450"), MATCH($A214, INDIRECT($Q$40&"_Inputs!$a$1:$a$450"), 0), 1) -> 0.75
A215: Amortization Period for Suspended Collection Amounts (years) | B215: 4 | Q215: =INDEX(INDIRECT($Q$40&"_Inputs!$b$1:$b$450"), MATCH($A215, INDIRECT($Q$40&"_Inputs!$a$1:$a$450"), 0), 1) -> 4
A217: Customer Technology & Utility Programs
B218: Value | C218: CAGR | Q218: Value | R218: CAGR
A219: Energy Efficiency
A220: Energy Efficiency Penetration (Yes/No) | B220: No | Q220: =INDEX(INDIRECT($Q$40&"_Inputs!$b$1:$b$450"), MATCH($A220, INDIRECT($Q$40&"_Inputs!$a$1:$a$450"), 0), 1) -> No
A221: EE Program Administrator (Utility, Third Party) | B221: Utility | Q221: Utility
A222: EE Incremental Annual Savings Goals (% of Forecasted MWh Usage) | B222: 0.01 | Q222: 0.01
A223: EE Achievement of Savings Goals | B223: 1 | Q223: 1
A224: EE Class 1 Share | B224: 0.2 | Q224: 0.2
A225: EE Class 2 Share | B225: 0.1 | Q225: 0.1
A226: EE Class 3 Share | B226: 0.5 | Q226: 0.5
A227: EE Class 4 Share | B227: 0.2 | Q227: 0.2
... 189 more rows

Sheet User_OutputDashboard
A1: Base Case Scenario Selection | D1: Base Case No DER | H1: Comparison Case Scenario Selection | I1: 100% full retail export rate incl surcharges | L1: Discount Rate for Present Value Calculations (%) | P1: 0.05
A2: Base Case Dashboard
A50: Comparison Case Dashboard
D80: =D82-D83-D84-D85-D87+D86 -> 625223.968
B81: Billing Determinants - Electricity (MWh, Average Annual) | C81: Base Case | D81: Comparison Case | E81: % Change | H81: =CONCATENATE("Incurred Revenue Requirement ($M, PV @ ", User_OutputDashboard!$P$1*100, "%)") -> Incurred Revenue Requirement ($M, PV @ 5%) | I81: Base Case | J81: Comparison Case | K81: % Change | N81: =CONCATENATE("Collected Revenue ($M, PV @ ", User_OutputDashboard!$P$1*100, "%)") -> Collected Revenue ($M, PV @ 5%) | O81: Base Case | P81: Comparison Case | Q81: % Change
B82: Forecasted Billing Determinants - Electricity | C82: =AVERAGE(OutputDashboard_GraphData!O4:X4) -> 646191.549 | D82: =AVERAGE(OutputDashboard_GraphData!AC4:AL4) -> 646191.549 | E82: =IF(C82=0,"N/A",(D82-C82)/C82) -> 0 | H82: =CONCATENATE(TRIM(OutputDashboard_GraphData!A40)) -> Fuel & Purchased Power | I82: =NPV(User_OutputDashboard!$P$1, OutputDashboard_GraphData!O40:X40) -> 990.9294559 | J82: =NPV(User_OutputDashboard!$P$1, OutputDashboard_GraphData!AC40:AL40) -> 1065.323558 | K82: =IF(OR(I82=0,I82="N/A"),"N/A", (J82-I82)/I82) -> 0.07507507381 | N82: =OutputDashboard_GraphData!A54 -> Fuel Rate Revenue | O82: =NPV(User_OutputDashboard!$P$1, OutputDashboard_GraphData!O54:X54) -> 901.8220916 | P82: =NPV(User_OutputDashboard!$P$1, OutputDashboard_GraphData!AC54:AL54) -> 985.7233364 | Q82: =IF(OR(O82=0,O82="N/A"),"N/A", (P82-O82)/O82) -> 0.09303525115
B83: Energy Efficiency Savings | C83: =-AVERAGE(OutputDashboard_GraphData!O5:X5) -> 0 | D83: =-AVERAGE(OutputDashboard_GraphData!AC5:AL5) -> 9347.661555 | E83: N/A | H83: =CONCATENATE(TRIM(OutputDashboard_GraphData!A41)) -> Non-fuel O&M | I83: =NPV(User_OutputDashboard!$P$1, OutputDashboard_GraphData!O41:X41) + NPV(User_OutputDashboard!$P$1, OutputDashboard_GraphData!O42:X42) -> 706.0194988 | J83: =NPV(User_OutputDashboard!$P$1, OutputDashboard_GraphData!AC41:AL41)+NPV(User_OutputDashboard!$P$1, OutputDashboard_GraphData!AC42:AL42) -> 697.4498128 | K83: -0.01213803023 | N83: =OutputDashboard_GraphData!A55 -> Non-fuel Rate Revenue | O83: =NPV(User_OutputDashboard!$P$1, OutputDashboard_GraphData!O55:X55) -> 1142.079155 | P83: =NPV(User_OutputDashboard!$P$1, OutputDashboard_GraphData!AC55:AL55) -> 1127.446622 | Q83: =IF(OR(O83=0,O83="N/A"),"N/A", (P83-O83)/O83) -> -0.01281218759
B84: Distributed PV On-Site Consumption | C84: =-AVERAGE(OutputDashboard_GraphData!O6:X6) -> 0 | D84: =-AVERAGE(OutputDashboard_GraphData!AC6:AL6) -> 0 | E84: N/A | H84: =CONCATENATE(TRIM(OutputDashboard_GraphData!A42)) -> PILOT | I84: =NPV(User_OutputDashboard!$P$1, OutputDashboard_GraphData!O43:X43) -> 3.860867465 | J84: =NPV(User_OutputDashboard!$P$1, OutputDashboard_GraphData!AC43:AL43) -> 4.715003845 | K84: 0.2212291378 | N84: =OutputDashboard_GraphData!A56 -> Utility Surcharge Revenue | O84: =NPV(User_OutputDashboard!$P$1, OutputDashboard_GraphData!O56:X56) -> 90.29690872 | P84: =NPV(User_OutputDashboard!$P$1, OutputDashboard_GraphData!AC56:AL56) -> 117.4814179 | Q84: =IF(OR(O84=0,O84="N/A"),"N/A", (P84-O84)/O84) -> 0.3010569194
B85: Load Departure / Grid Defection | C85: =-AVERAGE(OutputDashboard_GraphData!O7:X7) -> 0 | D85: =-AVERAGE(OutputDashboard_GraphData!AC7:AL7) -> 15246.13601 | E85: N/A | H85: =CONCATENATE(TRIM(OutputDashboard_GraphData!A43)) -> Depreciation & Debt Interest | I85: =NPV(User_OutputDashboard!$P$1, OutputDashboard_GraphData!O44:X44) -> 433.0999035 | J85: =NPV(User_OutputDashboard!$P$1, OutputDashboard_GraphData!AC44:AL44) -> 437.1685629 | K85: 0.009394274491 | N85: =OutputDashboard_GraphData!A57 -> Total Utility Revenue | O85: =NPV(User_OutputDashboard!$P$1, OutputDashboard_GraphData!O57:X57) -> 2134.198155 | P85: =NPV(User_OutputDashboard!$P$1, OutputDashboard_GraphData!AC57:AL57) -> 2230.651377 | Q85: =IF(OR(O85=0,O85="N/A"),"N/A", (P85-O85)/O85) -> 0.04519412659
B86: Electric Vehicle Charging Load | C86: =AVERAGE(OutputDashboard_GraphData!O8:X8) -> 0 | D86: =AVERAGE(OutputDashboard_GraphData!AC8:AL8) -> 3626.216566 | E86: N/A | H86: =CONCATENATE(TRIM(OutputDashboard_GraphData!A44)) -> Return & Income Tax | I86: =NPV(User_OutputDashboard!$P$1, OutputDashboard_GraphData!O45:X45) -> 0 | J86: =NPV(User_OutputDashboard!$P$1, OutputDashboard_GraphData!AC45:AL45) -> 0 | K86: N/A
B87: Catastrophic Event Load Reduction | C87: =AVERAGE(OutputDashboard_GraphData!O11:X11) -> 0 | D87: =AVERAGE(OutputDashboard_GraphData!AC11:AL11) -> 0 | E87: N/A | H87: =CONCATENATE(TRIM(OutputDashboard_GraphData!A45)) -> Total Revenue Requirement | I87: =NPV(User_OutputDashboard!$P$1, OutputDashboard_GraphData!O46:X46) -> 2133.909726 | J87: =NPV(User_OutputDashboard!$P$1, OutputDashboard_GraphData!AC46:AL46) -> 2204.656937 | K87: 0.0331537979 | N87: Collected Revenue Per Unit of Retail Sales (Average $/kWh) | O87: Base Case | P87: Comparison Case | Q87: % Change
B88: Actual Billing Determinants - Electricity | C88: =AVERAGE(OutputDashboard_GraphData!O10:X10) -> 646191.549 | D88: =AVERAGE(OutputDashboard_GraphData!AC10:AL10) -> 625223.968 | E88: -0.03244793441
N89: =OutputDashboard_GraphData!BC68 -> Fuel Rate | O89: =AVERAGE(OutputDashboard_GraphData!O68:X68) -> 0.1834656631 | P89: =AVERAGE(OutputDashboard_GraphData!AC68:AL68) -> 0.2093130218 | Q89: =IF(OR(O89=0,O89="N/A"),"N/A", (P89-O89)/O89) -> 0.1408839033
B90: Coincident System Peak Demand (MW, Average Annual) | C90: Base Case | D90: Comparison Case | E90: % Change | H90: Financial Health | I90: Base Case | J90: Comparison Case | K90: % Change | N90: =OutputDashboard_GraphData!BC69 -> Non-fuel Rate | O90: =AVERAGE(OutputDashboard_GraphData!O69:X69) -> 0.2297941873 | P90: =AVERAGE(OutputDashboard_GraphData!AC69:AL69) -> 0.2343421211 | Q90: =IF(OR(O90=0,O90="N/A"),"N/A", (P90-O90)/O90) -> 0.0197913355
N91: =OutputDashboard_GraphData!BC70 -> Utility Surcharge | O91: =AVERAGE(OutputDashboard_GraphData!O70:X70) -> 0.01824668025 | P91: =AVERAGE(OutputDashboard_GraphData!AC70:AL70) -> 0.02496786661 | Q91: =IF(OR(O91=0,O91="N/A"),"N/A", (P91-O91)/O91) -> 0.3683511893
B92: Forecasted Coincident System Peak Demand | C92: =AVERAGE(OutputDashboard_GraphData!O15:X15) -> 173.4797712 | D92: =AVERAGE(OutputDashboard_GraphData!AC15:AL15) -> 173.4797712 | E92: =IF(C92=0,"N/A",(D92-C92)/C92) -> 0 | H92: Profit Margin or After-tax Equity Return ($M, PV @ 5%) | I92: =NPV(User_OutputDashboard!$P$1, OutputDashboard_GraphData!O82:X82) -> 0.2884293485 | J92: =NPV(User_OutputDashboard!$P$1, OutputDashboard_GraphData!AC82:AL82) -> 25.99443915 | K92: =IF(OR(I92=0,I92="N/A"),"N/A", (J92-I92)/ABS(I92)) -> 89.12411282 | N92: Total Utility Rate | O92: =AVERAGE(OutputDashboard_GraphData!O71:X71) -> 0.4315065306 | P92: =AVERAGE(OutputDashboard_GraphData!AC71:AL71) -> 0.4686230096 | Q92: =IF(OR(O92=0,O92="N/A"),"N/A", (P92-O92)/O92) -> 0.08601603066
B93: =B83 -> Energy Efficiency Savings | C93: =AVERAGE(OutputDashboard_GraphData!O16:X16) -> 0 | D93: =AVERAGE(OutputDashboard_GraphData!AC16:AL16) -> -12.54923564 | E93: N/A | H93: After-tax ROE (%, Average Annual) | I93: =IF(AVERAGE(OutputDashboard_GraphData!O83:X83)=0, "n/a", VERAGE(OutputDashboard_GraphData!O83:X83)) -> n/a | J93: =IF(AVERAGE(OutputDashboard_GraphData!AC83:AL83)=0, "n/a", 0) -> n/a | K93: =IF(OR(I93=0,I93="n/a"),"n/a", (J93-I93)/I93) -> n/a
B94: Demand Response Savings | C94: =AVERAGE(OutputDashboard_GraphData!O23:X23) -> 0 | D94: =AVERAGE(OutputDashboard_GraphData!AC23:AL23) -> -1.215979705 | E94: =IF(C94=0,"N/A",(D94-C94)/C94) -> N/A | H94: Days Liquidity (Days, Average Annual) | I94: =AVERAGE(OutputDashboard_GraphData!O84:X84) -> 40.86549776 | J94: =AVERAGE(OutputDashboard_GraphData!AC84:AL84) -> 94.03796423 | K94: =IF(OR(I94=0,I94="N/A"),"N/A", (J94-I94)/ABS(I94)) -> 1.30115793 | N94: Collected Monthly Revenue Per Customer (Average $/Customer) | O94: Base Case | P94: Comparison Case | Q94: % Change
B95: =B84 -> Distributed PV On-Site Consumption | C95: =AVERAGE(OutputDashboard_GraphData!O17:X17) -> 0 | D95: =AVERAGE(OutputDashboard_GraphData!AC17:AL17) -> 0 | E95: =IF(C95=0,"N/A",(D95-C95)/C95) -> N/A | H95: Debt Service Coverage Ratio (Average Annual) | I95: =AVERAGE(OutputDashboard_GraphData!O85:X85) -> 1.047607216 | J95: =AVERAGE(OutputDashboard_GraphData!AC85:AL85) -> 1.094559016 | K95: =IF(OR(I95=0,I95="N/A"),"N/A", (J95-I95)/ABS(I95)) -> 0.04481813319
B96: =B85 -> Load Departure / Grid Defection | C96: =AVERAGE(OutputDashboard_GraphData!O18:X18) -> 0 | D96: =AVERAGE(OutputDashboard_GraphData!AC18:AL18) -> -5.46078572 | E96: =IF(C96=0,"N/A",(D96-C96)/C96) -> N/A | H96: Cash Position ($M, Average Annual) | I96: =AVERAGE(OutputDashboard_GraphData!O86:X86) -> 25.55047106 | J96: =AVERAGE(OutputDashboard_GraphData!AC86:AL86) -> 59.61043627 | K96: =IF(OR(I96=0,I96="N/A"),"N/A", (J96-I96)/ABS(I96)) -> 1.333046468 | N96: =OutputDashboard_GraphData!A100 -> Class 1 | O96: =AVERAGE(OutputDashboard_GraphData!O100:X100) -> 181.3284207 | P96: =AVERAGE(OutputDashboard_GraphData!AC100:AL100) -> 168.7556649 | Q96: =IF(OR(O96=0,O96="N/A"),"N/A", (P96-O96)/O96) -> -0.06933692847
B97: =B86 -> Electric Vehicle Charging Load | C97: =AVERAGE(OutputDashboard_GraphData!O19:X19) -> 0 | D97: =AVERAGE(OutputDashboard_GraphData!AC19:AL19) -> 21.00468422 | E97: =IF(C97=0,"N/A",(D97-C97)/C97) -> N/A | H97: Debt Ratio (Average Annual) | I97: =AVERAGE(OutputDashboard_GraphData!O87:X87) -> 0.9720312548 | J97: =AVERAGE(OutputDashboard_GraphData!AC87:AL87) -> 0.9674742475 | K97: =IF(OR(I97=0,I97="N/A"),"N/A", (J97-I97)/I97) -> -0.004688128397 | N97: =OutputDashboard_GraphData!A101 -> Class 2 | O97: =AVERAGE(OutputDashboard_GraphData!O101:X101) -> 528.7302375 | P97: =AVERAGE(OutputDashboard_GraphData!AC101:AL101) -> 500.1454318 | Q97: =IF(OR(O97=0,O97="N/A"),"N/A", (P97-O97)/O97) -> -0.05406311889
B98: =B87 -> Catastrophic Event Load Reduction | C98: =AVERAGE(OutputDashboard_GraphData!O22:X22) -> 0 | D98: =AVERAGE(OutputDashboard_GraphData!AC22:AL22) -> 0 | E98: =IF(C98=0,"N/A",(D98-C98)/C98) -> N/A | N98: =OutputDashboard_GraphData!A102 -> Class 3 | O98: =AVERAGE(OutputDashboard_GraphData!O102:X102) -> 7823.164229 | P98: =AVERAGE(OutputDashboard_GraphData!AC102:AL102) -> 7825.803725 | Q98: =IF(OR(O98=0,O98="N/A"),"N/A", (P98-O98)/O98) -> 0.0003373949722
B99: Actual Coincident System Peak Demand | C99: =AVERAGE(OutputDashboard_GraphData!O21:X21) -> 173.4797712 | D99: =AVERAGE(OutputDashboard_GraphData!AC21:AL21) -> 175.2584544 | E99: =IF(C99=0,"N/A",(D99-C99)/C99) -> 0.01025297155 | N99: =OutputDashboard_GraphData!A103 -> Class 4 | O99: =AVERAGE(OutputDashboard_GraphData!O103:X103) -> 59774.41619 | P99: =AVERAGE(OutputDashboard_GraphData!AC103:AL103) -> 69196.63937 | Q99: =IF(OR(O99=0,O99="N/A"),"N/A", (P99-O99)/O99) -> 0.1576296982

Sheet OutputDashboard_GraphData (hidden)
A1: Chart Data | N1: Base Case Data | O1: =CONCATENATE("Scenario", MATCH(User_OutputDashboard!D1, Model_InputList!B49:K49, 0)) -> Scenario1 | AC1: Comparison Case Data | AD1: =CONCATENATE("Scenario", MATCH(User_OutputDashboard!I1, Model_InputList!B49:K49, 0)) -> Scenario6 | BC1: Base Case Data for Graphing (MWh) | CX1: Waterfall Chart Data
A2: % Change in Sales Forecast
B3: =User_InputDashboard!$B$41+1 -> 2021 | C3: =B3+1 -> 2022 | D3: =C3+1 -> 2023 | E3: 2024 | F3: 2025 | G3: 2026 | H3: 2027 | I3: 2028 | J3: 2029 | K3: 2030 | L3: Average/PV | N3: Billing Determinants - Electricity (Forecast & Adjustments) | O3: =User_InputDashboard!$B$41+1 -> 2021 | P3: =O3+1 -> 2022 | Q3: =P3+1 -> 2023 | R3: 2024 | S3: 2025 | T3: 2026 | U3: 2027 | V3: 2028 | W3: 2029 | X3: 2030 | Y3: Average/PV | Z3: CAGR | AC3: =User_InputDashboard!$B$41+1 -> 2021 | AD3: =AC3+1 -> 2022 | AE3: =AD3+1 -> 2023 | AF3: 2024 | AG3: 2025 | AH3: 2026 | AI3: 2027 | AJ3: 2028 | AK3: 2029 | AL3: 2030 | AM3: Average/PV | AN3: CAGR | BD3: =User_InputDashboard!$B$41+1 -> 2021 | BE3: =BD3+1 -> 2022 | BF3: =BE3+1 -> 2023 | BG3: 2024 | BH3: 2025 | BI3: 2026 | BJ3: 2027 | BK3: 2028 | BL3: 2029 | BM3: 2030
A4: =M4 -> Load | B4: =IF(O4<>0,(AC4-O4)/O$10,0) -> 0 | C4: 0 | D4: 0 | E4: 0 | F4: 0 | G4: 0 | H4: 0 | I4: 0 | J4: 0 | K4: 0 | L4: 0 | M4: Load | N4: Forecasted Usage (MWh) - Prior to DER and Event and LDGD | O4: =SUMIF(INDIRECT($O$1&"_Results!$B$1:$B$1416"), $N4, INDIRECT($O$1&"_Results!E$1:E$1416")) -> 607890 | P4: =SUMIF(INDIRECT($O$1&"_Results!$B$1:$B$1416"), $N4, INDIRECT($O$1&"_Results!f$1:f$1416")) -> 615941.67 | Q4: =SUMIF(INDIRECT($O$1&"_Results!$B$1:$B$1416"), $N4, INDIRECT($O$1&"_Results!g$1:g$1416")) -> 624158.7865 | R4: =SUMIF(INDIRECT($O$1&"_Results!$B$1:$B$1416"), $N4, INDIRECT($O$1&"_Results!h$1:h$1416")) -> 632545.2184 | S4: =SUMIF(INDIRECT($O$1&"_Results!$B$1:$B$1416"), $N4, INDIRECT($O$1&"_Results!i$1:i$1416")) -> 641104.9289 | T4: =SUMIF(INDIRECT($O$1&"_Results!$B$1:$B$1416"), $N4, INDIRECT($O$1&"_Results!j$1:j$1416")) -> 649841.978 | U4: =SUMIF(INDIRECT($O$1&"_Results!$B$1:$B$1416"), $N4, INDIRECT($O$1&"_Results!k$1:k$1416")) -> 658760.5252 | V4: =SUMIF(INDIRECT($O$1&"_Results!$B$1:$B$1416"), $N4, INDIRECT($O$1&"_Results!L$1:L$1416")) -> 667864.8314 | W4: =SUMIF(INDIRECT($O$1&"_Results!$B$1:$B$1416"), $N4, INDIRECT($O$1&"_Results!m$1:m$1416")) -> 677159.2621 | X4: =SUMIF(INDIRECT($O$1&"_Results!$B$1:$B$1416"), $N4, INDIRECT($O$1&"_Results!n$1:n$1416")) -> 686648.2892 | Y4: =AVERAGE(O4:X4) -> 646191.549 | Z4: =((X4/O4)^(1/9))-1 -> 0.01362850674 | AC4: =SUMIF(INDIRECT($AD$1&"_Results!$B$1:$B$1416"), $N4, INDIRECT($AD$1&"_Results!E$1:E$1416")) -> 607890 | AD4: =SUMIF(INDIRECT($AD$1&"_Results!$B$1:$B$1416"), $N4, INDIRECT($AD$1&"_Results!f$1:f$1416")) -> 615941.67 | AE4: =SUMIF(INDIRECT($AD$1&"_Results!$B$1:$B$1416"), $N4, INDIRECT($AD$1&"_Results!g$1:g$1416")) -> 624158.7865 | AF4: =SUMIF(INDIRECT($AD$1&"_Results!$B$1:$B$1416"), $N4, INDIRECT($AD$1&"_Results!h$1:h$1416")) -> 632545.2184 | AG4: =SUMIF(INDIRECT($AD$1&"_Results!$B$1:$B$1416"), $N4, INDIRECT($AD$1&"_Results!i$1:i$1416")) -> 641104.9289 | AH4: =SUMIF(INDIRECT($AD$1&"_Results!$B$1:$B$1416"), $N4, INDIRECT($AD$1&"_Results!j$1:j$1416")) -> 649841.978 | AI4: =SUMIF(INDIRECT($AD$1&"_Results!$B$1:$B$1416"), $N4, INDIRECT($AD$1&"_Results!k$1:k$1416")) -> 658760.5252 | AJ4: =SUMIF(INDIRECT($AD$1&"_Results!$B$1:$B$1416"), $N4, INDIRECT($AD$1&"_Results!L$1:L$1416")) -> 667864.8314 | AK4: =SUMIF(INDIRECT($AD$1&"_Results!$B$1:$B$1416"), $N4, INDIRECT($AD$1&"_Results!m$1:m$1416")) -> 677159.2621 | AL4: =SUMIF(INDIRECT($AD$1&"_Results!$B$1:$B$1416"), $N4, INDIRECT($AD$1&"_Results!n$1:n$1416")) -> 686648.2892 | AM4: =AVERAGE(AC4:AL4) -> 646191.549 | AN4: =((AL4/AC4)^(1/9))-1 -> 0.01362850674 | BC4: =A4 -> Load | BD4: =O4/1000 -> 607.89 | BE4: 615.94167 | BF4: 624.1587865 | BG4: 632.5452184 | BH4: 641.1049289 | BI4: 649.841978 | BJ4: 658.7605252 | BK4: 667.8648314 | BL4: 677.1592621 | BM4: 686.6482892 | BP4: Billing Determinants - Electricity (kWh, Average Annual) | BQ4: Base Case | BR4: Comparison Case | BS4: % Change | BU4: Incurred Revenue Requirement ($M) | BV4: Base Case | BW4: Comparison Case | BX4: % Change | BZ4: Collected Revenue ($M) | CA4: Base Case | CB4: Comparison Case | CC4: % Change
A5: EE | B5: 0 | C5: 0 | D5: 0 | E5: 0 | F5: 0 | G5: 0 | H5: 0 | I5: 0 | J5: 0 | K5: 0 | L5: 0 | M5: EE | N5: Achieved Energy Reduction (Cumulative MWh) | O5: =-SUMIF(INDIRECT($O$1&"_Results!$B$1:$B$1416"), $N5, INDIRECT($O$1&"_Results!E$1:E$1416")) -> 0 | P5: =-SUMIF(INDIRECT($O$1&"_Results!$B$1:$B$1416"), $N5, INDIRECT($O$1&"_Results!f$1:f$1416")) -> 0 | Q5: =-SUMIF(INDIRECT($O$1&"_Results!$B$1:$B$1416"), $N5, INDIRECT($O$1&"_Results!g$1:g$1416")) -> 0 | R5: =-SUMIF(INDIRECT($O$1&"_Results!$B$1:$B$1416"), $N5, INDIRECT($O$1&"_Results!h$1:h$1416")) -> 0 | S5: =-SUMIF(INDIRECT($O$1&"_Results!$B$1:$B$1416"), $N5, INDIRECT($O$1&"_Results!i$1:i$1416")) -> 0 | T5: =-SUMIF(INDIRECT($O$1&"_Results!$B$1:$B$1416"), $N5, INDIRECT($O$1&"_Results!j$1:j$1416")) -> 0 | U5: =-SUMIF(INDIRECT($O$1&"_Results!$B$1:$B$1416"), $N5, INDIRECT($O$1&"_Results!k$1:k$1416")) -> 0 | V5: =-SUMIF(INDIRECT($O$1&"_Results!$B$1:$B$1416"), $N5, INDIRECT($O$1&"_Results!L$1:L$1416")) -> 0 | W5: =-SUMIF(INDIRECT($O$1&"_Results!$B$1:$B$1416"), $N5, INDIRECT($O$1&"_Results!m$1:m$1416")) -> 0 | X5: =-SUMIF(INDIRECT($O$1&"_Results!$B$1:$B$1416"), $N5, INDIRECT($O$1&"_Results!n$1:n$1416")) -> 0 | Y5: =AVERAGE(O5:X5) -> 0 | AC5: =-SUMIF(INDIRECT($AD$1&"_Results!$B$1:$B$1416"), $N5, INDIRECT($AD$1&"_Results!E$1:E$1416")) -> -1644.534 | AD5: =-SUMIF(INDIRECT($AD$1&"_Results!$B$1:$B$1416"), $N5, INDIRECT($AD$1&"_Results!f$1:f$1416")) -> -3306.72729 | AE5: =-SUMIF(INDIRECT($AD$1&"_Results!$B$1:$B$1416"), $N5, INDIRECT($AD$1&"_Results!g$1:g$1416")) -> -4986.912665 | AF5: =-SUMIF(INDIRECT($AD$1&"_Results!$B$1:$B$1416"), $N5, INDIRECT($AD$1&"_Results!h$1:h$1416")) -> -6685.430607 | AG5: =-SUMIF(INDIRECT($AD$1&"_Results!$B$1:$B$1416"), $N5, INDIRECT($AD$1&"_Results!i$1:i$1416")) -> -8402.629476 | AH5: =-SUMIF(INDIRECT($AD$1&"_Results!$B$1:$B$1416"), $N5, INDIRECT($AD$1&"_Results!j$1:j$1416")) -> -10138.8657 | AI5: =-SUMIF(INDIRECT($AD$1&"_Results!$B$1:$B$1416"), $N5, INDIRECT($AD$1&"_Results!k$1:k$1416")) -> -11894.50398 | AJ5: =-SUMIF(INDIRECT($AD$1&"_Results!$B$1:$B$1416"), $N5, INDIRECT($AD$1&"_Results!L$1:L$1416")) -> -13669.91747 | AK5: =-SUMIF(INDIRECT($AD$1&"_Results!$B$1:$B$1416"), $N5, INDIRECT($AD$1&"_Results!m$1:m$1416")) -> -15465.48802 | AL5: =-SUMIF(INDIRECT($AD$1&"_Results!$B$1:$B$1416"), $N5, INDIRECT($AD$1&"_Results!n$1:n$1416")) -> -17281.60636 | AM5: =AVERAGE(AC5:AL5) -> -9347.661555 | BC5: =A5 -> EE | BD5: 0 | BE5: 0 | BF5: 0 | BG5: 0 | BH5: 0 | BI5: 0 | BJ5: 0 | BK5: 0 | BL5: 0 | BM5: 0 | BP5: Actual Billing Determinants - Electricity | BQ5: =AVERAGE(OutputDashboard_GraphData!#REF!)/10^3 ->  | BR5: =AVERAGE(OutputDashboard_GraphData!#REF!)/10^3 ->  | BS5: =IF(BQ5=0,"N/A",(BR5-BQ5)/BQ5) ->  | BU5: =CONCATENATE(TRIM(OutputDashboard_GraphData!#REF!), " ($M, PV @ ", User_OutputDashboard!$P$1*100, "%)") ->  | BV5: =NPV(User_OutputDashboard!#REF!, OutputDashboard_GraphData!#REF!) ->  | BW5: =NPV(User_OutputDashboard!#REF!, OutputDashboard_GraphData!#REF!) ->  | BX5: =IF(OR(BV5=0,BV5="N/A"),"N/A", (BW5-BV5)/BV5) ->  | BZ5: =CONCATENATE(TRIM(OutputDashboard_GraphData!BO6), " ($M, PV @ ", User_OutputDashboard!$P$1*100, "%)") -> ($M, PV @ 5%) | CA5: =NPV(User_OutputDashboard!#REF!, OutputDashboard_GraphData!CB6:CK6) ->  | CB5: =NPV(User_OutputDashboard!#REF!, OutputDashboard_GraphData!CM6:CV6) ->  | CC5: =IF(OR(CA5=0,CA5="N/A"),"N/A", (CB5-CA5)/CA5) -> 
A6: DPV | B6: 0 | C6: 0 | D6: 0 | E6: 0 | F6: 0 | G6: 0 | H6: 0 | I6: 0 | J6: 0 | K6: 0 | L6: 0 | M6: DPV | N6: Energy Production Remains Onsite (Cumulative MWh) | O6: =-SUMIF(INDIRECT($O$1&"_Results!$B$1:$B$1416"), $N6, INDIRECT($O$1&"_Results!E$1:E$1416")) -> 0 | P6: =-SUMIF(INDIRECT($O$1&"_Results!$B$1:$B$1416"), $N6, INDIRECT($O$1&"_Results!f$1:f$1416")) -> 0 | Q6: =-SUMIF(INDIRECT($O$1&"_Results!$B$1:$B$1416"), $N6, INDIRECT($O$1&"_Results!g$1:g$1416")) -> 0 | R6: =-SUMIF(INDIRECT($O$1&"_Results!$B$1:$B$1416"), $N6, INDIRECT($O$1&"_Results!h$1:h$1416")) -> 0 | S6: =-SUMIF(INDIRECT($O$1&"_Results!$B$1:$B$1416"), $N6, INDIRECT($O$1&"_Results!i$1:i$1416")) -> 0 | T6: =-SUMIF(INDIRECT($O$1&"_Results!$B$1:$B$1416"), $N6, INDIRECT($O$1&"_Results!j$1:j$1416")) -> 0 | U6: =-SUMIF(INDIRECT($O$1&"_Results!$B$1:$B$1416"), $N6, INDIRECT($O$1&"_Results!k$1:k$1416")) -> 0 | V6: =-SUMIF(INDIRECT($O$1&"_Results!$B$1:$B$1416"), $N6, INDIRECT($O$1&"_Results!L$1:L$1416")) -> 0 | W6: =-SUMIF(INDIRECT($O$1&"_Results!$B$1:$B$1416"), $N6, INDIRECT($O$1&"_Results!m$1:m$1416")) -> 0 | X6: =-SUMIF(INDIRECT($O$1&"_Results!$B$1:$B$1416"), $N6, INDIRECT($O$1&"_Results!n$1:n$1416")) -> 0 | Y6: 0 | AC6: =-SUMIF(INDIRECT($AD$1&"_Results!$B$1:$B$1416"), $N6, INDIRECT($AD$1&"_Results!E$1:E$1416")) -> 0 | AD6: =-SUMIF(INDIRECT($AD$1&"_Results!$B$1:$B$1416"), $N6, INDIRECT($AD$1&"_Results!f$1:f$1416")) -> 0 | AE6: =-SUMIF(INDIRECT($AD$1&"_Results!$B$1:$B$1416"), $N6, INDIRECT($AD$1&"_Results!g$1:g$1416")) -> 0 | AF6: =-SUMIF(INDIRECT($AD$1&"_Results!$B$1:$B$1416"), $N6, INDIRECT($AD$1&"_Results!h$1:h$1416")) -> 0 | AG6: =-SUMIF(INDIRECT($AD$1&"_Results!$B$1:$B$1416"), $N6, INDIRECT($AD$1&"_Results!i$1:i$1416")) -> 0 | AH6: =-SUMIF(INDIRECT($AD$1&"_Results!$B$1:$B$1416"), $N6, INDIRECT($AD$1&"_Results!j$1:j$1416")) -> 0 | AI6: =-SUMIF(INDIRECT($AD$1&"_Results!$B$1:$B$1416"), $N6, INDIRECT($AD$1&"_Results!k$1:k$1416")) -> 0 | AJ6: =-SUMIF(INDIRECT($AD$1&"_Results!$B$1:$B$1416"), $N6, INDIRECT($AD$1&"_Results!L$1:L$1416")) -> 0 | AK6: =-SUMIF(INDIRECT($AD$1&"_Results!$B$1:$B$1416"), $N6, INDIRECT($AD$1&"_Results!m$1:m$1416")) -> 0 | AL6: =-SUMIF(INDIRECT($AD$1&"_Results!$B$1:$B$1416"), $N6, INDIRECT($AD$1&"_Results!n$1:n$1416")) -> 0 | AM6: 0 | BC6: =A6 -> DPV | BD6: 0 | BE6: 0 | BF6: 0 | BG6: 0 | BH6: 0 | BI6: 0 | BJ6: 0 | BK6: 0 | BL6: 0 | BM6: 0 | BP6: Energy Efficiency Savings | BQ6: =-AVERAGE(OutputDashboard_GraphData!#REF!) ->  | BR6: =-AVERAGE(OutputDashboard_GraphData!#REF!) ->  | BU6: =CONCATENATE(TRIM(OutputDashboard_GraphData!#REF!), " ($M, PV @ ", User_OutputDashboard!$P$1*100, "%)") ->  | BV6: =NPV(User_OutputDashboard!#REF!, OutputDashboard_GraphData!#REF!) + NPV(User_OutputDashboard!#REF!, OutputDashboard_GraphData!#REF!) ->  | BW6: =NPV(User_OutputDashboard!#REF!, OutputDashboard_GraphData!#REF!)+NPV(User_OutputDashboard!#REF!, OutputDashboard_GraphData!#REF!) ->  | BZ6: =CONCATENATE(TRIM(OutputDashboard_GraphData!BO7), " ($M, PV @ ", User_OutputDashboard!$P$1*100, "%)") -> ($M, PV @ 5%) | CA6: =NPV(User_OutputDashboard!#REF!, OutputDashboard_GraphData!CB7:CK7) ->  | CB6: =NPV(User_OutputDashboard!#REF!, OutputDashboard_GraphData!CM7:CV7) -> 
A7: LDGD | B7: 0 | C7: 0 | D7: 0 | E7: 0 | F7: 0 | G7: 0 | H7: 0 | I7: 0 | J7: 0 | K7: 0 | L7: 0 | M7: LDGD | N7: Achieved MWh Reduction (cumulative) | O7: =-SUMIF(INDIRECT($O$1&"_Results!$B$1:$B$1416"), $N7, INDIRECT($O$1&"_Results!E$1:E$1416")) -> 0 | P7: =-SUMIF(INDIRECT($O$1&"_Results!$B$1:$B$1416"), $N7, INDIRECT($O$1&"_Results!f$1:f$1416")) -> 0 | Q7: =-SUMIF(INDIRECT($O$1&"_Results!$B$1:$B$1416"), $N7, INDIRECT($O$1&"_Results!g$1:g$1416")) -> 0 | R7: =-SUMIF(INDIRECT($O$1&"_Results!$B$1:$B$1416"), $N7, INDIRECT($O$1&"_Results!h$1:h$1416")) -> 0 | S7: =-SUMIF(INDIRECT($O$1&"_Results!$B$1:$B$1416"), $N7, INDIRECT($O$1&"_Results!i$1:i$1416")) -> 0 | T7: =-SUMIF(INDIRECT($O$1&"_Results!$B$1:$B$1416"), $N7, INDIRECT($O$1&"_Results!j$1:j$1416")) -> 0 | U7: =-SUMIF(INDIRECT($O$1&"_Results!$B$1:$B$1416"), $N7, INDIRECT($O$1&"_Results!k$1:k$1416")) -> 0 | V7: =-SUMIF(INDIRECT($O$1&"_Results!$B$1:$B$1416"), $N7, INDIRECT($O$1&"_Results!L$1:L$1416")) -> 0 | W7: =-SUMIF(INDIRECT($O$1&"_Results!$B$1:$B$1416"), $N7, INDIRECT($O$1&"_Results!m$1:m$1416")) -> 0 | X7: =-SUMIF(INDIRECT($O$1&"_Results!$B$1:$B$1416"), $N7, INDIRECT($O$1&"_Results!n$1:n$1416")) -> 0 | Y7: 0 | AC7: =-SUMIF(INDIRECT($AD$1&"_Results!$B$1:$B$1416"), $N7, INDIRECT($AD$1&"_Results!E$1:E$1416")) -> -2384.972216 | AD7: =-SUMIF(INDIRECT($AD$1&"_Results!$B$1:$B$1416"), $N7, INDIRECT($AD$1&"_Results!f$1:f$1416")) -> -4891.001177 | AE7: =-SUMIF(INDIRECT($AD$1&"_Results!$B$1:$B$1416"), $N7, INDIRECT($AD$1&"_Results!g$1:g$1416")) -> -7520.27072 | AF7: =-SUMIF(INDIRECT($AD$1&"_Results!$B$1:$B$1416"), $N7, INDIRECT($AD$1&"_Results!h$1:h$1416")) -> -10274.65897 | AG7: =-SUMIF(INDIRECT($AD$1&"_Results!$B$1:$B$1416"), $N7, INDIRECT($AD$1&"_Results!i$1:i$1416")) -> -13168.73436 | AH7: =-SUMIF(INDIRECT($AD$1&"_Results!$B$1:$B$1416"), $N7, INDIRECT($AD$1&"_Results!j$1:j$1416")) -> -16194.71122 | AI7: =-SUMIF(INDIRECT($AD$1&"_Results!$B$1:$B$1416"), $N7, INDIRECT($AD$1&"_Results!k$1:k$1416")) -> -19370.26702 | AJ7: =-SUMIF(INDIRECT($AD$1&"_Results!$B$1:$B$1416"), $N7, INDIRECT($AD$1&"_Results!L$1:L$1416")) -> -22691.14463 | AK7: =-SUMIF(INDIRECT($AD$1&"_Results!$B$1:$B$1416"), $N7, INDIRECT($AD$1&"_Results!m$1:m$1416")) -> -26165.35867 | AL7: =-SUMIF(INDIRECT($AD$1&"_Results!$B$1:$B$1416"), $N7, INDIRECT($AD$1&"_Results!n$1:n$1416")) -> -29800.24113 | AM7: -15246.13601 | BC7: =A7 -> LDGD | BD7: =O8/1000 -> 0 | BE7: 0 | BF7: 0 | BG7: 0 | BH7: 0 | BI7: 0 | BJ7: 0 | BK7: 0 | BL7: 0 | BM7: 0 | BP7: Distributed PV On-Site Consumption | BQ7: =-AVERAGE(OutputDashboard_GraphData!#REF!) ->  | BR7: =-AVERAGE(OutputDashboard_GraphData!#REF!) ->  | BU7: =CONCATENATE(TRIM(OutputDashboard_GraphData!#REF!), " ($M, PV @ ", User_OutputDashboard!$P$1*100, "%)") ->  | BV7: =NPV(User_OutputDashboard!#REF!, OutputDashboard_GraphData!#REF!) ->  | BW7: =NPV(User_OutputDashboard!#REF!, OutputDashboard_GraphData!#REF!) ->  | BZ7: =CONCATENATE(TRIM(OutputDashboard_GraphData!BO8), " ($M, PV @ ", User_OutputDashboard!$P$1*100, "%)") -> ($M, PV @ 5%) | CA7: =NPV(User_OutputDashboard!#REF!, OutputDashboard_GraphData!CB8:CK8) ->  | CB7: =NPV(User_OutputDashboard!#REF!, OutputDashboard_GraphData!CM8:CV8) -> 
A8: EV | B8: 0 | C8: 0 | D8: 0 | E8: 0 | F8: 0 | G8: 0 | H8: 0 | I8: 0 | J8: 0 | K8: 0 | L8: 0 | M8: EV | N8: Cumulative Energy Impact (MWh) | O8: =SUMIF(INDIRECT($O$1&"_Results!$B$1:$B$1416"), $N8, INDIRECT($O$1&"_Results!E$1:E$1416")) -> 0 | P8: =SUMIF(INDIRECT($O$1&"_Results!$B$1:$B$1416"), $N8, INDIRECT($O$1&"_Results!f$1:f$1416")) -> 0 | Q8: =SUMIF(INDIRECT($O$1&"_Results!$B$1:$B$1416"), $N8, INDIRECT($O$1&"_Results!g$1:g$1416")) -> 0 | R8: =SUMIF(INDIRECT($O$1&"_Results!$B$1:$B$1416"), $N8, INDIRECT($O$1&"_Results!h$1:h$1416")) -> 0 | S8: =SUMIF(INDIRECT($O$1&"_Results!$B$1:$B$1416"), $N8, INDIRECT($O$1&"_Results!i$1:i$1416")) -> 0 | T8: =SUMIF(INDIRECT($O$1&"_Results!$B$1:$B$1416"), $N8, INDIRECT($O$1&"_Results!j$1:j$1416")) -> 0 | U8: =SUMIF(INDIRECT($O$1&"_Results!$B$1:$B$1416"), $N8, INDIRECT($O$1&"_Results!k$1:k$1416")) -> 0 | V8: =SUMIF(INDIRECT($O$1&"_Results!$B$1:$B$1416"), $N8, INDIRECT($O$1&"_Results!L$1:L$1416")) -> 0 | W8: =SUMIF(INDIRECT($O$1&"_Results!$B$1:$B$1416"), $N8, INDIRECT($O$1&"_Results!m$1:m$1416")) -> 0 | X8: =SUMIF(INDIRECT($O$1&"_Results!$B$1:$B$1416"), $N8, INDIRECT($O$1&"_Results!n$1:n$1416")) -> 0 | Y8: 0 | AC8: =SUMIF(INDIRECT($AD$1&"_Results!$B$1:$B$1416"), $N8, INDIRECT($AD$1&"_Results!E$1:E$1416")) -> 607.89 | AD8: =SUMIF(INDIRECT($AD$1&"_Results!$B$1:$B$1416"), $N8, INDIRECT($AD$1&"_Results!f$1:f$1416")) -> 1231.88334 | AE8: =SUMIF(INDIRECT($AD$1&"_Results!$B$1:$B$1416"), $N8, INDIRECT($AD$1&"_Results!g$1:g$1416")) -> 1872.47636 | AF8: =SUMIF(INDIRECT($AD$1&"_Results!$B$1:$B$1416"), $N8, INDIRECT($AD$1&"_Results!h$1:h$1416")) -> 2530.180874 | AG8: =SUMIF(INDIRECT($AD$1&"_Results!$B$1:$B$1416"), $N8, INDIRECT($AD$1&"_Results!i$1:i$1416")) -> 3205.524644 | AH8: =SUMIF(INDIRECT($AD$1&"_Results!$B$1:$B$1416"), $N8, INDIRECT($AD$1&"_Results!j$1:j$1416")) -> 3899.051868 | AI8: =SUMIF(INDIRECT($AD$1&"_Results!$B$1:$B$1416"), $N8, INDIRECT($AD$1&"_Results!k$1:k$1416")) -> 4611.323676 | AJ8: =SUMIF(INDIRECT($AD$1&"_Results!$B$1:$B$1416"), $N8, INDIRECT($AD$1&"_Results!L$1:L$1416")) -> 5342.918651 | AK8: =SUMIF(INDIRECT($AD$1&"_Results!$B$1:$B$1416"), $N8, INDIRECT($AD$1&"_Results!m$1:m$1416")) -> 6094.433359 | AL8: =SUMIF(INDIRECT($AD$1&"_Results!$B$1:$B$1416"), $N8, INDIRECT($AD$1&"_Results!n$1:n$1416")) -> 6866.482892 | AM8: 3626.216566 | BP8: Load Departure / Grid Defection | BQ8: =-AVERAGE(OutputDashboard_GraphData!#REF!) ->  | BR8: =-AVERAGE(OutputDashboard_GraphData!#REF!) ->  | BU8: =CONCATENATE(TRIM(OutputDashboard_GraphData!#REF!), " ($M, PV @ ", User_OutputDashboard!$P$1*100, "%)") ->  | BV8: =NPV(User_OutputDashboard!#REF!, OutputDashboard_GraphData!#REF!) ->  | BW8: =NPV(User_OutputDashboard!#REF!, OutputDashboard_GraphData!#REF!) ->  | BZ8: =CONCATENATE(TRIM(OutputDashboard_GraphData!BO9), " ($M, PV @ ", User_OutputDashboard!$P$1*100, "%)") -> ($M, PV @ 5%) | CA8: =NPV(User_OutputDashboard!#REF!, OutputDashboard_GraphData!CB9:CK9) ->  | CB8: =NPV(User_OutputDashboard!#REF!, OutputDashboard_GraphData!CM9:CV9) -> 
A9: Bill Det w/o Event | B9: -0.005628676597 | C9: -0.01130926103 | D9: -0.01703846402 | E9: -0.02281245402 | F9: -0.0286471658 | G9: -0.03452304685 | H9: -0.04045999464 | I9: -0.04644374429 | J9: -0.0524786639 | K9: -0.0585676324 | L9: -0.03244793441 | M9: Bill Det w/o Event | N9: Actual Billing Determinants (MWh) - net of DER and LDGD - No Event | O9: 607890 | P9: 615941.67 | Q9: 624158.7865 | R9: 632545.2184 | S9: 641104.9289 | T9: 649841.978 | U9: 658760.5252 | V9: 667864.8314 | W9: 677159.2621 | X9: 686648.2892 | Y9: 646191.549 | Z9: =((X9/O9)^(1/9))-1 -> 0.01362850674 | AC9: 604468.3838 | AD9: 608975.8249 | AE9: 613524.0795 | AF9: 618115.3097 | AG9: 622739.0897 | AH9: 627407.4529 | AI9: 632107.0778 | AJ9: 636846.688 | AK9: 641622.8488 | AL9: 646432.9246 | AM9: 625223.968 | AN9: =((AL9/AC9)^(1/9))-1 -> 0.00748566455 | BP9: Electric Vehicle Charging Load | BQ9: =AVERAGE(OutputDashboard_GraphData!#REF!) ->  | BR9: =AVERAGE(OutputDashboard_GraphData!#REF!) ->  | BU9: =CONCATENATE(TRIM(OutputDashboard_GraphData!#REF!), " ($M, PV @ ", User_OutputDashboard!$P$1*100, "%)") ->  | BV9: =NPV(User_OutputDashboard!#REF!, OutputDashboard_GraphData!#REF!) ->  | BW9: =NPV(User_OutputDashboard!#REF!, OutputDashboard_GraphData!#REF!) -> 
A10: Bill Det w/ Event | B10: -0.005628676597 | C10: -0.01130926103 | D10: -0.01703846402 | E10: -0.02281245402 | F10: -0.0286471658 | G10: -0.03452304685 | H10: -0.04045999464 | I10: -0.04644374429 | J10: -0.0524786639 | K10: -0.0585676324 | L10: -0.03244793441 | M10: Bill Det w/ Event | N10: Actual Billing Determinants (MWh) - net of DER and LDGD - With Event | O10: 607890 | P10: 615941.67 | Q10: 624158.7865 | R10: 632545.2184 | S10: 641104.9289 | T10: 649841.978 | U10: 658760.5252 | V10: 667864.8314 | W10: 677159.2621 | X10: 686648.2892 | Y10: 646191.549 | Z10: =((X10/O10)^(1/9))-1 -> 0.01362850674 | AC10: 604468.3838 | AD10: 608975.8249 | AE10: 613524.0795 | AF10: 618115.3097 | AG10: 622739.0897 | AH10: 627407.4529 | AI10: 632107.0778 | AJ10: 636846.688 | AK10: 641622.8488 | AL10: 646432.9246 | AM10: 625223.968 | AN10: =((AL10/AC10)^(1/9))-1 -> 0.00748566455 | BP10: Catastrophic Event Load Reduction | BQ10: =-AVERAGE(OutputDashboard_GraphData!#REF!) ->  | BR10: =-AVERAGE(OutputDashboard_GraphData!#REF!) ->  | BU10: =CONCATENATE(TRIM(OutputDashboard_GraphData!#REF!), " ($M, PV @ ", User_OutputDashboard!$P$1*100, "%)") ->  | BV10: =NPV(User_OutputDashboard!#REF!, OutputDashboard_GraphData!#REF!) ->  | BW10: =NPV(User_OutputDashboard!#REF!, OutputDashboard_GraphData!#REF!) ->  | BZ10: Collected Revenue Per Unit of Retail Sales ($/kWh)
A11: Event | B11: 0 | C11: 0 | D11: 0 | E11: 0 | F11: 0 | G11: 0 | H11: 0 | I11: 0 | J11: 0 | K11: 0 | L11: 0 | M11: Event | N11: Catastrophic Event Impact (MWh) | O11: =-(O9-O10) -> 0 | P11: =-(P9-P10) -> 0 | Q11: 0 | R11: 0 | S11: 0 | T11: 0 | U11: 0 | V11: 0 | W11: 0 | X11: 0 | Y11: 0 | AC11: 0 | AD11: =-(AD9-AD10) -> 0 | AE11: =-(AE9-AE10) -> 0 | AF11: =-(AF9-AF10) -> 0 | AG11: =-(AG9-AG10) -> 0 | AH11: =-(AH9-AH10) -> 0 | AI11: =-(AI9-AI10) -> 0 | AJ11: =-(AJ9-AJ10) -> 0 | AK11: =-(AK9-AK10) -> 0 | AL11: =-(AL9-AL10) -> 0 | AM11: 0 | BZ11: Fuel Rate ($/kWh, Average) | CA11: =AVERAGE(OutputDashboard_GraphData!CB20:CK20) ->  | CB11: =AVERAGE(OutputDashboard_GraphData!CM20:CV20) ->  | CC11: =IF(OR(CA11=0,CA11="N/A"),"N/A", (CB11-CA11)/CA11) -> 
O12: =O4+SUM(O5:O7)+O8+O11 -> 607890 | P12: 615941.67 | Q12: 624158.7865 | R12: 632545.2184 | S12: 641104.9289 | T12: 649841.978 | U12: 658760.5252 | V12: 667864.8314 | W12: 677159.2621 | X12: 686648.2892 | Y12: 646191.549 | AC12: =AC4+SUM(AC5:AC7)+AC8+AC11 -> 604468.3838 | AD12: =AD4+SUM(AD5:AD7)+AD8+AD11 -> 608975.8249 | AE12: 613524.0795 | AF12: 618115.3097 | AG12: 622739.0897 | AH12: 627407.4529 | AI12: 632107.0778 | AJ12: 636846.688 | AK12: 641622.8488 | AL12: 646432.9246 | AM12: 625223.968 | BC12: Base Case Billing Determinants - Actual Electricity Consumption (MWh) | BP12: Coincident System Peak Demand (MW, Average Annual) | BU12: Financial Health | BZ12: Non-fuel Rate ($/kWh, Average) | CA12: =AVERAGE(OutputDashboard_GraphData!CB21:CK21) ->  | CB12: =AVERAGE(OutputDashboard_GraphData!CM21:CV21) -> 
A13: % Change in CP | BP13: Actual Coincident Peak Demand | BQ13: =AVERAGE(OutputDashboard_GraphData!#REF!) ->  | BR13: =AVERAGE(OutputDashboard_GraphData!#REF!) ->  | BS13: =IF(BQ13=0,"N/A",(BR13-BQ13)/BQ13) ->  | BU13: =CONCATENATE("After-tax Earnings ($M, PV @ ", User_OutputDashboard!$P$1*100, "%)") -> After-tax Earnings ($M, PV @ 5%) | BV13: =NPV(User_OutputDashboard!#REF!, OutputDashboard_GraphData!CB35:CK35) ->  | BW13: =NPV(User_OutputDashboard!#REF!, OutputDashboard_GraphData!CM35:CV35) ->  | BX13: =IF(OR(BV13=0,BV13="N/A"),"N/A", (BW13-BV13)/BV13) ->  | BZ13: Utility Surcharge Rate ($/kWh, Average) | CA13: =AVERAGE(OutputDashboard_GraphData!CB22:CK22) ->  | CB13: =AVERAGE(OutputDashboard_GraphData!CM22:CV22) -> 
B14: =User_InputDashboard!$B$41+1 -> 2021 | C14: =B14+1 -> 2022 | D14: =C14+1 -> 2023 | E14: 2024 | F14: 2025 | G14: 2026 | H14: 2027 | I14: 2028 | J14: 2029 | K14: 2030 | L14: Average/PV | N14: System Coincident Peak Demand (Forecast & Adjustments) | O14: =User_InputDashboard!$B$41+1 -> 2021 | P14: =O14+1 -> 2022 | Q14: =P14+1 -> 2023 | R14: 2024 | S14: 2025 | T14: 2026 | U14: 2027 | V14: 2028 | W14: 2029 | X14: 2030 | Y14: Average/PV | Z14: CAGR | AC14: =User_InputDashboard!$B$41+1 -> 2021 | AD14: =AC14+1 -> 2022 | AE14: =AD14+1 -> 2023 | AF14: 2024 | AG14: 2025 | AH14: 2026 | AI14: 2027 | AJ14: 2028 | AK14: 2029 | AL14: 2030 | AM14: Average/PV | AN14: CAGR | BD14: =User_InputDashboard!$B$41+1 -> 2021 | BE14: =BD14+1 -> 2022 | BF14: =BE14+1 -> 2023 | BG14: 2024 | BH14: 2025 | BI14: 2026 | BJ14: 2027 | BK14: 2028 | BL14: 2029 | BM14: 2030 | BP14: =BP6 -> Energy Efficiency Savings | BQ14: =-AVERAGE(OutputDashboard_GraphData!#REF!) ->  | BR14: =-AVERAGE(OutputDashboard_GraphData!#REF!) ->  | BU14: After-tax ROE (%, Average Annual) | BV14: =IF(User_InputDashboard!#REF!="Municipal","N/A",AVERAGE(OutputDashboard_GraphData!CB36:CK36)) ->  | BW14: =IF(User_InputDashboard!#REF!="Municipal","N/A",AVERAGE(OutputDashboard_GraphData!CM36:CV36)) ->  | BX14: =IF(OR(BV14=0,BV14="N/A"),"N/A", (BW14-BV14)/BV14) ->  | BZ14: Total Utility Rate ($/kWh, Average) | CA14: =AVERAGE(OutputDashboard_GraphData!CB24:CK24) ->  | CB14: =AVERAGE(OutputDashboard_GraphData!CM24:CV24) -> 
A15: =M15 -> CP | B15: =IF(O15<>0,(AC15-O15)/O$10,0) -> 0 | C15: 0 | D15: 0 | E15: 0 | F15: 0 | G15: 0 | H15: 0 | I15: 0 | J15: 0 | K15: 0 | L15: 0 | M15: CP | N15: Starting CP Demand Forecast (MW) - gross of DER - at System | O15: =SUMIF(INDIRECT($O$1&"_Results!$B$1:$B$1416"), $N15, INDIRECT($O$1&"_Results!E$1:E$1416")) -> 125.5603261 | P15: =SUMIF(INDIRECT($O$1&"_Results!$B$1:$B$1416"), $N15, INDIRECT($O$1&"_Results!f$1:f$1416")) -> 134.349549 | Q15: =SUMIF(INDIRECT($O$1&"_Results!$B$1:$B$1416"), $N15, INDIRECT($O$1&"_Results!g$1:g$1416")) -> 143.7540174 | R15: =SUMIF(INDIRECT($O$1&"_Results!$B$1:$B$1416"), $N15, INDIRECT($O$1&"_Results!h$1:h$1416")) -> 153.8167986 | S15: =SUMIF(INDIRECT($O$1&"_Results!$B$1:$B$1416"), $N15, INDIRECT($O$1&"_Results!i$1:i$1416")) -> 164.5839745 | T15: =SUMIF(INDIRECT($O$1&"_Results!$B$1:$B$1416"), $N15, INDIRECT($O$1&"_Results!j$1:j$1416")) -> 176.1048527 | U15: =SUMIF(INDIRECT($O$1&"_Results!$B$1:$B$1416"), $N15, INDIRECT($O$1&"_Results!k$1:k$1416")) -> 188.4321924 | V15: =SUMIF(INDIRECT($O$1&"_Results!$B$1:$B$1416"), $N15, INDIRECT($O$1&"_Results!L$1:L$1416")) -> 201.6224459 | W15: =SUMIF(INDIRECT($O$1&"_Results!$B$1:$B$1416"), $N15, INDIRECT($O$1&"_Results!m$1:m$1416")) -> 215.7360171 | X15: =SUMIF(INDIRECT($O$1&"_Results!$B$1:$B$1416"), $N15, INDIRECT($O$1&"_Results!n$1:n$1416")) -> 230.8375383 | Y15: =AVERAGE(O15:X15) -> 173.4797712 | Z15: =((X15/O15)^(1/9))-1 -> 0.07 | AC15: =SUMIF(INDIRECT($AD$1&"_Results!$B$1:$B$1416"), $N15, INDIRECT($AD$1&"_Results!E$1:E$1416")) -> 125.5603261 | AD15: =SUMIF(INDIRECT($AD$1&"_Results!$B$1:$B$1416"), $N15, INDIRECT($AD$1&"_Results!f$1:f$1416")) -> 134.349549 | AE15: =SUMIF(INDIRECT($AD$1&"_Results!$B$1:$B$1416"), $N15, INDIRECT($AD$1&"_Results!g$1:g$1416")) -> 143.7540174 | AF15: =SUMIF(INDIRECT($AD$1&"_Results!$B$1:$B$1416"), $N15, INDIRECT($AD$1&"_Results!h$1:h$1416")) -> 153.8167986 | AG15: =SUMIF(INDIRECT($AD$1&"_Results!$B$1:$B$1416"), $N15, INDIRECT($AD$1&"_Results!i$1:i$1416")) -> 164.5839745 | AH15: =SUMIF(INDIRECT($AD$1&"_Results!$B$1:$B$1416"), $N15, INDIRECT($AD$1&"_Results!j$1:j$1416")) -> 176.1048527 | AI15: =SUMIF(INDIRECT($AD$1&"_Results!$B$1:$B$1416"), $N15, INDIRECT($AD$1&"_Results!k$1:k$1416")) -> 188.4321924 | AJ15: =SUMIF(INDIRECT($AD$1&"_Results!$B$1:$B$1416"), $N15, INDIRECT($AD$1&"_Results!L$1:L$1416")) -> 201.6224459 | AK15: =SUMIF(INDIRECT($AD$1&"_Results!$B$1:$B$1416"), $N15, INDIRECT($AD$1&"_Results!m$1:m$1416")) -> 215.7360171 | AL15: =SUMIF(INDIRECT($AD$1&"_Results!$B$1:$B$1416"), $N15, INDIRECT($AD$1&"_Results!n$1:n$1416")) -> 230.8375383 | AM15: =AVERAGE(AC15:AL15) -> 173.4797712 | AN15: =((AL15/AC15)^(1/9))-1 -> 0.07 | BC15: =A15 -> CP | BD15: =O15/1000 -> 0.1255603261 | BE15: 0.134349549 | BF15: 0.1437540174 | BG15: 0.1538167986 | BH15: 0.1645839745 | BI15: 0.1761048527 | BJ15: 0.1884321924 | BK15: 0.2016224459 | BL15: 0.2157360171 | BM15: 0.2308375383 | BP15: =BP7 -> Distributed PV On-Site Consumption | BQ15: =-AVERAGE(OutputDashboard_GraphData!#REF!) ->  | BR15: =-AVERAGE(OutputDashboard_GraphData!#REF!) ->  | BU15: Days Liquidity (Days, Average Annual) | BV15: =AVERAGE(OutputDashboard_GraphData!CB37:CK37) ->  | BW15: =AVERAGE(OutputDashboard_GraphData!CM37:CV37) ->  | BX15: =IF(OR(BV15=0,BV15="N/A"),"N/A", (BW15-BV15)/BV15) -> 
A16: EE | B16: 0 | C16: 0 | D16: 0 | E16: 0 | F16: 0 | G16: 0 | H16: 0 | I16: 0 | J16: 0 | K16: 0 | L16: 0 | M16: EE | N16: EE CP Demand Savings (MW) | O16: =SUMIF(INDIRECT($O$1&"_Results!$B$1:$B$1416"), $N16, INDIRECT($O$1&"_Results!E$1:E$1416")) -> 0 | P16: =SUMIF(INDIRECT($O$1&"_Results!$B$1:$B$1416"), $N16, INDIRECT($O$1&"_Results!f$1:f$1416")) -> 0 | Q16: =SUMIF(INDIRECT($O$1&"_Results!$B$1:$B$1416"), $N16, INDIRECT($O$1&"_Results!g$1:g$1416")) -> 0 | R16: =SUMIF(INDIRECT($O$1&"_Results!$B$1:$B$1416"), $N16, INDIRECT($O$1&"_Results!h$1:h$1416")) -> 0 | S16: =SUMIF(INDIRECT($O$1&"_Results!$B$1:$B$1416"), $N16, INDIRECT($O$1&"_Results!i$1:i$1416")) -> 0 | T16: =SUMIF(INDIRECT($O$1&"_Results!$B$1:$B$1416"), $N16, INDIRECT($O$1&"_Results!j$1:j$1416")) -> 0 | U16: =SUMIF(INDIRECT($O$1&"_Results!$B$1:$B$1416"), $N16, INDIRECT($O$1&"_Results!k$1:k$1416")) -> 0 | V16: =SUMIF(INDIRECT($O$1&"_Results!$B$1:$B$1416"), $N16, INDIRECT($O$1&"_Results!L$1:L$1416")) -> 0 | W16: =SUMIF(INDIRECT($O$1&"_Results!$B$1:$B$1416"), $N16, INDIRECT($O$1&"_Results!m$1:m$1416")) -> 0 | X16: =SUMIF(INDIRECT($O$1&"_Results!$B$1:$B$1416"), $N16, INDIRECT($O$1&"_Results!n$1:n$1416")) -> 0 | Y16: =AVERAGE(O16:X16) -> 0 | AC16: -2.207786895 | AD16: -4.439281387 | AE16: -6.694930252 | AF16: -8.97519059 | AG16: -11.28053007 | AH16: -13.6114272 | AI16: -15.96837159 | AJ16: -18.3518642 | AK16: -20.76241766 | AL16: -23.20055653 | AM16: =AVERAGE(AC16:AL16) -> -12.54923564 | BC16: =A16 -> EE | BD16: 0 | BE16: 0 | BF16: 0 | BG16: 0 | BH16: 0 | BI16: 0 | BJ16: 0 | BK16: 0 | BL16: 0 | BM16: 0 | BP16: =BP8 -> Load Departure / Grid Defection | BQ16: =-AVERAGE(OutputDashboard_GraphData!#REF!) ->  | BR16: =-AVERAGE(OutputDashboard_GraphData!#REF!) ->  | BU16: Debt Service Coverage Ratio (Average Annual) | BV16: =AVERAGE(OutputDashboard_GraphData!CB38:CK38) ->  | BW16: =AVERAGE(OutputDashboard_GraphData!CM38:CV38) -> 
A17: DPV | B17: 0 | C17: 0 | D17: 0 | E17: 0 | F17: 0 | G17: 0 | H17: 0 | I17: 0 | J17: 0 | K17: 0 | L17: 0 | M17: DPV | N17: PV CP Demand Savings (MW) - self-consumption share | O17: =SUMIF(INDIRECT($O$1&"_Results!$B$1:$B$1416"), $N17, INDIRECT($O$1&"_Results!E$1:E$1416")) -> 0 | P17: 0 | Q17: 0 | R17: 0 | S17: 0 | T17: 0 | U17: 0 | V17: 0 | W17: 0 | X17: 0 | Y17: 0 | AC17: 0 | AD17: 0 | AE17: 0 | AF17: 0 | AG17: 0 | AH17: 0 | AI17: 0 | AJ17: 0 | AK17: 0 | AL17: 0 | AM17: 0 | BC17: =A17 -> DPV | BD17: 0 | BE17: 0 | BF17: 0 | BG17: 0 | BH17: 0 | BI17: 0 | BJ17: 0 | BK17: 0 | BL17: 0 | BM17: 0 | BP17: =BP9 -> Electric Vehicle Charging Load | BQ17: =AVERAGE(OutputDashboard_GraphData!#REF!) ->  | BR17: =AVERAGE(OutputDashboard_GraphData!#REF!) ->  | BU17: Cash Position ($M, Average Annual) | BV17: =AVERAGE(OutputDashboard_GraphData!CB39:CK39) ->  | BW17: =AVERAGE(OutputDashboard_GraphData!CM39:CV39) -> 
A18: LDGD | B18: 0 | C18: 0 | D18: 0 | E18: 0 | F18: 0 | G18: 0 | H18: 0 | I18: 0 | J18: 0 | K18: 0 | L18: 0 | M18: LDGD | N18: LDGD CP Demand Savings (MW) | O18: 0 | P18: 0 | Q18: 0 | R18: 0 | S18: 0 | T18: 0 | U18: 0 | V18: 0 | W18: 0 | X18: 0 | Y18: 0 | AC18: -0.6525777489 | AD18: -1.397032846 | AE18: -2.24234399 | AF18: -3.198129831 | AG18: -4.278904796 | AH18: -5.493153144 | AI18: -6.858734924 | AJ18: -8.38734925 | AK18: -10.09612986 | AL18: -12.00350081 | AM18: -5.46078572 | BC18: =A18 -> LDGD | BD18: =O19/1000 -> 0 | BE18: 0 | BF18: 0 | BG18: 0 | BH18: 0 | BI18: 0 | BJ18: 0 | BK18: 0 | BL18: 0 | BM18: 0 | BP18: =BP10 -> Catastrophic Event Load Reduction | BQ18: =-AVERAGE(OutputDashboard_GraphData!#REF!) ->  | BR18: =-AVERAGE(OutputDashboard_GraphData!#REF!) ->  | BU18: Debt Ratio (Average Annual) | BV18: =AVERAGE(OutputDashboard_GraphData!CB40:CK40) ->  | BW18: =AVERAGE(OutputDashboard_GraphData!CM40:CV40) -> 
A19: EV | B19: 0 | C19: 0 | D19: 0 | E19: 0 | F19: 0 | G19: 0 | H19: 0 | I19: 0 | J19: 0 | K19: 0 | L19: 0 | M19: EV | N19: EV CP Demand Increase (MW) | O19: 0 | P19: 0 | Q19: 0 | R19: 0 | S19: 0 | T19: 0 | U19: 0 | V19: 0 | W19: 0 | X19: 0 | Y19: 0 | AC19: 2.511206523 | AD19: 5.373981959 | AE19: 8.625241044 | AF19: 12.30534389 | AG19: 16.45839745 | AH19: 21.13258233 | AI19: 26.38050694 | AJ19: 32.25959134 | AK19: 38.83248308 | AL19: 46.16750766 | AM19: 21.00468422
A20: Bill Det w/o Event | B20: -2.022164972e-06 | C20: -2.279492991e-06 | D20: -2.11429342e-06 | E20: -1.495753402e-06 | F20: -3.972257795e-07 | G20: 1.221254089e-06 | H20: 3.389113264e-06 | I20: 6.149652231e-06 | J20: 9.542463015e-06 | K20: 1.361021405e-05 | L20: 2.752563326e-06 | M20: Bill Det w/o Event | N20: Actual Coincident Peak Demand (MW) - net of DER and LDGD - No Event | O20: 125.5603261 | P20: 134.349549 | Q20: 143.7540174 | R20: 153.8167986 | S20: 164.5839745 | T20: 176.1048527 | U20: 188.4321924 | V20: 201.6224459 | W20: 215.7360171 | X20: 230.8375383 | Y20: 173.4797712 | Z20: =((X20/O20)^(1/9))-1 -> 0.07 | AC20: 124.3310723 | AD20: 132.9455143 | AE20: 142.4343626 | AF20: 152.870667 | AG20: 164.3293111 | AH20: 176.8984749 | AI20: 190.6648065 | AJ20: 205.7295824 | AK20: 222.1977843 | AL20: 240.1829685 | AM20: 175.2584544 | AN20: =((AL20/AC20)^(1/9))-1 -> 0.07590422838
A21: Bill Det w/ Event | B21: -2.022164972e-06 | C21: -2.279492991e-06 | D21: -2.11429342e-06 | E21: -1.495753402e-06 | F21: -3.972257795e-07 | G21: 1.221254089e-06 | H21: 3.389113264e-06 | I21: 6.149652231e-06 | J21: 9.542463015e-06 | K21: 1.361021405e-05 | L21: 2.752563326e-06 | M21: Bill Det w/ Event | N21: Actual Coincident Peak Demand (MW) - net of DER and LDGD - With Event | O21: 125.5603261 | P21: 134.349549 | Q21: 143.7540174 | R21: 153.8167986 | S21: 164.5839745 | T21: 176.1048527 | U21: 188.4321924 | V21: 201.6224459 | W21: 215.7360171 | X21: 230.8375383 | Y21: 173.4797712 | Z21: =((X21/O21)^(1/9))-1 -> 0.07 | AC21: 124.3310723 | AD21: 132.9455143 | AE21: 142.4343626 | AF21: 152.870667 | AG21: 164.3293111 | AH21: 176.8984749 | AI21: 190.6648065 | AJ21: 205.7295824 | AK21: 222.1977843 | AL21: 240.1829685 | AM21: 175.2584544 | AN21: =((AL21/AC21)^(1/9))-1 -> 0.07590422838
A22: Event | B22: 0 | C22: 0 | D22: 0 | E22: 0 | F22: 0 | G22: 0 | H22: 0 | I22: 0 | J22: 0 | K22: 0 | L22: 0 | M22: Event | N22: Catastrophic Event Impact (MW) | O22: =-(O20-O21) -> 0 | P22: =-(P20-P21) -> 0 | Q22: 0 | R22: 0 | S22: 0 | T22: 0 | U22: 0 | V22: 0 | W22: 0 | X22: 0 | Y22: 0 | AC22: =-(AC20-AC21) -> 0 | AD22: =-(AD20-AD21) -> 0 | AE22: =-(AE20-AE21) -> 0 | AF22: =-(AF20-AF21) -> 0 | AG22: =-(AG20-AG21) -> 0 | AH22: =-(AH20-AH21) -> 0 | AI22: =-(AI20-AI21) -> 0 | AJ22: =-(AJ20-AJ21) -> 0 | AK22: =-(AK20-AK21) -> 0 | AL22: =-(AL20-AL21) -> 0 | AM22: 0
A23: DR | B23: =IF(O23<>0,(AC23-O23)/O$10,0) -> 0 | C23: 0 | D23: 0 | E23: 0 | F23: 0 | G23: 0 | H23: 0 | I23: 0 | J23: 0 | K23: 0 | L23: 0 | M23: DR | N23: DR CP Demand Savings (MW) | O23: =SUMIF(INDIRECT($O$1&"_Results!$B$1:$B$1416"), $N23, INDIRECT($O$1&"_Results!E$1:E$1416")) -> 0 | P23: =SUMIF(INDIRECT($O$1&"_Results!$B$1:$B$1416"), $N23, INDIRECT($O$1&"_Results!f$1:f$1416")) -> 0 | Q23: =SUMIF(INDIRECT($O$1&"_Results!$B$1:$B$1416"), $N23, INDIRECT($O$1&"_Results!g$1:g$1416")) -> 0 | R23: =SUMIF(INDIRECT($O$1&"_Results!$B$1:$B$1416"), $N23, INDIRECT($O$1&"_Results!h$1:h$1416")) -> 0 | S23: =SUMIF(INDIRECT($O$1&"_Results!$B$1:$B$1416"), $N23, INDIRECT($O$1&"_Results!i$1:i$1416")) -> 0 | T23: =SUMIF(INDIRECT($O$1&"_Results!$B$1:$B$1416"), $N23, INDIRECT($O$1&"_Results!j$1:j$1416")) -> 0 | U23: =SUMIF(INDIRECT($O$1&"_Results!$B$1:$B$1416"), $N23, INDIRECT($O$1&"_Results!k$1:k$1416")) -> 0 | V23: =SUMIF(INDIRECT($O$1&"_Results!$B$1:$B$1416"), $N23, INDIRECT($O$1&"_Results!L$1:L$1416")) -> 0 | W23: =SUMIF(INDIRECT($O$1&"_Results!$B$1:$B$1416"), $N23, INDIRECT($O$1&"_Results!m$1:m$1416")) -> 0 | X23: =SUMIF(INDIRECT($O$1&"_Results!$B$1:$B$1416"), $N23, INDIRECT($O$1&"_Results!n$1:n$1416")) -> 0 | Y23: =AVERAGE(O23:X23) -> 0 | AC23: =SUMIF(INDIRECT($AD$1&"_Results!$B$1:$B$1416"), $N23, INDIRECT($AD$1&"_Results!E$1:E$1416")) -> -0.880095744 | AD23: =SUMIF(INDIRECT($AD$1&"_Results!$B$1:$B$1416"), $N23, INDIRECT($AD$1&"_Results!f$1:f$1416")) -> -0.9417024461 | AE23: =SUMIF(INDIRECT($AD$1&"_Results!$B$1:$B$1416"), $N23, INDIRECT($AD$1&"_Results!g$1:g$1416")) -> -1.007621617 | AF23: =SUMIF(INDIRECT($AD$1&"_Results!$B$1:$B$1416"), $N23, INDIRECT($AD$1&"_Results!h$1:h$1416")) -> -1.078155131 | AG23: =SUMIF(INDIRECT($AD$1&"_Results!$B$1:$B$1416"), $N23, INDIRECT($AD$1&"_Results!i$1:i$1416")) -> -1.15362599 | AH23: =SUMIF(INDIRECT($AD$1&"_Results!$B$1:$B$1416"), $N23, INDIRECT($AD$1&"_Results!j$1:j$1416")) -> -1.234379809 | AI23: =SUMIF(INDIRECT($AD$1&"_Results!$B$1:$B$1416"), $N23, INDIRECT($AD$1&"_Results!k$1:k$1416")) -> -1.320786396 | AJ23: =SUMIF(INDIRECT($AD$1&"_Results!$B$1:$B$1416"), $N23, INDIRECT($AD$1&"_Results!L$1:L$1416")) -> -1.413241443 | AK23: =SUMIF(INDIRECT($AD$1&"_Results!$B$1:$B$1416"), $N23, INDIRECT($AD$1&"_Results!m$1:m$1416")) -> -1.512168344 | AL23: =SUMIF(INDIRECT($AD$1&"_Results!$B$1:$B$1416"), $N23, INDIRECT($AD$1&"_Results!n$1:n$1416")) -> -1.618020128 | AM23: =AVERAGE(AC23:AL23) -> -1.215979705
BC24: Base Case Billing Determinants - Electricity Consumption (MWh)
A25: % Change in Annual Retail Sales | CY25: =A25 -> % Change in Annual Retail Sales | DO25: =A38 -> % Change in Incurred Revenue Requirement | EG25: =A52 -> % Change in Collected Revenue | EU25: =A66 -> % Change in Average $/kWh Collected Revenue | FI25: Base Case Billing Determinants - Electricity Forecast (MWh) & Alterations | GC25: Base Case Coincident Peak Demand Forecast (MW) & Alterations
B26: =User_InputDashboard!$B$41+1 -> 2021 | C26: =B26+1 -> 2022 | D26: =C26+1 -> 2023 | E26: 2024 | F26: 2025 | G26: 2026 | H26: 2027 | I26: 2028 | J26: 2029 | K26: 2030 | L26: Average/PV | N26: Customer Characteristics (Actual) | O26: =User_InputDashboard!$B$41+1 -> 2021 | P26: =O26+1 -> 2022 | Q26: =P26+1 -> 2023 | R26: 2024 | S26: 2025 | T26: 2026 | U26: 2027 | V26: 2028 | W26: 2029 | X26: 2030 | Y26: Average/PV | Z26: CAGR | AC26: =User_InputDashboard!$B$41+1 -> 2021 | AD26: =AC26+1 -> 2022 | AE26: =AD26+1 -> 2023 | AF26: 2024 | AG26: 2025 | AH26: 2026 | AI26: 2027 | AJ26: 2028 | AK26: 2029 | AL26: 2030 | AM26: Average/PV | AN26: CAGR | BD26: =User_InputDashboard!$B$41+1 -> 2021 | BE26: =BD26+1 -> 2022 | BF26: =BE26+1 -> 2023 | BG26: 2024 | BH26: 2025 | BI26: 2026 | BJ26: 2027 | BK26: 2028 | BL26: 2029 | BM26: 2030 | CZ26: =A27 -> Class 1 | DA26: Blank | DB26: =A28 -> Class 2 | DC26: Neg1 | DD26: =A29 -> Class 3 | DE26: Neg2 | DF26: =A30 -> Class 4 | DG26: Neg3 | DH26: Incr | DI26: Start | DJ26: End | DK26: ChgSign | DL26: Row | DM26: Col | DP26: =A40 -> Fuel & Purchased Power | DQ26: Blank | DR26: =A41 -> Non-fuel O&M | DS26: Neg1 | DT26: =A42 -> PILOT | DU26: Neg2 | DV26: =A43 -> Depreciation & Debt Interest | DW26: Neg3 | DX26: =A44 -> Return & Income Tax | DY26: Neg4 | DZ26: Incr | EA26: Start | EB26: End | EC26: ChgSign | ED26: Row | EE26: Col | EH26: =A54 -> Fuel Rate Revenue | EI26: Blank | EJ26: =A55 -> Non-fuel Rate Revenue | EK26: Neg1 | EL26: =A56 -> Utility Surcharge Revenue | EM26: Neg2 | EN26: Incr | EO26: Start | EP26: End | EQ26: ChgSign | ER26: Row | ES26: Col | EV26: =A68 -> Fuel Rate | EW26: Blank | EX26: =A69 -> Non-fuel Rate | EY26: Neg1 | EZ26: =A70 -> Utility Surcharge | FA26: Neg2 | FB26: Incr | FC26: Start | FD26: End | FE26: ChgSign | FF26: Row | FG26: Col | FJ26: Load Forecast | FK26: Blank | FL26: EE Savings | FM26: Neg1 | FN26: DPV On-Site | FO26: Neg2 | FP26: LDGD | FQ26: Neg3 | FR26: EV Charging | FS26: Neg4 | FT26: Cat. Event | FU26: Neg5 | FV26: Incr | FW26: Start | FX26: End | FY26: ChgSign | FZ26: Row | GA26: Col | GD26: CP Demand Forecast | GE26: Blank | GF26: EE Savings | GG26: Neg1 | GH26: DPV On-Site | GI26: Neg2 | GJ26: LDGD | GK26: Neg3 | GL26: EV Charging | GM26: Neg4 | GN26: Cat. Event | GO26: Neg5 | GP26: Incr | GQ26: Start | GR26: End | GS26: ChgSign | GT26: Row | GU26: Col
A27: Class 1 | B27: =IF(O27<>0,(AC27-O27)/O$31,0) -> -0.004208437738 | C27: =IF(P27<>0,(AD27-P27)/P31,0) -> -0.008509686489 | D27: -0.01290031317 | E27: -0.01737633101 | F27: -0.02195350812 | G27: -0.02661211393 | H27: -0.03137185662 | I27: -0.03621827071 | J27: -0.04115551259 | K27: -0.04618623842 | L27: -0.025170409 | N27: Actual Billing Determinants (MWh) - net of DER and LDGD - With Event - Customer Class 1 | O27: =SUMIF(INDIRECT($O$1&"_Results!$B$1:$B$1416"), $N27, INDIRECT($O$1&"_Results!E$1:E$1416")) -> 238620 | P27: =SUMIF(INDIRECT($O$1&"_Results!$B$1:$B$1416"), $N27, INDIRECT($O$1&"_Results!f$1:f$1416")) -> 244585.5 | Q27: =SUMIF(INDIRECT($O$1&"_Results!$B$1:$B$1416"), $N27, INDIRECT($O$1&"_Results!g$1:g$1416")) -> 250700.1375 | R27: =SUMIF(INDIRECT($O$1&"_Results!$B$1:$B$1416"), $N27, INDIRECT($O$1&"_Results!h$1:h$1416")) -> 256967.6409 | S27: =SUMIF(INDIRECT($O$1&"_Results!$B$1:$B$1416"), $N27, INDIRECT($O$1&"_Results!i$1:i$1416")) -> 263391.832 | T27: =SUMIF(INDIRECT($O$1&"_Results!$B$1:$B$1416"), $N27, INDIRECT($O$1&"_Results!j$1:j$1416")) -> 269976.6278 | U27: =SUMIF(INDIRECT($O$1&"_Results!$B$1:$B$1416"), $N27, INDIRECT($O$1&"_Results!k$1:k$1416")) -> 276726.0435 | V27: =SUMIF(INDIRECT($O$1&"_Results!$B$1:$B$1416"), $N27, INDIRECT($O$1&"_Results!L$1:L$1416")) -> 283644.1945 | W27: =SUMIF(INDIRECT($O$1&"_Results!$B$1:$B$1416"), $N27, INDIRECT($O$1&"_Results!m$1:m$1416")) -> 290735.2994 | X27: =SUMIF(INDIRECT($O$1&"_Results!$B$1:$B$1416"), $N27, INDIRECT($O$1&"_Results!n$1:n$1416")) -> 298003.6819 | Y27: =AVERAGE(O27:X27) -> 267335.0957 | Z27: =((X27/O27)^(1/9))-1 -> 0.025 | AC27: =SUMIF(INDIRECT($AD$1&"_Results!$B$1:$B$1416"), $N27, INDIRECT($AD$1&"_Results!E$1:E$1416")) -> 236061.7328 | AD27: =SUMIF(INDIRECT($AD$1&"_Results!$B$1:$B$1416"), $N27, INDIRECT($AD$1&"_Results!f$1:f$1416")) -> 239344.0295 | AE27: =SUMIF(INDIRECT($AD$1&"_Results!$B$1:$B$1416"), $N27, INDIRECT($AD$1&"_Results!g$1:g$1416")) -> 242648.2937 | AF27: =SUMIF(INDIRECT($AD$1&"_Results!$B$1:$B$1416"), $N27, INDIRECT($AD$1&"_Results!h$1:h$1416")) -> 245976.3258 | AG27: =SUMIF(INDIRECT($AD$1&"_Results!$B$1:$B$1416"), $N27, INDIRECT($AD$1&"_Results!i$1:i$1416")) -> 249317.3297 | AH27: =SUMIF(INDIRECT($AD$1&"_Results!$B$1:$B$1416"), $N27, INDIRECT($AD$1&"_Results!j$1:j$1416")) -> 252682.959 | AI27: =SUMIF(INDIRECT($AD$1&"_Results!$B$1:$B$1416"), $N27, INDIRECT($AD$1&"_Results!k$1:k$1416")) -> 256059.5027 | AJ27: =SUMIF(INDIRECT($AD$1&"_Results!$B$1:$B$1416"), $N27, INDIRECT($AD$1&"_Results!L$1:L$1416")) -> 259455.2853 | AK27: =SUMIF(INDIRECT($AD$1&"_Results!$B$1:$B$1416"), $N27, INDIRECT($AD$1&"_Results!m$1:m$1416")) -> 262866.4629 | AL27: =SUMIF(INDIRECT($AD$1&"_Results!$B$1:$B$1416"), $N27, INDIRECT($AD$1&"_Results!n$1:n$1416")) -> 266289.9803 | AM27: =AVERAGE(AC27:AL27) -> 251070.1902 | AN27: =((AL27/AC27)^(1/9))-1 -> 0.01347807867 | BC27: =A27 -> Class 1 | BD27: =O27/1000 -> 238.62 | BE27: 244.5855 | BF27: 250.7001375 | BG27: 256.9676409 | BH27: 263.391832 | BI27: 269.9766278 | BJ27: 276.7260435 | BK27: 283.6441945 | BL27: 290.7352994 | BM27: 298.0036819 | CY27: =B26 -> 2021 | CZ27: =DH27 -> -0.004208437738 | DA27: 0 | DB27: 0 | DC27: 0 | DD27: 0 | DE27: 0 | DF27: 0 | DG27: 0 | DH27: =OFFSET($B$27,DL27,DM27) -> -0.004208437738 | DI27: 0 | DJ27: =DI27+DH27 -> -0.004208437738 | DK27: 0 | DL27: 0 | DM27: 0 | DO27: =CY27 -> 2021 | DP27: =DZ27 -> 0.01062269234 | DQ27: 0 | DR27: 0 | DS27: 0 | DT27: 0 | DU27: 0 | DV27: 0 | DW27: 0 | DX27: 0 | DY27: 0 | DZ27: =OFFSET($B$40,ED27,EE27) -> 0.01062269234 | EA27: 0 | EB27: =EA27+DZ27 -> 0.01062269234 | EC27: 0 | ED27: 0 | EE27: 0 | EG27: =CY27 -> 2021 | EH27: =EN27 -> -0.002276785803 | EI27: 0 | EJ27: 0 | EK27: 0 | EL27: 0 | EM27: 0 | EN27: =OFFSET($B$54,ER27,ES27) -> -0.002276785803 | EO27: 0 | EP27: =EO27+EN27 -> -0.002276785803 | EQ27: 0 | ER27: 0 | ES27: 0 | EU27: =EG27 -> 2021 | EV27: =FB27 -> -2.862092045e-05 | EW27: 0 | EX27: 0 | EY27: 0 | EZ27: 0 | FA27: 0 | FB27: =OFFSET($B$68,FF27,FG27) -> -2.862092045e-05 | FC27: 0 | FD27: =FC27+FB27 -> -2.862092045e-05 | FE27: 0 | FF27: 0 | FG27: 0 | FI27: =EU27 -> 2021 | FJ27: =FV27 -> 607890 | FK27: 0 | FL27: 0 | FM27: 0 | FN27: 0 | FO27: 0 | FP27: 0 | FQ27: 0 | FR27: 0 | FS27: 0 | FT27: 0 | FU27: 0 | FV27: =OFFSET($O$4,FZ27,GA27) -> 607890 | FW27: 0 | FX27: =FW27+FV27 -> 607890 | FY27: 0 | FZ27: 0 | GA27: 0 | GC27: =FI27 -> 2021 | GD27: =GP27 -> 125.5603261 | GE27: 0 | GF27: 0 | GG27: 0 | GH27: 0 | GI27: 0 | GJ27: 0 | GK27: 0 | GL27: 0 | GM27: 0 | GN27: 0 | GO27: 0 | GP27: =OFFSET($O$15,GT27,GU27) -> 125.5603261 | GQ27: 0 | GR27: =GQ27+GP27 -> 125.5603261 | GS27: 0 | GT27: 0 | GU27: 0
A28: Class 2 | B28: =IF(O28<>0,(AC28-O28)/O$31,0) -> 0.0002066031683 | C28: =IF(P28<>0,(AD28-P28)/P31,0) -> 0.0004163538668 | D28: 0.0006292627388 | E28: 0.000845339354 | F28: 0.001064592197 | G28: 0.001287028658 | H28: 0.001512655022 | I28: 0.001741476466 | J28: 0.001973497046 | K28: 0.002208719698 | L28: 0.001213406645 | N28: Actual Billing Determinants (MWh) - net of DER and LDGD - With Event - Customer Class 2 | O28: 117564 | P28: 118739.64 | Q28: 119927.0364 | R28: 121126.3068 | S28: 122337.5698 | T28: 123560.9455 | U28: 124796.555 | V28: 126044.5205 | W28: 127304.9657 | X28: 128578.0154 | Y28: =AVERAGE(O28:X28) -> 122997.9555 | Z28: 0.01 | AC28: 117689.592 | AD28: 118996.0897 | AE28: 120319.7963 | AF28: 121661.0221 | AG28: 123020.0851 | AH28: 124397.3108 | AI28: 125793.0324 | AJ28: 127207.5914 | AK28: 128641.3375 | AL28: 130094.629 | AM28: =AVERAGE(AC28:AL28) -> 123782.0486 | AN28: 0.01119683373 | BC28: =A28 -> Class 2 | BD28: 117.564 | BE28: 118.73964 | BF28: 119.9270364 | BG28: 121.1263068 | BH28: 122.3375698 | BI28: 123.5609455 | BJ28: 124.796555 | BK28: 126.0445205 | BL28: 127.3049657 | BM28: 128.5780154 | CZ28: 0 | DA28: =IF(DK28=0,IF(DI28>=0,MIN(DI28,DJ28),MAX(DI28,DJ28)),0) -> -0.004001834569 | DB28: =IF(DK28=0,IF(DA28>=0,IF(DH28>=0,DH28,-DH28),0),IF(DH28>=DJ28,DJ28,DI28)) -> 0 | DC28: =IF(DK28=0,IF(DA28>=0,0,IF(DH28>=0,-DH28,DH28)),IF(DH28>=DJ28,DI28,DJ28)) -> -0.0002066031683 | DD28: 0 | DE28: 0 | DF28: 0 | DG28: 0 | DH28: =OFFSET($B$27,DL28,DM28) -> 0.0002066031683 | DI28: =DJ27 -> -0.004208437738 | DJ28: =DI28+DH28 -> -0.004001834569 | DK28: =IF(ABS(DI28)-ABS(DH28)<0,1,0) -> 0 | DL28: =DL27+1 -> 1 | DM28: =DM27 -> 0 | DP28: 0 | DQ28: =IF(EC28=0,IF(EA28>=0,MIN(EA28,EB28),MAX(EA28,EB28)),0) -> 0.01062269234 | DR28: =IF(EC28=0,IF(DQ28>=0,IF(DZ28>=0,DZ28,-DZ28),0),IF(DZ28>=EB28,EB28,EA28)) -> 0.009160288556 | DS28: =IF(EC28=0,IF(DQ28>=0,0,IF(DZ28>=0,-DZ28,DZ28)),IF(DZ28>=EB28,EA28,EB28)) -> 0 | DT28: 0 | DU28: 0 | DV28: 0 | DW28: 0 | DX28: 0 | DY28: 0 | DZ28: =OFFSET($B$40,ED28,EE28) -> 0.009160288556 | EA28: =EB27 -> 0.01062269234 | EB28: =EA28+DZ28 -> 0.01978298089 | EC28: =IF(ABS(EA28)-ABS(DZ28)<0,1,0) -> 0 | ED28: =ED27+1 -> 1 | EE28: =EE27 -> 0 | EH28: 0 | EI28: =IF(EQ28=0,IF(EO28>=0,MIN(EO28,EP28),MAX(EO28,EP28)),0) -> 0 | EJ28: =IF(EQ28=0,IF(EI28>=0,IF(EN28>=0,EN28,-EN28),0),IF(EN28>=EP28,EP28,EO28)) -> -0.005888035669 | EK28: =IF(EQ28=0,IF(EI28>=0,0,IF(EN28>=0,-EN28,EN28)),IF(EN28>=EP28,EO28,EP28)) -> -0.002276785803 | EL28: 0 | EM28: 0 | EN28: =OFFSET($B$54,ER28,ES28) -> -0.003611249865 | EO28: =EP27 -> -0.002276785803 | EP28: =EO28+EN28 -> -0.005888035669 | EQ28: =IF(ABS(EO28)-ABS(EN28)<0,1,0) -> 1 | ER28: =ER27+1 -> 1 | ES28: =ES27 -> 0 | EV28: 0 | EW28: =IF(FE28=0,IF(FC28>=0,MIN(FC28,FD28),MAX(FC28,FD28)),0) -> 0 | EX28: =IF(FE28=0,IF(EW28>=0,IF(FB28>=0,FB28,-FB28),0),IF(FB28>=FD28,FD28,FC28)) -> -0.0004093565848 | EY28: =IF(FE28=0,IF(EW28>=0,0,IF(FB28>=0,-FB28,FB28)),IF(FB28>=FD28,FC28,FD28)) -> -2.862092045e-05 | EZ28: 0 | FA28: 0 | FB28: =OFFSET($B$68,FF28,FG28) -> -0.0003807356643 | FC28: =FD27 -> -2.862092045e-05 | FD28: =FC28+FB28 -> -0.0004093565848 | FE28: =IF(ABS(FC28)-ABS(FB28)<0,1,0) -> 1 | FF28: =FF27+1 -> 1 | FG28: =FG27 -> 0 | FJ28: 0 | FK28: =IF(FY28=0,IF(FW28>=0,MIN(FW28,FX28),MAX(FW28,FX28)),0) -> 607890 | FL28: =IF(FY28=0,IF(FK28>=0,IF(FV28>=0,FV28,-FV28),0),IF(FV28>=FX28,FX28,FW28)) -> 0 | FM28: =IF(FY28=0,IF(FK28>=0,0,IF(FV28>=0,-FV28,FV28)),IF(FV28>=FX28,FW28,FX28)) -> 0 | FN28: 0 | FO28: 0 | FP28: 0 | FQ28: 0 | FR28: 0 | FS28: 0 | FT28: 0 | FU28: 0 | FV28: 0 | FW28: =FX27 -> 607890 | FX28: 607890 | FY28: =IF(ABS(FW28)-ABS(FV28)<0,1,0) -> 0 | FZ28: =FZ27+1 -> 1 | GA28: =GA27 -> 0 | GD28: 0 | GE28: =IF(GS28=0,IF(GQ28>=0,MIN(GQ28,GR28),MAX(GQ28,GR28)),0) -> 125.5603261 | GF28: =IF(GS28=0,IF(GE28>=0,IF(GP28>=0,GP28,-GP28),0),IF(GP28>=GR28,GR28,GQ28)) -> 0 | GG28: =IF(GS28=0,IF(GE28>=0,0,IF(GP28>=0,-GP28,GP28)),IF(GP28>=GR28,GQ28,GR28)) -> 0 | GH28: 0 | GI28: 0 | GJ28: 0 | GK28: 0 | GL28: 0 | GM28: 0 | GN28: 0 | GO28: 0 | GP28: =OFFSET($O$15,GT28,GU28) -> 0 | GQ28: =GR27 -> 125.5603261 | GR28: 125.5603261 | GS28: =IF(ABS(GQ28)-ABS(GP28)<0,1,0) -> 0 | GT28: =GT27+1 -> 1 | GU28: =GU27 -> 0
A29: Class 3 | B29: =IF(O29<>0,(AC29-O29)/O$31,0) -> -0.00139785323 | C29: =IF(P29<>0,(AD29-P29)/P31,0) -> -0.002763937559 | D29: -0.004098353067 | E29: -0.005401209084 | F29: -0.00667262416 | G29: -0.007912726036 | H29: -0.00912165159 | I29: -0.01029954678 | J29: -0.0114465666 | K29: -0.01256287496 | L29: -0.007306144049 | N29: Actual Billing Determinants (MWh) - net of DER and LDGD - With Event - Customer Class 3 | O29: 182106 | P29: 183016.53 | Q29: 183931.6126 | R29: 184851.2707 | S29: 185775.5271 | T29: 186704.4047 | U29: 187637.9267 | V29: 188576.1164 | W29: 189518.9969 | X29: 190466.5919 | Y29: 186258.4977 | Z29: 0.005 | AC29: 181256.259 | AD29: 181314.1057 | AE29: 181373.5896 | AF29: 181434.7617 | AG29: 181497.6748 | AH29: 181562.3832 | AI29: 181628.9427 | AJ29: 181697.4113 | AK29: 181767.8484 | AL29: 181840.3153 | AM29: 181537.3292 | AN29: 0.0003575181272 | BC29: =A29 -> Class 3 | BD29: 182.106 | BE29: 183.01653 | BF29: 183.9316126 | BG29: 184.8512707 | BH29: 185.7755271 | BI29: 186.7044047 | BJ29: 187.6379267 | BK29: 188.5761164 | BL29: 189.5189969 | BM29: 190.4665919 | CZ29: 0 | DA29: =IF(DK29=0,IF(DI29>=0,MIN(DI29,DJ29),MAX(DI29,DJ29)),0) -> -0.004001834569 | DB29: 0 | DC29: 0 | DD29: =IF(DK29=0,IF(DA29>=0,IF(DH29>=0,DH29,-DH29),0),IF(DH29>=DJ29,DJ29,DI29)) -> 0 | DE29: =IF(DK29=0,IF(DA29>=0,0,IF(DH29>=0,-DH29,DH29)),IF(DH29>=DJ29,DI29,DJ29)) -> -0.00139785323 | DF29: 0 | DG29: 0 | DH29: =OFFSET($B$27,DL29,DM29) -> -0.00139785323 | DI29: =DJ28 -> -0.004001834569 | DJ29: =DI29+DH29 -> -0.005399687799 | DK29: =IF(ABS(DI29)-ABS(DH29)<0,1,0) -> 0 | DL29: =DL28+1 -> 2 | DM29: =DM28 -> 0 | DP29: 0 | DQ29: =IF(EC29=0,IF(EA29>=0,MIN(EA29,EB29),MAX(EA29,EB29)),0) -> 0.01978298089 | DR29: 0 | DS29: 0 | DT29: =IF(EC29=0,IF(DQ29>=0,IF(DZ29>=0,DZ29,-DZ29),0),IF(DZ29>=EB29,EB29,EA29)) -> 0 | DU29: =IF(EC29=0,IF(DQ29>=0,0,IF(DZ29>=0,-DZ29,DZ29)),IF(DZ29>=EB29,EA29,EB29)) -> 0 | DV29: 0 | DW29: 0 | DX29: 0 | DY29: 0 | DZ29: =OFFSET($B$40,ED29,EE29) -> 0 | EA29: =EB28 -> 0.01978298089 | EB29: =EA29+DZ29 -> 0.01978298089 | EC29: =IF(ABS(EA29)-ABS(DZ29)<0,1,0) -> 0 | ED29: =ED28+1 -> 2 | EE29: =EE28 -> 0 | EH29: 0 | EI29: =IF(EQ29=0,IF(EO29>=0,MIN(EO29,EP29),MAX(EO29,EP29)),0) -> 0 | EJ29: 0 | EK29: 0 | EL29: =IF(EQ29=0,IF(EI29>=0,IF(EN29>=0,EN29,-EN29),0),IF(EN29>=EP29,EP29,EO29)) -> 0.04714902578 | EM29: =IF(EQ29=0,IF(EI29>=0,0,IF(EN29>=0,-EN29,EN29)),IF(EN29>=EP29,EO29,EP29)) -> -0.005888035669 | EN29: =OFFSET($B$54,ER29,ES29) -> 0.05303706144 | EO29: =EP28 -> -0.005888035669 | EP29: =EO29+EN29 -> 0.04714902578 | EQ29: =IF(ABS(EO29)-ABS(EN29)<0,1,0) -> 1 | ER29: =ER28+1 -> 2 | ES29: =ES28 -> 0 | EV29: 0 | EW29: =IF(FE29=0,IF(FC29>=0,MIN(FC29,FD29),MAX(FC29,FD29)),0) -> 0 | EX29: 0 | EY29: 0 | EZ29: =IF(FE29=0,IF(EW29>=0,IF(FB29>=0,FB29,-FB29),0),IF(FB29>=FD29,FD29,FC29)) -> 0.05307645256 | FA29: =IF(FE29=0,IF(EW29>=0,0,IF(FB29>=0,-FB29,FB29)),IF(FB29>=FD29,FC29,FD29)) -> -0.0004093565848 | FB29: =OFFSET($B$68,FF29,FG29) -> 0.05348580914 | FC29: =FD28 -> -0.0004093565848 | FD29: =FC29+FB29 -> 0.05307645256 | FE29: =IF(ABS(FC29)-ABS(FB29)<0,1,0) -> 1 | FF29: =FF28+1 -> 2 | FG29: =FG28 -> 0 | FJ29: 0 | FK29: =IF(FY29=0,IF(FW29>=0,MIN(FW29,FX29),MAX(FW29,FX29)),0) -> 607890 | FL29: 0 | FM29: 0 | FN29: =IF(FY29=0,IF(FK29>=0,IF(FV29>=0,FV29,-FV29),0),IF(FV29>=FX29,FX29,FW29)) -> 0 | FO29: =IF(FY29=0,IF(FK29>=0,0,IF(FV29>=0,-FV29,FV29)),IF(FV29>=FX29,FW29,FX29)) -> 0 | FP29: 0 | FQ29: 0 | FR29: 0 | FS29: 0 | FT29: 0 | FU29: 0 | FV29: 0 | FW29: =FX28 -> 607890 | FX29: 607890 | FY29: =IF(ABS(FW29)-ABS(FV29)<0,1,0) -> 0 | FZ29: =FZ28+1 -> 2 | GA29: =GA28 -> 0 | GD29: 0 | GE29: =IF(GS29=0,IF(GQ29>=0,MIN(GQ29,GR29),MAX(GQ29,GR29)),0) -> 125.5603261 | GF29: 0 | GG29: 0 | GH29: =IF(GS29=0,IF(GE29>=0,IF(GP29>=0,GP29,-GP29),0),IF(GP29>=GR29,GR29,GQ29)) -> 0 | GI29: =IF(GS29=0,IF(GE29>=0,0,IF(GP29>=0,-GP29,GP29)),IF(GP29>=GR29,GQ29,GR29)) -> 0 | GJ29: 0 | GK29: 0 | GL29: 0 | GM29: 0 | GN29: 0 | GO29: 0 | GP29: 0 | GQ29: =GR28 -> 125.5603261 | GR29: 125.5603261 | GS29: =IF(ABS(GQ29)-ABS(GP29)<0,1,0) -> 0 | GT29: =GT28+1 -> 2 | GU29: =GU28 -> 0
A30: Class 4 | B30: =IF(O30<>0,(AC30-O30)/O$31,0) -> -0.0002289887973 | C30: =IF(P30<>0,(AD30-P30)/P31,0) -> -0.0004519908517 | D30: -0.0006690605163 | E30: -0.0008802532748 | F30: -0.00108562572 | G30: -0.001285235532 | H30: -0.001479141452 | I30: -0.001667403264 | J30: -0.001850081761 | K30: -0.002027238722 | L30: -0.001184788011 | N30: Actual Billing Determinants (MWh) - net of DER and LDGD - With Event - Customer Class 4 | O30: 69600 | P30: 69600 | Q30: 69600 | R30: 69600 | S30: 69600 | T30: 69600 | U30: 69600 | V30: 69600 | W30: 69600 | X30: 69600 | Y30: 69600 | Z30: 0 | AC30: 69460.8 | AD30: 69321.6 | AE30: 69182.4 | AF30: 69043.2 | AG30: 68904 | AH30: 68764.8 | AI30: 68625.6 | AJ30: 68486.4 | AK30: 68347.2 | AL30: 68208 | AM30: 68834.4 | AN30: -0.002020257044 | BC30: =A30 -> Class 4 | BD30: 69.6 | BE30: 69.6 | BF30: 69.6 | BG30: 69.6 | BH30: 69.6 | BI30: 69.6 | BJ30: 69.6 | BK30: 69.6 | BL30: 69.6 | BM30: 69.6 | CZ30: 0 | DA30: =IF(DK30=0,IF(DI30>=0,MIN(DI30,DJ30),MAX(DI30,DJ30)),0) -> -0.005399687799 | DB30: 0 | DC30: 0 | DD30: 0 | DE30: 0 | DF30: =IF(DK30=0,IF(DA30>=0,IF(DH30>=0,DH30,-DH30),0),IF(DH30>=DJ30,DJ30,DI30)) -> 0 | DG30: =IF(DK30=0,IF(DA30>=0,0,IF(DH30>=0,-DH30,DH30)),IF(DH30>=DJ30,DI30,DJ30)) -> -0.0002289887973 | DH30: =OFFSET($B$27,DL30,DM30) -> -0.0002289887973 | DI30: =DJ29 -> -0.005399687799 | DJ30: =DI30+DH30 -> -0.005628676597 | DK30: =IF(ABS(DI30)-ABS(DH30)<0,1,0) -> 0 | DL30: =DL29+1 -> 3 | DM30: 0 | DP30: 0 | DQ30: =IF(EC30=0,IF(EA30>=0,MIN(EA30,EB30),MAX(EA30,EB30)),0) -> 0.01978298089 | DR30: 0 | DS30: 0 | DT30: 0 | DU30: 0 | DV30: =IF(EC30=0,IF(DQ30>=0,IF(DZ30>=0,DZ30,-DZ30),0),IF(DZ30>=EB30,EB30,EA30)) -> 0.0006262055565 | DW30: =IF(EC30=0,IF(DQ30>=0,0,IF(DZ30>=0,-DZ30,DZ30)),IF(DZ30>=EB30,EA30,EB30)) -> 0 | DX30: 0 | DY30: 0 | DZ30: =OFFSET($B$40,ED30,EE30) -> 0.0006262055565 | EA30: =EB29 -> 0.01978298089 | EB30: =EA30+DZ30 -> 0.02040918645 | EC30: =IF(ABS(EA30)-ABS(DZ30)<0,1,0) -> 0 | ED30: =ED29+1 -> 3 | EE30: 0 | EH30: 0 | EI30: 0 | EJ30: 0 | EL30: 0 | EV30: 0 | EW30: 0 | EX30: 0 | EZ30: 0 | FJ30: 0 | FK30: =IF(FY30=0,IF(FW30>=0,MIN(FW30,FX30),MAX(FW30,FX30)),0) -> 607890 | FL30: 0 | FM30: 0 | FN30: 0 | FO30: 0 | FP30: =IF(FY30=0,IF(FK30>=0,IF(FV30>=0,FV30,-FV30),0),IF(FV30>=FX30,FX30,FW30)) -> 0 | FQ30: =IF(FY30=0,IF(FK30>=0,0,IF(FV30>=0,-FV30,FV30)),IF(FV30>=FX30,FW30,FX30)) -> 0 | FR30: 0 | FS30: 0 | FT30: 0 | FU30: 0 | FV30: 0 | FW30: =FX29 -> 607890 | FX30: 607890 | FY30: =IF(ABS(FW30)-ABS(FV30)<0,1,0) -> 0 | FZ30: =FZ29+1 -> 3 | GA30: 0 | GD30: 0 | GE30: =IF(GS30=0,IF(GQ30>=0,MIN(GQ30,GR30),MAX(GQ30,GR30)),0) -> 125.5603261 | GF30: 0 | GG30: 0 | GH30: 0 | GI30: 0 | GJ30: =IF(GS30=0,IF(GE30>=0,IF(GP30>=0,GP30,-GP30),0),IF(GP30>=GR30,GR30,GQ30)) -> 0 | GK30: =IF(GS30=0,IF(GE30>=0,0,IF(GP30>=0,-GP30,GP30)),IF(GP30>=GR30,GQ30,GR30)) -> 0 | GL30: 0 | GM30: 0 | GN30: 0 | GO30: 0 | GP30: 0 | GQ30: =GR29 -> 125.5603261 | GR30: 125.5603261 | GS30: =IF(ABS(GQ30)-ABS(GP30)<0,1,0) -> 0 | GT30: =GT29+1 -> 3 | GU30: 0
A31: Billing Determinants - Electricity (MWh) | B31: =IF(O31<>0,(AC31-O31)/O$31,0) -> -0.005628676597 | C31: =IF(P31<>0,(AD31-P31)/P$31,0) -> -0.01130926103 | D31: -0.01703846402 | E31: -0.02281245402 | F31: -0.0286471658 | G31: -0.03452304685 | H31: -0.04045999464 | I31: -0.04644374429 | J31: -0.0524786639 | K31: -0.0585676324 | L31: -0.03244793441 | N31: Total | O31: =SUM(O27:O30) -> 607890 | P31: 615941.67 | Q31: 624158.7865 | R31: 632545.2184 | S31: 641104.9289 | T31: 649841.978 | U31: 658760.5252 | V31: 667864.8314 | W31: 677159.2621 | X31: 686648.2892 | Y31: 646191.549 | Z31: 0.01362850674 | AC31: =SUM(AC27:AC30) -> 604468.3838 | AD31: 608975.8249 | AE31: 613524.0795 | AF31: 618115.3097 | AG31: 622739.0897 | AH31: 627407.4529 | AI31: 632107.0778 | AJ31: 636846.688 | AK31: 641622.8488 | AL31: 646432.9246 | AM31: 625223.968 | AN31: 0.00748566455 | CZ31: 0 | DA31: 0 | DB31: 0 | DD31: 0 | DF31: 0 | DP31: 0 | DQ31: =IF(EC31=0,IF(EA31>=0,MIN(EA31,EB31),MAX(EA31,EB31)),0) -> 0.02040918645 | DR31: 0 | DS31: 0 | DT31: 0 | DU31: 0 | DV31: 0 | DW31: 0 | DX31: =IF(EC31=0,IF(DQ31>=0,IF(DZ31>=0,DZ31,-DZ31),0),IF(DZ31>=EB31,EB31,EA31)) -> 0 | DY31: =IF(EC31=0,IF(DQ31>=0,0,IF(DZ31>=0,-DZ31,DZ31)),IF(DZ31>=EB31,EA31,EB31)) -> 0 | DZ31: =OFFSET($B$40,ED31,EE31) -> 0 | EA31: =EB30 -> 0.02040918645 | EB31: =EA31+DZ31 -> 0.02040918645 | EC31: =IF(ABS(EA31)-ABS(DZ31)<0,1,0) -> 0 | ED31: =ED30+1 -> 4 | EE31: 0 | EG31: =EG27+1 -> 2022 | EH31: =EN31 -> -0.00451955922 | EI31: 0 | EJ31: 0 | EK31: 0 | EL31: 0 | EM31: 0 | EN31: =OFFSET($B$54,ER31,ES31) -> -0.00451955922 | EO31: 0 | EP31: =EO31+EN31 -> -0.00451955922 | EQ31: 0 | ER31: 0 | ES31: =ES27+1 -> 1 | EU31: =EU27+1 -> 2022 | EV31: =FB31 -> -5.714070945e-05 | EW31: 0 | EX31: 0 | EY31: 0 | EZ31: 0 | FA31: 0 | FB31: =OFFSET($B$68,FF31,FG31) -> -5.714070945e-05 | FC31: 0 | FD31: =FC31+FB31 -> -5.714070945e-05 | FE31: 0 | FF31: 0 | FG31: =FG27+1 -> 1 | FJ31: 0 | FK31: =IF(FY31=0,IF(FW31>=0,MIN(FW31,FX31),MAX(FW31,FX31)),0) -> 607890 | FL31: 0 | FM31: 0 | FN31: 0 | FO31: 0 | FP31: 0 | FQ31: 0 | FR31: =IF(FY31=0,IF(FK31>=0,IF(FV31>=0,FV31,-FV31),0),IF(FV31>=FX31,FX31,FW31)) -> 0 | FS31: =IF(FY31=0,IF(FK31>=0,0,IF(FV31>=0,-FV31,FV31)),IF(FV31>=FX31,FW31,FX31)) -> 0 | FT31: 0 | FU31: 0 | FV31: 0 | FW31: =FX30 -> 607890 | FX31: 607890 | FY31: =IF(ABS(FW31)-ABS(FV31)<0,1,0) -> 0 | FZ31: =FZ30+1 -> 4 | GA31: 0 | GD31: 0 | GE31: =IF(GS31=0,IF(GQ31>=0,MIN(GQ31,GR31),MAX(GQ31,GR31)),0) -> 125.5603261 | GF31: 0 | GG31: 0 | GH31: 0 | GI31: 0 | GJ31: 0 | GK31: 0 | GL31: =IF(GS31=0,IF(GE31>=0,IF(GP31>=0,GP31,-GP31),0),IF(GP31>=GR31,GR31,GQ31)) -> 0 | GM31: =IF(GS31=0,IF(GE31>=0,0,IF(GP31>=0,-GP31,GP31)),IF(GP31>=GR31,GQ31,GR31)) -> 0 | GN31: 0 | GO31: 0 | GP31: 0 | GQ31: =GR30 -> 125.5603261 | GR31: 125.5603261 | GS31: =IF(ABS(GQ31)-ABS(GP31)<0,1,0) -> 0 | GT31: =GT30+1 -> 4 | GU31: 0
A32: Non-Coincident Peak Demand (kW-Mo) | B32: =IF(O32<>0,(AC32-O32)/O$32,0) -> -0.006493186334 | C32: -0.01318253939 | D32: -0.02006364979 | E32: -0.02713006115 | F32: -0.03440032061 | G32: -0.04184645983 | H32: -0.04949164981 | I32: -0.05731329456 | J32: -0.06531307677 | K32: -0.07349045013 | L32: -0.03725393041 | N32: Collected NCP Demand (kW-mos) - net of DER and LDGD - With Event | O32: =SUMIF(INDIRECT($O$1&"_Results!$B$1:$B$1416"), $N32, INDIRECT($O$1&"_Results!E$1:E$1416")) -> 2786225.477 | P32: =SUMIF(INDIRECT($O$1&"_Results!$B$1:$B$1416"), $N32, INDIRECT($O$1&"_Results!f$1:f$1416")) -> 2702845.73 | Q32: =SUMIF(INDIRECT($O$1&"_Results!$B$1:$B$1416"), $N32, INDIRECT($O$1&"_Results!g$1:g$1416")) -> 2624710.84 | R32: =SUMIF(INDIRECT($O$1&"_Results!$B$1:$B$1416"), $N32, INDIRECT($O$1&"_Results!h$1:h$1416")) -> 2551457.929 | S32: =SUMIF(INDIRECT($O$1&"_Results!$B$1:$B$1416"), $N32, INDIRECT($O$1&"_Results!i$1:i$1416")) -> 2482751.666 | T32: =SUMIF(INDIRECT($O$1&"_Results!$B$1:$B$1416"), $N32, INDIRECT($O$1&"_Results!j$1:j$1416")) -> 2418282.004 | U32: =SUMIF(INDIRECT($O$1&"_Results!$B$1:$B$1416"), $N32, INDIRECT($O$1&"_Results!k$1:k$1416")) -> 2357762.109 | V32: =SUMIF(INDIRECT($O$1&"_Results!$B$1:$B$1416"), $N32, INDIRECT($O$1&"_Results!L$1:L$1416")) -> 2300926.468 | W32: =SUMIF(INDIRECT($O$1&"_Results!$B$1:$B$1416"), $N32, INDIRECT($O$1&"_Results!m$1:m$1416")) -> 2247529.166 | X32: =SUMIF(INDIRECT($O$1&"_Results!$B$1:$B$1416"), $N32, INDIRECT($O$1&"_Results!n$1:n$1416")) -> 2197342.311 | Y32: 2466983.37 | Z32: -0.02603716676 | AC32: =SUMIF(INDIRECT($AD$1&"_Results!$B$1:$B$1416"), $N32, INDIRECT($AD$1&"_Results!E$1:E$1416")) -> 2768133.996 | AD32: =SUMIF(INDIRECT($AD$1&"_Results!$B$1:$B$1416"), $N32, INDIRECT($AD$1&"_Results!f$1:f$1416")) -> 2667215.36 | AE32: =SUMIF(INDIRECT($AD$1&"_Results!$B$1:$B$1416"), $N32, INDIRECT($AD$1&"_Results!g$1:g$1416")) -> 2572049.561 | AF32: =SUMIF(INDIRECT($AD$1&"_Results!$B$1:$B$1416"), $N32, INDIRECT($AD$1&"_Results!h$1:h$1416")) -> 2482236.719 | AG32: =SUMIF(INDIRECT($AD$1&"_Results!$B$1:$B$1416"), $N32, INDIRECT($AD$1&"_Results!i$1:i$1416")) -> 2397344.212 | AH32: =SUMIF(INDIRECT($AD$1&"_Results!$B$1:$B$1416"), $N32, INDIRECT($AD$1&"_Results!j$1:j$1416")) -> 2317085.464 | AI32: =SUMIF(INDIRECT($AD$1&"_Results!$B$1:$B$1416"), $N32, INDIRECT($AD$1&"_Results!k$1:k$1416")) -> 2241072.573 | AJ32: =SUMIF(INDIRECT($AD$1&"_Results!$B$1:$B$1416"), $N32, INDIRECT($AD$1&"_Results!L$1:L$1416")) -> 2169052.792 | AK32: =SUMIF(INDIRECT($AD$1&"_Results!$B$1:$B$1416"), $N32, INDIRECT($AD$1&"_Results!m$1:m$1416")) -> 2100736.121 | AL32: =SUMIF(INDIRECT($AD$1&"_Results!$B$1:$B$1416"), $N32, INDIRECT($AD$1&"_Results!n$1:n$1416")) -> 2035858.635 | AM32: 2375078.543 | AN32: -0.03356335293 | BC32: Coincident Peak Demand Forecast (MW) | BD32: =SUMIF(#REF!, OutputDashboard_GraphData!#REF!,#REF!) ->  | BE32: =SUMIF(#REF!, OutputDashboard_GraphData!#REF!,#REF!) ->  | BF32: =SUMIF(#REF!, OutputDashboard_GraphData!#REF!,#REF!) ->  | BG32: =SUMIF(#REF!, OutputDashboard_GraphData!#REF!,#REF!) ->  | BH32: =SUMIF(#REF!, OutputDashboard_GraphData!#REF!,#REF!) ->  | BI32: =SUMIF(#REF!, OutputDashboard_GraphData!#REF!,#REF!) ->  | BJ32: =SUMIF(#REF!, OutputDashboard_GraphData!#REF!,#REF!) ->  | BK32: =SUMIF(#REF!, OutputDashboard_GraphData!#REF!,#REF!) ->  | BL32: =SUMIF(#REF!, OutputDashboard_GraphData!#REF!,#REF!) ->  | BM32: =SUMIF(#REF!, OutputDashboard_GraphData!#REF!,#REF!) ->  | CY32: =CY27+1 -> 2022 | CZ32: =DH32 -> -0.008509686489 | DA32: 0 | DB32: 0 | DC32: 0 | DD32: 0 | DE32: 0 | DF32: 0 | DG32: 0 | DH32: =OFFSET($B$27,DL32,DM32) -> -0.008509686489 | DI32: 0 | DJ32: =DI32+DH32 -> -0.008509686489 | DK32: 0 | DL32: 0 | DM32: =DM27+1 -> 1 | DP32: 0 | DQ32: 0 | DR32: 0 | DT32: 0 | DV32: 0 | DX32: 0 | EH32: 0 | EI32: =IF(EQ32=0,IF(EO32>=0,MIN(EO32,EP32),MAX(EO32,EP32)),0) -> 0 | EJ32: =IF(EQ32=0,IF(EI32>=0,IF(EN32>=0,EN32,-EN32),0),IF(EN32>=EP32,EP32,EO32)) -> -0.01168348552 | EK32: =IF(EQ32=0,IF(EI32>=0,0,IF(EN32>=0,-EN32,EN32)),IF(EN32>=EP32,EO32,EP32)) -> -0.00451955922 | EL32: 0 | EM32: 0 | EN32: =OFFSET($B$54,ER32,ES32) -> -0.007163926301 | EO32: =EP31 -> -0.00451955922 | EP32: =EO32+EN32 -> -0.01168348552 | EQ32: =IF(ABS(EO32)-ABS(EN32)<0,1,0) -> 1 | ER32: =ER31+1 -> 1 | ES32: =ES31 -> 1 | EV32: 0 | EW32: =IF(FE32=0,IF(FC32>=0,MIN(FC32,FD32),MAX(FC32,FD32)),0) -> 0 | EX32: =IF(FE32=0,IF(EW32>=0,IF(FB32>=0,FB32,-FB32),0),IF(FB32>=FD32,FD32,FC32)) -> -0.000808767592 | EY32: =IF(FE32=0,IF(EW32>=0,0,IF(FB32>=0,-FB32,FB32)),IF(FB32>=FD32,FC32,FD32)) -> -5.714070945e-05 | EZ32: 0 | FA32: 0 | FB32: =OFFSET($B$68,FF32,FG32) -> -0.0007516268825 | FC32: =FD31 -> -5.714070945e-05 | FD32: =FC32+FB32 -> -0.000808767592 | FE32: =IF(ABS(FC32)-ABS(FB32)<0,1,0) -> 1 | FF32: =FF31+1 -> 1 | FG32: =FG31 -> 1 | FJ32: 0 | FK32: =IF(FY32=0,IF(FW32>=0,MIN(FW32,FX32),MAX(FW32,FX32)),0) -> 607890 | FL32: 0 | FM32: 0 | FN32: 0 | FO32: 0 | FP32: 0 | FQ32: 0 | FR32: 0 | FS32: =IF(FY32=0,IF(FK32>=0,0,IF(FV32>=0,-FV32,FV32)),IF(FV32>=FX32,FW32,FX32)) -> 0 | FT32: =IF(FY32=0,IF(FK32>=0,IF(FV32>=0,FV32,-FV32),0),IF(FV32>=FX32,FX32,FW32)) -> 0 | FU32: =IF(FY32=0,IF(FK32>=0,0,IF(FV32>=0,-FV32,FV32)),IF(FV32>=FX32,FW32,FX32)) -> 0 | FV32: 0 | FW32: =FX31 -> 607890 | FX32: 607890 | FY32: =IF(ABS(FW32)-ABS(FV32)<0,1,0) -> 0 | FZ32: 7 | GA32: 0 | GD32: 0 | GE32: =IF(GS32=0,IF(GQ32>=0,MIN(GQ32,GR32),MAX(GQ32,GR32)),0) -> 125.5603261 | GF32: 0 | GG32: 0 | GH32: 0 | GI32: 0 | GJ32: 0 | GK32: 0 | GL32: 0 | GM32: =IF(GS32=0,IF(GE32>=0,0,IF(GP32>=0,-GP32,GP32)),IF(GP32>=GR32,GQ32,GR32)) -> 0 | GN32: =IF(GS32=0,IF(GE32>=0,IF(GP32>=0,GP32,-GP32),0),IF(GP32>=GR32,GR32,GQ32)) -> 0 | GO32: =IF(GS32=0,IF(GE32>=0,0,IF(GP32>=0,-GP32,GP32)),IF(GP32>=GR32,GQ32,GR32)) -> 0 | GP32: 0 | GQ32: =GR31 -> 125.5603261 | GR32: 125.5603261 | GS32: =IF(ABS(GQ32)-ABS(GP32)<0,1,0) -> 0 | GT32: 7 | GU32: 0
A33: Customer Count | B33: =IF(O33<>0,(AC33-O33)/O$33,0) -> 0.1000584869 | C33: 0.09075849762 | D33: 0.08133309653 | E33: 0.07179806166 | F33: 0.06212345698 | G33: 0.05236078988 | H33: 0.04247090063 | I33: 0.03249246298 | J33: 0.02242139069 | K33: 0.01225689507 | L33: 0.05415407714 | N33: Actual Customers (#) - Net of LDGD - With Event | O33: 56770.45 | P33: 58614.2205 | Q33: 60534.15231 | R33: 62533.2038 | S33: 64614.45544 | T33: 66781.11448 | U33: 69036.51981 | V33: 71384.1471 | W33: 73827.6141 | X33: 76370.68616 | Y33: 66046.65637 | Z33: 0.03350265133 | AC33: 62450.81533 | AD33: 63933.95909 | AE33: 65457.58236 | AF33: 67022.96662 | AG33: 68628.52879 | AH33: 70277.82638 | AI33: 71968.56298 | AJ33: 73703.59386 | AK33: 75482.93188 | AL33: 77306.75365 | AM33: 69623.35209 | AN33: 0.02399468538 | BC33: =User_OutputDashboard!#REF! ->  | BD33: =SUMIF(#REF!, OutputDashboard_GraphData!#REF!,#REF!) ->  | BE33: =SUMIF(#REF!, OutputDashboard_GraphData!#REF!,#REF!) ->  | BF33: =SUMIF(#REF!, OutputDashboard_GraphData!#REF!,#REF!) ->  | BG33: =SUMIF(#REF!, OutputDashboard_GraphData!#REF!,#REF!) ->  | BH33: =SUMIF(#REF!, OutputDashboard_GraphData!#REF!,#REF!) ->  | BI33: =SUMIF(#REF!, OutputDashboard_GraphData!#REF!,#REF!) ->  | BJ33: =SUMIF(#REF!, OutputDashboard_GraphData!#REF!,#REF!) ->  | BK33: =SUMIF(#REF!, OutputDashboard_GraphData!#REF!,#REF!) ->  | BL33: =SUMIF(#REF!, OutputDashboard_GraphData!#REF!,#REF!) ->  | BM33: =SUMIF(#REF!, OutputDashboard_GraphData!#REF!,#REF!) ->  | CZ33: 0 | DA33: =IF(DK33=0,IF(DI33>=0,MIN(DI33,DJ33),MAX(DI33,DJ33)),0) -> -0.008093332622 | DB33: =IF(DK33=0,IF(DA33>=0,IF(DH33>=0,DH33,-DH33),0),IF(DH33>=DJ33,DJ33,DI33)) -> 0 | DC33: =IF(DK33=0,IF(DA33>=0,0,IF(DH33>=0,-DH33,DH33)),IF(DH33>=DJ33,DI33,DJ33)) -> -0.0004163538668 | DD33: 0 | DE33: 0 | DF33: 0 | DG33: 0 | DH33: =OFFSET($B$27,DL33,DM33) -> 0.0004163538668 | DI33: =DJ32 -> -0.008509686489 | DJ33: =DI33+DH33 -> -0.008093332622 | DK33: =IF(ABS(DI33)-ABS(DH33)<0,1,0) -> 0 | DL33: =DL32+1 -> 1 | DM33: =DM32 -> 1 | DO33: =DO27+1 -> 2022 | DP33: =DZ33 -> -0.06915024306 | DQ33: 0 | DR33: 0 | DS33: 0 | DT33: 0 | DU33: 0 | DV33: 0 | DW33: 0 | DX33: 0 | DY33: 0 | DZ33: =OFFSET($B$40,ED33,EE33) -> -0.06915024306 | EA33: 0 | EB33: =EA33+DZ33 -> -0.06915024306 | EC33: 0 | ED33: 0 | EE33: =EE27+1 -> 1 | EH33: 0 | EI33: =IF(EQ33=0,IF(EO33>=0,MIN(EO33,EP33),MAX(EO33,EP33)),0) -> 0 | EJ33: 0 | EK33: 0 | EL33: =IF(EQ33=0,IF(EI33>=0,IF(EN33>=0,EN33,-EN33),0),IF(EN33>=EP33,EP33,EO33)) -> -0.02785507248 | EM33: =IF(EQ33=0,IF(EI33>=0,0,IF(EN33>=0,-EN33,EN33)),IF(EN33>=EP33,EO33,EP33)) -> -0.01168348552 | EN33: =OFFSET($B$54,ER33,ES33) -> -0.01617158696 | EO33: =EP32 -> -0.01168348552 | EP33: =EO33+EN33 -> -0.02785507248 | EQ33: =IF(ABS(EO33)-ABS(EN33)<0,1,0) -> 1 | ER33: =ER32+1 -> 2 | ES33: =ES32 -> 1 | EV33: 0 | EW33: =IF(FE33=0,IF(FC33>=0,MIN(FC33,FD33),MAX(FC33,FD33)),0) -> 0 | EX33: 0 | EY33: 0 | EZ33: =IF(FE33=0,IF(EW33>=0,IF(FB33>=0,FB33,-FB33),0),IF(FB33>=FD33,FD33,FC33)) -> -0.01673507275 | FA33: =IF(FE33=0,IF(EW33>=0,0,IF(FB33>=0,-FB33,FB33)),IF(FB33>=FD33,FC33,FD33)) -> -0.000808767592 | FB33: =OFFSET($B$68,FF33,FG33) -> -0.01592630516 | FC33: =FD32 -> -0.000808767592 | FD33: =FC33+FB33 -> -0.01673507275 | FE33: =IF(ABS(FC33)-ABS(FB33)<0,1,0) -> 1 | FF33: =FF32+1 -> 2 | FG33: =FG32 -> 1 | FJ33: 0 | FK33: 0 | FL33: 0 | FN33: 0 | FP33: 0 | FR33: 0 | GD33: 0 | GE33: 0 | GF33: 0 | GH33: 0 | GJ33: 0 | GL33: 0
N34: Actual Coincident Peak Demand (MW) - net of DER and LDGD - With Event | O34: 125.5603261 | P34: 134.349549 | Q34: 143.7540174 | R34: 153.8167986 | S34: 164.5839745 | T34: 176.1048527 | U34: 188.4321924 | V34: 201.6224459 | W34: 215.7360171 | X34: 230.8375383 | Y34: 173.4797712 | Z34: 0.07 | AC34: 124.3310723 | AD34: 132.9455143 | AE34: 142.4343626 | AF34: 152.870667 | AG34: 164.3293111 | AH34: 176.8984749 | AI34: 190.6648065 | AJ34: 205.7295824 | AK34: 222.1977843 | AL34: 240.1829685 | AM34: 175.2584544 | AN34: 0.07590422838 | CZ34: 0 | DA34: =IF(DK34=0,IF(DI34>=0,MIN(DI34,DJ34),MAX(DI34,DJ34)),0) -> -0.008093332622 | DB34: 0 | DC34: 0 | DD34: =IF(DK34=0,IF(DA34>=0,IF(DH34>=0,DH34,-DH34),0),IF(DH34>=DJ34,DJ34,DI34)) -> 0 | DE34: =IF(DK34=0,IF(DA34>=0,0,IF(DH34>=0,-DH34,DH34)),IF(DH34>=DJ34,DI34,DJ34)) -> -0.002763937559 | DF34: 0 | DG34: 0 | DH34: =OFFSET($B$27,DL34,DM34) -> -0.002763937559 | DI34: =DJ33 -> -0.008093332622 | DJ34: =DI34+DH34 -> -0.01085727018 | DK34: =IF(ABS(DI34)-ABS(DH34)<0,1,0) -> 0 | DL34: =DL33+1 -> 2 | DM34: =DM33 -> 1 | DP34: 0 | DQ34: =IF(EC34=0,IF(EA34>=0,MIN(EA34,EB34),MAX(EA34,EB34)),0) -> 0 | DR34: =IF(EC34=0,IF(DQ34>=0,IF(DZ34>=0,DZ34,-DZ34),0),IF(DZ34>=EB34,EB34,EA34)) -> -0.145008834 | DS34: =IF(EC34=0,IF(DQ34>=0,0,IF(DZ34>=0,-DZ34,DZ34)),IF(DZ34>=EB34,EA34,EB34)) -> -0.06915024306 | DT34: 0 | DU34: 0 | DV34: 0 | DW34: 0 | DX34: 0 | DY34: 0 | DZ34: =OFFSET($B$40,ED34,EE34) -> -0.07585859092 | EA34: =EB33 -> -0.06915024306 | EB34: =EA34+DZ34 -> -0.145008834 | EC34: =IF(ABS(EA34)-ABS(DZ34)<0,1,0) -> 1 | ED34: =ED33+1 -> 1 | EE34: =EE33 -> 1 | EH34: 0 | EI34: 0 | EJ34: 0 | EL34: 0 | EV34: 0 | EW34: 0 | EX34: 0 | EZ34: 0 | FI34: =FI27+1 -> 2022 | FJ34: =FV34 -> 615941.67 | FK34: 0 | FL34: 0 | FM34: 0 | FN34: 0 | FO34: 0 | FP34: 0 | FQ34: 0 | FR34: 0 | FS34: 0 | FT34: 0 | FU34: 0 | FV34: =OFFSET($O$4,FZ34,GA34) -> 615941.67 | FW34: 0 | FX34: =FW34+FV34 -> 615941.67 | FY34: 0 | FZ34: 0 | GA34: =GA27+1 -> 1 | GC34: =GC27+1 -> 2022 | GD34: =GP34 -> 134.349549 | GE34: 0 | GF34: 0 | GG34: 0 | GH34: 0 | GI34: 0 | GJ34: 0 | GK34: 0 | GL34: 0 | GM34: 0 | GN34: 0 | GO34: 0 | GP34: =OFFSET($O$15,GT34,GU34) -> 134.349549 | GQ34: 0 | GR34: =GQ34+GP34 -> 134.349549 | GS34: 0 | GT34: 0 | GU34: =GU27+1 -> 1
N35: Forecast Use per Customer (kWh/Cust) | O35: =O4*1000/O33 -> 10707.85946 | P35: 10508.39992 | Q35: 10310.85367 | R35: 10115.34961 | S35: 9922.004673 | T35: 9730.924425 | U35: 9542.203561 | V35: 9355.926471 | W35: 9172.167764 | X35: 8990.992797 | Y35: 9783.864687 | CZ35: 0 | DA35: =IF(DK35=0,IF(DI35>=0,MIN(DI35,DJ35),MAX(DI35,DJ35)),0) -> -0.01085727018 | DB35: 0 | DC35: 0 | DD35: 0 | DE35: 0 | DF35: =IF(DK35=0,IF(DA35>=0,IF(DH35>=0,DH35,-DH35),0),IF(DH35>=DJ35,DJ35,DI35)) -> 0 | DG35: =IF(DK35=0,IF(DA35>=0,0,IF(DH35>=0,-DH35,DH35)),IF(DH35>=DJ35,DI35,DJ35)) -> -0.0004519908517 | DH35: =OFFSET($B$27,DL35,DM35) -> -0.0004519908517 | DI35: =DJ34 -> -0.01085727018 | DJ35: =DI35+DH35 -> -0.01130926103 | DK35: =IF(ABS(DI35)-ABS(DH35)<0,1,0) -> 0 | DL35: =DL34+1 -> 3 | DM35: =DM34 -> 1 | DP35: 0 | DQ35: =IF(EC35=0,IF(EA35>=0,MIN(EA35,EB35),MAX(EA35,EB35)),0) -> -0.145008834 | DR35: 0 | DS35: 0 | DT35: =IF(EC35=0,IF(DQ35>=0,IF(DZ35>=0,DZ35,-DZ35),0),IF(DZ35>=EB35,EB35,EA35)) -> 0 | DU35: =IF(EC35=0,IF(DQ35>=0,0,IF(DZ35>=0,-DZ35,DZ35)),IF(DZ35>=EB35,EA35,EB35)) -> 0 | DV35: 0 | DW35: 0 | DX35: 0 | DY35: 0 | DZ35: =OFFSET($B$40,ED35,EE35) -> 0 | EA35: =EB34 -> -0.145008834 | EB35: =EA35+DZ35 -> -0.145008834 | EC35: =IF(ABS(EA35)-ABS(DZ35)<0,1,0) -> 0 | ED35: =ED34+1 -> 2 | EE35: =EE34 -> 1 | EG35: =EG31+1 -> 2023 | EH35: =EN35 -> -0.00669118647 | EI35: 0 | EJ35: 0 | EK35: 0 | EL35: 0 | EM35: 0 | EN35: =OFFSET($B$54,ER35,ES35) -> -0.00669118647 | EO35: 0 | EP35: =EO35+EN35 -> -0.00669118647 | EQ35: 0 | ER35: 0 | ES35: =ES31+1 -> 2 | EU35: =EU31+1 -> 2023 | EV35: =FB35 -> -8.508962743e-05 | EW35: 0 | EX35: 0 | EY35: 0 | EZ35: 0 | FA35: 0 | FB35: =OFFSET($B$68,FF35,FG35) -> -8.508962743e-05 | FC35: 0 | FD35: =FC35+FB35 -> -8.508962743e-05 | FE35: 0 | FF35: 0 | FG35: =FG31+1 -> 2 | FJ35: 0 | FK35: =IF(FY35=0,IF(FW35>=0,MIN(FW35,FX35),MAX(FW35,FX35)),0) -> 615941.67 | FL35: =IF(FY35=0,IF(FK35>=0,IF(FV35>=0,FV35,-FV35),0),IF(FV35>=FX35,FX35,FW35)) -> 0 | FM35: =IF(FY35=0,IF(FK35>=0,0,IF(FV35>=0,-FV35,FV35)),IF(FV35>=FX35,FW35,FX35)) -> 0 | FN35: 0 | FO35: 0 | FP35: 0 | FQ35: 0 | FR35: 0 | FS35: 0 | FT35: 0 | FU35: 0 | FV35: 0 | FW35: =FX34 -> 615941.67 | FX35: 615941.67 | FY35: =IF(ABS(FW35)-ABS(FV35)<0,1,0) -> 0 | FZ35: =FZ34+1 -> 1 | GA35: =GA28+1 -> 1 | GD35: 0 | GE35: =IF(GS35=0,IF(GQ35>=0,MIN(GQ35,GR35),MAX(GQ35,GR35)),0) -> 134.349549 | GF35: =IF(GS35=0,IF(GE35>=0,IF(GP35>=0,GP35,-GP35),0),IF(GP35>=GR35,GR35,GQ35)) -> 0 | GG35: =IF(GS35=0,IF(GE35>=0,0,IF(GP35>=0,-GP35,GP35)),IF(GP35>=GR35,GQ35,GR35)) -> 0 | GH35: 0 | GI35: 0 | GJ35: 0 | GK35: 0 | GL35: 0 | GM35: 0 | GN35: 0 | GO35: 0 | GP35: =OFFSET($O$15,GT35,GU35) -> 0 | GQ35: =GR34 -> 134.349549 | GR35: 134.349549 | GS35: =IF(ABS(GQ35)-ABS(GP35)<0,1,0) -> 0 | GT35: =GT34+1 -> 1 | GU35: =GU28+1 -> 1
N36: DPV Production per Customer (kWh/Cust) | CZ36: 0 | DA36: 0 | DB36: 0 | DD36: 0 | DF36: 0 | DP36: 0 | DQ36: =IF(EC36=0,IF(EA36>=0,MIN(EA36,EB36),MAX(EA36,EB36)),0) -> -0.1437724599 | DR36: 0 | DS36: 0 | DT36: 0 | DU36: 0 | DV36: =IF(EC36=0,IF(DQ36>=0,IF(DZ36>=0,DZ36,-DZ36),0),IF(DZ36>=EB36,EB36,EA36)) -> 0 | DW36: =IF(EC36=0,IF(DQ36>=0,0,IF(DZ36>=0,-DZ36,DZ36)),IF(DZ36>=EB36,EA36,EB36)) -> -0.001236374026 | DX36: 0 | DY36: 0 | DZ36: =OFFSET($B$40,ED36,EE36) -> 0.001236374026 | EA36: =EB35 -> -0.145008834 | EB36: =EA36+DZ36 -> -0.1437724599 | EC36: =IF(ABS(EA36)-ABS(DZ36)<0,1,0) -> 0 | ED36: =ED35+1 -> 3 | EE36: =EE35 -> 1 | EH36: 0 | EI36: =IF(EQ36=0,IF(EO36>=0,MIN(EO36,EP36),MAX(EO36,EP36)),0) -> 0 | EJ36: =IF(EQ36=0,IF(EI36>=0,IF(EN36>=0,EN36,-EN36),0),IF(EN36>=EP36,EP36,EO36)) -> -0.01729070954 | EK36: =IF(EQ36=0,IF(EI36>=0,0,IF(EN36>=0,-EN36,EN36)),IF(EN36>=EP36,EO36,EP36)) -> -0.00669118647 | EL36: 0 | EM36: 0 | EN36: =OFFSET($B$54,ER36,ES36) -> -0.01059952307 | EO36: =EP35 -> -0.00669118647 | EP36: =EO36+EN36 -> -0.01729070954 | EQ36: =IF(ABS(EO36)-ABS(EN36)<0,1,0) -> 1 | ER36: =ER35+1 -> 1 | ES36: =ES35 -> 2 | EV36: 0 | EW36: =IF(FE36=0,IF(FC36>=0,MIN(FC36,FD36),MAX(FC36,FD36)),0) -> 0 | EX36: =IF(FE36=0,IF(EW36>=0,IF(FB36>=0,FB36,-FB36),0),IF(FB36>=FD36,FD36,FC36)) -> -0.001191941661 | EY36: =IF(FE36=0,IF(EW36>=0,0,IF(FB36>=0,-FB36,FB36)),IF(FB36>=FD36,FC36,FD36)) -> -8.508962743e-05 | EZ36: 0 | FA36: 0 | FB36: =OFFSET($B$68,FF36,FG36) -> -0.001106852033 | FC36: =FD35 -> -8.508962743e-05 | FD36: =FC36+FB36 -> -0.001191941661 | FE36: =IF(ABS(FC36)-ABS(FB36)<0,1,0) -> 1 | FF36: =FF35+1 -> 1 | FG36: =FG35 -> 2 | FJ36: 0 | FK36: =IF(FY36=0,IF(FW36>=0,MIN(FW36,FX36),MAX(FW36,FX36)),0) -> 615941.67 | FL36: 0 | FM36: 0 | FN36: =IF(FY36=0,IF(FK36>=0,IF(FV36>=0,FV36,-FV36),0),IF(FV36>=FX36,FX36,FW36)) -> 0 | FO36: =IF(FY36=0,IF(FK36>=0,0,IF(FV36>=0,-FV36,FV36)),IF(FV36>=FX36,FW36,FX36)) -> 0 | FP36: 0 | FQ36: 0 | FR36: 0 | FS36: 0 | FT36: 0 | FU36: 0 | FV36: 0 | FW36: =FX35 -> 615941.67 | FX36: 615941.67 | FY36: =IF(ABS(FW36)-ABS(FV36)<0,1,0) -> 0 | FZ36: =FZ35+1 -> 2 | GA36: 1 | GD36: 0 | GE36: =IF(GS36=0,IF(GQ36>=0,MIN(GQ36,GR36),MAX(GQ36,GR36)),0) -> 134.349549 | GF36: 0 | GG36: 0 | GH36: =IF(GS36=0,IF(GE36>=0,IF(GP36>=0,GP36,-GP36),0),IF(GP36>=GR36,GR36,GQ36)) -> 0 | GI36: =IF(GS36=0,IF(GE36>=0,0,IF(GP36>=0,-GP36,GP36)),IF(GP36>=GR36,GQ36,GR36)) -> 0 | GJ36: 0 | GK36: 0 | GL36: 0 | GM36: 0 | GN36: 0 | GO36: 0 | GP36: 0 | GQ36: =GR35 -> 134.349549 | GR36: 134.349549 | GS36: =IF(ABS(GQ36)-ABS(GP36)<0,1,0) -> 0 | GT36: =GT35+1 -> 2 | GU36: 1
CY37: =CY32+1 -> 2023 | CZ37: =DH37 -> -0.01290031317 | DA37: 0 | DB37: 0 | DC37: 0 | DD37: 0 | DE37: 0 | DF37: 0 | DG37: 0 | DH37: =OFFSET($B$27,DL37,DM37) -> -0.01290031317 | DI37: 0 | DJ37: =DI37+DH37 -> -0.01290031317 | DK37: 0 | DL37: 0 | DM37: =DM32+1 -> 2 | DP37: 0 | DQ37: =IF(EC37=0,IF(EA37>=0,MIN(EA37,EB37),MAX(EA37,EB37)),0) -> -0.1437724599 | DR37: 0 | DS37: 0 | DT37: 0 | DU37: 0 | DV37: 0 | DW37: 0 | DX37: =IF(EC37=0,IF(DQ37>=0,IF(DZ37>=0,DZ37,-DZ37),0),IF(DZ37>=EB37,EB37,EA37)) -> 0 | DY37: =IF(EC37=0,IF(DQ37>=0,0,IF(DZ37>=0,-DZ37,DZ37)),IF(DZ37>=EB37,EA37,EB37)) -> 0 | DZ37: =OFFSET($B$40,ED37,EE37) -> 0 | EA37: =EB36 -> -0.1437724599 | EB37: =EA37+DZ37 -> -0.1437724599 | EC37: =IF(ABS(EA37)-ABS(DZ37)<0,1,0) -> 0 | ED37: =ED36+1 -> 4 | EE37: =EE36 -> 1 | EH37: 0 | EI37: =IF(EQ37=0,IF(EO37>=0,MIN(EO37,EP37),MAX(EO37,EP37)),0) -> 0 | EJ37: 0 | EK37: 0 | EL37: =IF(EQ37=0,IF(EI37>=0,IF(EN37>=0,EN37,-EN37),0),IF(EN37>=EP37,EP37,EO37)) -> -0.06064305102 | EM37: =IF(EQ37=0,IF(EI37>=0,0,IF(EN37>=0,-EN37,EN37)),IF(EN37>=EP37,EO37,EP37)) -> -0.01729070954 | EN37: =OFFSET($B$54,ER37,ES37) -> -0.04335234148 | EO37: =EP36 -> -0.01729070954 | EP37: =EO37+EN37 -> -0.06064305102 | EQ37: =IF(ABS(EO37)-ABS(EN37)<0,1,0) -> 1 | ER37: =ER36+1 -> 2 | ES37: =ES36 -> 2 | EV37: 0 | EW37: =IF(FE37=0,IF(FC37>=0,MIN(FC37,FD37),MAX(FC37,FD37)),0) -> 0 | EX37: 0 | EY37: 0 | EZ37: =IF(FE37=0,IF(EW37>=0,IF(FB37>=0,FB37,-FB37),0),IF(FB37>=FD37,FD37,FC37)) -> -0.04436042043 | FA37: =IF(FE37=0,IF(EW37>=0,0,IF(FB37>=0,-FB37,FB37)),IF(FB37>=FD37,FC37,FD37)) -> -0.001191941661 | FB37: =OFFSET($B$68,FF37,FG37) -> -0.04316847877 | FC37: =FD36 -> -0.001191941661 | FD37: =FC37+FB37 -> -0.04436042043 | FE37: =IF(ABS(FC37)-ABS(FB37)<0,1,0) -> 1 | FF37: =FF36+1 -> 2 | FG37: =FG36 -> 2 | FJ37: 0 | FK37: =IF(FY37=0,IF(FW37>=0,MIN(FW37,FX37),MAX(FW37,FX37)),0) -> 615941.67 | FL37: 0 | FM37: 0 | FN37: 0 | FO37: 0 | FP37: =IF(FY37=0,IF(FK37>=0,IF(FV37>=0,FV37,-FV37),0),IF(FV37>=FX37,FX37,FW37)) -> 0 | FQ37: =IF(FY37=0,IF(FK37>=0,0,IF(FV37>=0,-FV37,FV37)),IF(FV37>=FX37,FW37,FX37)) -> 0 | FR37: 0 | FS37: 0 | FT37: 0 | FU37: 0 | FV37: 0 | FW37: =FX36 -> 615941.67 | FX37: 615941.67 | FY37: =IF(ABS(FW37)-ABS(FV37)<0,1,0) -> 0 | FZ37: =FZ36+1 -> 3 | GA37: 1 | GD37: 0 | GE37: =IF(GS37=0,IF(GQ37>=0,MIN(GQ37,GR37),MAX(GQ37,GR37)),0) -> 134.349549 | GF37: 0 | GG37: 0 | GH37: 0 | GI37: 0 | GJ37: =IF(GS37=0,IF(GE37>=0,IF(GP37>=0,GP37,-GP37),0),IF(GP37>=GR37,GR37,GQ37)) -> 0 | GK37: =IF(GS37=0,IF(GE37>=0,0,IF(GP37>=0,-GP37,GP37)),IF(GP37>=GR37,GQ37,GR37)) -> 0 | GL37: 0 | GM37: 0 | GN37: 0 | GO37: 0 | GP37: 0 | GQ37: =GR36 -> 134.349549 | GR37: 134.349549 | GS37: =IF(ABS(GQ37)-ABS(GP37)<0,1,0) -> 0 | GT37: =GT36+1 -> 3 | GU37: 1
A38: % Change in Incurred Revenue Requirement | CZ38: 0 | DA38: =IF(DK38=0,IF(DI38>=0,MIN(DI38,DJ38),MAX(DI38,DJ38)),0) -> -0.01227105043 | DB38: =IF(DK38=0,IF(DA38>=0,IF(DH38>=0,DH38,-DH38),0),IF(DH38>=DJ38,DJ38,DI38)) -> 0 | DC38: =IF(DK38=0,IF(DA38>=0,0,IF(DH38>=0,-DH38,DH38)),IF(DH38>=DJ38,DI38,DJ38)) -> -0.0006292627388 | DD38: 0 | DE38: 0 | DF38: 0 | DG38: 0 | DH38: =OFFSET($B$27,DL38,DM38) -> 0.0006292627388 | DI38: =DJ37 -> -0.01290031317 | DJ38: =DI38+DH38 -> -0.01227105043 | DK38: =IF(ABS(DI38)-ABS(DH38)<0,1,0) -> 0 | DL38: =DL37+1 -> 1 | DM38: =DM37 -> 2 | DP38: 0 | DQ38: 0 | DR38: 0 | DT38: 0 | DV38: 0 | DX38: 0 | EH38: 0 | EI38: 0 | EJ38: 0 | EL38: 0 | EP38: h | EV38: 0 | EW38: 0 | EX38: 0 | EZ38: 0 | FJ38: 0 | FK38: =IF(FY38=0,IF(FW38>=0,MIN(FW38,FX38),MAX(FW38,FX38)),0) -> 615941.67 | FL38: 0 | FM38: 0 | FN38: 0 | FO38: 0 | FP38: 0 | FQ38: 0 | FR38: =IF(FY38=0,IF(FK38>=0,IF(FV38>=0,FV38,-FV38),0),IF(FV38>=FX38,FX38,FW38)) -> 0 | FS38: =IF(FY38=0,IF(FK38>=0,0,IF(FV38>=0,-FV38,FV38)),IF(FV38>=FX38,FW38,FX38)) -> 0 | FT38: 0 | FU38: 0 | FV38: 0 | FW38: =FX37 -> 615941.67 | FX38: 615941.67 | FY38: =IF(ABS(FW38)-ABS(FV38)<0,1,0) -> 0 | FZ38: =FZ37+1 -> 4 | GA38: 1 | GD38: 0 | GE38: =IF(GS38=0,IF(GQ38>=0,MIN(GQ38,GR38),MAX(GQ38,GR38)),0) -> 134.349549 | GF38: 0 | GG38: 0 | GH38: 0 | GI38: 0 | GJ38: 0 | GK38: 0 | GL38: =IF(GS38=0,IF(GE38>=0,IF(GP38>=0,GP38,-GP38),0),IF(GP38>=GR38,GR38,GQ38)) -> 0 | GM38: =IF(GS38=0,IF(GE38>=0,0,IF(GP38>=0,-GP38,GP38)),IF(GP38>=GR38,GQ38,GR38)) -> 0 | GN38: 0 | GO38: 0 | GP38: 0 | GQ38: =GR37 -> 134.349549 | GR38: 134.349549 | GS38: =IF(ABS(GQ38)-ABS(GP38)<0,1,0) -> 0 | GT38: =GT37+1 -> 4 | GU38: 1
B39: =User_InputDashboard!$B$41+1 -> 2021 | C39: =B39+1 -> 2022 | D39: =C39+1 -> 2023 | E39: 2024 | F39: 2025 | G39: 2026 | H39: 2027 | I39: 2028 | J39: 2029 | K39: 2030 | L39: Average/PV | N39: Incurred Revenue Requirement ($M) | O39: =User_InputDashboard!$B$41+1 -> 2021 | P39: =O39+1 -> 2022 | Q39: =P39+1 -> 2023 | R39: 2024 | S39: 2025 | T39: 2026 | U39: 2027 | V39: 2028 | W39: 2029 | X39: 2030 | Y39: Average/PV | AC39: =User_InputDashboard!$B$41+1 -> 2021 | AD39: =AC39+1 -> 2022 | AE39: =AD39+1 -> 2023 | AF39: 2024 | AG39: 2025 | AH39: 2026 | AI39: 2027 | AJ39: 2028 | AK39: 2029 | AL39: 2030 | AM39: Average/PV | BD39: =User_InputDashboard!$B$41+1 -> 2021 | BE39: =BD39+1 -> 2022 | BF39: =BE39+1 -> 2023 | BG39: 2024 | BH39: 2025 | BI39: 2026 | BJ39: 2027 | BK39: 2028 | BL39: 2029 | BM39: 2030 | CZ39: 0 | DA39: =IF(DK39=0,IF(DI39>=0,MIN(DI39,DJ39),MAX(DI39,DJ39)),0) -> -0.01227105043 | DB39: 0 | DC39: 0 | DD39: =IF(DK39=0,IF(DA39>=0,IF(DH39>=0,DH39,-DH39),0),IF(DH39>=DJ39,DJ39,DI39)) -> 0 | DE39: =IF(DK39=0,IF(DA39>=0,0,IF(DH39>=0,-DH39,DH39)),IF(DH39>=DJ39,DI39,DJ39)) -> -0.004098353067 | DF39: 0 | DG39: 0 | DH39: =OFFSET($B$27,DL39,DM39) -> -0.004098353067 | DI39: =DJ38 -> -0.01227105043 | DJ39: =DI39+DH39 -> -0.0163694035 | DK39: =IF(ABS(DI39)-ABS(DH39)<0,1,0) -> 0 | DL39: =DL38+1 -> 2 | DM39: =DM38 -> 2 | DO39: =DO33+1 -> 2023 | DP39: =DZ39 -> -0.0632573506 | DQ39: 0 | DR39: 0 | DS39: 0 | DT39: 0 | DU39: 0 | DV39: 0 | DW39: 0 | DX39: 0 | DY39: 0 | DZ39: =OFFSET($B$40,ED39,EE39) -> -0.0632573506 | EA39: 0 | EB39: =EA39+DZ39 -> -0.0632573506 | EC39: 0 | ED39: 0 | EE39: =EE33+1 -> 2 | EG39: =EG35+1 -> 2024 | EH39: =EN39 -> -0.008800298641 | EI39: 0 | EJ39: 0 | EK39: 0 | EL39: 0 | EM39: 0 | EN39: =OFFSET($B$54,ER39,ES39) -> -0.008800298641 | EO39: 0 | EP39: =EO39+EN39 -> -0.008800298641 | EQ39: 0 | ER39: 0 | ES39: =ES35+1 -> 3 | EU39: =EU35+1 -> 2024 | EV39: =FB39 -> -0.0001125717714 | EW39: 0 | EX39: 0 | EY39: 0 | EZ39: 0 | FA39: 0 | FB39: =OFFSET($B$68,FF39,FG39) -> -0.0001125717714 | FC39: 0 | FD39: =FC39+FB39 -> -0.0001125717714 | FE39: 0 | FF39: 0 | FG39: =FG35+1 -> 3 | FJ39: 0 | FK39: =IF(FY39=0,IF(FW39>=0,MIN(FW39,FX39),MAX(FW39,FX39)),0) -> 615941.67 | FL39: 0 | FM39: 0 | FN39: 0 | FO39: 0 | FP39: 0 | FQ39: 0 | FR39: 0 | FS39: =IF(FY39=0,IF(FK39>=0,0,IF(FV39>=0,-FV39,FV39)),IF(FV39>=FX39,FW39,FX39)) -> 0 | FT39: =IF(FY39=0,IF(FK39>=0,IF(FV39>=0,FV39,-FV39),0),IF(FV39>=FX39,FX39,FW39)) -> 0 | FU39: =IF(FY39=0,IF(FK39>=0,0,IF(FV39>=0,-FV39,FV39)),IF(FV39>=FX39,FW39,FX39)) -> 0 | FV39: 0 | FW39: =FX38 -> 615941.67 | FX39: 615941.67 | FY39: =IF(ABS(FW39)-ABS(FV39)<0,1,0) -> 0 | FZ39: 7 | GA39: 1 | GD39: 0 | GE39: =IF(GS39=0,IF(GQ39>=0,MIN(GQ39,GR39),MAX(GQ39,GR39)),0) -> 134.349549 | GF39: 0 | GG39: 0 | GH39: 0 | GI39: 0 | GJ39: 0 | GK39: 0 | GL39: 0 | GM39: =IF(GS39=0,IF(GE39>=0,0,IF(GP39>=0,-GP39,GP39)),IF(GP39>=GR39,GQ39,GR39)) -> 0 | GN39: =IF(GS39=0,IF(GE39>=0,IF(GP39>=0,GP39,-GP39),0),IF(GP39>=GR39,GR39,GQ39)) -> 0 | GO39: =IF(GS39=0,IF(GE39>=0,0,IF(GP39>=0,-GP39,GP39)),IF(GP39>=GR39,GQ39,GR39)) -> 0 | GP39: 0 | GQ39: =GR38 -> 134.349549 | GR39: 134.349549 | GS39: =IF(ABS(GQ39)-ABS(GP39)<0,1,0) -> 0 | GT39: 7 | GU39: 1
A40: Fuel & Purchased Power | B40: =IF(O40<>0,(AC40-O40)/O46,0) -> 0.01062269234 | C40: -0.06915024306 | D40: -0.0632573506 | E40: -0.007179861616 | F40: 0.05848722928 | G40: 0.06829142046 | H40: 0.08109087754 | I40: 0.08795521335 | J40: 0.09890188811 | K40: 0.1176460539 | L40: 0.03486281596 | N40: Incurred Fuel & Purchased Power Costs ($M) | O40: =SUMIF(INDIRECT($O$1&"_Results!$B$1:$B$1416"), $N40, INDIRECT($O$1&"_Results!E$1:E$1416")) -> 104.1242623 | P40: =SUMIF(INDIRECT($O$1&"_Results!$B$1:$B$1416"), $N40, INDIRECT($O$1&"_Results!f$1:f$1416")) -> 109.7235534 | Q40: =SUMIF(INDIRECT($O$1&"_Results!$B$1:$B$1416"), $N40, INDIRECT($O$1&"_Results!g$1:g$1416")) -> 115.6348405 | R40: =SUMIF(INDIRECT($O$1&"_Results!$B$1:$B$1416"), $N40, INDIRECT($O$1&"_Results!h$1:h$1416")) -> 121.8760958 | S40: =SUMIF(INDIRECT($O$1&"_Results!$B$1:$B$1416"), $N40, INDIRECT($O$1&"_Results!i$1:i$1416")) -> 128.4663578 | T40: =SUMIF(INDIRECT($O$1&"_Results!$B$1:$B$1416"), $N40, INDIRECT($O$1&"_Results!j$1:j$1416")) -> 135.425796 | U40: =SUMIF(INDIRECT($O$1&"_Results!$B$1:$B$1416"), $N40, INDIRECT($O$1&"_Results!k$1:k$1416")) -> 142.77578 | V40: =SUMIF(INDIRECT($O$1&"_Results!$B$1:$B$1416"), $N40, INDIRECT($O$1&"_Results!L$1:L$1416")) -> 141.5474534 | W40: =SUMIF(INDIRECT($O$1&"_Results!$B$1:$B$1416"), $N40, INDIRECT($O$1&"_Results!m$1:m$1416")) -> 149.3881469 | X40: =SUMIF(INDIRECT($O$1&"_Results!$B$1:$B$1416"), $N40, INDIRECT($O$1&"_Results!n$1:n$1416")) -> 157.6770619 | Y40: =NPV(User_OutputDashboard!$P$1, O40:X40) -> 990.9294559 | AC40: =SUMIF(INDIRECT($AD$1&"_Results!$B$1:$B$1416"), $N40, INDIRECT($AD$1&"_Results!E$1:E$1416")) -> 106.7475815 | AD40: =SUMIF(INDIRECT($AD$1&"_Results!$B$1:$B$1416"), $N40, INDIRECT($AD$1&"_Results!f$1:f$1416")) -> 92.19827949 | AE40: =SUMIF(INDIRECT($AD$1&"_Results!$B$1:$B$1416"), $N40, INDIRECT($AD$1&"_Results!g$1:g$1416")) -> 99.16968045 | AF40: =SUMIF(INDIRECT($AD$1&"_Results!$B$1:$B$1416"), $N40, INDIRECT($AD$1&"_Results!h$1:h$1416")) -> 119.9552944 | AG40: =SUMIF(INDIRECT($AD$1&"_Results!$B$1:$B$1416"), $N40, INDIRECT($AD$1&"_Results!i$1:i$1416")) -> 144.5603707 | AH40: =SUMIF(INDIRECT($AD$1&"_Results!$B$1:$B$1416"), $N40, INDIRECT($AD$1&"_Results!j$1:j$1416")) -> 154.7690453 | AI40: =SUMIF(INDIRECT($AD$1&"_Results!$B$1:$B$1416"), $N40, INDIRECT($AD$1&"_Results!k$1:k$1416")) -> 166.4358253 | AJ40: =SUMIF(INDIRECT($AD$1&"_Results!$B$1:$B$1416"), $N40, INDIRECT($AD$1&"_Results!L$1:L$1416")) -> 167.5576172 | AK40: =SUMIF(INDIRECT($AD$1&"_Results!$B$1:$B$1416"), $N40, INDIRECT($AD$1&"_Results!m$1:m$1416")) -> 179.5298687 | AL40: =SUMIF(INDIRECT($AD$1&"_Results!$B$1:$B$1416"), $N40, INDIRECT($AD$1&"_Results!n$1:n$1416")) -> 194.6557829 | AM40: =NPV(User_OutputDashboard!$P$1, AC40:AL40) -> 1065.323558 | BC40: =A40 -> Fuel & Purchased Power | BD40: =O40 -> 104.1242623 | BE40: 109.7235534 | BF40: 115.6348405 | BG40: 121.8760958 | BH40: 128.4663578 | BI40: 135.425796 | BJ40: 142.77578 | BK40: 141.5474534 | BL40: 149.3881469 | BM40: 157.6770619 | CZ40: 0 | DA40: =IF(DK40=0,IF(DI40>=0,MIN(DI40,DJ40),MAX(DI40,DJ40)),0) -> -0.0163694035 | DB40: 0 | DC40: 0 | DD40: 0 | DE40: 0 | DF40: =IF(DK40=0,IF(DA40>=0,IF(DH40>=0,DH40,-DH40),0),IF(DH40>=DJ40,DJ40,DI40)) -> 0 | DG40: =IF(DK40=0,IF(DA40>=0,0,IF(DH40>=0,-DH40,DH40)),IF(DH40>=DJ40,DI40,DJ40)) -> -0.0006690605163 | DH40: =OFFSET($B$27,DL40,DM40) -> -0.0006690605163 | DI40: =DJ39 -> -0.0163694035 | DJ40: =DI40+DH40 -> -0.01703846402 | DK40: =IF(ABS(DI40)-ABS(DH40)<0,1,0) -> 0 | DL40: =DL39+1 -> 3 | DM40: =DM39 -> 2 | DP40: 0 | DQ40: =IF(EC40=0,IF(EA40>=0,MIN(EA40,EB40),MAX(EA40,EB40)),0) -> -0.0632573506 | DR40: =IF(EC40=0,IF(DQ40>=0,IF(DZ40>=0,DZ40,-DZ40),0),IF(DZ40>=EB40,EB40,EA40)) -> 0 | DS40: =IF(EC40=0,IF(DQ40>=0,0,IF(DZ40>=0,-DZ40,DZ40)),IF(DZ40>=EB40,EA40,EB40)) -> -0.02436172466 | DT40: 0 | DU40: 0 | DV40: 0 | DW40: 0 | DX40: 0 | DY40: 0 | DZ40: =OFFSET($B$40,ED40,EE40) -> -0.02436172466 | EA40: =EB39 -> -0.0632573506 | EB40: =EA40+DZ40 -> -0.08761907526 | EC40: =IF(ABS(EA40)-ABS(DZ40)<0,1,0) -> 0 | ED40: =ED39+1 -> 1 | EE40: =EE39 -> 2 | EH40: 0 | EI40: =IF(EQ40=0,IF(EO40>=0,MIN(EO40,EP40),MAX(EO40,EP40)),0) -> 0 | EJ40: =IF(EQ40=0,IF(EI40>=0,IF(EN40>=0,EN40,-EN40),0),IF(EN40>=EP40,EP40,EO40)) -> -0.02273244327 | EK40: =IF(EQ40=0,IF(EI40>=0,0,IF(EN40>=0,-EN40,EN40)),IF(EN40>=EP40,EO40,EP40)) -> -0.008800298641 | EL40: 0 | EM40: 0 | EN40: =OFFSET($B$54,ER40,ES40) -> -0.01393214463 | EO40: =EP39 -> -0.008800298641 | EP40: =EO40+EN40 -> -0.02273244327 | EQ40: =IF(ABS(EO40)-ABS(EN40)<0,1,0) -> 1 | ER40: =ER39+1 -> 1 | ES40: =ES39 -> 3 | EV40: 0 | EW40: =IF(FE40=0,IF(FC40>=0,MIN(FC40,FD40),MAX(FC40,FD40)),0) -> 0 | EX40: =IF(FE40=0,IF(EW40>=0,IF(FB40>=0,FB40,-FB40),0),IF(FB40>=FD40,FD40,FC40)) -> -0.001560834436 | EY40: =IF(FE40=0,IF(EW40>=0,0,IF(FB40>=0,-FB40,FB40)),IF(FB40>=FD40,FC40,FD40)) -> -0.0001125717714 | EZ40: 0 | FA40: 0 | FB40: =OFFSET($B$68,FF40,FG40) -> -0.001448262664 | FC40: =FD39 -> -0.0001125717714 | FD40: =FC40+FB40 -> -0.001560834436 | FE40: =IF(ABS(FC40)-ABS(FB40)<0,1,0) -> 1 | FF40: =FF39+1 -> 1 | FG40: =FG39 -> 3 | FJ40: 0 | FK40: 0 | FL40: 0 | FN40: 0 | FP40: 0 | FR40: 0 | GD40: 0 | GE40: 0 | GF40: 0 | GH40: 0 | GJ40: 0 | GL40: 0
A41: Non-fuel O&M | B41: =IF(O41+O42<>0,(AC41-O41+AC42-O42)/O46,0) -> 0.009160288556 | C41: -0.07585859092 | D41: -0.02436172466 | E41: -0.007020302884 | F41: 0.01027905711 | G41: 0.01059750497 | H41: 0.01094464673 | I41: 0.01148303239 | J41: 0.0118833367 | K41: 0.01232442569 | L41: -0.004015955276 | N41: Incurred Non-Fuel O&M Costs ($M) - net of SI component | O41: 82.08 | P41: 84.21408 | Q41: 86.40364608 | R41: 88.65014088 | S41: 90.95504454 | T41: 93.3198757 | U41: 95.74619247 | V41: 98.23559347 | W41: 100.7897189 | X41: 103.4102516 | Y41: =NPV(User_OutputDashboard!$P$1, O41:X41) -> 706.0194988 | AC41: 84.3421723 | AD41: 64.98865824 | AE41: 80.06256964 | AF41: 86.77202567 | AG41: 93.7835471 | AH41: 96.32157311 | AI41: 98.93953363 | AJ41: 101.6313621 | AK41: 104.4113305 | AL41: 107.2840874 | AM41: =NPV(User_OutputDashboard!$P$1, AC41:AL41) -> 697.4498128 | BC41: =A41 -> Non-fuel O&M | BD41: =O41+O42 -> 82.08 | BE41: 84.21408 | BF41: 86.40364608 | BG41: 88.65014088 | BH41: 90.95504454 | BI41: 93.3198757 | BJ41: 95.74619247 | BK41: 98.23559347 | BL41: 100.7897189 | BM41: 103.4102516 | CZ41: 0 | DA41: 0 | DB41: 0 | DD41: 0 | DF41: 0 | DP41: 0 | DQ41: =IF(EC41=0,IF(EA41>=0,MIN(EA41,EB41),MAX(EA41,EB41)),0) -> -0.08382033011 | DR41: 0 | DS41: 0 | DT41: =IF(EC41=0,IF(DQ41>=0,IF(DZ41>=0,DZ41,-DZ41),0),IF(DZ41>=EB41,EB41,EA41)) -> 0 | DU41: =IF(EC41=0,IF(DQ41>=0,0,IF(DZ41>=0,-DZ41,DZ41)),IF(DZ41>=EB41,EA41,EB41)) -> -0.003798745155 | DV41: 0 | DW41: 0 | DX41: 0 | DY41: 0 | DZ41: =OFFSET($B$40,ED41,EE41) -> 0.003798745155 | EA41: =EB40 -> -0.08761907526 | EB41: =EA41+DZ41 -> -0.08382033011 | EC41: =IF(ABS(EA41)-ABS(DZ41)<0,1,0) -> 0 | ED41: =ED40+1 -> 2 | EE41: =EE40 -> 2 | EH41: 0 | EI41: =IF(EQ41=0,IF(EO41>=0,MIN(EO41,EP41),MAX(EO41,EP41)),0) -> -0.008881911216 | EJ41: 0 | EK41: 0 | EL41: =IF(EQ41=0,IF(EI41>=0,IF(EN41>=0,EN41,-EN41),0),IF(EN41>=EP41,EP41,EO41)) -> 0 | EM41: =IF(EQ41=0,IF(EI41>=0,0,IF(EN41>=0,-EN41,EN41)),IF(EN41>=EP41,EO41,EP41)) -> -0.01385053205 | EN41: =OFFSET($B$54,ER41,ES41) -> 0.01385053205 | EO41: =EP40 -> -0.02273244327 | EP41: =EO41+EN41 -> -0.008881911216 | EQ41: =IF(ABS(EO41)-ABS(EN41)<0,1,0) -> 0 | ER41: =ER40+1 -> 2 | ES41: =ES40 -> 3 | EV41: 0 | EW41: =IF(FE41=0,IF(FC41>=0,MIN(FC41,FD41),MAX(FC41,FD41)),0) -> 0 | EX41: 0 | EY41: 0 | EZ41: =IF(FE41=0,IF(EW41>=0,IF(FB41>=0,FB41,-FB41),0),IF(FB41>=FD41,FD41,FC41)) -> 0.01425575147 | FA41: =IF(FE41=0,IF(EW41>=0,0,IF(FB41>=0,-FB41,FB41)),IF(FB41>=FD41,FC41,FD41)) -> -0.001560834436 | FB41: =OFFSET($B$68,FF41,FG41) -> 0.01581658591 | FC41: =FD40 -> -0.001560834436 | FD41: =FC41+FB41 -> 0.01425575147 | FE41: =IF(ABS(FC41)-ABS(FB41)<0,1,0) -> 1 | FF41: =FF40+1 -> 2 | FG41: =FG40 -> 3 | FI41: =FI34+1 -> 2023 | FJ41: =FV41 -> 624158.7865 | FK41: 0 | FL41: 0 | FM41: 0 | FN41: 0 | FO41: 0 | FP41: 0 | FQ41: 0 | FR41: 0 | FS41: 0 | FT41: 0 | FU41: 0 | FV41: =OFFSET($O$4,FZ41,GA41) -> 624158.7865 | FW41: 0 | FX41: =FW41+FV41 -> 624158.7865 | FY41: 0 | FZ41: 0 | GA41: =GA34+1 -> 2 | GC41: =GC34+1 -> 2023 | GD41: =GP41 -> 143.7540174 | GE41: 0 | GF41: 0 | GG41: 0 | GH41: 0 | GI41: 0 | GJ41: 0 | GK41: 0 | GL41: 0 | GM41: 0 | GN41: 0 | GO41: 0 | GP41: =OFFSET($O$15,GT41,GU41) -> 143.7540174 | GQ41: 0 | GR41: =GQ41+GP41 -> 143.7540174 | GS41: 0 | GT41: 0 | GU41: =GU34+1 -> 2
A42: PILOT | B42: =IF(O43<>0,(AC43-O43)/O46,0) -> 0 | C42: 0 | D42: 0.003798745155 | E42: 0 | F42: 0 | G42: 0 | H42: 0 | I42: 0 | J42: 0 | K42: 0 | L42: 0.0004002682822 | N42: Incurred Fuel and non-fuel working capital cost ($M) | O42: 0 | P42: 0 | Q42: 0 | R42: 0 | S42: 0 | T42: 0 | U42: 0 | V42: 0 | W42: 0 | X42: 0 | Y42: =NPV(User_OutputDashboard!$P$1, O42:X42) -> 0 | AC42: 0 | AD42: 0 | AE42: 0 | AF42: 0 | AG42: 0 | AH42: 0 | AI42: 0 | AJ42: 0 | AK42: 0 | AL42: 0 | AM42: =NPV(User_OutputDashboard!$P$1, AC42:AL42) -> 0 | BC42: =A42 -> PILOT | BD42: =O43 -> 0.5 | BE42: 0.5 | BF42: 0.5 | BG42: 0.5 | BH42: 0.5 | BI42: 0.5 | BJ42: 0.5 | BK42: 0.5 | BL42: 0.5 | BM42: 0.5 | CY42: =CY37+1 -> 2024 | CZ42: =DH42 -> -0.01737633101 | DA42: 0 | DB42: 0 | DC42: 0 | DD42: 0 | DE42: 0 | DF42: 0 | DG42: 0 | DH42: =OFFSET($B$27,DL42,DM42) -> -0.01737633101 | DI42: 0 | DJ42: =DI42+DH42 -> -0.01737633101 | DK42: 0 | DL42: 0 | DM42: =DM37+1 -> 3 | DP42: 0 | DQ42: =IF(EC42=0,IF(EA42>=0,MIN(EA42,EB42),MAX(EA42,EB42)),0) -> -0.08198502256 | DR42: 0 | DS42: 0 | DT42: 0 | DU42: 0 | DV42: =IF(EC42=0,IF(DQ42>=0,IF(DZ42>=0,DZ42,-DZ42),0),IF(DZ42>=EB42,EB42,EA42)) -> 0 | DW42: =IF(EC42=0,IF(DQ42>=0,0,IF(DZ42>=0,-DZ42,DZ42)),IF(DZ42>=EB42,EA42,EB42)) -> -0.001835307544 | DX42: 0 | DY42: 0 | DZ42: =OFFSET($B$40,ED42,EE42) -> 0.001835307544 | EA42: =EB41 -> -0.08382033011 | EB42: =EA42+DZ42 -> -0.08198502256 | EC42: =IF(ABS(EA42)-ABS(DZ42)<0,1,0) -> 0 | ED42: =ED41+1 -> 3 | EE42: =EE41 -> 2 | EH42: 0 | EI42: 0 | EJ42: 0 | EL42: 0 | EV42: 0 | EW42: 0 | EX42: 0 | EZ42: 0 | FJ42: 0 | FK42: =IF(FY42=0,IF(FW42>=0,MIN(FW42,FX42),MAX(FW42,FX42)),0) -> 624158.7865 | FL42: =IF(FY42=0,IF(FK42>=0,IF(FV42>=0,FV42,-FV42),0),IF(FV42>=FX42,FX42,FW42)) -> 0 | FM42: =IF(FY42=0,IF(FK42>=0,0,IF(FV42>=0,-FV42,FV42)),IF(FV42>=FX42,FW42,FX42)) -> 0 | FN42: 0 | FO42: 0 | FP42: 0 | FQ42: 0 | FR42: 0 | FS42: 0 | FT42: 0 | FU42: 0 | FV42: 0 | FW42: =FX41 -> 624158.7865 | FX42: 624158.7865 | FY42: =IF(ABS(FW42)-ABS(FV42)<0,1,0) -> 0 | FZ42: =FZ41+1 -> 1 | GA42: =GA35+1 -> 2 | GD42: 0 | GE42: =IF(GS42=0,IF(GQ42>=0,MIN(GQ42,GR42),MAX(GQ42,GR42)),0) -> 143.7540174 | GF42: =IF(GS42=0,IF(GE42>=0,IF(GP42>=0,GP42,-GP42),0),IF(GP42>=GR42,GR42,GQ42)) -> 0 | GG42: =IF(GS42=0,IF(GE42>=0,0,IF(GP42>=0,-GP42,GP42)),IF(GP42>=GR42,GQ42,GR42)) -> 0 | GH42: 0 | GI42: 0 | GJ42: 0 | GK42: 0 | GL42: 0 | GM42: 0 | GN42: 0 | GO42: 0 | GP42: =OFFSET($O$15,GT42,GU42) -> 0 | GQ42: =GR41 -> 143.7540174 | GR42: 143.7540174 | GS42: =IF(ABS(GQ42)-ABS(GP42)<0,1,0) -> 0 | GT42: =GT41+1 -> 1 | GU42: =GU35+1 -> 2
A43: Depreciation & Debt Interest | B43: =IF(O44<>0,(AC44-O44)/O46,0) -> 0.0006262055565 | C43: 0.001236374026 | D43: 0.001835307544 | E43: 0.001872967815 | F43: 0.00196922784 | G43: 0.002126914556 | H43: 0.002349032067 | I43: 0.002345717364 | J43: 0.00242301686 | K43: 0.002619862147 | L43: 0.001906668931 | N43: Incurred Payment in Lieu of Taxes ($M) | O43: 0.5 | P43: 0.5 | Q43: 0.5 | R43: 0.5 | S43: 0.5 | T43: 0.5 | U43: 0.5 | V43: 0.5 | W43: 0.5 | X43: 0.5 | Y43: =NPV(User_OutputDashboard!$P$1, O43:X43) -> 3.860867465 | AC43: 0.5 | AD43: 0.5 | AE43: 1.488769627 | AF43: 0.5 | AG43: 0.5 | AH43: 0.5 | AI43: 0.5 | AJ43: 0.5 | AK43: 0.5 | AL43: 0.5 | AM43: =NPV(User_OutputDashboard!$P$1, AC43:AL43) -> 4.715003845 | BC43: =A43 -> Depreciation & Debt Interest | BD43: 60.25 | BE43: 59 | BF43: 57.75 | BG43: 56.5 | BH43: 55.25 | BI43: 54 | BJ43: 52.75 | BK43: 55.4375 | BL43: 54.086 | BM43: 52.7345 | CZ43: 0 | DA43: =IF(DK43=0,IF(DI43>=0,MIN(DI43,DJ43),MAX(DI43,DJ43)),0) -> -0.01653099166 | DB43: =IF(DK43=0,IF(DA43>=0,IF(DH43>=0,DH43,-DH43),0),IF(DH43>=DJ43,DJ43,DI43)) -> 0 | DC43: =IF(DK43=0,IF(DA43>=0,0,IF(DH43>=0,-DH43,DH43)),IF(DH43>=DJ43,DI43,DJ43)) -> -0.000845339354 | DD43: 0 | DE43: 0 | DF43: 0 | DG43: 0 | DH43: =OFFSET($B$27,DL43,DM43) -> 0.000845339354 | DI43: =DJ42 -> -0.01737633101 | DJ43: =DI43+DH43 -> -0.01653099166 | DK43: =IF(ABS(DI43)-ABS(DH43)<0,1,0) -> 0 | DL43: =DL42+1 -> 1 | DM43: =DM42 -> 3 | DP43: 0 | DQ43: =IF(EC43=0,IF(EA43>=0,MIN(EA43,EB43),MAX(EA43,EB43)),0) -> -0.08198502256 | DR43: 0 | DS43: 0 | DT43: 0 | DU43: 0 | DV43: 0 | DW43: 0 | DX43: =IF(EC43=0,IF(DQ43>=0,IF(DZ43>=0,DZ43,-DZ43),0),IF(DZ43>=EB43,EB43,EA43)) -> 0 | DY43: =IF(EC43=0,IF(DQ43>=0,0,IF(DZ43>=0,-DZ43,DZ43)),IF(DZ43>=EB43,EA43,EB43)) -> 0 | DZ43: =OFFSET($B$40,ED43,EE43) -> 0 | EA43: =EB42 -> -0.08198502256 | EB43: =EA43+DZ43 -> -0.08198502256 | EC43: =IF(ABS(EA43)-ABS(DZ43)<0,1,0) -> 0 | ED43: =ED42+1 -> 4 | EE43: =EE42 -> 2 | EG43: =EG39+1 -> 2025 | EH43: =EN43 -> 0.09830228252 | EI43: 0 | EJ43: 0 | EK43: 0 | EL43: 0 | EM43: 0 | EN43: =OFFSET($B$54,ER43,ES43) -> 0.09830228252 | EO43: 0 | EP43: =EO43+EN43 -> 0.09830228252 | EQ43: 0 | ER43: 0 | ES43: =ES39+1 -> 4 | EU43: =EU39+1 -> 2025 | EV43: =FB43 -> 0.113548655 | EW43: 0 | EX43: 0 | EY43: 0 | EZ43: 0 | FA43: 0 | FB43: =OFFSET($B$68,FF43,FG43) -> 0.113548655 | FC43: 0 | FD43: =FC43+FB43 -> 0.113548655 | FE43: 0 | FF43: 0 | FG43: =FG39+1 -> 4 | FJ43: 0 | FK43: =IF(FY43=0,IF(FW43>=0,MIN(FW43,FX43),MAX(FW43,FX43)),0) -> 624158.7865 | FL43: 0 | FM43: 0 | FN43: =IF(FY43=0,IF(FK43>=0,IF(FV43>=0,FV43,-FV43),0),IF(FV43>=FX43,FX43,FW43)) -> 0 | FO43: =IF(FY43=0,IF(FK43>=0,0,IF(FV43>=0,-FV43,FV43)),IF(FV43>=FX43,FW43,FX43)) -> 0 | FP43: 0 | FQ43: 0 | FR43: 0 | FS43: 0 | FT43: 0 | FU43: 0 | FV43: 0 | FW43: =FX42 -> 624158.7865 | FX43: 624158.7865 | FY43: =IF(ABS(FW43)-ABS(FV43)<0,1,0) -> 0 | FZ43: =FZ42+1 -> 2 | GA43: 2 | GD43: 0 | GE43: =IF(GS43=0,IF(GQ43>=0,MIN(GQ43,GR43),MAX(GQ43,GR43)),0) -> 143.7540174 | GF43: 0 | GG43: 0 | GH43: =IF(GS43=0,IF(GE43>=0,IF(GP43>=0,GP43,-GP43),0),IF(GP43>=GR43,GR43,GQ43)) -> 0 | GI43: =IF(GS43=0,IF(GE43>=0,0,IF(GP43>=0,-GP43,GP43)),IF(GP43>=GR43,GQ43,GR43)) -> 0 | GJ43: 0 | GK43: 0 | GL43: 0 | GM43: 0 | GN43: 0 | GO43: 0 | GP43: 0 | GQ43: =GR42 -> 143.7540174 | GR43: 143.7540174 | GS43: =IF(ABS(GQ43)-ABS(GP43)<0,1,0) -> 0 | GT43: =GT42+1 -> 2 | GU43: 2
A44: Return & Income Tax | B44: =IF(O45<>0,(AC45-O45)/O46,0) -> 0 | C44: 0 | D44: 0 | E44: 0 | F44: 0 | G44: 0 | H44: 0 | I44: 0 | J44: 0 | K44: 0 | L44: 0 | N44: Incurred Depreciation & Debt Interest Cost ($M) - net of SI component | O44: 60.25 | P44: 59 | Q44: 57.75 | R44: 56.5 | S44: 55.25 | T44: 54 | U44: 52.75 | V44: 55.4375 | W44: 54.086 | X44: 52.7345 | Y44: =NPV(User_OutputDashboard!$P$1, O44:X44) -> 433.0999035 | AC44: 60.40464413 | AD44: 59.31334371 | AE44: 58.22770942 | AF44: 57.00106803 | AG44: 55.79187519 | AH44: 54.60243934 | AI44: 53.43538172 | AJ44: 56.13117682 | AK44: 54.82444799 | AL44: 53.55797982 | AM44: =NPV(User_OutputDashboard!$P$1, AC44:AL44) -> 437.1685629 | BC44: =A44 -> Return & Income Tax | BD44: 0 | BE44: 0 | BF44: 0 | BG44: 0 | BH44: 0 | BI44: 0 | BJ44: 0 | BK44: 0 | BL44: 0 | BM44: 0 | CZ44: 0 | DA44: =IF(DK44=0,IF(DI44>=0,MIN(DI44,DJ44),MAX(DI44,DJ44)),0) -> -0.01653099166 | DB44: 0 | DC44: 0 | DD44: =IF(DK44=0,IF(DA44>=0,IF(DH44>=0,DH44,-DH44),0),IF(DH44>=DJ44,DJ44,DI44)) -> 0 | DE44: =IF(DK44=0,IF(DA44>=0,0,IF(DH44>=0,-DH44,DH44)),IF(DH44>=DJ44,DI44,DJ44)) -> -0.005401209084 | DF44: 0 | DG44: 0 | DH44: =OFFSET($B$27,DL44,DM44) -> -0.005401209084 | DI44: =DJ43 -> -0.01653099166 | DJ44: =DI44+DH44 -> -0.02193220074 | DK44: =IF(ABS(DI44)-ABS(DH44)<0,1,0) -> 0 | DL44: =DL43+1 -> 2 | DM44: =DM43 -> 3 | DP44: 0 | DQ44: 0 | DR44: 0 | DT44: 0 | DV44: 0 | DX44: 0 | EH44: 0 | EI44: =IF(EQ44=0,IF(EO44>=0,MIN(EO44,EP44),MAX(EO44,EP44)),0) -> 0.09121650358 | EJ44: =IF(EQ44=0,IF(EI44>=0,IF(EN44>=0,EN44,-EN44),0),IF(EN44>=EP44,EP44,EO44)) -> 0.007085778942 | EK44: =IF(EQ44=0,IF(EI44>=0,0,IF(EN44>=0,-EN44,EN44)),IF(EN44>=EP44,EO44,EP44)) -> 0 | EL44: 0 | EM44: 0 | EN44: =OFFSET($B$54,ER44,ES44) -> -0.007085778942 | EO44: =EP43 -> 0.09830228252 | EP44: =EO44+EN44 -> 0.09121650358 | EQ44: =IF(ABS(EO44)-ABS(EN44)<0,1,0) -> 0 | ER44: =ER43+1 -> 1 | ES44: =ES43 -> 4 | EV44: 0 | EW44: =IF(FE44=0,IF(FC44>=0,MIN(FC44,FD44),MAX(FC44,FD44)),0) -> 0.113548655 | EX44: =IF(FE44=0,IF(EW44>=0,IF(FB44>=0,FB44,-FB44),0),IF(FB44>=FD44,FD44,FC44)) -> 0.008472033946 | EY44: =IF(FE44=0,IF(EW44>=0,0,IF(FB44>=0,-FB44,FB44)),IF(FB44>=FD44,FC44,FD44)) -> 0 | EZ44: 0 | FA44: 0 | FB44: =OFFSET($B$68,FF44,FG44) -> 0.008472033946 | FC44: =FD43 -> 0.113548655 | FD44: =FC44+FB44 -> 0.122020689 | FE44: =IF(ABS(FC44)-ABS(FB44)<0,1,0) -> 0 | FF44: =FF43+1 -> 1 | FG44: =FG43 -> 4 | FJ44: 0 | FK44: =IF(FY44=0,IF(FW44>=0,MIN(FW44,FX44),MAX(FW44,FX44)),0) -> 624158.7865 | FL44: 0 | FM44: 0 | FN44: 0 | FO44: 0 | FP44: =IF(FY44=0,IF(FK44>=0,IF(FV44>=0,FV44,-FV44),0),IF(FV44>=FX44,FX44,FW44)) -> 0 | FQ44: =IF(FY44=0,IF(FK44>=0,0,IF(FV44>=0,-FV44,FV44)),IF(FV44>=FX44,FW44,FX44)) -> 0 | FR44: 0 | FS44: 0 | FT44: 0 | FU44: 0 | FV44: 0 | FW44: =FX43 -> 624158.7865 | FX44: 624158.7865 | FY44: =IF(ABS(FW44)-ABS(FV44)<0,1,0) -> 0 | FZ44: =FZ43+1 -> 3 | GA44: 2 | GD44: 0 | GE44: =IF(GS44=0,IF(GQ44>=0,MIN(GQ44,GR44),MAX(GQ44,GR44)),0) -> 143.7540174 | GF44: 0 | GG44: 0 | GH44: 0 | GI44: 0 | GJ44: =IF(GS44=0,IF(GE44>=0,IF(GP44>=0,GP44,-GP44),0),IF(GP44>=GR44,GR44,GQ44)) -> 0 | GK44: =IF(GS44=0,IF(GE44>=0,0,IF(GP44>=0,-GP44,GP44)),IF(GP44>=GR44,GQ44,GR44)) -> 0 | GL44: 0 | GM44: 0 | GN44: 0 | GO44: 0 | GP44: 0 | GQ44: =GR43 -> 143.7540174 | GR44: 143.7540174 | GS44: =IF(ABS(GQ44)-ABS(GP44)<0,1,0) -> 0 | GT44: =GT43+1 -> 3 | GU44: 2
A45: Total Revenue Requirement | B45: =IF(O46<>0,(AC46-O46)/O46,0) -> 0.02040918645 | C45: -0.1437724599 | D45: -0.08198502256 | E45: -0.01232719668 | F45: 0.07073551424 | G45: 0.08101583999 | H45: 0.09438455633 | I45: 0.1017839631 | J45: 0.1132082417 | K45: 0.1325903418 | L45: 0.0331537979 | N45: Incurred Return & Income Taxes ($M) - net of SI component | O45: 0 | P45: 0 | Q45: 0 | R45: 0 | S45: 0 | T45: 0 | U45: 0 | V45: 0 | W45: 0 | X45: 0 | Y45: =NPV(User_OutputDashboard!$P$1, O45:X45) -> 0 | AC45: 0 | AD45: 0 | AE45: 0 | AF45: 0 | AG45: 0 | AH45: 0 | AI45: 0 | AJ45: 0 | AK45: 0 | AL45: 0 | AM45: =NPV(User_OutputDashboard!$P$1, AC45:AL45) -> 0 | CZ45: 0 | DA45: =IF(DK45=0,IF(DI45>=0,MIN(DI45,DJ45),MAX(DI45,DJ45)),0) -> -0.02193220074 | DB45: 0 | DC45: 0 | DD45: 0 | DE45: 0 | DF45: =IF(DK45=0,IF(DA45>=0,IF(DH45>=0,DH45,-DH45),0),IF(DH45>=DJ45,DJ45,DI45)) -> 0 | DG45: =IF(DK45=0,IF(DA45>=0,0,IF(DH45>=0,-DH45,DH45)),IF(DH45>=DJ45,DI45,DJ45)) -> -0.0008802532748 | DH45: =OFFSET($B$27,DL45,DM45) -> -0.0008802532748 | DI45: =DJ44 -> -0.02193220074 | DJ45: =DI45+DH45 -> -0.02281245402 | DK45: =IF(ABS(DI45)-ABS(DH45)<0,1,0) -> 0 | DL45: =DL44+1 -> 3 | DM45: =DM44 -> 3 | DO45: =DO39+1 -> 2024 | DP45: =DZ45 -> -0.007179861616 | DQ45: 0 | DR45: 0 | DS45: 0 | DT45: 0 | DU45: 0 | DV45: 0 | DW45: 0 | DX45: 0 | DY45: 0 | DZ45: =OFFSET($B$40,ED45,EE45) -> -0.007179861616 | EA45: 0 | EB45: =EA45+DZ45 -> -0.007179861616 | EC45: 0 | ED45: 0 | EE45: =EE39+1 -> 3 | EH45: 0 | EI45: =IF(EQ45=0,IF(EO45>=0,MIN(EO45,EP45),MAX(EO45,EP45)),0) -> 0.05923078723 | EJ45: 0 | EK45: 0 | EL45: =IF(EQ45=0,IF(EI45>=0,IF(EN45>=0,EN45,-EN45),0),IF(EN45>=EP45,EP45,EO45)) -> 0.03198571635 | EM45: =IF(EQ45=0,IF(EI45>=0,0,IF(EN45>=0,-EN45,EN45)),IF(EN45>=EP45,EO45,EP45)) -> 0 | EN45: =OFFSET($B$54,ER45,ES45) -> -0.03198571635 | EO45: =EP44 -> 0.09121650358 | EP45: =EO45+EN45 -> 0.05923078723 | EQ45: =IF(ABS(EO45)-ABS(EN45)<0,1,0) -> 0 | ER45: =ER44+1 -> 2 | ES45: =ES44 -> 4 | EV45: 0 | EW45: =IF(FE45=0,IF(FC45>=0,MIN(FC45,FD45),MAX(FC45,FD45)),0) -> 0.09046965216 | EX45: 0 | EY45: 0 | EZ45: =IF(FE45=0,IF(EW45>=0,IF(FB45>=0,FB45,-FB45),0),IF(FB45>=FD45,FD45,FC45)) -> 0.03155103681 | FA45: =IF(FE45=0,IF(EW45>=0,0,IF(FB45>=0,-FB45,FB45)),IF(FB45>=FD45,FC45,FD45)) -> 0 | FB45: =OFFSET($B$68,FF45,FG45) -> -0.03155103681 | FC45: =FD44 -> 0.122020689 | FD45: =FC45+FB45 -> 0.09046965216 | FE45: =IF(ABS(FC45)-ABS(FB45)<0,1,0) -> 0 | FF45: =FF44+1 -> 2 | FG45: =FG44 -> 4 | FJ45: 0 | FK45: =IF(FY45=0,IF(FW45>=0,MIN(FW45,FX45),MAX(FW45,FX45)),0) -> 624158.7865 | FL45: 0 | FM45: 0 | FN45: 0 | FO45: 0 | FP45: 0 | FQ45: 0 | FR45: =IF(FY45=0,IF(FK45>=0,IF(FV45>=0,FV45,-FV45),0),IF(FV45>=FX45,FX45,FW45)) -> 0 | FS45: =IF(FY45=0,IF(FK45>=0,0,IF(FV45>=0,-FV45,FV45)),IF(FV45>=FX45,FW45,FX45)) -> 0 | FT45: 0 | FU45: 0 | FV45: 0 | FW45: =FX44 -> 624158.7865 | FX45: 624158.7865 | FY45: =IF(ABS(FW45)-ABS(FV45)<0,1,0) -> 0 | FZ45: =FZ44+1 -> 4 | GA45: 2 | GD45: 0 | GE45: =IF(GS45=0,IF(GQ45>=0,MIN(GQ45,GR45),MAX(GQ45,GR45)),0) -> 143.7540174 | GF45: 0 | GG45: 0 | GH45: 0 | GI45: 0 | GJ45: 0 | GK45: 0 | GL45: =IF(GS45=0,IF(GE45>=0,IF(GP45>=0,GP45,-GP45),0),IF(GP45>=GR45,GR45,GQ45)) -> 0 | GM45: =IF(GS45=0,IF(GE45>=0,0,IF(GP45>=0,-GP45,GP45)),IF(GP45>=GR45,GQ45,GR45)) -> 0 | GN45: 0 | GO45: 0 | GP45: 0 | GQ45: =GR44 -> 143.7540174 | GR45: 143.7540174 | GS45: =IF(ABS(GQ45)-ABS(GP45)<0,1,0) -> 0 | GT45: =GT44+1 -> 4 | GU45: 2
N46: Total RR - incurred basis ($M) | O46: 246.9542623 | P46: 253.4376334 | Q46: 260.2884866 | R46: 267.5262367 | S46: 275.1714023 | T46: 283.2456717 | U46: 291.7719724 | V46: 295.7205469 | W46: 304.7638658 | X46: 314.3218134 | Y46: =NPV(User_OutputDashboard!$P$1, O46:X46) -> 2133.909726 | AC46: 251.9943979 | AD46: 217.0002814 | AE46: 238.9487291 | AF46: 264.2283881 | AG46: 294.635793 | AH46: 306.1930578 | AI46: 319.3107406 | AJ46: 325.8201561 | AK46: 339.2656472 | AL46: 355.9978501 | AM46: =NPV(User_OutputDashboard!$P$1, AC46:AL46) -> 2204.656937 | CZ46: 0 | DA46: 0 | DB46: 0 | DD46: 0 | DF46: 0 | DP46: 0 | DQ46: =IF(EC46=0,IF(EA46>=0,MIN(EA46,EB46),MAX(EA46,EB46)),0) -> -0.007179861616 | DR46: =IF(EC46=0,IF(DQ46>=0,IF(DZ46>=0,DZ46,-DZ46),0),IF(DZ46>=EB46,EB46,EA46)) -> 0 | DS46: =IF(EC46=0,IF(DQ46>=0,0,IF(DZ46>=0,-DZ46,DZ46)),IF(DZ46>=EB46,EA46,EB46)) -> -0.007020302884 | DT46: 0 | DU46: 0 | DV46: 0 | DW46: 0 | DX46: 0 | DY46: 0 | DZ46: =OFFSET($B$40,ED46,EE46) -> -0.007020302884 | EA46: =EB45 -> -0.007179861616 | EB46: =EA46+DZ46 -> -0.0142001645 | EC46: =IF(ABS(EA46)-ABS(DZ46)<0,1,0) -> 0 | ED46: =ED45+1 -> 1 | EE46: =EE45 -> 3 | EH46: 0 | EI46: 0 | EJ46: 0 | EL46: 0 | EV46: 0 | EW46: 0 | EX46: 0 | EZ46: 0 | FJ46: 0 | FK46: =IF(FY46=0,IF(FW46>=0,MIN(FW46,FX46),MAX(FW46,FX46)),0) -> 624158.7865 | FL46: 0 | FM46: 0 | FN46: 0 | FO46: 0 | FP46: 0 | FQ46: 0 | FR46: 0 | FS46: =IF(FY46=0,IF(FK46>=0,0,IF(FV46>=0,-FV46,FV46)),IF(FV46>=FX46,FW46,FX46)) -> 0 | FT46: =IF(FY46=0,IF(FK46>=0,IF(FV46>=0,FV46,-FV46),0),IF(FV46>=FX46,FX46,FW46)) -> 0 | FU46: =IF(FY46=0,IF(FK46>=0,0,IF(FV46>=0,-FV46,FV46)),IF(FV46>=FX46,FW46,FX46)) -> 0 | FV46: 0 | FW46: =FX45 -> 624158.7865 | FX46: 624158.7865 | FY46: =IF(ABS(FW46)-ABS(FV46)<0,1,0) -> 0 | FZ46: 7 | GA46: 2 | GD46: 0 | GE46: =IF(GS46=0,IF(GQ46>=0,MIN(GQ46,GR46),MAX(GQ46,GR46)),0) -> 143.7540174 | GF46: 0 | GG46: 0 | GH46: 0 | GI46: 0 | GJ46: 0 | GK46: 0 | GL46: 0 | GM46: =IF(GS46=0,IF(GE46>=0,0,IF(GP46>=0,-GP46,GP46)),IF(GP46>=GR46,GQ46,GR46)) -> 0 | GN46: =IF(GS46=0,IF(GE46>=0,IF(GP46>=0,GP46,-GP46),0),IF(GP46>=GR46,GR46,GQ46)) -> 0 | GO46: =IF(GS46=0,IF(GE46>=0,0,IF(GP46>=0,-GP46,GP46)),IF(GP46>=GR46,GQ46,GR46)) -> 0 | GP46: 0 | GQ46: =GR45 -> 143.7540174 | GR46: 143.7540174 | GS46: =IF(ABS(GQ46)-ABS(GP46)<0,1,0) -> 0 | GT46: 7 | GU46: 2
N47: =N40 -> Incurred Fuel & Purchased Power Costs ($M) | O47: =O40/O$46 -> 0.421633793 | P47: =P40/P$46 -> 0.4329410433 | Q47: 0.4442564557 | R47: 0.4555668906 | S47: 0.4668594073 | T47: 0.4781213256 | U47: 0.4893402844 | V47: 0.4786527514 | W47: 0.4901767029 | X47: 0.5016421232 | Y47: =AVERAGE(O47:X47) -> 0.4659190777 | AC47: =AC40/AC$46 -> 0.4236109309 | AD47: =AD40/AD$46 -> 0.424876313 | AE47: 0.4150249336 | AF47: 0.4539833713 | AG47: 0.4906409002 | AH47: 0.5054622938 | AI47: 0.5212346598 | AJ47: 0.5142641241 | AK47: 0.5291719635 | AL47: 0.546789209 | AM47: =AVERAGE(AC47:AL47) -> 0.4825058699 | CY47: =CY42+1 -> 2025 | CZ47: =DH47 -> -0.02195350812 | DA47: 0 | DB47: 0 | DC47: 0 | DD47: 0 | DE47: 0 | DF47: 0 | DG47: 0 | DH47: =OFFSET($B$27,DL47,DM47) -> -0.02195350812 | DI47: 0 | DJ47: =DI47+DH47 -> -0.02195350812 | DK47: 0 | DL47: 0 | DM47: =DM42+1 -> 4 | DP47: 0 | DQ47: =IF(EC47=0,IF(EA47>=0,MIN(EA47,EB47),MAX(EA47,EB47)),0) -> -0.0142001645 | DR47: 0 | DS47: 0 | DT47: =IF(EC47=0,IF(DQ47>=0,IF(DZ47>=0,DZ47,-DZ47),0),IF(DZ47>=EB47,EB47,EA47)) -> 0 | DU47: =IF(EC47=0,IF(DQ47>=0,0,IF(DZ47>=0,-DZ47,DZ47)),IF(DZ47>=EB47,EA47,EB47)) -> 0 | DV47: 0 | DW47: 0 | DX47: 0 | DY47: 0 | DZ47: =OFFSET($B$40,ED47,EE47) -> 0 | EA47: =EB46 -> -0.0142001645 | EB47: =EA47+DZ47 -> -0.0142001645 | EC47: =IF(ABS(EA47)-ABS(DZ47)<0,1,0) -> 0 | ED47: =ED46+1 -> 2 | EE47: =EE46 -> 3 | EG47: =EG43+1 -> 2026 | EH47: =EN47 -> 0.053706472 | EI47: 0 | EJ47: 0 | EK47: 0 | EL47: 0 | EM47: 0 | EN47: =OFFSET($B$54,ER47,ES47) -> 0.053706472 | EO47: 0 | EP47: =EO47+EN47 -> 0.053706472 | EQ47: 0 | ER47: 0 | ES47: =ES43+1 -> 5 | EU47: =EU43+1 -> 2026 | EV47: =FB47 -> 0.07190639609 | EW47: 0 | EX47: 0 | EY47: 0 | EZ47: 0 | FA47: 0 | FB47: =OFFSET($B$68,FF47,FG47) -> 0.07190639609 | FC47: 0 | FD47: =FC47+FB47 -> 0.07190639609 | FE47: 0 | FF47: 0 | FG47: =FG43+1 -> 5 | FJ47: 0 | FK47: 0 | FL47: 0 | FN47: 0 | FP47: 0 | FR47: 0 | GD47: 0 | GE47: 0 | GF47: 0 | GH47: 0 | GJ47: 0 | GL47: 0
N48: =N41 -> Incurred Non-Fuel O&M Costs ($M) - net of SI component | O48: =O41/O$46 -> 0.332369238 | P48: =P41/P$46 -> 0.3322871937 | Q48: 0.3319533922 | R48: 0.3313698947 | S48: 0.3305395974 | T48: 0.329466202 | U48: 0.3281541804 | V48: 0.3321906256 | W48: 0.3307141371 | X48: 0.32899483 | Y48: =AVERAGE(O48:X48) -> 0.3308039291 | AC48: =AC41/AC$46 -> 0.3346986005 | AD48: =AD41/AD$46 -> 0.2994865159 | AE48: 0.3350617094 | AF48: 0.3283978163 | AG48: 0.3183033064 | AH48: 0.3145779131 | AI48: 0.309853447 | AJ48: 0.3119247235 | AK48: 0.3077568607 | AL48: 0.3013616161 | AM48: =AVERAGE(AC48:AL48) -> 0.3161422509 | CZ48: 0 | DA48: =IF(DK48=0,IF(DI48>=0,MIN(DI48,DJ48),MAX(DI48,DJ48)),0) -> -0.02088891592 | DB48: =IF(DK48=0,IF(DA48>=0,IF(DH48>=0,DH48,-DH48),0),IF(DH48>=DJ48,DJ48,DI48)) -> 0 | DC48: =IF(DK48=0,IF(DA48>=0,0,IF(DH48>=0,-DH48,DH48)),IF(DH48>=DJ48,DI48,DJ48)) -> -0.001064592197 | DD48: 0 | DE48: 0 | DF48: 0 | DG48: 0 | DH48: =OFFSET($B$27,DL48,DM48) -> 0.001064592197 | DI48: =DJ47 -> -0.02195350812 | DJ48: =DI48+DH48 -> -0.02088891592 | DK48: =IF(ABS(DI48)-ABS(DH48)<0,1,0) -> 0 | DL48: =DL47+1 -> 1 | DM48: =DM47 -> 4 | DP48: 0 | DQ48: =IF(EC48=0,IF(EA48>=0,MIN(EA48,EB48),MAX(EA48,EB48)),0) -> -0.01232719668 | DR48: 0 | DS48: 0 | DT48: 0 | DU48: 0 | DV48: =IF(EC48=0,IF(DQ48>=0,IF(DZ48>=0,DZ48,-DZ48),0),IF(DZ48>=EB48,EB48,EA48)) -> 0 | DW48: =IF(EC48=0,IF(DQ48>=0,0,IF(DZ48>=0,-DZ48,DZ48)),IF(DZ48>=EB48,EA48,EB48)) -> -0.001872967815 | DX48: 0 | DY48: 0 | DZ48: =OFFSET($B$40,ED48,EE48) -> 0.001872967815 | EA48: =EB47 -> -0.0142001645 | EB48: =EA48+DZ48 -> -0.01232719668 | EC48: =IF(ABS(EA48)-ABS(DZ48)<0,1,0) -> 0 | ED48: =ED47+1 -> 3 | EE48: =EE47 -> 3 | EH48: 0 | EI48: =IF(EQ48=0,IF(EO48>=0,MIN(EO48,EP48),MAX(EO48,EP48)),0) -> 0.05254922649 | EJ48: =IF(EQ48=0,IF(EI48>=0,IF(EN48>=0,EN48,-EN48),0),IF(EN48>=EP48,EP48,EO48)) -> 0.001157245518 | EK48: =IF(EQ48=0,IF(EI48>=0,0,IF(EN48>=0,-EN48,EN48)),IF(EN48>=EP48,EO48,EP48)) -> 0 | EL48: 0 | EM48: 0 | EN48: =OFFSET($B$54,ER48,ES48) -> -0.001157245518 | EO48: =EP47 -> 0.053706472 | EP48: =EO48+EN48 -> 0.05254922649 | EQ48: =IF(ABS(EO48)-ABS(EN48)<0,1,0) -> 0 | ER48: =ER47+1 -> 1 | ES48: =ES47 -> 5 | EV48: 0 | EW48: =IF(FE48=0,IF(FC48>=0,MIN(FC48,FD48),MAX(FC48,FD48)),0) -> 0.07190639609 | EX48: =IF(FE48=0,IF(EW48>=0,IF(FB48>=0,FB48,-FB48),0),IF(FB48>=FD48,FD48,FC48)) -> 0.01741445167 | EY48: =IF(FE48=0,IF(EW48>=0,0,IF(FB48>=0,-FB48,FB48)),IF(FB48>=FD48,FC48,FD48)) -> 0 | EZ48: 0 | FA48: 0 | FB48: =OFFSET($B$68,FF48,FG48) -> 0.01741445167 | FC48: =FD47 -> 0.07190639609 | FD48: =FC48+FB48 -> 0.08932084776 | FE48: =IF(ABS(FC48)-ABS(FB48)<0,1,0) -> 0 | FF48: =FF47+1 -> 1 | FG48: =FG47 -> 5 | FI48: =FI41+1 -> 2024 | FJ48: =FV48 -> 632545.2184 | FK48: 0 | FL48: 0 | FM48: 0 | FN48: 0 | FO48: 0 | FP48: 0 | FQ48: 0 | FR48: 0 | FS48: 0 | FT48: 0 | FU48: 0 | FV48: =OFFSET($O$4,FZ48,GA48) -> 632545.2184 | FW48: 0 | FX48: =FW48+FV48 -> 632545.2184 | FY48: 0 | FZ48: 0 | GA48: =GA41+1 -> 3 | GC48: =GC41+1 -> 2024 | GD48: =GP48 -> 153.8167986 | GE48: 0 | GF48: 0 | GG48: 0 | GH48: 0 | GI48: 0 | GJ48: 0 | GK48: 0 | GL48: 0 | GM48: 0 | GN48: 0 | GO48: 0 | GP48: =OFFSET($O$15,GT48,GU48) -> 153.8167986 | GQ48: 0 | GR48: =GQ48+GP48 -> 153.8167986 | GS48: 0 | GT48: 0 | GU48: =GU41+1 -> 3
N49: =N42 -> Incurred Fuel and non-fuel working capital cost ($M) | O49: =O42/O$46 -> 0 | P49: =P42/P$46 -> 0 | Q49: 0 | R49: 0 | S49: 0 | T49: 0 | U49: 0 | V49: 0 | W49: 0 | X49: 0 | Y49: 0 | AC49: =AC42/AC$46 -> 0 | AD49: =AD42/AD$46 -> 0 | AE49: 0 | AF49: 0 | AG49: 0 | AH49: 0 | AI49: 0 | AJ49: 0 | AK49: 0 | AL49: 0 | AM49: 0 | CZ49: 0 | DA49: =IF(DK49=0,IF(DI49>=0,MIN(DI49,DJ49),MAX(DI49,DJ49)),0) -> -0.02088891592 | DB49: 0 | DC49: 0 | DD49: =IF(DK49=0,IF(DA49>=0,IF(DH49>=0,DH49,-DH49),0),IF(DH49>=DJ49,DJ49,DI49)) -> 0 | DE49: =IF(DK49=0,IF(DA49>=0,0,IF(DH49>=0,-DH49,DH49)),IF(DH49>=DJ49,DI49,DJ49)) -> -0.00667262416 | DF49: 0 | DG49: 0 | DH49: =OFFSET($B$27,DL49,DM49) -> -0.00667262416 | DI49: =DJ48 -> -0.02088891592 | DJ49: =DI49+DH49 -> -0.02756154008 | DK49: =IF(ABS(DI49)-ABS(DH49)<0,1,0) -> 0 | DL49: =DL48+1 -> 2 | DM49: =DM48 -> 4 | DP49: 0 | DQ49: =IF(EC49=0,IF(EA49>=0,MIN(EA49,EB49),MAX(EA49,EB49)),0) -> -0.01232719668 | DR49: 0 | DS49: 0 | DT49: 0 | DU49: 0 | DV49: 0 | DW49: 0 | DX49: =IF(EC49=0,IF(DQ49>=0,IF(DZ49>=0,DZ49,-DZ49),0),IF(DZ49>=EB49,EB49,EA49)) -> 0 | DY49: =IF(EC49=0,IF(DQ49>=0,0,IF(DZ49>=0,-DZ49,DZ49)),IF(DZ49>=EB49,EA49,EB49)) -> 0 | DZ49: =OFFSET($B$40,ED49,EE49) -> 0 | EA49: =EB48 -> -0.01232719668 | EB49: =EA49+DZ49 -> -0.01232719668 | EC49: =IF(ABS(EA49)-ABS(DZ49)<0,1,0) -> 0 | ED49: =ED48+1 -> 4 | EE49: =EE48 -> 3 | EH49: 0 | EI49: =IF(EQ49=0,IF(EO49>=0,MIN(EO49,EP49),MAX(EO49,EP49)),0) -> 0.05254922649 | EJ49: 0 | EK49: 0 | EL49: =IF(EQ49=0,IF(EI49>=0,IF(EN49>=0,EN49,-EN49),0),IF(EN49>=EP49,EP49,EO49)) -> 0.02699562357 | EM49: =IF(EQ49=0,IF(EI49>=0,0,IF(EN49>=0,-EN49,EN49)),IF(EN49>=EP49,EO49,EP49)) -> 0 | EN49: =OFFSET($B$54,ER49,ES49) -> 0.02699562357 | EO49: =EP48 -> 0.05254922649 | EP49: =EO49+EN49 -> 0.07954485006 | EQ49: =IF(ABS(EO49)-ABS(EN49)<0,1,0) -> 0 | ER49: =ER48+1 -> 2 | ES49: =ES48 -> 5 | EV49: 0 | EW49: =IF(FE49=0,IF(FC49>=0,MIN(FC49,FD49),MAX(FC49,FD49)),0) -> 0.08932084776 | EX49: 0 | EY49: 0 | EZ49: =IF(FE49=0,IF(EW49>=0,IF(FB49>=0,FB49,-FB49),0),IF(FB49>=FD49,FD49,FC49)) -> 0.02882583252 | FA49: =IF(FE49=0,IF(EW49>=0,0,IF(FB49>=0,-FB49,FB49)),IF(FB49>=FD49,FC49,FD49)) -> 0 | FB49: =OFFSET($B$68,FF49,FG49) -> 0.02882583252 | FC49: =FD48 -> 0.08932084776 | FD49: =FC49+FB49 -> 0.1181466803 | FE49: =IF(ABS(FC49)-ABS(FB49)<0,1,0) -> 0 | FF49: =FF48+1 -> 2 | FG49: =FG48 -> 5 | FJ49: 0 | FK49: =IF(FY49=0,IF(FW49>=0,MIN(FW49,FX49),MAX(FW49,FX49)),0) -> 632545.2184 | FL49: =IF(FY49=0,IF(FK49>=0,IF(FV49>=0,FV49,-FV49),0),IF(FV49>=FX49,FX49,FW49)) -> 0 | FM49: =IF(FY49=0,IF(FK49>=0,0,IF(FV49>=0,-FV49,FV49)),IF(FV49>=FX49,FW49,FX49)) -> 0 | FN49: 0 | FO49: 0 | FP49: 0 | FQ49: 0 | FR49: 0 | FS49: 0 | FT49: 0 | FU49: 0 | FV49: 0 | FW49: =FX48 -> 632545.2184 | FX49: 632545.2184 | FY49: =IF(ABS(FW49)-ABS(FV49)<0,1,0) -> 0 | FZ49: =FZ48+1 -> 1 | GA49: =GA42+1 -> 3 | GD49: 0 | GE49: =IF(GS49=0,IF(GQ49>=0,MIN(GQ49,GR49),MAX(GQ49,GR49)),0) -> 153.8167986 | GF49: =IF(GS49=0,IF(GE49>=0,IF(GP49>=0,GP49,-GP49),0),IF(GP49>=GR49,GR49,GQ49)) -> 0 | GG49: =IF(GS49=0,IF(GE49>=0,0,IF(GP49>=0,-GP49,GP49)),IF(GP49>=GR49,GQ49,GR49)) -> 0 | GH49: 0 | GI49: 0 | GJ49: 0 | GK49: 0 | GL49: 0 | GM49: 0 | GN49: 0 | GO49: 0 | GP49: =OFFSET($O$15,GT49,GU49) -> 0 | GQ49: =GR48 -> 153.8167986 | GR49: 153.8167986 | GS49: =IF(ABS(GQ49)-ABS(GP49)<0,1,0) -> 0 | GT49: =GT48+1 -> 1 | GU49: =GU42+1 -> 3
N50: =N43 -> Incurred Payment in Lieu of Taxes ($M) | O50: =O43/O$46 -> 0.002024666411 | P50: =P43/P$46 -> 0.001972871958 | Q50: 0.001920945511 | R50: 0.001868975567 | S50: 0.001817049285 | T50: 0.00176525204 | U50: 0.001713666998 | V50: 0.001690785457 | W50: 0.001640614443 | X50: 0.001590726379 | Y50: 0.001800555405 | AC50: =AC43/AC$46 -> 0.001984171093 | AD50: =AD43/AD$46 -> 0.002304144477 | AE50: 0.006230498202 | AF50: 0.001892302351 | AG50: 0.001697010383 | AH50: 0.001632956683 | AI50: 0.001565872789 | AJ50: 0.001534588916 | AK50: 0.001473771377 | AL50: 0.001404502864 | AM50: 0.002171981913 | CZ50: 0 | DA50: =IF(DK50=0,IF(DI50>=0,MIN(DI50,DJ50),MAX(DI50,DJ50)),0) -> -0.02756154008 | DB50: 0 | DC50: 0 | DD50: 0 | DE50: 0 | DF50: =IF(DK50=0,IF(DA50>=0,IF(DH50>=0,DH50,-DH50),0),IF(DH50>=DJ50,DJ50,DI50)) -> 0 | DG50: =IF(DK50=0,IF(DA50>=0,0,IF(DH50>=0,-DH50,DH50)),IF(DH50>=DJ50,DI50,DJ50)) -> -0.00108562572 | DH50: =OFFSET($B$27,DL50,DM50) -> -0.00108562572 | DI50: =DJ49 -> -0.02756154008 | DJ50: =DI50+DH50 -> -0.0286471658 | DK50: =IF(ABS(DI50)-ABS(DH50)<0,1,0) -> 0 | DL50: =DL49+1 -> 3 | DM50: =DM49 -> 4 | DP50: 0 | DQ50: 0 | DR50: 0 | DT50: 0 | DV50: 0 | DX50: 0 | EH50: 0 | EI50: 0 | EJ50: 0 | EL50: 0 | EV50: 0 | EW50: 0 | EX50: 0 | EZ50: 0 | FJ50: 0 | FK50: =IF(FY50=0,IF(FW50>=0,MIN(FW50,FX50),MAX(FW50,FX50)),0) -> 632545.2184 | FL50: 0 | FM50: 0 | FN50: =IF(FY50=0,IF(FK50>=0,IF(FV50>=0,FV50,-FV50),0),IF(FV50>=FX50,FX50,FW50)) -> 0 | FO50: =IF(FY50=0,IF(FK50>=0,0,IF(FV50>=0,-FV50,FV50)),IF(FV50>=FX50,FW50,FX50)) -> 0 | FP50: 0 | FQ50: 0 | FR50: 0 | FS50: 0 | FT50: 0 | FU50: 0 | FV50: 0 | FW50: =FX49 -> 632545.2184 | FX50: 632545.2184 | FY50: =IF(ABS(FW50)-ABS(FV50)<0,1,0) -> 0 | FZ50: =FZ49+1 -> 2 | GA50: 3 | GD50: 0 | GE50: =IF(GS50=0,IF(GQ50>=0,MIN(GQ50,GR50),MAX(GQ50,GR50)),0) -> 153.8167986 | GF50: 0 | GG50: 0 | GH50: =IF(GS50=0,IF(GE50>=0,IF(GP50>=0,GP50,-GP50),0),IF(GP50>=GR50,GR50,GQ50)) -> 0 | GI50: =IF(GS50=0,IF(GE50>=0,0,IF(GP50>=0,-GP50,GP50)),IF(GP50>=GR50,GQ50,GR50)) -> 0 | GJ50: 0 | GK50: 0 | GL50: 0 | GM50: 0 | GN50: 0 | GO50: 0 | GP50: 0 | GQ50: =GR49 -> 153.8167986 | GR50: 153.8167986 | GS50: =IF(ABS(GQ50)-ABS(GP50)<0,1,0) -> 0 | GT50: =GT49+1 -> 2 | GU50: 3
N51: =N44 -> Incurred Depreciation & Debt Interest Cost ($M) - net of SI component | O51: =O44/O$46 -> 0.2439723025 | P51: =P44/P$46 -> 0.232798891 | Q51: 0.2218692066 | R51: 0.2111942391 | S51: 0.200783946 | T51: 0.1906472204 | U51: 0.1807918682 | V51: 0.1874658376 | W51: 0.1774685455 | X51: 0.1677723204 | Y51: 0.2014764377 | AC51: =AC44/AC$46 -> 0.2397062976 | AD51: =AD44/AD$46 -> 0.2733330266 | AE51: 0.2436828588 | AF51: 0.2157265101 | AG51: 0.189358783 | AH51: 0.1783268365 | AI51: 0.1673460204 | AJ51: 0.1722765635 | AK51: 0.1615974044 | AL51: 0.1504446721 | AM51: 0.1991798973 | CZ51: 0 | DA51: 0 | DB51: 0 | DD51: 0 | DF51: 0 | DO51: =DO45+1 -> 2025 | DP51: =DZ51 -> 0.05848722928 | DQ51: 0 | DR51: 0 | DS51: 0 | DT51: 0 | DU51: 0 | DV51: 0 | DW51: 0 | DX51: 0 | DY51: 0 | DZ51: =OFFSET($B$40,ED51,EE51) -> 0.05848722928 | EA51: 0 | EB51: =EA51+DZ51 -> 0.05848722928 | EC51: 0 | ED51: 0 | EE51: =EE45+1 -> 4 | EG51: =EG47+1 -> 2027 | EH51: =EN51 -> 0.04955238349 | EI51: 0 | EJ51: 0 | EK51: 0 | EL51: 0 | EM51: 0 | EN51: =OFFSET($B$54,ER51,ES51) -> 0.04955238349 | EO51: 0 | EP51: =EO51+EN51 -> 0.04955238349 | EQ51: 0 | ER51: 0 | ES51: =ES47+1 -> 6 | EU51: =EU47+1 -> 2027 | EV51: =FB51 -> 0.07046548457 | EW51: 0 | EX51: 0 | EY51: 0 | EZ51: 0 | FA51: 0 | FB51: =OFFSET($B$68,FF51,FG51) -> 0.07046548457 | FC51: 0 | FD51: =FC51+FB51 -> 0.07046548457 | FE51: 0 | FF51: 0 | FG51: =FG47+1 -> 6 | FJ51: 0 | FK51: =IF(FY51=0,IF(FW51>=0,MIN(FW51,FX51),MAX(FW51,FX51)),0) -> 632545.2184 | FL51: 0 | FM51: 0 | FN51: 0 | FO51: 0 | FP51: =IF(FY51=0,IF(FK51>=0,IF(FV51>=0,FV51,-FV51),0),IF(FV51>=FX51,FX51,FW51)) -> 0 | FQ51: =IF(FY51=0,IF(FK51>=0,0,IF(FV51>=0,-FV51,FV51)),IF(FV51>=FX51,FW51,FX51)) -> 0 | FR51: 0 | FS51: 0 | FT51: 0 | FU51: 0 | FV51: 0 | FW51: =FX50 -> 632545.2184 | FX51: 632545.2184 | FY51: =IF(ABS(FW51)-ABS(FV51)<0,1,0) -> 0 | FZ51: =FZ50+1 -> 3 | GA51: 3 | GD51: 0 | GE51: =IF(GS51=0,IF(GQ51>=0,MIN(GQ51,GR51),MAX(GQ51,GR51)),0) -> 153.8167986 | GF51: 0 | GG51: 0 | GH51: 0 | GI51: 0 | GJ51: =IF(GS51=0,IF(GE51>=0,IF(GP51>=0,GP51,-GP51),0),IF(GP51>=GR51,GR51,GQ51)) -> 0 | GK51: =IF(GS51=0,IF(GE51>=0,0,IF(GP51>=0,-GP51,GP51)),IF(GP51>=GR51,GQ51,GR51)) -> 0 | GL51: 0 | GM51: 0 | GN51: 0 | GO51: 0 | GP51: 0 | GQ51: =GR50 -> 153.8167986 | GR51: 153.8167986 | GS51: =IF(ABS(GQ51)-ABS(GP51)<0,1,0) -> 0 | GT51: =GT50+1 -> 3 | GU51: 3
A52: % Change in Collected Revenue | CY52: =CY47+1 -> 2026 | CZ52: =DH52 -> -0.02661211393 | DA52: 0 | DB52: 0 | DC52: 0 | DD52: 0 | DE52: 0 | DF52: 0 | DG52: 0 | DH52: =OFFSET($B$27,DL52,DM52) -> -0.02661211393 | DI52: 0 | DJ52: =DI52+DH52 -> -0.02661211393 | DK52: 0 | DL52: 0 | DM52: =DM47+1 -> 5 | DP52: 0 | DQ52: =IF(EC52=0,IF(EA52>=0,MIN(EA52,EB52),MAX(EA52,EB52)),0) -> 0.05848722928 | DR52: =IF(EC52=0,IF(DQ52>=0,IF(DZ52>=0,DZ52,-DZ52),0),IF(DZ52>=EB52,EB52,EA52)) -> 0.01027905711 | DS52: =IF(EC52=0,IF(DQ52>=0,0,IF(DZ52>=0,-DZ52,DZ52)),IF(DZ52>=EB52,EA52,EB52)) -> 0 | DT52: 0 | DU52: 0 | DV52: 0 | DW52: 0 | DX52: 0 | DY52: 0 | DZ52: =OFFSET($B$40,ED52,EE52) -> 0.01027905711 | EA52: =EB51 -> 0.05848722928 | EB52: =EA52+DZ52 -> 0.0687662864 | EC52: =IF(ABS(EA52)-ABS(DZ52)<0,1,0) -> 0 | ED52: =ED51+1 -> 1 | EE52: =EE51 -> 4 | EH52: 0 | EI52: =IF(EQ52=0,IF(EO52>=0,MIN(EO52,EP52),MAX(EO52,EP52)),0) -> 0.04463398947 | EJ52: =IF(EQ52=0,IF(EI52>=0,IF(EN52>=0,EN52,-EN52),0),IF(EN52>=EP52,EP52,EO52)) -> 0.00491839402 | EK52: =IF(EQ52=0,IF(EI52>=0,0,IF(EN52>=0,-EN52,EN52)),IF(EN52>=EP52,EO52,EP52)) -> 0 | EL52: 0 | EM52: 0 | EN52: =OFFSET($B$54,ER52,ES52) -> -0.00491839402 | EO52: =EP51 -> 0.04955238349 | EP52: =EO52+EN52 -> 0.04463398947 | EQ52: =IF(ABS(EO52)-ABS(EN52)<0,1,0) -> 0 | ER52: =ER51+1 -> 1 | ES52: =ES51 -> 6 | EV52: 0 | EW52: =IF(FE52=0,IF(FC52>=0,MIN(FC52,FD52),MAX(FC52,FD52)),0) -> 0.07046548457 | EX52: =IF(FE52=0,IF(EW52>=0,IF(FB52>=0,FB52,-FB52),0),IF(FB52>=FD52,FD52,FC52)) -> 0.01642190272 | EY52: =IF(FE52=0,IF(EW52>=0,0,IF(FB52>=0,-FB52,FB52)),IF(FB52>=FD52,FC52,FD52)) -> 0 | EZ52: 0 | FA52: 0 | FB52: =OFFSET($B$68,FF52,FG52) -> 0.01642190272 | FC52: =FD51 -> 0.07046548457 | FD52: =FC52+FB52 -> 0.0868873873 | FE52: =IF(ABS(FC52)-ABS(FB52)<0,1,0) -> 0 | FF52: =FF51+1 -> 1 | FG52: =FG51 -> 6 | FJ52: 0 | FK52: =IF(FY52=0,IF(FW52>=0,MIN(FW52,FX52),MAX(FW52,FX52)),0) -> 632545.2184 | FL52: 0 | FM52: 0 | FN52: 0 | FO52: 0 | FP52: 0 | FQ52: 0 | FR52: =IF(FY52=0,IF(FK52>=0,IF(FV52>=0,FV52,-FV52),0),IF(FV52>=FX52,FX52,FW52)) -> 0 | FS52: =IF(FY52=0,IF(FK52>=0,0,IF(FV52>=0,-FV52,FV52)),IF(FV52>=FX52,FW52,FX52)) -> 0 | FT52: 0 | FU52: 0 | FV52: 0 | FW52: =FX51 -> 632545.2184 | FX52: 632545.2184 | FY52: =IF(ABS(FW52)-ABS(FV52)<0,1,0) -> 0 | FZ52: =FZ51+1 -> 4 | GA52: 3 | GD52: 0 | GE52: =IF(GS52=0,IF(GQ52>=0,MIN(GQ52,GR52),MAX(GQ52,GR52)),0) -> 153.8167986 | GF52: 0 | GG52: 0 | GH52: 0 | GI52: 0 | GJ52: 0 | GK52: 0 | GL52: =IF(GS52=0,IF(GE52>=0,IF(GP52>=0,GP52,-GP52),0),IF(GP52>=GR52,GR52,GQ52)) -> 0 | GM52: =IF(GS52=0,IF(GE52>=0,0,IF(GP52>=0,-GP52,GP52)),IF(GP52>=GR52,GQ52,GR52)) -> 0 | GN52: 0 | GO52: 0 | GP52: 0 | GQ52: =GR51 -> 153.8167986 | GR52: 153.8167986 | GS52: =IF(ABS(GQ52)-ABS(GP52)<0,1,0) -> 0 | GT52: =GT51+1 -> 4 | GU52: 3
B53: =User_InputDashboard!$B$41+1 -> 2021 | C53: =B53+1 -> 2022 | D53: =C53+1 -> 2023 | E53: 2024 | F53: 2025 | G53: 2026 | H53: 2027 | I53: 2028 | J53: 2029 | K53: 2030 | L53: Average/PV | O53: =User_InputDashboard!$B$41+1 -> 2021 | P53: =O53+1 -> 2022 | Q53: =P53+1 -> 2023 | R53: 2024 | S53: 2025 | T53: 2026 | U53: 2027 | V53: 2028 | W53: 2029 | X53: 2030 | Y53: Average/PV | AC53: =User_InputDashboard!$B$41+1 -> 2021 | AD53: =AC53+1 -> 2022 | AE53: =AD53+1 -> 2023 | AF53: 2024 | AG53: 2025 | AH53: 2026 | AI53: 2027 | AJ53: 2028 | AK53: 2029 | AL53: 2030 | AM53: Average/PV | BD53: =User_InputDashboard!$B$41+1 -> 2021 | BE53: =BD53+1 -> 2022 | BF53: =BE53+1 -> 2023 | BG53: 2024 | BH53: 2025 | BI53: 2026 | BJ53: 2027 | BK53: 2028 | BL53: 2029 | BM53: 2030 | CZ53: 0 | DA53: =IF(DK53=0,IF(DI53>=0,MIN(DI53,DJ53),MAX(DI53,DJ53)),0) -> -0.02532508528 | DB53: =IF(DK53=0,IF(DA53>=0,IF(DH53>=0,DH53,-DH53),0),IF(DH53>=DJ53,DJ53,DI53)) -> 0 | DC53: =IF(DK53=0,IF(DA53>=0,0,IF(DH53>=0,-DH53,DH53)),IF(DH53>=DJ53,DI53,DJ53)) -> -0.001287028658 | DD53: 0 | DE53: 0 | DF53: 0 | DG53: 0 | DH53: =OFFSET($B$27,DL53,DM53) -> 0.001287028658 | DI53: =DJ52 -> -0.02661211393 | DJ53: =DI53+DH53 -> -0.02532508528 | DK53: =IF(ABS(DI53)-ABS(DH53)<0,1,0) -> 0 | DL53: =DL52+1 -> 1 | DM53: =DM52 -> 5 | DP53: 0 | DQ53: =IF(EC53=0,IF(EA53>=0,MIN(EA53,EB53),MAX(EA53,EB53)),0) -> 0.0687662864 | DR53: 0 | DS53: 0 | DT53: =IF(EC53=0,IF(DQ53>=0,IF(DZ53>=0,DZ53,-DZ53),0),IF(DZ53>=EB53,EB53,EA53)) -> 0 | DU53: =IF(EC53=0,IF(DQ53>=0,0,IF(DZ53>=0,-DZ53,DZ53)),IF(DZ53>=EB53,EA53,EB53)) -> 0 | DV53: 0 | DW53: 0 | DX53: 0 | DY53: 0 | DZ53: =OFFSET($B$40,ED53,EE53) -> 0 | EA53: =EB52 -> 0.0687662864 | EB53: =EA53+DZ53 -> 0.0687662864 | EC53: =IF(ABS(EA53)-ABS(DZ53)<0,1,0) -> 0 | ED53: =ED52+1 -> 2 | EE53: =EE52 -> 4 | EH53: 0 | EI53: =IF(EQ53=0,IF(EO53>=0,MIN(EO53,EP53),MAX(EO53,EP53)),0) -> 0.04463398947 | EJ53: 0 | EK53: 0 | EL53: =IF(EQ53=0,IF(EI53>=0,IF(EN53>=0,EN53,-EN53),0),IF(EN53>=EP53,EP53,EO53)) -> 0.04074732752 | EM53: =IF(EQ53=0,IF(EI53>=0,0,IF(EN53>=0,-EN53,EN53)),IF(EN53>=EP53,EO53,EP53)) -> 0 | EN53: =OFFSET($B$54,ER53,ES53) -> 0.04074732752 | EO53: =EP52 -> 0.04463398947 | EP53: =EO53+EN53 -> 0.085381317 | EQ53: =IF(ABS(EO53)-ABS(EN53)<0,1,0) -> 0 | ER53: =ER52+1 -> 2 | ES53: =ES52 -> 6 | EV53: 0 | EW53: =IF(FE53=0,IF(FC53>=0,MIN(FC53,FD53),MAX(FC53,FD53)),0) -> 0.0868873873 | EX53: 0 | EY53: 0 | EZ53: =IF(FE53=0,IF(EW53>=0,IF(FB53>=0,FB53,-FB53),0),IF(FB53>=FD53,FD53,FC53)) -> 0.04426015312 | FA53: =IF(FE53=0,IF(EW53>=0,0,IF(FB53>=0,-FB53,FB53)),IF(FB53>=FD53,FC53,FD53)) -> 0 | FB53: =OFFSET($B$68,FF53,FG53) -> 0.04426015312 | FC53: =FD52 -> 0.0868873873 | FD53: =FC53+FB53 -> 0.1311475404 | FE53: =IF(ABS(FC53)-ABS(FB53)<0,1,0) -> 0 | FF53: =FF52+1 -> 2 | FG53: =FG52 -> 6 | FJ53: 0 | FK53: =IF(FY53=0,IF(FW53>=0,MIN(FW53,FX53),MAX(FW53,FX53)),0) -> 632545.2184 | FL53: 0 | FM53: 0 | FN53: 0 | FO53: 0 | FP53: 0 | FQ53: 0 | FR53: 0 | FS53: =IF(FY53=0,IF(FK53>=0,0,IF(FV53>=0,-FV53,FV53)),IF(FV53>=FX53,FW53,FX53)) -> 0 | FT53: =IF(FY53=0,IF(FK53>=0,IF(FV53>=0,FV53,-FV53),0),IF(FV53>=FX53,FX53,FW53)) -> 0 | FU53: =IF(FY53=0,IF(FK53>=0,0,IF(FV53>=0,-FV53,FV53)),IF(FV53>=FX53,FW53,FX53)) -> 0 | FV53: 0 | FW53: =FX52 -> 632545.2184 | FX53: 632545.2184 | FY53: =IF(ABS(FW53)-ABS(FV53)<0,1,0) -> 0 | FZ53: 7 | GA53: 3 | GD53: 0 | GE53: =IF(GS53=0,IF(GQ53>=0,MIN(GQ53,GR53),MAX(GQ53,GR53)),0) -> 153.8167986 | GF53: 0 | GG53: 0 | GH53: 0 | GI53: 0 | GJ53: 0 | GK53: 0 | GL53: 0 | GM53: =IF(GS53=0,IF(GE53>=0,0,IF(GP53>=0,-GP53,GP53)),IF(GP53>=GR53,GQ53,GR53)) -> 0 | GN53: =IF(GS53=0,IF(GE53>=0,IF(GP53>=0,GP53,-GP53),0),IF(GP53>=GR53,GR53,GQ53)) -> 0 | GO53: =IF(GS53=0,IF(GE53>=0,0,IF(GP53>=0,-GP53,GP53)),IF(GP53>=GR53,GQ53,GR53)) -> 0 | GP53: 0 | GQ53: =GR52 -> 153.8167986 | GR53: 153.8167986 | GS53: =IF(ABS(GQ53)-ABS(GP53)<0,1,0) -> 0 | GT53: 7 | GU53: 3
A54: Fuel Rate Revenue | B54: =IF(O54<>0, (AC54-O54)/O57,0) -> -0.002276785803 | C54: -0.00451955922 | D54: -0.00669118647 | E54: -0.008800298641 | F54: 0.09830228252 | G54: 0.053706472 | H54: 0.04955238349 | I54: 0.04689867286 | J54: 0.04283118643 | K54: 0.1482726308 | L54: 0.03931277168 | N54: Total Collected Fuel Rate Revenue ($M) | O54: =SUMIF(INDIRECT($O$1&"_Results!$B$1:$B$1416"), $N54, INDIRECT($O$1&"_Results!E$1:E$1416")) -> 98.86798946 | P54: =SUMIF(INDIRECT($O$1&"_Results!$B$1:$B$1416"), $N54, INDIRECT($O$1&"_Results!f$1:f$1416")) -> 100.1775231 | Q54: =SUMIF(INDIRECT($O$1&"_Results!$B$1:$B$1416"), $N54, INDIRECT($O$1&"_Results!g$1:g$1416")) -> 101.5139652 | R54: =SUMIF(INDIRECT($O$1&"_Results!$B$1:$B$1416"), $N54, INDIRECT($O$1&"_Results!h$1:h$1416")) -> 102.877945 | S54: =SUMIF(INDIRECT($O$1&"_Results!$B$1:$B$1416"), $N54, INDIRECT($O$1&"_Results!i$1:i$1416")) -> 115.5653177 | T54: =SUMIF(INDIRECT($O$1&"_Results!$B$1:$B$1416"), $N54, INDIRECT($O$1&"_Results!j$1:j$1416")) -> 128.5893977 | U54: =SUMIF(INDIRECT($O$1&"_Results!$B$1:$B$1416"), $N54, INDIRECT($O$1&"_Results!k$1:k$1416")) -> 130.3541815 | V54: =SUMIF(INDIRECT($O$1&"_Results!$B$1:$B$1416"), $N54, INDIRECT($O$1&"_Results!L$1:L$1416")) -> 132.155723 | W54: =SUMIF(INDIRECT($O$1&"_Results!$B$1:$B$1416"), $N54, INDIRECT($O$1&"_Results!m$1:m$1416")) -> 133.9948858 | X54: =SUMIF(INDIRECT($O$1&"_Results!$B$1:$B$1416"), $N54, INDIRECT($O$1&"_Results!n$1:n$1416")) -> 145.7893268 | Y54: =NPV(User_OutputDashboard!$P$1, O54:X54) -> 901.8220916 | AC54: =SUMIF(INDIRECT($AD$1&"_Results!$B$1:$B$1416"), $N54, INDIRECT($AD$1&"_Results!E$1:E$1416")) -> 98.30444927 | AD54: =SUMIF(INDIRECT($AD$1&"_Results!$B$1:$B$1416"), $N54, INDIRECT($AD$1&"_Results!f$1:f$1416")) -> 99.03024844 | AE54: =SUMIF(INDIRECT($AD$1&"_Results!$B$1:$B$1416"), $N54, INDIRECT($AD$1&"_Results!g$1:g$1416")) -> 99.762429 | AF54: =SUMIF(INDIRECT($AD$1&"_Results!$B$1:$B$1416"), $N54, INDIRECT($AD$1&"_Results!h$1:h$1416")) -> 100.501339 | AG54: =SUMIF(INDIRECT($AD$1&"_Results!$B$1:$B$1416"), $N54, INDIRECT($AD$1&"_Results!i$1:i$1416")) -> 142.7000738 | AH54: =SUMIF(INDIRECT($AD$1&"_Results!$B$1:$B$1416"), $N54, INDIRECT($AD$1&"_Results!j$1:j$1416")) -> 143.7584183 | AI54: =SUMIF(INDIRECT($AD$1&"_Results!$B$1:$B$1416"), $N54, INDIRECT($AD$1&"_Results!k$1:k$1416")) -> 144.823493 | AJ54: =SUMIF(INDIRECT($AD$1&"_Results!$B$1:$B$1416"), $N54, INDIRECT($AD$1&"_Results!L$1:L$1416")) -> 145.8973107 | AK54: =SUMIF(INDIRECT($AD$1&"_Results!$B$1:$B$1416"), $N54, INDIRECT($AD$1&"_Results!m$1:m$1416")) -> 146.9790615 | AL54: =SUMIF(INDIRECT($AD$1&"_Results!$B$1:$B$1416"), $N54, INDIRECT($AD$1&"_Results!n$1:n$1416")) -> 192.0712135 | AM54: =NPV(User_OutputDashboard!$P$1, AC54:AL54) -> 985.7233364 | BC54: =A54 -> Fuel Rate Revenue | BD54: =O54 -> 98.86798946 | BE54: 100.1775231 | BF54: 101.5139652 | BG54: 102.877945 | BH54: 115.5653177 | BI54: 128.5893977 | BJ54: 130.3541815 | BK54: 132.155723 | BL54: 133.9948858 | BM54: 145.7893268 | CZ54: 0 | DA54: =IF(DK54=0,IF(DI54>=0,MIN(DI54,DJ54),MAX(DI54,DJ54)),0) -> -0.02532508528 | DB54: 0 | DC54: 0 | DD54: =IF(DK54=0,IF(DA54>=0,IF(DH54>=0,DH54,-DH54),0),IF(DH54>=DJ54,DJ54,DI54)) -> 0 | DE54: =IF(DK54=0,IF(DA54>=0,0,IF(DH54>=0,-DH54,DH54)),IF(DH54>=DJ54,DI54,DJ54)) -> -0.007912726036 | DF54: 0 | DG54: 0 | DH54: =OFFSET($B$27,DL54,DM54) -> -0.007912726036 | DI54: =DJ53 -> -0.02532508528 | DJ54: =DI54+DH54 -> -0.03323781131 | DK54: =IF(ABS(DI54)-ABS(DH54)<0,1,0) -> 0 | DL54: =DL53+1 -> 2 | DM54: =DM53 -> 5 | DP54: 0 | DQ54: =IF(EC54=0,IF(EA54>=0,MIN(EA54,EB54),MAX(EA54,EB54)),0) -> 0.0687662864 | DR54: 0 | DS54: 0 | DT54: 0 | DU54: 0 | DV54: =IF(EC54=0,IF(DQ54>=0,IF(DZ54>=0,DZ54,-DZ54),0),IF(DZ54>=EB54,EB54,EA54)) -> 0.00196922784 | DW54: =IF(EC54=0,IF(DQ54>=0,0,IF(DZ54>=0,-DZ54,DZ54)),IF(DZ54>=EB54,EA54,EB54)) -> 0 | DX54: 0 | DY54: 0 | DZ54: =OFFSET($B$40,ED54,EE54) -> 0.00196922784 | EA54: =EB53 -> 0.0687662864 | EB54: =EA54+DZ54 -> 0.07073551424 | EC54: =IF(ABS(EA54)-ABS(DZ54)<0,1,0) -> 0 | ED54: =ED53+1 -> 3 | EE54: =EE53 -> 4 | EH54: 0 | EI54: 0 | EJ54: 0 | EL54: 0 | EV54: 0 | EW54: 0 | EX54: 0 | EZ54: 0 | FJ54: 0 | FK54: 0 | FL54: 0 | FN54: 0 | FP54: 0 | FR54: 0 | GD54: 0 | GE54: 0 | GF54: 0 | GH54: 0 | GJ54: 0 | GL54: 0
A55: Non-fuel Rate Revenue | B55: =IF(O55<>0, (AC55-O55)/O57,0) -> -0.003611249865 | C55: -0.007163926301 | D55: -0.01059952307 | E55: -0.01393214463 | F55: -0.007085778942 | G55: -0.001157245518 | H55: -0.00491839402 | I55: -0.008816097172 | J55: -0.01243542726 | K55: 0.001753136253 | L55: -0.00685622014 | N55: Total Collected Non-Fuel Rate Revenue ($M) | O55: 142.1530172 | P55: 144.120656 | Q55: 146.1288415 | R55: 148.1785211 | S55: 147.5709485 | T55: 147.0218532 | U55: 149.218001 | V55: 151.4607497 | W55: 153.7512003 | X55: 154.4666318 | Y55: =NPV(User_OutputDashboard!$P$1, O55:X55) -> 1142.079155 | AC55: 141.2591762 | AD55: 142.3021178 | AE55: 143.3542291 | AF55: 144.4160104 | AG55: 145.6150338 | AH55: 146.6949972 | AI55: 147.7818284 | AJ55: 148.8775812 | AK55: 149.9814291 | AL55: 155.0138566 | AM55: =NPV(User_OutputDashboard!$P$1, AC55:AL55) -> 1127.446622 | BC55: =A55 -> Non-fuel Rate Revenue | BD55: 142.1530172 | BE55: 144.120656 | BF55: 146.1288415 | BG55: 148.1785211 | BH55: 147.5709485 | BI55: 147.0218532 | BJ55: 149.218001 | BK55: 151.4607497 | BL55: 153.7512003 | BM55: 154.4666318 | CZ55: 0 | DA55: =IF(DK55=0,IF(DI55>=0,MIN(DI55,DJ55),MAX(DI55,DJ55)),0) -> -0.03323781131 | DB55: 0 | DC55: 0 | DD55: 0 | DE55: 0 | DF55: =IF(DK55=0,IF(DA55>=0,IF(DH55>=0,DH55,-DH55),0),IF(DH55>=DJ55,DJ55,DI55)) -> 0 | DG55: =IF(DK55=0,IF(DA55>=0,0,IF(DH55>=0,-DH55,DH55)),IF(DH55>=DJ55,DI55,DJ55)) -> -0.001285235532 | DH55: =OFFSET($B$27,DL55,DM55) -> -0.001285235532 | DI55: =DJ54 -> -0.03323781131 | DJ55: =DI55+DH55 -> -0.03452304685 | DK55: =IF(ABS(DI55)-ABS(DH55)<0,1,0) -> 0 | DL55: =DL54+1 -> 3 | DM55: =DM54 -> 5 | DP55: 0 | DQ55: =IF(EC55=0,IF(EA55>=0,MIN(EA55,EB55),MAX(EA55,EB55)),0) -> 0.07073551424 | DR55: 0 | DS55: 0 | DT55: 0 | DU55: 0 | DV55: 0 | DW55: 0 | DX55: =IF(EC55=0,IF(DQ55>=0,IF(DZ55>=0,DZ55,-DZ55),0),IF(DZ55>=EB55,EB55,EA55)) -> 0 | DY55: =IF(EC55=0,IF(DQ55>=0,0,IF(DZ55>=0,-DZ55,DZ55)),IF(DZ55>=EB55,EA55,EB55)) -> 0 | DZ55: =OFFSET($B$40,ED55,EE55) -> 0 | EA55: =EB54 -> 0.07073551424 | EB55: =EA55+DZ55 -> 0.07073551424 | EC55: =IF(ABS(EA55)-ABS(DZ55)<0,1,0) -> 0 | ED55: =ED54+1 -> 4 | EE55: =EE54 -> 4 | EG55: =EG51+1 -> 2028 | EH55: =EN55 -> 0.04689867286 | EI55: 0 | EJ55: 0 | EK55: 0 | EL55: 0 | EM55: 0 | EN55: =OFFSET($B$54,ER55,ES55) -> 0.04689867286 | EO55: 0 | EP55: =EO55+EN55 -> 0.04689867286 | EQ55: 0 | ER55: 0 | ES55: =ES51+1 -> 7 | EU55: =EU51+1 -> 2028 | EV55: =FB55 -> 0.07115091135 | EW55: 0 | EX55: 0 | EY55: 0 | EZ55: 0 | FA55: 0 | FB55: =OFFSET($B$68,FF55,FG55) -> 0.07115091135 | FC55: 0 | FD55: =FC55+FB55 -> 0.07115091135 | FE55: 0 | FF55: 0 | FG55: =FG51+1 -> 7 | FI55: =FI48+1 -> 2025 | FJ55: =FV55 -> 641104.9289 | FK55: 0 | FL55: 0 | FM55: 0 | FN55: 0 | FO55: 0 | FP55: 0 | FQ55: 0 | FR55: 0 | FS55: 0 | FT55: 0 | FU55: 0 | FV55: =OFFSET($O$4,FZ55,GA55) -> 641104.9289 | FW55: 0 | FX55: =FW55+FV55 -> 641104.9289 | FY55: 0 | FZ55: 0 | GA55: =GA48+1 -> 4 | GC55: =GC48+1 -> 2025 | GD55: =GP55 -> 164.5839745 | GE55: 0 | GF55: 0 | GG55: 0 | GH55: 0 | GI55: 0 | GJ55: 0 | GK55: 0 | GL55: 0 | GM55: 0 | GN55: 0 | GO55: 0 | GP55: =OFFSET($O$15,GT55,GU55) -> 164.5839745 | GQ55: 0 | GR55: =GQ55+GP55 -> 164.5839745 | GS55: 0 | GT55: 0 | GU55: =GU48+1 -> 4
A56: Utility Surcharge Revenue | B56: =IF(O56<>0, (AC56-O56)/O57,0) -> 0.05303706144 | C56: -0.01617158696 | D56: -0.04335234148 | E56: 0.01385053205 | F56: -0.03198571635 | G56: 0.02699562357 | H56: 0.04074732752 | I56: 0.05106389166 | J56: 0.06644687309 | K56: -0.02717644052 | L56: 0.01273757505 | N56: Total Collected Surcharge Utility Revenue ($M) | O56: 6.494675303 | P56: 9.548409949 | Q56: 14.12485662 | R56: 19.00322861 | S56: 12.89757012 | T56: 6.831814077 | U56: 12.4281299 | V56: 9.389424999 | W56: 15.40161355 | X56: 11.88449775 | Y56: =NPV(User_OutputDashboard!$P$1, O56:X56) -> 90.29690872 | AC56: 19.62217974 | AD56: 5.443307759 | AE56: 2.776615488 | AF56: 22.74369907 | AG56: 4.068430131 | AH56: 14.45654074 | AI56: 24.32636227 | AJ56: 24.35144641 | AK56: 35.54483028 | AL56: 3.401631207 | AM56: =NPV(User_OutputDashboard!$P$1, AC56:AL56) -> 117.4814179 | BC56: =A56 -> Utility Surcharge Revenue | BD56: 6.494675303 | BE56: 9.548409949 | BF56: 14.12485662 | BG56: 19.00322861 | BH56: 12.89757012 | BI56: 6.831814077 | BJ56: 12.4281299 | BK56: 9.389424999 | BL56: 15.40161355 | BM56: 11.88449775 | CZ56: 0 | DA56: 0 | DB56: 0 | DD56: 0 | DF56: 0 | DP56: 0 | DQ56: 0 | DR56: 0 | DT56: 0 | DV56: 0 | DX56: 0 | EH56: 0 | EI56: =IF(EQ56=0,IF(EO56>=0,MIN(EO56,EP56),MAX(EO56,EP56)),0) -> 0.03808257569 | EJ56: =IF(EQ56=0,IF(EI56>=0,IF(EN56>=0,EN56,-EN56),0),IF(EN56>=EP56,EP56,EO56)) -> 0.008816097172 | EK56: =IF(EQ56=0,IF(EI56>=0,0,IF(EN56>=0,-EN56,EN56)),IF(EN56>=EP56,EO56,EP56)) -> 0 | EL56: 0 | EM56: 0 | EN56: =OFFSET($B$54,ER56,ES56) -> -0.008816097172 | EO56: =EP55 -> 0.04689867286 | EP56: =EO56+EN56 -> 0.03808257569 | EQ56: =IF(ABS(EO56)-ABS(EN56)<0,1,0) -> 0 | ER56: =ER55+1 -> 1 | ES56: =ES55 -> 7 | EV56: 0 | EW56: =IF(FE56=0,IF(FC56>=0,MIN(FC56,FD56),MAX(FC56,FD56)),0) -> 0.07115091135 | EX56: =IF(FE56=0,IF(EW56>=0,IF(FB56>=0,FB56,-FB56),0),IF(FB56>=FD56,FD56,FC56)) -> 0.01593154614 | EY56: =IF(FE56=0,IF(EW56>=0,0,IF(FB56>=0,-FB56,FB56)),IF(FB56>=FD56,FC56,FD56)) -> 0 | EZ56: 0 | FA56: 0 | FB56: =OFFSET($B$68,FF56,FG56) -> 0.01593154614 | FC56: =FD55 -> 0.07115091135 | FD56: =FC56+FB56 -> 0.08708245749 | FE56: =IF(ABS(FC56)-ABS(FB56)<0,1,0) -> 0 | FF56: =FF55+1 -> 1 | FG56: =FG55 -> 7 | FJ56: 0 | FK56: =IF(FY56=0,IF(FW56>=0,MIN(FW56,FX56),MAX(FW56,FX56)),0) -> 641104.9289 | FL56: =IF(FY56=0,IF(FK56>=0,IF(FV56>=0,FV56,-FV56),0),IF(FV56>=FX56,FX56,FW56)) -> 0 | FM56: =IF(FY56=0,IF(FK56>=0,0,IF(FV56>=0,-FV56,FV56)),IF(FV56>=FX56,FW56,FX56)) -> 0 | FN56: 0 | FO56: 0 | FP56: 0 | FQ56: 0 | FR56: 0 | FS56: 0 | FT56: 0 | FU56: 0 | FV56: 0 | FW56: =FX55 -> 641104.9289 | FX56: 641104.9289 | FY56: =IF(ABS(FW56)-ABS(FV56)<0,1,0) -> 0 | FZ56: =FZ55+1 -> 1 | GA56: =GA49+1 -> 4 | GD56: 0 | GE56: =IF(GS56=0,IF(GQ56>=0,MIN(GQ56,GR56),MAX(GQ56,GR56)),0) -> 164.5839745 | GF56: =IF(GS56=0,IF(GE56>=0,IF(GP56>=0,GP56,-GP56),0),IF(GP56>=GR56,GR56,GQ56)) -> 0 | GG56: =IF(GS56=0,IF(GE56>=0,0,IF(GP56>=0,-GP56,GP56)),IF(GP56>=GR56,GQ56,GR56)) -> 0 | GH56: 0 | GI56: 0 | GJ56: 0 | GK56: 0 | GL56: 0 | GM56: 0 | GN56: 0 | GO56: 0 | GP56: =OFFSET($O$15,GT56,GU56) -> 0 | GQ56: =GR55 -> 164.5839745 | GR56: 164.5839745 | GS56: =IF(ABS(GQ56)-ABS(GP56)<0,1,0) -> 0 | GT56: =GT55+1 -> 1 | GU56: =GU49+1 -> 4
A57: Total Utility Revenue | B57: =IF(O57<>0, (AC57-O57)/O57,0) -> 0.04714902578 | C57: -0.02785507248 | D57: -0.06064305102 | E57: -0.008881911216 | F57: 0.05923078723 | G57: 0.07954485006 | H57: 0.085381317 | I57: 0.08914646734 | J57: 0.09684263226 | K57: 0.1228493265 | L57: 0.04519412659 | N57: Total Collected Utility Net Revenue ($M) | O57: 247.515682 | P57: 253.8465891 | Q57: 261.7676633 | R57: 270.0596947 | S57: 276.0338363 | T57: 282.4430649 | U57: 292.0003124 | V57: 293.0058976 | W57: 303.1476996 | X57: 312.1404564 | Y57: =NPV(User_OutputDashboard!$P$1, O57:X57) -> 2134.198155 | AC57: 259.1858053 | AD57: 246.775674 | AE57: 245.8932736 | AF57: 267.6610485 | AG57: 292.3835378 | AH57: 304.9099562 | AI57: 316.9316836 | AJ57: 319.1263383 | AK57: 332.5053208 | AL57: 350.4867013 | AM57: =NPV(User_OutputDashboard!$P$1, AC57:AL57) -> 2230.651377 | CY57: =CY52+1 -> 2027 | CZ57: =DH57 -> -0.03137185662 | DA57: 0 | DB57: 0 | DC57: 0 | DD57: 0 | DE57: 0 | DF57: 0 | DG57: 0 | DH57: =OFFSET($B$27,DL57,DM57) -> -0.03137185662 | DI57: 0 | DJ57: =DI57+DH57 -> -0.03137185662 | DK57: 0 | DL57: 0 | DM57: =DM52+1 -> 6 | DO57: =DO51+1 -> 2026 | DP57: =DZ57 -> 0.06829142046 | DQ57: 0 | DR57: 0 | DS57: 0 | DT57: 0 | DU57: 0 | DV57: 0 | DW57: 0 | DX57: 0 | DY57: 0 | DZ57: =OFFSET($B$40,ED57,EE57) -> 0.06829142046 | EA57: 0 | EB57: =EA57+DZ57 -> 0.06829142046 | EC57: 0 | ED57: 0 | EE57: =EE51+1 -> 5 | EH57: 0 | EI57: =IF(EQ57=0,IF(EO57>=0,MIN(EO57,EP57),MAX(EO57,EP57)),0) -> 0 | EJ57: 0 | EK57: 0 | EL57: =IF(EQ57=0,IF(EI57>=0,IF(EN57>=0,EN57,-EN57),0),IF(EN57>=EP57,EP57,EO57)) -> 0.03808257569 | EM57: =IF(EQ57=0,IF(EI57>=0,0,IF(EN57>=0,-EN57,EN57)),IF(EN57>=EP57,EO57,EP57)) -> 0.08914646734 | EN57: =OFFSET($B$54,ER57,ES57) -> 0.05106389166 | EO57: =EP56 -> 0.03808257569 | EP57: =EO57+EN57 -> 0.08914646734 | EQ57: =IF(ABS(EO57)-ABS(EN57)<0,1,0) -> 1 | ER57: =ER56+1 -> 2 | ES57: =ES56 -> 7 | EV57: 0 | EW57: =IF(FE57=0,IF(FC57>=0,MIN(FC57,FD57),MAX(FC57,FD57)),0) -> 0.08708245749 | EX57: 0 | EY57: 0 | EZ57: =IF(FE57=0,IF(EW57>=0,IF(FB57>=0,FB57,-FB57),0),IF(FB57>=FD57,FD57,FC57)) -> 0.05511178728 | FA57: =IF(FE57=0,IF(EW57>=0,0,IF(FB57>=0,-FB57,FB57)),IF(FB57>=FD57,FC57,FD57)) -> 0 | FB57: =OFFSET($B$68,FF57,FG57) -> 0.05511178728 | FC57: =FD56 -> 0.08708245749 | FD57: =FC57+FB57 -> 0.1421942448 | FE57: =IF(ABS(FC57)-ABS(FB57)<0,1,0) -> 0 | FF57: =FF56+1 -> 2 | FG57: =FG56 -> 7 | FJ57: 0 | FK57: =IF(FY57=0,IF(FW57>=0,MIN(FW57,FX57),MAX(FW57,FX57)),0) -> 641104.9289 | FL57: 0 | FM57: 0 | FN57: =IF(FY57=0,IF(FK57>=0,IF(FV57>=0,FV57,-FV57),0),IF(FV57>=FX57,FX57,FW57)) -> 0 | FO57: =IF(FY57=0,IF(FK57>=0,0,IF(FV57>=0,-FV57,FV57)),IF(FV57>=FX57,FW57,FX57)) -> 0 | FP57: 0 | FQ57: 0 | FR57: 0 | FS57: 0 | FT57: 0 | FU57: 0 | FV57: 0 | FW57: =FX56 -> 641104.9289 | FX57: 641104.9289 | FY57: =IF(ABS(FW57)-ABS(FV57)<0,1,0) -> 0 | FZ57: =FZ56+1 -> 2 | GA57: 4 | GD57: 0 | GE57: =IF(GS57=0,IF(GQ57>=0,MIN(GQ57,GR57),MAX(GQ57,GR57)),0) -> 164.5839745 | GF57: 0 | GG57: 0 | GH57: =IF(GS57=0,IF(GE57>=0,IF(GP57>=0,GP57,-GP57),0),IF(GP57>=GR57,GR57,GQ57)) -> 0 | GI57: =IF(GS57=0,IF(GE57>=0,0,IF(GP57>=0,-GP57,GP57)),IF(GP57>=GR57,GQ57,GR57)) -> 0 | GJ57: 0 | GK57: 0 | GL57: 0 | GM57: 0 | GN57: 0 | GO57: 0 | GP57: 0 | GQ57: =GR56 -> 164.5839745 | GR57: 164.5839745 | GS57: =IF(ABS(GQ57)-ABS(GP57)<0,1,0) -> 0 | GT57: =GT56+1 -> 2 | GU57: 4
CZ58: 0 | DA58: =IF(DK58=0,IF(DI58>=0,MIN(DI58,DJ58),MAX(DI58,DJ58)),0) -> -0.0298592016 | DB58: =IF(DK58=0,IF(DA58>=0,IF(DH58>=0,DH58,-DH58),0),IF(DH58>=DJ58,DJ58,DI58)) -> 0 | DC58: =IF(DK58=0,IF(DA58>=0,0,IF(DH58>=0,-DH58,DH58)),IF(DH58>=DJ58,DI58,DJ58)) -> -0.001512655022 | DD58: 0 | DE58: 0 | DF58: 0 | DG58: 0 | DH58: =OFFSET($B$27,DL58,DM58) -> 0.001512655022 | DI58: =DJ57 -> -0.03137185662 | DJ58: =DI58+DH58 -> -0.0298592016 | DK58: =IF(ABS(DI58)-ABS(DH58)<0,1,0) -> 0 | DL58: =DL57+1 -> 1 | DM58: =DM57 -> 6 | DP58: 0 | DQ58: =IF(EC58=0,IF(EA58>=0,MIN(EA58,EB58),MAX(EA58,EB58)),0) -> 0.06829142046 | DR58: =IF(EC58=0,IF(DQ58>=0,IF(DZ58>=0,DZ58,-DZ58),0),IF(DZ58>=EB58,EB58,EA58)) -> 0.01059750497 | DS58: =IF(EC58=0,IF(DQ58>=0,0,IF(DZ58>=0,-DZ58,DZ58)),IF(DZ58>=EB58,EA58,EB58)) -> 0 | DT58: 0 | DU58: 0 | DV58: 0 | DW58: 0 | DX58: 0 | DY58: 0 | DZ58: =OFFSET($B$40,ED58,EE58) -> 0.01059750497 | EA58: =EB57 -> 0.06829142046 | EB58: =EA58+DZ58 -> 0.07888892543 | EC58: =IF(ABS(EA58)-ABS(DZ58)<0,1,0) -> 0 | ED58: =ED57+1 -> 1 | EE58: =EE57 -> 5 | EH58: 0 | EI58: 0 | EJ58: 0 | EL58: 0 | EV58: 0 | EW58: 0 | EX58: 0 | EZ58: 0 | FJ58: 0 | FK58: =IF(FY58=0,IF(FW58>=0,MIN(FW58,FX58),MAX(FW58,FX58)),0) -> 641104.9289 | FL58: 0 | FM58: 0 | FN58: 0 | FO58: 0 | FP58: =IF(FY58=0,IF(FK58>=0,IF(FV58>=0,FV58,-FV58),0),IF(FV58>=FX58,FX58,FW58)) -> 0 | FQ58: =IF(FY58=0,IF(FK58>=0,0,IF(FV58>=0,-FV58,FV58)),IF(FV58>=FX58,FW58,FX58)) -> 0 | FR58: 0 | FS58: 0 | FT58: 0 | FU58: 0 | FV58: 0 | FW58: =FX57 -> 641104.9289 | FX58: 641104.9289 | FY58: =IF(ABS(FW58)-ABS(FV58)<0,1,0) -> 0 | FZ58: =FZ57+1 -> 3 | GA58: 4 | GD58: 0 | GE58: =IF(GS58=0,IF(GQ58>=0,MIN(GQ58,GR58),MAX(GQ58,GR58)),0) -> 164.5839745 | GF58: 0 | GG58: 0 | GH58: 0 | GI58: 0 | GJ58: =IF(GS58=0,IF(GE58>=0,IF(GP58>=0,GP58,-GP58),0),IF(GP58>=GR58,GR58,GQ58)) -> 0 | GK58: =IF(GS58=0,IF(GE58>=0,0,IF(GP58>=0,-GP58,GP58)),IF(GP58>=GR58,GQ58,GR58)) -> 0 | GL58: 0 | GM58: 0 | GN58: 0 | GO58: 0 | GP58: 0 | GQ58: =GR57 -> 164.5839745 | GR58: 164.5839745 | GS58: =IF(ABS(GQ58)-ABS(GP58)<0,1,0) -> 0 | GT58: =GT57+1 -> 3 | GU58: 4
CZ59: 0 | DA59: =IF(DK59=0,IF(DI59>=0,MIN(DI59,DJ59),MAX(DI59,DJ59)),0) -> -0.0298592016 | DB59: 0 | DC59: 0 | DD59: =IF(DK59=0,IF(DA59>=0,IF(DH59>=0,DH59,-DH59),0),IF(DH59>=DJ59,DJ59,DI59)) -> 0 | DE59: =IF(DK59=0,IF(DA59>=0,0,IF(DH59>=0,-DH59,DH59)),IF(DH59>=DJ59,DI59,DJ59)) -> -0.00912165159 | DF59: 0 | DG59: 0 | DH59: =OFFSET($B$27,DL59,DM59) -> -0.00912165159 | DI59: =DJ58 -> -0.0298592016 | DJ59: =DI59+DH59 -> -0.03898085319 | DK59: =IF(ABS(DI59)-ABS(DH59)<0,1,0) -> 0 | DL59: =DL58+1 -> 2 | DM59: =DM58 -> 6 | DP59: 0 | DQ59: =IF(EC59=0,IF(EA59>=0,MIN(EA59,EB59),MAX(EA59,EB59)),0) -> 0.07888892543 | DR59: 0 | DS59: 0 | DT59: =IF(EC59=0,IF(DQ59>=0,IF(DZ59>=0,DZ59,-DZ59),0),IF(DZ59>=EB59,EB59,EA59)) -> 0 | DU59: =IF(EC59=0,IF(DQ59>=0,0,IF(DZ59>=0,-DZ59,DZ59)),IF(DZ59>=EB59,EA59,EB59)) -> 0 | DV59: 0 | DW59: 0 | DX59: 0 | DY59: 0 | DZ59: =OFFSET($B$40,ED59,EE59) -> 0 | EA59: =EB58 -> 0.07888892543 | EB59: =EA59+DZ59 -> 0.07888892543 | EC59: =IF(ABS(EA59)-ABS(DZ59)<0,1,0) -> 0 | ED59: =ED58+1 -> 2 | EE59: =EE58 -> 5 | EG59: =EG55+1 -> 2029 | EH59: =EN59 -> 0.04283118643 | EI59: 0 | EJ59: 0 | EK59: 0 | EL59: 0 | EM59: 0 | EN59: =OFFSET($B$54,ER59,ES59) -> 0.04283118643 | EO59: 0 | EP59: =EO59+EN59 -> 0.04283118643 | EQ59: 0 | ER59: 0 | ES59: =ES55+1 -> 8 | EU59: =EU55+1 -> 2029 | EV59: =FB59 -> 0.06968431952 | EW59: 0 | EX59: 0 | EY59: 0 | EZ59: 0 | FA59: 0 | FB59: =OFFSET($B$68,FF59,FG59) -> 0.06968431952 | FC59: 0 | FD59: =FC59+FB59 -> 0.06968431952 | FE59: 0 | FF59: 0 | FG59: =FG55+1 -> 8 | FJ59: 0 | FK59: =IF(FY59=0,IF(FW59>=0,MIN(FW59,FX59),MAX(FW59,FX59)),0) -> 641104.9289 | FL59: 0 | FM59: 0 | FN59: 0 | FO59: 0 | FP59: 0 | FQ59: 0 | FR59: =IF(FY59=0,IF(FK59>=0,IF(FV59>=0,FV59,-FV59),0),IF(FV59>=FX59,FX59,FW59)) -> 0 | FS59: =IF(FY59=0,IF(FK59>=0,0,IF(FV59>=0,-FV59,FV59)),IF(FV59>=FX59,FW59,FX59)) -> 0 | FT59: 0 | FU59: 0 | FV59: 0 | FW59: =FX58 -> 641104.9289 | FX59: 641104.9289 | FY59: =IF(ABS(FW59)-ABS(FV59)<0,1,0) -> 0 | FZ59: =FZ58+1 -> 4 | GA59: 4 | GD59: 0 | GE59: =IF(GS59=0,IF(GQ59>=0,MIN(GQ59,GR59),MAX(GQ59,GR59)),0) -> 164.5839745 | GF59: 0 | GG59: 0 | GH59: 0 | GI59: 0 | GJ59: 0 | GK59: 0 | GL59: =IF(GS59=0,IF(GE59>=0,IF(GP59>=0,GP59,-GP59),0),IF(GP59>=GR59,GR59,GQ59)) -> 0 | GM59: =IF(GS59=0,IF(GE59>=0,0,IF(GP59>=0,-GP59,GP59)),IF(GP59>=GR59,GQ59,GR59)) -> 0 | GN59: 0 | GO59: 0 | GP59: 0 | GQ59: =GR58 -> 164.5839745 | GR59: 164.5839745 | GS59: =IF(ABS(GQ59)-ABS(GP59)<0,1,0) -> 0 | GT59: =GT58+1 -> 4 | GU59: 4
CZ60: 0 | DA60: =IF(DK60=0,IF(DI60>=0,MIN(DI60,DJ60),MAX(DI60,DJ60)),0) -> -0.03898085319 | DB60: 0 | DC60: 0 | DD60: 0 | DE60: 0 | DF60: =IF(DK60=0,IF(DA60>=0,IF(DH60>=0,DH60,-DH60),0),IF(DH60>=DJ60,DJ60,DI60)) -> 0 | DG60: =IF(DK60=0,IF(DA60>=0,0,IF(DH60>=0,-DH60,DH60)),IF(DH60>=DJ60,DI60,DJ60)) -> -0.001479141452 | DH60: =OFFSET($B$27,DL60,DM60) -> -0.001479141452 | DI60: =DJ59 -> -0.03898085319 | DJ60: =DI60+DH60 -> -0.04045999464 | DK60: =IF(ABS(DI60)-ABS(DH60)<0,1,0) -> 0 | DL60: =DL59+1 -> 3 | DM60: =DM59 -> 6 | DP60: 0 | DQ60: =IF(EC60=0,IF(EA60>=0,MIN(EA60,EB60),MAX(EA60,EB60)),0) -> 0.07888892543 | DR60: 0 | DS60: 0 | DT60: 0 | DU60: 0 | DV60: =IF(EC60=0,IF(DQ60>=0,IF(DZ60>=0,DZ60,-DZ60),0),IF(DZ60>=EB60,EB60,EA60)) -> 0.002126914556 | DW60: =IF(EC60=0,IF(DQ60>=0,0,IF(DZ60>=0,-DZ60,DZ60)),IF(DZ60>=EB60,EA60,EB60)) -> 0 | DX60: 0 | DY60: 0 | DZ60: =OFFSET($B$40,ED60,EE60) -> 0.002126914556 | EA60: =EB59 -> 0.07888892543 | EB60: =EA60+DZ60 -> 0.08101583999 | EC60: =IF(ABS(EA60)-ABS(DZ60)<0,1,0) -> 0 | ED60: =ED59+1 -> 3 | EE60: =EE59 -> 5 | EH60: 0 | EI60: =IF(EQ60=0,IF(EO60>=0,MIN(EO60,EP60),MAX(EO60,EP60)),0) -> 0.03039575917 | EJ60: =IF(EQ60=0,IF(EI60>=0,IF(EN60>=0,EN60,-EN60),0),IF(EN60>=EP60,EP60,EO60)) -> 0.01243542726 | EK60: =IF(EQ60=0,IF(EI60>=0,0,IF(EN60>=0,-EN60,EN60)),IF(EN60>=EP60,EO60,EP60)) -> 0 | EL60: 0 | EM60: 0 | EN60: =OFFSET($B$54,ER60,ES60) -> -0.01243542726 | EO60: =EP59 -> 0.04283118643 | EP60: =EO60+EN60 -> 0.03039575917 | EQ60: =IF(ABS(EO60)-ABS(EN60)<0,1,0) -> 0 | ER60: =ER59+1 -> 1 | ES60: =ES59 -> 8 | EV60: 0 | EW60: =IF(FE60=0,IF(FC60>=0,MIN(FC60,FD60),MAX(FC60,FD60)),0) -> 0.06968431952 | EX60: =IF(FE60=0,IF(EW60>=0,IF(FB60>=0,FB60,-FB60),0),IF(FB60>=FD60,FD60,FC60)) -> 0.01496623958 | EY60: =IF(FE60=0,IF(EW60>=0,0,IF(FB60>=0,-FB60,FB60)),IF(FB60>=FD60,FC60,FD60)) -> 0 | EZ60: 0 | FA60: 0 | FB60: =OFFSET($B$68,FF60,FG60) -> 0.01496623958 | FC60: =FD59 -> 0.06968431952 | FD60: =FC60+FB60 -> 0.08465055909 | FE60: =IF(ABS(FC60)-ABS(FB60)<0,1,0) -> 0 | FF60: =FF59+1 -> 1 | FG60: =FG59 -> 8 | FJ60: 0 | FK60: =IF(FY60=0,IF(FW60>=0,MIN(FW60,FX60),MAX(FW60,FX60)),0) -> 641104.9289 | FL60: 0 | FM60: 0 | FN60: 0 | FO60: 0 | FP60: 0 | FQ60: 0 | FR60: 0 | FS60: =IF(FY60=0,IF(FK60>=0,0,IF(FV60>=0,-FV60,FV60)),IF(FV60>=FX60,FW60,FX60)) -> 0 | FT60: =IF(FY60=0,IF(FK60>=0,IF(FV60>=0,FV60,-FV60),0),IF(FV60>=FX60,FX60,FW60)) -> 0 | FU60: =IF(FY60=0,IF(FK60>=0,0,IF(FV60>=0,-FV60,FV60)),IF(FV60>=FX60,FW60,FX60)) -> 0 | FV60: 0 | FW60: =FX59 -> 641104.9289 | FX60: 641104.9289 | FY60: =IF(ABS(FW60)-ABS(FV60)<0,1,0) -> 0 | FZ60: 7 | GA60: 4 | GD60: 0 | GE60: =IF(GS60=0,IF(GQ60>=0,MIN(GQ60,GR60),MAX(GQ60,GR60)),0) -> 164.5839745 | GF60: 0 | GG60: 0 | GH60: 0 | GI60: 0 | GJ60: 0 | GK60: 0 | GL60: 0 | GM60: =IF(GS60=0,IF(GE60>=0,0,IF(GP60>=0,-GP60,GP60)),IF(GP60>=GR60,GQ60,GR60)) -> 0 | GN60: =IF(GS60=0,IF(GE60>=0,IF(GP60>=0,GP60,-GP60),0),IF(GP60>=GR60,GR60,GQ60)) -> 0 | GO60: =IF(GS60=0,IF(GE60>=0,0,IF(GP60>=0,-GP60,GP60)),IF(GP60>=GR60,GQ60,GR60)) -> 0 | GP60: 0 | GQ60: =GR59 -> 164.5839745 | GR60: 164.5839745 | GS60: =IF(ABS(GQ60)-ABS(GP60)<0,1,0) -> 0 | GT60: 7 | GU60: 4
CZ61: 0 | DA61: 0 | DB61: 0 | DD61: 0 | DF61: 0 | DP61: 0 | DQ61: =IF(EC61=0,IF(EA61>=0,MIN(EA61,EB61),MAX(EA61,EB61)),0) -> 0.08101583999 | DR61: 0 | DS61: 0 | DT61: 0 | DU61: 0 | DV61: 0 | DW61: 0 | DX61: =IF(EC61=0,IF(DQ61>=0,IF(DZ61>=0,DZ61,-DZ61),0),IF(DZ61>=EB61,EB61,EA61)) -> 0 | DY61: =IF(EC61=0,IF(DQ61>=0,0,IF(DZ61>=0,-DZ61,DZ61)),IF(DZ61>=EB61,EA61,EB61)) -> 0 | DZ61: =OFFSET($B$40,ED61,EE61) -> 0 | EA61: =EB60 -> 0.08101583999 | EB61: =EA61+DZ61 -> 0.08101583999 | EC61: =IF(ABS(EA61)-ABS(DZ61)<0,1,0) -> 0 | ED61: =ED60+1 -> 4 | EE61: =EE60 -> 5 | EH61: 0 | EI61: =IF(EQ61=0,IF(EO61>=0,MIN(EO61,EP61),MAX(EO61,EP61)),0) -> 0 | EJ61: 0 | EK61: 0 | EL61: =IF(EQ61=0,IF(EI61>=0,IF(EN61>=0,EN61,-EN61),0),IF(EN61>=EP61,EP61,EO61)) -> 0.03039575917 | EM61: =IF(EQ61=0,IF(EI61>=0,0,IF(EN61>=0,-EN61,EN61)),IF(EN61>=EP61,EO61,EP61)) -> 0.09684263226 | EN61: =OFFSET($B$54,ER61,ES61) -> 0.06644687309 | EO61: =EP60 -> 0.03039575917 | EP61: =EO61+EN61 -> 0.09684263226 | EQ61: =IF(ABS(EO61)-ABS(EN61)<0,1,0) -> 1 | ER61: =ER60+1 -> 2 | ES61: =ES60 -> 8 | EV61: 0 | EW61: =IF(FE61=0,IF(FC61>=0,MIN(FC61,FD61),MAX(FC61,FD61)),0) -> 0.08465055909 | EX61: 0 | EY61: 0 | EZ61: =IF(FE61=0,IF(EW61>=0,IF(FB61>=0,FB61,-FB61),0),IF(FB61>=FD61,FD61,FC61)) -> 0.07294092774 | FA61: =IF(FE61=0,IF(EW61>=0,0,IF(FB61>=0,-FB61,FB61)),IF(FB61>=FD61,FC61,FD61)) -> 0 | FB61: =OFFSET($B$68,FF61,FG61) -> 0.07294092774 | FC61: =FD60 -> 0.08465055909 | FD61: =FC61+FB61 -> 0.1575914868 | FE61: =IF(ABS(FC61)-ABS(FB61)<0,1,0) -> 0 | FF61: =FF60+1 -> 2 | FG61: =FG60 -> 8 | FJ61: 0 | FK61: 0 | FL61: 0 | FN61: 0 | FP61: 0 | FR61: 0 | GD61: 0 | GE61: 0 | GF61: 0 | GH61: 0 | GJ61: 0 | GL61: 0
CY62: =CY57+1 -> 2028 | CZ62: =DH62 -> -0.03621827071 | DA62: 0 | DB62: 0 | DC62: 0 | DD62: 0 | DE62: 0 | DF62: 0 | DG62: 0 | DH62: =OFFSET($B$27,DL62,DM62) -> -0.03621827071 | DI62: 0 | DJ62: =DI62+DH62 -> -0.03621827071 | DK62: 0 | DL62: 0 | DM62: =DM57+1 -> 7 | DP62: 0 | DQ62: 0 | DR62: 0 | DT62: 0 | DV62: 0 | DX62: 0 | EH62: 0 | EI62: 0 | EJ62: 0 | EL62: 0 | EV62: 0 | EW62: 0 | EX62: 0 | EZ62: 0 | FI62: =FI55+1 -> 2026 | FJ62: =FV62 -> 649841.978 | FK62: 0 | FL62: 0 | FM62: 0 | FN62: 0 | FO62: 0 | FP62: 0 | FQ62: 0 | FR62: 0 | FS62: 0 | FT62: 0 | FU62: 0 | FV62: =OFFSET($O$4,FZ62,GA62) -> 649841.978 | FW62: 0 | FX62: =FW62+FV62 -> 649841.978 | FY62: 0 | FZ62: 0 | GA62: =GA55+1 -> 5 | GC62: =GC55+1 -> 2026 | GD62: =GP62 -> 176.1048527 | GE62: 0 | GF62: 0 | GG62: 0 | GH62: 0 | GI62: 0 | GJ62: 0 | GK62: 0 | GL62: 0 | GM62: 0 | GN62: 0 | GO62: 0 | GP62: =OFFSET($O$15,GT62,GU62) -> 176.1048527 | GQ62: 0 | GR62: =GQ62+GP62 -> 176.1048527 | GS62: 0 | GT62: 0 | GU62: =GU55+1 -> 5
CZ63: 0 | DA63: =IF(DK63=0,IF(DI63>=0,MIN(DI63,DJ63),MAX(DI63,DJ63)),0) -> -0.03447679424 | DB63: =IF(DK63=0,IF(DA63>=0,IF(DH63>=0,DH63,-DH63),0),IF(DH63>=DJ63,DJ63,DI63)) -> 0 | DC63: =IF(DK63=0,IF(DA63>=0,0,IF(DH63>=0,-DH63,DH63)),IF(DH63>=DJ63,DI63,DJ63)) -> -0.001741476466 | DD63: 0 | DE63: 0 | DF63: 0 | DG63: 0 | DH63: =OFFSET($B$27,DL63,DM63) -> 0.001741476466 | DI63: =DJ62 -> -0.03621827071 | DJ63: =DI63+DH63 -> -0.03447679424 | DK63: =IF(ABS(DI63)-ABS(DH63)<0,1,0) -> 0 | DL63: =DL62+1 -> 1 | DM63: =DM62 -> 7 | DO63: =DO57+1 -> 2027 | DP63: =DZ63 -> 0.08109087754 | DQ63: 0 | DR63: 0 | DS63: 0 | DT63: 0 | DU63: 0 | DV63: 0 | DW63: 0 | DX63: 0 | DY63: 0 | DZ63: =OFFSET($B$40,ED63,EE63) -> 0.08109087754 | EA63: 0 | EB63: =EA63+DZ63 -> 0.08109087754 | EC63: 0 | ED63: 0 | EE63: =EE57+1 -> 6 | EG63: =EG59+1 -> 2030 | EH63: =EN63 -> 0.1482726308 | EI63: 0 | EJ63: 0 | EK63: 0 | EL63: 0 | EM63: 0 | EN63: =OFFSET($B$54,ER63,ES63) -> 0.1482726308 | EO63: 0 | EP63: =EO63+EN63 -> 0.1482726308 | EQ63: 0 | ER63: 0 | ES63: =ES59+1 -> 9 | EU63: =EU59+1 -> 2030 | EV63: =FB63 -> 0.1865534093 | EW63: 0 | EX63: 0 | EY63: 0 | EZ63: 0 | FA63: 0 | FB63: =OFFSET($B$68,FF63,FG63) -> 0.1865534093 | FC63: 0 | FD63: =FC63+FB63 -> 0.1865534093 | FE63: 0 | FF63: 0 | FG63: =FG59+1 -> 9 | FJ63: 0 | FK63: =IF(FY63=0,IF(FW63>=0,MIN(FW63,FX63),MAX(FW63,FX63)),0) -> 649841.978 | FL63: =IF(FY63=0,IF(FK63>=0,IF(FV63>=0,FV63,-FV63),0),IF(FV63>=FX63,FX63,FW63)) -> 0 | FM63: =IF(FY63=0,IF(FK63>=0,0,IF(FV63>=0,-FV63,FV63)),IF(FV63>=FX63,FW63,FX63)) -> 0 | FN63: 0 | FO63: 0 | FP63: 0 | FQ63: 0 | FR63: 0 | FS63: 0 | FT63: 0 | FU63: 0 | FV63: 0 | FW63: =FX62 -> 649841.978 | FX63: 649841.978 | FY63: =IF(ABS(FW63)-ABS(FV63)<0,1,0) -> 0 | FZ63: =FZ62+1 -> 1 | GA63: =GA56+1 -> 5 | GD63: 0 | GE63: =IF(GS63=0,IF(GQ63>=0,MIN(GQ63,GR63),MAX(GQ63,GR63)),0) -> 176.1048527 | GF63: =IF(GS63=0,IF(GE63>=0,IF(GP63>=0,GP63,-GP63),0),IF(GP63>=GR63,GR63,GQ63)) -> 0 | GG63: =IF(GS63=0,IF(GE63>=0,0,IF(GP63>=0,-GP63,GP63)),IF(GP63>=GR63,GQ63,GR63)) -> 0 | GH63: 0 | GI63: 0 | GJ63: 0 | GK63: 0 | GL63: 0 | GM63: 0 | GN63: 0 | GO63: 0 | GP63: =OFFSET($O$15,GT63,GU63) -> 0 | GQ63: =GR62 -> 176.1048527 | GR63: 176.1048527 | GS63: =IF(ABS(GQ63)-ABS(GP63)<0,1,0) -> 0 | GT63: =GT62+1 -> 1 | GU63: =GU56+1 -> 5
CZ64: 0 | DA64: =IF(DK64=0,IF(DI64>=0,MIN(DI64,DJ64),MAX(DI64,DJ64)),0) -> -0.03447679424 | DB64: 0 | DC64: 0 | DD64: =IF(DK64=0,IF(DA64>=0,IF(DH64>=0,DH64,-DH64),0),IF(DH64>=DJ64,DJ64,DI64)) -> 0 | DE64: =IF(DK64=0,IF(DA64>=0,0,IF(DH64>=0,-DH64,DH64)),IF(DH64>=DJ64,DI64,DJ64)) -> -0.01029954678 | DF64: 0 | DG64: 0 | DH64: =OFFSET($B$27,DL64,DM64) -> -0.01029954678 | DI64: =DJ63 -> -0.03447679424 | DJ64: =DI64+DH64 -> -0.04477634103 | DK64: =IF(ABS(DI64)-ABS(DH64)<0,1,0) -> 0 | DL64: =DL63+1 -> 2 | DM64: =DM63 -> 7 | DP64: 0 | DQ64: =IF(EC64=0,IF(EA64>=0,MIN(EA64,EB64),MAX(EA64,EB64)),0) -> 0.08109087754 | DR64: =IF(EC64=0,IF(DQ64>=0,IF(DZ64>=0,DZ64,-DZ64),0),IF(DZ64>=EB64,EB64,EA64)) -> 0.01094464673 | DS64: =IF(EC64=0,IF(DQ64>=0,0,IF(DZ64>=0,-DZ64,DZ64)),IF(DZ64>=EB64,EA64,EB64)) -> 0 | DT64: 0 | DU64: 0 | DV64: 0 | DW64: 0 | DX64: 0 | DY64: 0 | DZ64: =OFFSET($B$40,ED64,EE64) -> 0.01094464673 | EA64: =EB63 -> 0.08109087754 | EB64: =EA64+DZ64 -> 0.09203552426 | EC64: =IF(ABS(EA64)-ABS(DZ64)<0,1,0) -> 0 | ED64: =ED63+1 -> 1 | EE64: =EE63 -> 6 | EH64: 0 | EI64: =IF(EQ64=0,IF(EO64>=0,MIN(EO64,EP64),MAX(EO64,EP64)),0) -> 0.1482726308 | EJ64: =IF(EQ64=0,IF(EI64>=0,IF(EN64>=0,EN64,-EN64),0),IF(EN64>=EP64,EP64,EO64)) -> 0.001753136253 | EK64: =IF(EQ64=0,IF(EI64>=0,0,IF(EN64>=0,-EN64,EN64)),IF(EN64>=EP64,EO64,EP64)) -> 0 | EL64: 0 | EM64: 0 | EN64: =OFFSET($B$54,ER64,ES64) -> 0.001753136253 | EO64: =EP63 -> 0.1482726308 | EP64: =EO64+EN64 -> 0.1500257671 | EQ64: =IF(ABS(EO64)-ABS(EN64)<0,1,0) -> 0 | ER64: =ER63+1 -> 1 | ES64: =ES63 -> 9 | EV64: 0 | EW64: =IF(FE64=0,IF(FC64>=0,MIN(FC64,FD64),MAX(FC64,FD64)),0) -> 0.1865534093 | EX64: =IF(FE64=0,IF(EW64>=0,IF(FB64>=0,FB64,-FB64),0),IF(FB64>=FD64,FD64,FC64)) -> 0.03264819336 | EY64: =IF(FE64=0,IF(EW64>=0,0,IF(FB64>=0,-FB64,FB64)),IF(FB64>=FD64,FC64,FD64)) -> 0 | EZ64: 0 | FA64: 0 | FB64: =OFFSET($B$68,FF64,FG64) -> 0.03264819336 | FC64: =FD63 -> 0.1865534093 | FD64: =FC64+FB64 -> 0.2192016027 | FE64: =IF(ABS(FC64)-ABS(FB64)<0,1,0) -> 0 | FF64: =FF63+1 -> 1 | FG64: =FG63 -> 9 | FJ64: 0 | FK64: =IF(FY64=0,IF(FW64>=0,MIN(FW64,FX64),MAX(FW64,FX64)),0) -> 649841.978 | FL64: 0 | FM64: 0 | FN64: =IF(FY64=0,IF(FK64>=0,IF(FV64>=0,FV64,-FV64),0),IF(FV64>=FX64,FX64,FW64)) -> 0 | FO64: =IF(FY64=0,IF(FK64>=0,0,IF(FV64>=0,-FV64,FV64)),IF(FV64>=FX64,FW64,FX64)) -> 0 | FP64: 0 | FQ64: 0 | FR64: 0 | FS64: 0 | FT64: 0 | FU64: 0 | FV64: 0 | FW64: =FX63 -> 649841.978 | FX64: 649841.978 | FY64: =IF(ABS(FW64)-ABS(FV64)<0,1,0) -> 0 | FZ64: =FZ63+1 -> 2 | GA64: 5 | GD64: 0 | GE64: =IF(GS64=0,IF(GQ64>=0,MIN(GQ64,GR64),MAX(GQ64,GR64)),0) -> 176.1048527 | GF64: 0 | GG64: 0 | GH64: =IF(GS64=0,IF(GE64>=0,IF(GP64>=0,GP64,-GP64),0),IF(GP64>=GR64,GR64,GQ64)) -> 0 | GI64: =IF(GS64=0,IF(GE64>=0,0,IF(GP64>=0,-GP64,GP64)),IF(GP64>=GR64,GQ64,GR64)) -> 0 | GJ64: 0 | GK64: 0 | GL64: 0 | GM64: 0 | GN64: 0 | GO64: 0 | GP64: 0 | GQ64: =GR63 -> 176.1048527 | GR64: 176.1048527 | GS64: =IF(ABS(GQ64)-ABS(GP64)<0,1,0) -> 0 | GT64: =GT63+1 -> 2 | GU64: 5
CZ65: 0 | DA65: =IF(DK65=0,IF(DI65>=0,MIN(DI65,DJ65),MAX(DI65,DJ65)),0) -> -0.04477634103 | DB65: 0 | DC65: 0 | DD65: 0 | DE65: 0 | DF65: =IF(DK65=0,IF(DA65>=0,IF(DH65>=0,DH65,-DH65),0),IF(DH65>=DJ65,DJ65,DI65)) -> 0 | DG65: =IF(DK65=0,IF(DA65>=0,0,IF(DH65>=0,-DH65,DH65)),IF(DH65>=DJ65,DI65,DJ65)) -> -0.001667403264 | DH65: =OFFSET($B$27,DL65,DM65) -> -0.001667403264 | DI65: =DJ64 -> -0.04477634103 | DJ65: =DI65+DH65 -> -0.04644374429 | DK65: =IF(ABS(DI65)-ABS(DH65)<0,1,0) -> 0 | DL65: =DL64+1 -> 3 | DM65: =DM64 -> 7 | DP65: 0 | DQ65: =IF(EC65=0,IF(EA65>=0,MIN(EA65,EB65),MAX(EA65,EB65)),0) -> 0.09203552426 | DR65: 0 | DS65: 0 | DT65: =IF(EC65=0,IF(DQ65>=0,IF(DZ65>=0,DZ65,-DZ65),0),IF(DZ65>=EB65,EB65,EA65)) -> 0 | DU65: =IF(EC65=0,IF(DQ65>=0,0,IF(DZ65>=0,-DZ65,DZ65)),IF(DZ65>=EB65,EA65,EB65)) -> 0 | DV65: 0 | DW65: 0 | DX65: 0 | DY65: 0 | DZ65: =OFFSET($B$40,ED65,EE65) -> 0 | EA65: =EB64 -> 0.09203552426 | EB65: =EA65+DZ65 -> 0.09203552426 | EC65: =IF(ABS(EA65)-ABS(DZ65)<0,1,0) -> 0 | ED65: =ED64+1 -> 2 | EE65: =EE64 -> 6 | EH65: 0 | EI65: =IF(EQ65=0,IF(EO65>=0,MIN(EO65,EP65),MAX(EO65,EP65)),0) -> 0.1228493265 | EJ65: 0 | EK65: 0 | EL65: =IF(EQ65=0,IF(EI65>=0,IF(EN65>=0,EN65,-EN65),0),IF(EN65>=EP65,EP65,EO65)) -> 0.02717644052 | EM65: =IF(EQ65=0,IF(EI65>=0,0,IF(EN65>=0,-EN65,EN65)),IF(EN65>=EP65,EO65,EP65)) -> 0 | EN65: =OFFSET($B$54,ER65,ES65) -> -0.02717644052 | EO65: =EP64 -> 0.1500257671 | EP65: =EO65+EN65 -> 0.1228493265 | EQ65: =IF(ABS(EO65)-ABS(EN65)<0,1,0) -> 0 | ER65: =ER64+1 -> 2 | ES65: =ES64 -> 9 | EV65: 0 | EW65: =IF(FE65=0,IF(FC65>=0,MIN(FC65,FD65),MAX(FC65,FD65)),0) -> 0.1927031247 | EX65: 0 | EY65: 0 | EZ65: =IF(FE65=0,IF(EW65>=0,IF(FB65>=0,FB65,-FB65),0),IF(FB65>=FD65,FD65,FC65)) -> 0.02649847796 | FA65: =IF(FE65=0,IF(EW65>=0,0,IF(FB65>=0,-FB65,FB65)),IF(FB65>=FD65,FC65,FD65)) -> 0 | FB65: =OFFSET($B$68,FF65,FG65) -> -0.02649847796 | FC65: =FD64 -> 0.2192016027 | FD65: =FC65+FB65 -> 0.1927031247 | FE65: =IF(ABS(FC65)-ABS(FB65)<0,1,0) -> 0 | FF65: =FF64+1 -> 2 | FG65: =FG64 -> 9 | FJ65: 0 | FK65: =IF(FY65=0,IF(FW65>=0,MIN(FW65,FX65),MAX(FW65,FX65)),0) -> 649841.978 | FL65: 0 | FM65: 0 | FN65: 0 | FO65: 0 | FP65: =IF(FY65=0,IF(FK65>=0,IF(FV65>=0,FV65,-FV65),0),IF(FV65>=FX65,FX65,FW65)) -> 0 | FQ65: =IF(FY65=0,IF(FK65>=0,0,IF(FV65>=0,-FV65,FV65)),IF(FV65>=FX65,FW65,FX65)) -> 0 | FR65: 0 | FS65: 0 | FT65: 0 | FU65: 0 | FV65: 0 | FW65: =FX64 -> 649841.978 | FX65: 649841.978 | FY65: =IF(ABS(FW65)-ABS(FV65)<0,1,0) -> 0 | FZ65: =FZ64+1 -> 3 | GA65: 5 | GD65: 0 | GE65: =IF(GS65=0,IF(GQ65>=0,MIN(GQ65,GR65),MAX(GQ65,GR65)),0) -> 176.1048527 | GF65: 0 | GG65: 0 | GH65: 0 | GI65: 0 | GJ65: =IF(GS65=0,IF(GE65>=0,IF(GP65>=0,GP65,-GP65),0),IF(GP65>=GR65,GR65,GQ65)) -> 0 | GK65: =IF(GS65=0,IF(GE65>=0,0,IF(GP65>=0,-GP65,GP65)),IF(GP65>=GR65,GQ65,GR65)) -> 0 | GL65: 0 | GM65: 0 | GN65: 0 | GO65: 0 | GP65: 0 | GQ65: =GR64 -> 176.1048527 | GR65: 176.1048527 | GS65: =IF(ABS(GQ65)-ABS(GP65)<0,1,0) -> 0 | GT65: =GT64+1 -> 3 | GU65: 5
A66: % Change in Average $/kWh Collected Revenue | CZ66: 0 | DA66: 0 | DB66: 0 | DD66: 0 | DF66: 0 | DP66: 0 | DQ66: =IF(EC66=0,IF(EA66>=0,MIN(EA66,EB66),MAX(EA66,EB66)),0) -> 0.09203552426 | DR66: 0 | DS66: 0 | DT66: 0 | DU66: 0 | DV66: =IF(EC66=0,IF(DQ66>=0,IF(DZ66>=0,DZ66,-DZ66),0),IF(DZ66>=EB66,EB66,EA66)) -> 0.002349032067 | DW66: =IF(EC66=0,IF(DQ66>=0,0,IF(DZ66>=0,-DZ66,DZ66)),IF(DZ66>=EB66,EA66,EB66)) -> 0 | DX66: 0 | DY66: 0 | DZ66: =OFFSET($B$40,ED66,EE66) -> 0.002349032067 | EA66: =EB65 -> 0.09203552426 | EB66: =EA66+DZ66 -> 0.09438455633 | EC66: =IF(ABS(EA66)-ABS(DZ66)<0,1,0) -> 0 | ED66: =ED65+1 -> 3 | EE66: =EE65 -> 6 | EH66: 0 | EI66: 0 | EJ66: 0 | EL66: 0 | EV66: 0 | EW66: 0 | EX66: 0 | EZ66: 0 | FJ66: 0 | FK66: =IF(FY66=0,IF(FW66>=0,MIN(FW66,FX66),MAX(FW66,FX66)),0) -> 649841.978 | FL66: 0 | FM66: 0 | FN66: 0 | FO66: 0 | FP66: 0 | FQ66: 0 | FR66: =IF(FY66=0,IF(FK66>=0,IF(FV66>=0,FV66,-FV66),0),IF(FV66>=FX66,FX66,FW66)) -> 0 | FS66: =IF(FY66=0,IF(FK66>=0,0,IF(FV66>=0,-FV66,FV66)),IF(FV66>=FX66,FW66,FX66)) -> 0 | FT66: 0 | FU66: 0 | FV66: 0 | FW66: =FX65 -> 649841.978 | FX66: 649841.978 | FY66: =IF(ABS(FW66)-ABS(FV66)<0,1,0) -> 0 | FZ66: =FZ65+1 -> 4 | GA66: 5 | GD66: 0 | GE66: =IF(GS66=0,IF(GQ66>=0,MIN(GQ66,GR66),MAX(GQ66,GR66)),0) -> 176.1048527 | GF66: 0 | GG66: 0 | GH66: 0 | GI66: 0 | GJ66: 0 | GK66: 0 | GL66: =IF(GS66=0,IF(GE66>=0,IF(GP66>=0,GP66,-GP66),0),IF(GP66>=GR66,GR66,GQ66)) -> 0 | GM66: =IF(GS66=0,IF(GE66>=0,0,IF(GP66>=0,-GP66,GP66)),IF(GP66>=GR66,GQ66,GR66)) -> 0 | GN66: 0 | GO66: 0 | GP66: 0 | GQ66: =GR65 -> 176.1048527 | GR66: 176.1048527 | GS66: =IF(ABS(GQ66)-ABS(GP66)<0,1,0) -> 0 | GT66: =GT65+1 -> 4 | GU66: 5
B67: =User_InputDashboard!$B$41+1 -> 2021 | C67: =B67+1 -> 2022 | D67: =C67+1 -> 2023 | E67: 2024 | F67: 2025 | G67: 2026 | H67: 2027 | I67: 2028 | J67: 2029 | K67: 2030 | L67: Average/PV | O67: =User_InputDashboard!$B$41 -> 2020 | P67: =O67+1 -> 2021 | Q67: =P67+1 -> 2022 | R67: 2023 | S67: 2024 | T67: 2025 | U67: 2026 | V67: 2027 | W67: 2028 | X67: 2029 | Y67: Average/PV | AC67: =User_InputDashboard!$B$41 -> 2020 | AD67: =AC67+1 -> 2021 | AE67: =AD67+1 -> 2022 | AF67: 2023 | AG67: 2024 | AH67: 2025 | AI67: 2026 | AJ67: 2027 | AK67: 2028 | AL67: 2029 | AM67: Average/PV | BD67: =User_InputDashboard!$B$41+1 -> 2021 | BE67: =BD67+1 -> 2022 | BF67: =BE67+1 -> 2023 | BG67: 2024 | BH67: 2025 | BI67: 2026 | BJ67: 2027 | BK67: 2028 | BL67: 2029 | BM67: 2030 | CY67: =CY62+1 -> 2029 | CZ67: =DH67 -> -0.04115551259 | DA67: 0 | DB67: 0 | DC67: 0 | DD67: 0 | DE67: 0 | DF67: 0 | DG67: 0 | DH67: =OFFSET($B$27,DL67,DM67) -> -0.04115551259 | DI67: 0 | DJ67: =DI67+DH67 -> -0.04115551259 | DK67: 0 | DL67: 0 | DM67: =DM62+1 -> 8 | DP67: 0 | DQ67: =IF(EC67=0,IF(EA67>=0,MIN(EA67,EB67),MAX(EA67,EB67)),0) -> 0.09438455633 | DR67: 0 | DS67: 0 | DT67: 0 | DU67: 0 | DV67: 0 | DW67: 0 | DX67: =IF(EC67=0,IF(DQ67>=0,IF(DZ67>=0,DZ67,-DZ67),0),IF(DZ67>=EB67,EB67,EA67)) -> 0 | DY67: =IF(EC67=0,IF(DQ67>=0,0,IF(DZ67>=0,-DZ67,DZ67)),IF(DZ67>=EB67,EA67,EB67)) -> 0 | DZ67: =OFFSET($B$40,ED67,EE67) -> 0 | EA67: =EB66 -> 0.09438455633 | EB67: =EA67+DZ67 -> 0.09438455633 | EC67: =IF(ABS(EA67)-ABS(DZ67)<0,1,0) -> 0 | ED67: =ED66+1 -> 4 | EE67: =EE66 -> 6 | FJ67: 0 | FK67: =IF(FY67=0,IF(FW67>=0,MIN(FW67,FX67),MAX(FW67,FX67)),0) -> 649841.978 | FL67: 0 | FM67: 0 | FN67: 0 | FO67: 0 | FP67: 0 | FQ67: 0 | FR67: 0 | FS67: =IF(FY67=0,IF(FK67>=0,0,IF(FV67>=0,-FV67,FV67)),IF(FV67>=FX67,FW67,FX67)) -> 0 | FT67: =IF(FY67=0,IF(FK67>=0,IF(FV67>=0,FV67,-FV67),0),IF(FV67>=FX67,FX67,FW67)) -> 0 | FU67: =IF(FY67=0,IF(FK67>=0,0,IF(FV67>=0,-FV67,FV67)),IF(FV67>=FX67,FW67,FX67)) -> 0 | FV67: 0 | FW67: =FX66 -> 649841.978 | FX67: 649841.978 | FY67: =IF(ABS(FW67)-ABS(FV67)<0,1,0) -> 0 | FZ67: 7 | GA67: 5 | GD67: 0 | GE67: =IF(GS67=0,IF(GQ67>=0,MIN(GQ67,GR67),MAX(GQ67,GR67)),0) -> 176.1048527 | GF67: 0 | GG67: 0 | GH67: 0 | GI67: 0 | GJ67: 0 | GK67: 0 | GL67: 0 | GM67: =IF(GS67=0,IF(GE67>=0,0,IF(GP67>=0,-GP67,GP67)),IF(GP67>=GR67,GQ67,GR67)) -> 0 | GN67: =IF(GS67=0,IF(GE67>=0,IF(GP67>=0,GP67,-GP67),0),IF(GP67>=GR67,GR67,GQ67)) -> 0 | GO67: =IF(GS67=0,IF(GE67>=0,0,IF(GP67>=0,-GP67,GP67)),IF(GP67>=GR67,GQ67,GR67)) -> 0 | GP67: 0 | GQ67: =GR66 -> 176.1048527 | GR67: 176.1048527 | GS67: =IF(ABS(GQ67)-ABS(GP67)<0,1,0) -> 0 | GT67: 7 | GU67: 5
A68: Fuel Rate | B68: =IF(O68<>0,(AC68-O68)/O71,0) -> -2.862092045e-05 | C68: -5.714070945e-05 | D68: -8.508962743e-05 | E68: -0.0001125717714 | F68: 0.113548655 | G68: 0.07190639609 | H68: 0.07046548457 | I68: 0.07115091135 | J68: 0.06968431952 | K68: 0.1865534093 | L68: 0.05990027244 | N68: Average Fuel Collected Revenue ($/kWh) | O68: =SUMIF(INDIRECT($O$1&"_Results!$B$1:$B$1416"), $N68, INDIRECT($O$1&"_Results!E$1:E$1416")) -> 0.16264125 | P68: =SUMIF(INDIRECT($O$1&"_Results!$B$1:$B$1416"), $N68, INDIRECT($O$1&"_Results!f$1:f$1416")) -> 0.16264125 | Q68: =SUMIF(INDIRECT($O$1&"_Results!$B$1:$B$1416"), $N68, INDIRECT($O$1&"_Results!g$1:g$1416")) -> 0.16264125 | R68: =SUMIF(INDIRECT($O$1&"_Results!$B$1:$B$1416"), $N68, INDIRECT($O$1&"_Results!h$1:h$1416")) -> 0.16264125 | S68: =SUMIF(INDIRECT($O$1&"_Results!$B$1:$B$1416"), $N68, INDIRECT($O$1&"_Results!i$1:i$1416")) -> 0.1802595994 | T68: =SUMIF(INDIRECT($O$1&"_Results!$B$1:$B$1416"), $N68, INDIRECT($O$1&"_Results!j$1:j$1416")) -> 0.1978779489 | U68: =SUMIF(INDIRECT($O$1&"_Results!$B$1:$B$1416"), $N68, INDIRECT($O$1&"_Results!k$1:k$1416")) -> 0.1978779489 | V68: =SUMIF(INDIRECT($O$1&"_Results!$B$1:$B$1416"), $N68, INDIRECT($O$1&"_Results!L$1:L$1416")) -> 0.1978779489 | W68: =SUMIF(INDIRECT($O$1&"_Results!$B$1:$B$1416"), $N68, INDIRECT($O$1&"_Results!m$1:m$1416")) -> 0.1978779489 | X68: =SUMIF(INDIRECT($O$1&"_Results!$B$1:$B$1416"), $N68, INDIRECT($O$1&"_Results!n$1:n$1416")) -> 0.212320236 | Y68: =AVERAGE(O68:X68) -> 0.1834656631 | AC68: =SUMIF(INDIRECT($AD$1&"_Results!$B$1:$B$1416"), $N68, INDIRECT($AD$1&"_Results!E$1:E$1416")) -> 0.1626295964 | AD68: =SUMIF(INDIRECT($AD$1&"_Results!$B$1:$B$1416"), $N68, INDIRECT($AD$1&"_Results!f$1:f$1416")) -> 0.1626177007 | AE68: =SUMIF(INDIRECT($AD$1&"_Results!$B$1:$B$1416"), $N68, INDIRECT($AD$1&"_Results!g$1:g$1416")) -> 0.162605564 | AF68: =SUMIF(INDIRECT($AD$1&"_Results!$B$1:$B$1416"), $N68, INDIRECT($AD$1&"_Results!h$1:h$1416")) -> 0.1625931885 | AG68: =SUMIF(INDIRECT($AD$1&"_Results!$B$1:$B$1416"), $N68, INDIRECT($AD$1&"_Results!i$1:i$1416")) -> 0.2291490549 | AH68: =SUMIF(INDIRECT($AD$1&"_Results!$B$1:$B$1416"), $N68, INDIRECT($AD$1&"_Results!j$1:j$1416")) -> 0.2291308743 | AI68: =SUMIF(INDIRECT($AD$1&"_Results!$B$1:$B$1416"), $N68, INDIRECT($AD$1&"_Results!k$1:k$1416")) -> 0.2291122787 | AJ68: =SUMIF(INDIRECT($AD$1&"_Results!$B$1:$B$1416"), $N68, INDIRECT($AD$1&"_Results!L$1:L$1416")) -> 0.2290933021 | AK68: =SUMIF(INDIRECT($AD$1&"_Results!$B$1:$B$1416"), $N68, INDIRECT($AD$1&"_Results!m$1:m$1416")) -> 0.2290739205 | AL68: =SUMIF(INDIRECT($AD$1&"_Results!$B$1:$B$1416"), $N68, INDIRECT($AD$1&"_Results!n$1:n$1416")) -> 0.2971247382 | AM68: =AVERAGE(AC68:AL68) -> 0.2093130218 | BC68: =A68 -> Fuel Rate | BD68: =O68 -> 0.16264125 | BE68: 0.16264125 | BF68: 0.16264125 | BG68: 0.16264125 | BH68: 0.1802595994 | BI68: 0.1978779489 | BJ68: 0.1978779489 | BK68: 0.1978779489 | BL68: 0.1978779489 | BM68: 0.212320236 | CZ68: 0 | DA68: =IF(DK68=0,IF(DI68>=0,MIN(DI68,DJ68),MAX(DI68,DJ68)),0) -> -0.03918201555 | DB68: =IF(DK68=0,IF(DA68>=0,IF(DH68>=0,DH68,-DH68),0),IF(DH68>=DJ68,DJ68,DI68)) -> 0 | DC68: =IF(DK68=0,IF(DA68>=0,0,IF(DH68>=0,-DH68,DH68)),IF(DH68>=DJ68,DI68,DJ68)) -> -0.001973497046 | DD68: 0 | DE68: 0 | DF68: 0 | DG68: 0 | DH68: =OFFSET($B$27,DL68,DM68) -> 0.001973497046 | DI68: =DJ67 -> -0.04115551259 | DJ68: =DI68+DH68 -> -0.03918201555 | DK68: =IF(ABS(DI68)-ABS(DH68)<0,1,0) -> 0 | DL68: =DL67+1 -> 1 | DM68: =DM67 -> 8 | DP68: 0 | DQ68: 0 | DR68: 0 | DT68: 0 | DV68: 0 | DX68: 0 | FJ68: 0 | FK68: 0 | FL68: 0 | FN68: 0 | FP68: 0 | FR68: 0 | GD68: 0 | GE68: 0 | GF68: 0 | GH68: 0 | GJ68: 0 | GL68: 0
A69: Non-fuel Rate | B69: =IF(O69<>0,(AC69-O69)/O71,0) -> -0.0003807356643 | C69: -0.0007516268825 | D69: -0.001106852033 | E69: -0.001448262664 | F69: 0.008472033946 | G69: 0.01741445167 | H69: 0.01642190272 | I69: 0.01593154614 | J69: 0.01496623958 | K69: 0.03264819336 | L69: 0.01053966402 | N69: Average Non-Fuel Collected Revenue ($/kWh) | O69: 0.2338466124 | P69: 0.2339842603 | Q69: 0.2341212599 | R69: 0.2342575942 | S69: 0.2301822087 | T69: 0.2262424684 | U69: 0.2265132704 | V69: 0.2267835384 | W69: 0.2270532338 | X69: 0.2249574262 | Y69: =AVERAGE(O69:X69) -> 0.2297941873 | AC69: 0.2336915876 | AD69: 0.2336744941 | AE69: 0.2336570542 | AF69: 0.233639271 | AG69: 0.2338299237 | AH69: 0.2338113717 | AI69: 0.2337923962 | AJ69: 0.233773032 | AK69: 0.2337532545 | AL69: 0.2397988263 | AM69: =AVERAGE(AC69:AL69) -> 0.2343421211 | BC69: =A69 -> Non-fuel Rate | BD69: 0.2338466124 | BE69: 0.2339842603 | BF69: 0.2341212599 | BG69: 0.2342575942 | BH69: 0.2301822087 | BI69: 0.2262424684 | BJ69: 0.2265132704 | BK69: 0.2267835384 | BL69: 0.2270532338 | BM69: 0.2249574262 | CZ69: 0 | DA69: =IF(DK69=0,IF(DI69>=0,MIN(DI69,DJ69),MAX(DI69,DJ69)),0) -> -0.03918201555 | DB69: 0 | DC69: 0 | DD69: =IF(DK69=0,IF(DA69>=0,IF(DH69>=0,DH69,-DH69),0),IF(DH69>=DJ69,DJ69,DI69)) -> 0 | DE69: =IF(DK69=0,IF(DA69>=0,0,IF(DH69>=0,-DH69,DH69)),IF(DH69>=DJ69,DI69,DJ69)) -> -0.0114465666 | DF69: 0 | DG69: 0 | DH69: =OFFSET($B$27,DL69,DM69) -> -0.0114465666 | DI69: =DJ68 -> -0.03918201555 | DJ69: =DI69+DH69 -> -0.05062858214 | DK69: =IF(ABS(DI69)-ABS(DH69)<0,1,0) -> 0 | DL69: =DL68+1 -> 2 | DM69: =DM68 -> 8 | DO69: =DO63+1 -> 2028 | DP69: =DZ69 -> 0.08795521335 | DQ69: 0 | DR69: 0 | DS69: 0 | DT69: 0 | DU69: 0 | DV69: 0 | DW69: 0 | DX69: 0 | DY69: 0 | DZ69: =OFFSET($B$40,ED69,EE69) -> 0.08795521335 | EA69: 0 | EB69: =EA69+DZ69 -> 0.08795521335 | EC69: 0 | ED69: 0 | EE69: =EE63+1 -> 7 | FI69: =FI62+1 -> 2027 | FJ69: =FV69 -> 658760.5252 | FK69: 0 | FL69: 0 | FM69: 0 | FN69: 0 | FO69: 0 | FP69: 0 | FQ69: 0 | FR69: 0 | FS69: 0 | FT69: 0 | FU69: 0 | FV69: =OFFSET($O$4,FZ69,GA69) -> 658760.5252 | FW69: 0 | FX69: =FW69+FV69 -> 658760.5252 | FY69: 0 | FZ69: 0 | GA69: =GA62+1 -> 6 | GC69: =GC62+1 -> 2027 | GD69: =GP69 -> 188.4321924 | GE69: 0 | GF69: 0 | GG69: 0 | GH69: 0 | GI69: 0 | GJ69: 0 | GK69: 0 | GL69: 0 | GM69: 0 | GN69: 0 | GO69: 0 | GP69: =OFFSET($O$15,GT69,GU69) -> 188.4321924 | GQ69: 0 | GR69: =GQ69+GP69 -> 188.4321924 | GS69: 0 | GT69: 0 | GU69: =GU62+1 -> 6
A70: Utility Surcharge | B70: =IF(O70<>0,(AC70-O70)/O71,0) -> 0.05348580914 | C70: -0.01592630516 | D70: -0.04316847877 | E70: 0.01581658591 | F70: -0.03155103681 | G70: 0.02882583252 | H70: 0.04426015312 | I70: 0.05511178728 | J70: 0.07294092774 | K70: -0.02649847796 | L70: 0.0155760942 | N70: Total Collected Surcharge Utility Revenue Per kWh ($/kWh) | O70: 0.0106839647 | P70: 0.01550213342 | Q70: 0.02263022955 | R70: 0.03004248243 | S70: 0.02011772105 | T70: 0.01051303903 | U70: 0.01886592992 | V70: 0.01405887023 | W70: 0.02274444789 | X70: 0.01730798422 | Y70: =AVERAGE(O70:X70) -> 0.01824668025 | AC70: 0.03246187934 | AD70: 0.008938462804 | AE70: 0.004525682986 | AF70: 0.0367952366 | AG70: 0.006533121493 | AH70: 0.02304171025 | AI70: 0.03848455922 | AJ70: 0.03823753325 | AK70: 0.05539832371 | AL70: 0.005262156485 | AM70: =AVERAGE(AC70:AL70) -> 0.02496786661 | BC70: =A70 -> Utility Surcharge | BD70: 0.0106839647 | BE70: 0.01550213342 | BF70: 0.02263022955 | BG70: 0.03004248243 | BH70: 0.02011772105 | BI70: 0.01051303903 | BJ70: 0.01886592992 | BK70: 0.01405887023 | BL70: 0.02274444789 | BM70: 0.01730798422 | CZ70: 0 | DA70: =IF(DK70=0,IF(DI70>=0,MIN(DI70,DJ70),MAX(DI70,DJ70)),0) -> -0.05062858214 | DB70: 0 | DC70: 0 | DD70: 0 | DE70: 0 | DF70: =IF(DK70=0,IF(DA70>=0,IF(DH70>=0,DH70,-DH70),0),IF(DH70>=DJ70,DJ70,DI70)) -> 0 | DG70: =IF(DK70=0,IF(DA70>=0,0,IF(DH70>=0,-DH70,DH70)),IF(DH70>=DJ70,DI70,DJ70)) -> -0.001850081761 | DH70: =OFFSET($B$27,DL70,DM70) -> -0.001850081761 | DI70: =DJ69 -> -0.05062858214 | DJ70: =DI70+DH70 -> -0.0524786639 | DK70: =IF(ABS(DI70)-ABS(DH70)<0,1,0) -> 0 | DL70: =DL69+1 -> 3 | DM70: =DM69 -> 8 | DP70: 0 | DQ70: =IF(EC70=0,IF(EA70>=0,MIN(EA70,EB70),MAX(EA70,EB70)),0) -> 0.08795521335 | DR70: =IF(EC70=0,IF(DQ70>=0,IF(DZ70>=0,DZ70,-DZ70),0),IF(DZ70>=EB70,EB70,EA70)) -> 0.01148303239 | DS70: =IF(EC70=0,IF(DQ70>=0,0,IF(DZ70>=0,-DZ70,DZ70)),IF(DZ70>=EB70,EA70,EB70)) -> 0 | DT70: 0 | DU70: 0 | DV70: 0 | DW70: 0 | DX70: 0 | DY70: 0 | DZ70: =OFFSET($B$40,ED70,EE70) -> 0.01148303239 | EA70: =EB69 -> 0.08795521335 | EB70: =EA70+DZ70 -> 0.09943824575 | EC70: =IF(ABS(EA70)-ABS(DZ70)<0,1,0) -> 0 | ED70: =ED69+1 -> 1 | EE70: =EE69 -> 7 | FJ70: 0 | FK70: =IF(FY70=0,IF(FW70>=0,MIN(FW70,FX70),MAX(FW70,FX70)),0) -> 658760.5252 | FL70: =IF(FY70=0,IF(FK70>=0,IF(FV70>=0,FV70,-FV70),0),IF(FV70>=FX70,FX70,FW70)) -> 0 | FM70: =IF(FY70=0,IF(FK70>=0,0,IF(FV70>=0,-FV70,FV70)),IF(FV70>=FX70,FW70,FX70)) -> 0 | FN70: 0 | FO70: 0 | FP70: 0 | FQ70: 0 | FR70: 0 | FS70: 0 | FT70: 0 | FU70: 0 | FV70: 0 | FW70: =FX69 -> 658760.5252 | FX70: 658760.5252 | FY70: =IF(ABS(FW70)-ABS(FV70)<0,1,0) -> 0 | FZ70: =FZ69+1 -> 1 | GA70: =GA63+1 -> 6 | GD70: 0 | GE70: =IF(GS70=0,IF(GQ70>=0,MIN(GQ70,GR70),MAX(GQ70,GR70)),0) -> 188.4321924 | GF70: =IF(GS70=0,IF(GE70>=0,IF(GP70>=0,GP70,-GP70),0),IF(GP70>=GR70,GR70,GQ70)) -> 0 | GG70: =IF(GS70=0,IF(GE70>=0,0,IF(GP70>=0,-GP70,GP70)),IF(GP70>=GR70,GQ70,GR70)) -> 0 | GH70: 0 | GI70: 0 | GJ70: 0 | GK70: 0 | GL70: 0 | GM70: 0 | GN70: 0 | GO70: 0 | GP70: =OFFSET($O$15,GT70,GU70) -> 0 | GQ70: =GR69 -> 188.4321924 | GR70: 188.4321924 | GS70: =IF(ABS(GQ70)-ABS(GP70)<0,1,0) -> 0 | GT70: =GT69+1 -> 1 | GU70: =GU63+1 -> 6
A71: Total Utility Rate | B71: =IF(O71<>0,(AC71-O71)/O71,0) -> 0.05307645256 | C71: -0.01673507275 | D71: -0.04436042043 | E71: 0.01425575147 | F71: 0.09046965216 | G71: 0.1181466803 | H71: 0.1311475404 | I71: 0.1421942448 | J71: 0.1575914868 | K71: 0.1927031247 | L71: 0.08601603066 | N71: Total Collected Net Utility Revenue Per kWh ($/kWh) | O71: 0.4071718271 | P71: 0.4121276437 | Q71: 0.4193927394 | R71: 0.4269413266 | S71: 0.4305595292 | T71: 0.4346334563 | U71: 0.4432571492 | V71: 0.4387203575 | W71: 0.4476756306 | X71: 0.4545856464 | Y71: =AVERAGE(O71:X71) -> 0.4315065306 | AC71: 0.4287830633 | AD71: 0.4052306576 | AE71: 0.4007883012 | AF71: 0.4330276961 | AG71: 0.4695121 | AH71: 0.4859839563 | AI71: 0.5013892341 | AJ71: 0.5011038674 | AK71: 0.5182254988 | AL71: 0.5421857209 | AM71: =AVERAGE(AC71:AL71) -> 0.4686230096 | CZ71: 0 | DA71: 0 | DB71: 0 | DD71: 0 | DF71: 0 | DP71: 0 | DQ71: =IF(EC71=0,IF(EA71>=0,MIN(EA71,EB71),MAX(EA71,EB71)),0) -> 0.09943824575 | DR71: 0 | DS71: 0 | DT71: =IF(EC71=0,IF(DQ71>=0,IF(DZ71>=0,DZ71,-DZ71),0),IF(DZ71>=EB71,EB71,EA71)) -> 0 | DU71: =IF(EC71=0,IF(DQ71>=0,0,IF(DZ71>=0,-DZ71,DZ71)),IF(DZ71>=EB71,EA71,EB71)) -> 0 | DV71: 0 | DW71: 0 | DX71: 0 | DY71: 0 | DZ71: =OFFSET($B$40,ED71,EE71) -> 0 | EA71: =EB70 -> 0.09943824575 | EB71: =EA71+DZ71 -> 0.09943824575 | EC71: =IF(ABS(EA71)-ABS(DZ71)<0,1,0) -> 0 | ED71: =ED70+1 -> 2 | EE71: =EE70 -> 7 | FJ71: 0 | FK71: =IF(FY71=0,IF(FW71>=0,MIN(FW71,FX71),MAX(FW71,FX71)),0) -> 658760.5252 | FL71: 0 | FM71: 0 | FN71: =IF(FY71=0,IF(FK71>=0,IF(FV71>=0,FV71,-FV71),0),IF(FV71>=FX71,FX71,FW71)) -> 0 | FO71: =IF(FY71=0,IF(FK71>=0,0,IF(FV71>=0,-FV71,FV71)),IF(FV71>=FX71,FW71,FX71)) -> 0 | FP71: 0 | FQ71: 0 | FR71: 0 | FS71: 0 | FT71: 0 | FU71: 0 | FV71: 0 | FW71: =FX70 -> 658760.5252 | FX71: 658760.5252 | FY71: =IF(ABS(FW71)-ABS(FV71)<0,1,0) -> 0 | FZ71: =FZ70+1 -> 2 | GA71: 6 | GD71: 0 | GE71: =IF(GS71=0,IF(GQ71>=0,MIN(GQ71,GR71),MAX(GQ71,GR71)),0) -> 188.4321924 | GF71: 0 | GG71: 0 | GH71: =IF(GS71=0,IF(GE71>=0,IF(GP71>=0,GP71,-GP71),0),IF(GP71>=GR71,GR71,GQ71)) -> 0 | GI71: =IF(GS71=0,IF(GE71>=0,0,IF(GP71>=0,-GP71,GP71)),IF(GP71>=GR71,GQ71,GR71)) -> 0 | GJ71: 0 | GK71: 0 | GL71: 0 | GM71: 0 | GN71: 0 | GO71: 0 | GP71: 0 | GQ71: =GR70 -> 188.4321924 | GR71: 188.4321924 | GS71: =IF(ABS(GQ71)-ABS(GP71)<0,1,0) -> 0 | GT71: =GT70+1 -> 2 | GU71: 6
CY72: =CY67+1 -> 2030 | CZ72: =DH72 -> -0.04618623842 | DA72: 0 | DB72: 0 | DC72: 0 | DD72: 0 | DE72: 0 | DF72: 0 | DG72: 0 | DH72: =OFFSET($B$27,DL72,DM72) -> -0.04618623842 | DI72: 0 | DJ72: =DI72+DH72 -> -0.04618623842 | DK72: 0 | DL72: 0 | DM72: =DM67+1 -> 9 | DP72: 0 | DQ72: =IF(EC72=0,IF(EA72>=0,MIN(EA72,EB72),MAX(EA72,EB72)),0) -> 0.09943824575 | DR72: 0 | DS72: 0 | DT72: 0 | DU72: 0 | DV72: =IF(EC72=0,IF(DQ72>=0,IF(DZ72>=0,DZ72,-DZ72),0),IF(DZ72>=EB72,EB72,EA72)) -> 0.002345717364 | DW72: =IF(EC72=0,IF(DQ72>=0,0,IF(DZ72>=0,-DZ72,DZ72)),IF(DZ72>=EB72,EA72,EB72)) -> 0 | DX72: 0 | DY72: 0 | DZ72: =OFFSET($B$40,ED72,EE72) -> 0.002345717364 | EA72: =EB71 -> 0.09943824575 | EB72: =EA72+DZ72 -> 0.1017839631 | EC72: =IF(ABS(EA72)-ABS(DZ72)<0,1,0) -> 0 | ED72: =ED71+1 -> 3 | EE72: =EE71 -> 7 | FJ72: 0 | FK72: =IF(FY72=0,IF(FW72>=0,MIN(FW72,FX72),MAX(FW72,FX72)),0) -> 658760.5252 | FL72: 0 | FM72: 0 | FN72: 0 | FO72: 0 | FP72: =IF(FY72=0,IF(FK72>=0,IF(FV72>=0,FV72,-FV72),0),IF(FV72>=FX72,FX72,FW72)) -> 0 | FQ72: =IF(FY72=0,IF(FK72>=0,0,IF(FV72>=0,-FV72,FV72)),IF(FV72>=FX72,FW72,FX72)) -> 0 | FR72: 0 | FS72: 0 | FT72: 0 | FU72: 0 | FV72: 0 | FW72: =FX71 -> 658760.5252 | FX72: 658760.5252 | FY72: =IF(ABS(FW72)-ABS(FV72)<0,1,0) -> 0 | FZ72: =FZ71+1 -> 3 | GA72: 6 | GD72: 0 | GE72: =IF(GS72=0,IF(GQ72>=0,MIN(GQ72,GR72),MAX(GQ72,GR72)),0) -> 188.4321924 | GF72: 0 | GG72: 0 | GH72: 0 | GI72: 0 | GJ72: =IF(GS72=0,IF(GE72>=0,IF(GP72>=0,GP72,-GP72),0),IF(GP72>=GR72,GR72,GQ72)) -> 0 | GK72: =IF(GS72=0,IF(GE72>=0,0,IF(GP72>=0,-GP72,GP72)),IF(GP72>=GR72,GQ72,GR72)) -> 0 | GL72: 0 | GM72: 0 | GN72: 0 | GO72: 0 | GP72: 0 | GQ72: =GR71 -> 188.4321924 | GR72: 188.4321924 | GS72: =IF(ABS(GQ72)-ABS(GP72)<0,1,0) -> 0 | GT72: =GT71+1 -> 3 | GU72: 6
N73: Class 1 (Annual Revenue/Customer) | CZ73: 0 | DA73: =IF(DK73=0,IF(DI73>=0,MIN(DI73,DJ73),MAX(DI73,DJ73)),0) -> -0.04397751872 | DB73: =IF(DK73=0,IF(DA73>=0,IF(DH73>=0,DH73,-DH73),0),IF(DH73>=DJ73,DJ73,DI73)) -> 0 | DC73: =IF(DK73=0,IF(DA73>=0,0,IF(DH73>=0,-DH73,DH73)),IF(DH73>=DJ73,DI73,DJ73)) -> -0.002208719698 | DD73: 0 | DE73: 0 | DF73: 0 | DG73: 0 | DH73: =OFFSET($B$27,DL73,DM73) -> 0.002208719698 | DI73: =DJ72 -> -0.04618623842 | DJ73: =DI73+DH73 -> -0.04397751872 | DK73: =IF(ABS(DI73)-ABS(DH73)<0,1,0) -> 0 | DL73: =DL72+1 -> 1 | DM73: =DM72 -> 9 | DP73: 0 | DQ73: =IF(EC73=0,IF(EA73>=0,MIN(EA73,EB73),MAX(EA73,EB73)),0) -> 0.1017839631 | DR73: 0 | DS73: 0 | DT73: 0 | DU73: 0 | DV73: 0 | DW73: 0 | DX73: =IF(EC73=0,IF(DQ73>=0,IF(DZ73>=0,DZ73,-DZ73),0),IF(DZ73>=EB73,EB73,EA73)) -> 0 | DY73: =IF(EC73=0,IF(DQ73>=0,0,IF(DZ73>=0,-DZ73,DZ73)),IF(DZ73>=EB73,EA73,EB73)) -> 0 | DZ73: =OFFSET($B$40,ED73,EE73) -> 0 | EA73: =EB72 -> 0.1017839631 | EB73: =EA73+DZ73 -> 0.1017839631 | EC73: =IF(ABS(EA73)-ABS(DZ73)<0,1,0) -> 0 | ED73: =ED72+1 -> 4 | EE73: =EE72 -> 7 | FJ73: 0 | FK73: =IF(FY73=0,IF(FW73>=0,MIN(FW73,FX73),MAX(FW73,FX73)),0) -> 658760.5252 | FL73: 0 | FM73: 0 | FN73: 0 | FO73: 0 | FP73: 0 | FQ73: 0 | FR73: =IF(FY73=0,IF(FK73>=0,IF(FV73>=0,FV73,-FV73),0),IF(FV73>=FX73,FX73,FW73)) -> 0 | FS73: =IF(FY73=0,IF(FK73>=0,0,IF(FV73>=0,-FV73,FV73)),IF(FV73>=FX73,FW73,FX73)) -> 0 | FT73: 0 | FU73: 0 | FV73: 0 | FW73: =FX72 -> 658760.5252 | FX73: 658760.5252 | FY73: =IF(ABS(FW73)-ABS(FV73)<0,1,0) -> 0 | FZ73: =FZ72+1 -> 4 | GA73: 6 | GD73: 0 | GE73: =IF(GS73=0,IF(GQ73>=0,MIN(GQ73,GR73),MAX(GQ73,GR73)),0) -> 188.4321924 | GF73: 0 | GG73: 0 | GH73: 0 | GI73: 0 | GJ73: 0 | GK73: 0 | GL73: =IF(GS73=0,IF(GE73>=0,IF(GP73>=0,GP73,-GP73),0),IF(GP73>=GR73,GR73,GQ73)) -> 0 | GM73: =IF(GS73=0,IF(GE73>=0,0,IF(GP73>=0,-GP73,GP73)),IF(GP73>=GR73,GQ73,GR73)) -> 0 | GN73: 0 | GO73: 0 | GP73: 0 | GQ73: =GR72 -> 188.4321924 | GR73: 188.4321924 | GS73: =IF(ABS(GQ73)-ABS(GP73)<0,1,0) -> 0 | GT73: =GT72+1 -> 4 | GU73: 6
N74: Class 2 (Annual Revenue/Customer) | CZ74: 0 | DA74: =IF(DK74=0,IF(DI74>=0,MIN(DI74,DJ74),MAX(DI74,DJ74)),0) -> -0.04397751872 | DB74: 0 | DC74: 0 | DD74: =IF(DK74=0,IF(DA74>=0,IF(DH74>=0,DH74,-DH74),0),IF(DH74>=DJ74,DJ74,DI74)) -> 0 | DE74: =IF(DK74=0,IF(DA74>=0,0,IF(DH74>=0,-DH74,DH74)),IF(DH74>=DJ74,DI74,DJ74)) -> -0.01256287496 | DF74: 0 | DG74: 0 | DH74: =OFFSET($B$27,DL74,DM74) -> -0.01256287496 | DI74: =DJ73 -> -0.04397751872 | DJ74: =DI74+DH74 -> -0.05654039368 | DK74: =IF(ABS(DI74)-ABS(DH74)<0,1,0) -> 0 | DL74: =DL73+1 -> 2 | DM74: =DM73 -> 9 | DP74: 0 | DQ74: 0 | DR74: 0 | DT74: 0 | DV74: 0 | DX74: 0 | FJ74: 0 | FK74: =IF(FY74=0,IF(FW74>=0,MIN(FW74,FX74),MAX(FW74,FX74)),0) -> 658760.5252 | FL74: 0 | FM74: 0 | FN74: 0 | FO74: 0 | FP74: 0 | FQ74: 0 | FR74: 0 | FS74: =IF(FY74=0,IF(FK74>=0,0,IF(FV74>=0,-FV74,FV74)),IF(FV74>=FX74,FW74,FX74)) -> 0 | FT74: =IF(FY74=0,IF(FK74>=0,IF(FV74>=0,FV74,-FV74),0),IF(FV74>=FX74,FX74,FW74)) -> 0 | FU74: =IF(FY74=0,IF(FK74>=0,0,IF(FV74>=0,-FV74,FV74)),IF(FV74>=FX74,FW74,FX74)) -> 0 | FV74: 0 | FW74: =FX73 -> 658760.5252 | FX74: 658760.5252 | FY74: =IF(ABS(FW74)-ABS(FV74)<0,1,0) -> 0 | FZ74: 7 | GA74: 6 | GD74: 0 | GE74: =IF(GS74=0,IF(GQ74>=0,MIN(GQ74,GR74),MAX(GQ74,GR74)),0) -> 188.4321924 | GF74: 0 | GG74: 0 | GH74: 0 | GI74: 0 | GJ74: 0 | GK74: 0 | GL74: 0 | GM74: =IF(GS74=0,IF(GE74>=0,0,IF(GP74>=0,-GP74,GP74)),IF(GP74>=GR74,GQ74,GR74)) -> 0 | GN74: =IF(GS74=0,IF(GE74>=0,IF(GP74>=0,GP74,-GP74),0),IF(GP74>=GR74,GR74,GQ74)) -> 0 | GO74: =IF(GS74=0,IF(GE74>=0,0,IF(GP74>=0,-GP74,GP74)),IF(GP74>=GR74,GQ74,GR74)) -> 0 | GP74: 0 | GQ74: =GR73 -> 188.4321924 | GR74: 188.4321924 | GS74: =IF(ABS(GQ74)-ABS(GP74)<0,1,0) -> 0 | GT74: 7 | GU74: 6
N75: Class 3 (Annual Revenue/Customer) | CZ75: 0 | DA75: =IF(DK75=0,IF(DI75>=0,MIN(DI75,DJ75),MAX(DI75,DJ75)),0) -> -0.05654039368 | DB75: 0 | DC75: 0 | DD75: 0 | DE75: 0 | DF75: =IF(DK75=0,IF(DA75>=0,IF(DH75>=0,DH75,-DH75),0),IF(DH75>=DJ75,DJ75,DI75)) -> 0 | DG75: =IF(DK75=0,IF(DA75>=0,0,IF(DH75>=0,-DH75,DH75)),IF(DH75>=DJ75,DI75,DJ75)) -> -0.002027238722 | DH75: =OFFSET($B$27,DL75,DM75) -> -0.002027238722 | DI75: =DJ74 -> -0.05654039368 | DJ75: =DI75+DH75 -> -0.0585676324 | DK75: =IF(ABS(DI75)-ABS(DH75)<0,1,0) -> 0 | DL75: =DL74+1 -> 3 | DM75: =DM74 -> 9 | DO75: =DO69+1 -> 2029 | DP75: =DZ75 -> 0.09890188811 | DQ75: 0 | DR75: 0 | DS75: 0 | DT75: 0 | DU75: 0 | DV75: 0 | DW75: 0 | DX75: 0 | DY75: 0 | DZ75: =OFFSET($B$40,ED75,EE75) -> 0.09890188811 | EA75: 0 | EB75: =EA75+DZ75 -> 0.09890188811 | EC75: 0 | ED75: 0 | EE75: =EE69+1 -> 8 | FJ75: 0 | FK75: 0 | FL75: 0 | FN75: 0 | FP75: 0 | FR75: 0 | GD75: 0 | GE75: 0 | GF75: 0 | GH75: 0 | GJ75: 0 | GL75: 0
